Workbook

Sheet Форма по МДС 81-35.2004
A1: < ГЭСНс * 2015_s * 15_15_зр > | C1: ПК РИК (вер.1.3.140604) | H1: Форма по МДС 81-35.2004
B3: Объект: | C3: Содержание дорог 2015-2017
A4: ЛОКАЛЬНАЯ СМЕТА № 15_15_зр
A5: (Локальный сметный расчет)
A6: Автомобильные дороги регионального или межмуниципального значения с автобусным движением с допустимым уровнем содержания - норматив "Авт" (ЗИМНИЕ РАБОТЫ)
B7: Основание: | C7: Техническое задание и перечень видов и объёмов работ на содержание автодорог на год, на 1
E8: Сметная стоимость: | F8: =TEXT((H688)/1000,"# ##0"&GetSeparator()&"000") -> 67,552 | H8: тыс. руб.
A9: Составлена в текущих ценах на 3-й квартал 2013 г. по НБ: "ГЭСНс-2001".
A11: № поз | B11: Шифр, номер норматива, код ресурса | C11: Наименование работ и затрат, характеристика оборудования, масса | D11: Единица измерения | E11: Количество | G11: Сметная стоимость в текущих ценах
D12: Кол-во механиза-торов | E12: на единицу измерения | F12: по проектным данным | G12: на единицу измерения | H12: общая
A13: 1 | B13: 2 | C13: 3 | D13: 4 | E13: 5 | F13: 6 | G13: 7 | H13: 8
B14: I. ЗЕМЛЯНОЕ ПОЛОТНО
B15: 1.Обочины
A16: 1. | B16: ГЭСНс 01-05-003-01 | C16: Очистка обочин от снега плужными снегоочистителями на базе автомобиля (КДМ) мощностью от 210 до 270 л.с. | D16: 10 км обочины | F16: 6 | G16: =ROUND(СУММПРОИЗВЕСЛИ(1,I16:I19,"s",E16:E19,G16:G19,0),2)+SUMIF(I16:I34,"=NenormMatOtZPR",G16:G34) -> 893.87 | H16: =ROUND(СУММПРОИЗВЕСЛИ(F16,I16:I19,"s",E16:E19,G16:G19,0),0)+SUMIF(I16:I34,"=NenormMatOtZPR",H16:H34) -> 5363 | I16: sum | M16: =ROUND(СУММПРОИЗВЕСЛИ(1,I16:I19,"s",E16:E19,M16:M19,0),2)+SUMIF(I16:I34,"=NenormMatOtZPR",M16:M34) -> 148.76 | N16: =ROUND(СУММПРОИЗВЕСЛИ(F16,I16:I19,"s",E16:E19,M16:M19,0),0)+SUMIF(I16:I34,"=NenormMatOtZPR",N16:N34) -> 893
A17: 1. 1. | B17: 2 | C17: Затраты труда машинистов | D17: чел.-ч | E17: =ОКРУГЛВСЕ(СУММПРОИЗВЕСЛИ(1,K16:K19,"mWithZTM",D16:D19,E16:E19,-1)+СУММКОЭФПРОЦЕНТЕСЛИ(1,1,K16:K19,"mWithZTM_Proch",E16:E19,-1),11) -> 0.8 | F17: =ОКРУГЛВСЕ(СУММПРОИЗВЕСЛИ(1,K16:K19,"mWithZTM",D16:D19,F16:F19,-1)+СУММКОЭФПРОЦЕНТЕСЛИ(1,1,K16:K19,"mWithZTM_Proch",F16:F19,-1),11) -> 4.8 | G17: =IF(F17=0,0,ROUND(H17/F17,3)) -> 174.375 | H17: =ROUND(СУММЕСЛИДА1НЕ1(L16:L19,"mWithZPM",D16:D19,0,H16:H19),0) -> 837 | J17: Ж | M17: =IF(F17=0,0,ROUND(N17/F17,3)) -> 13.542 | N17: =ROUND(СУММЕСЛИДА1НЕ1(L16:L19,"mWithZPM",D16:D19,0,N16:N19),0) -> 65
A18: 1. 2. | B18: =ПОЛУЧШИФР(Ресурсы!A41,1) -> СЦЭСМ 121342 | C18: =Ресурсы!B41 -> Машины дорожные комбинированные, мощностью от 210 до 270 л.с. | D18: маш.-ч | E18: 0.8 | F18: =ОКРУГЛВСЕ(IF(E18="",0,E18)*IF(F16="",0,F16),11) -> 4.8 | G18: =Ресурсы!D41 -> 1117.34 | H18: =ROUND(IF(F18="",0,F18)*IF(G18="",0,G18),0) -> 5363 | I18: s | J18: IsMash | M18: =Ресурсы!C41 -> 185.95 | N18: =ROUND(IF(F18="",0,F18)*IF(M18="",0,M18),0) -> 893
D19: =Ресурсы!G41 -> 1 | G19: =Ресурсы!F41 -> 174.31 | H19: =ROUND(IF(F18="",0,F18)*IF(G19="",0,G19),0) -> 837 | K19: mWithZTM | L19: mWithZPM | M19: =Ресурсы!E41 -> 13.5 | N19: =ROUND(IF(F18="",0,F18)*IF(M19="",0,M19),0) -> 65
C20: Зарплата рабочих
C21: Эксплуатация машин | H21: 5363 | N21: 893
C22: в т.ч. зарплата машинистов | H22: 837 | N22: 65
C23: Материалы
C24: в т.ч. Вспомогательные материалы от стоимости материалов
C25: в т.ч. Вспомогательные ненормируемые материалы | I25: NenormMatOtZPR
C26: в т.ч. Ненормированная з.п. рабочих
C27: в т.ч. Ненормированная стоимость эксплуатации машин
C28: в т.ч. Ненормированная оплата механизаторов
C29: Накладные расходы | G29: 11.7 | H29: =IF('Текущие цены с учетом расхода'!N6>0,'Текущие цены с учетом расхода'!N6,IF('Текущие цены с учетом расхода'!N6<0,'Текущие цены с учетом расхода'!N6,"")) -> 627 | J29: Nakl | M29: 11.7 | N29: =IF('Базовые цены с учетом расхода'!N6>0,'Базовые цены с учетом расхода'!N6,IF('Базовые цены с учетом расхода'!N6<0,'Базовые цены с учетом расхода'!N6,"")) -> 104
C30: НР от ЗПР | H30: =IF('Текущие цены с учетом расхода'!P6>0,'Текущие цены с учетом расхода'!P6,IF('Текущие цены с учетом расхода'!P6<0,'Текущие цены с учетом расхода'!P6,"")) ->  | J30: Nakl_ZPR | N30: =IF('Базовые цены с учетом расхода'!P6>0,'Базовые цены с учетом расхода'!P6,IF('Базовые цены с учетом расхода'!P6<0,'Базовые цены с учетом расхода'!P6,"")) -> 
C31: НР от ЗПМ | H31: =IF('Текущие цены с учетом расхода'!Q6>0,'Текущие цены с учетом расхода'!Q6,IF('Текущие цены с учетом расхода'!Q6<0,'Текущие цены с учетом расхода'!Q6,"")) ->  | J31: Nakl_ZPM | N31: =IF('Базовые цены с учетом расхода'!Q6>0,'Базовые цены с учетом расхода'!Q6,IF('Базовые цены с учетом расхода'!Q6<0,'Базовые цены с учетом расхода'!Q6,"")) -> 
C32: Плановые накопления / Сметная прибыль | G32: 8 | H32: =IF('Текущие цены с учетом расхода'!O6>0,'Текущие цены с учетом расхода'!O6,IF('Текущие цены с учетом расхода'!O6<0,'Текущие цены с учетом расхода'!O6,"")) -> 479 | J32: Plan | M32: 8 | N32: =IF('Базовые цены с учетом расхода'!O6>0,'Базовые цены с учетом расхода'!O6,IF('Базовые цены с учетом расхода'!O6<0,'Базовые цены с учетом расхода'!O6,"")) -> 80
C33: СП от ЗПР | H33: =IF('Текущие цены с учетом расхода'!R6>0,'Текущие цены с учетом расхода'!R6,IF('Текущие цены с учетом расхода'!R6<0,'Текущие цены с учетом расхода'!R6,"")) ->  | J33: Plan_ZPR | N33: =IF('Базовые цены с учетом расхода'!R6>0,'Базовые цены с учетом расхода'!R6,IF('Базовые цены с учетом расхода'!R6<0,'Базовые цены с учетом расхода'!R6,"")) -> 
C34: СП от ЗПМ | H34: =IF('Текущие цены с учетом расхода'!S6>0,'Текущие цены с учетом расхода'!S6,IF('Текущие цены с учетом расхода'!S6<0,'Текущие цены с учетом расхода'!S6,"")) ->  | J34: Plan_ZPM | N34: =IF('Базовые цены с учетом расхода'!S6>0,'Базовые цены с учетом расхода'!S6,IF('Базовые цены с учетом расхода'!S6<0,'Базовые цены с учетом расхода'!S6,"")) -> 
A35: 2. | B35: ГЭСНс 01-05-007-01 | C35: Уборка снежных валов автогрейдерами | D35: 10 км вала | F35: 0.8 | G35: =ROUND(СУММПРОИЗВЕСЛИ(1,I35:I38,"s",E35:E38,G35:G38,0),2)+SUMIF(I35:I53,"=NenormMatOtZPR",G35:G53) -> 1533.44 | H35: =ROUND(СУММПРОИЗВЕСЛИ(F35,I35:I38,"s",E35:E38,G35:G38,0),0)+SUMIF(I35:I53,"=NenormMatOtZPR",H35:H53) -> 1227 | I35: sum | M35: =ROUND(СУММПРОИЗВЕСЛИ(1,I35:I38,"s",E35:E38,M35:M38,0),2)+SUMIF(I35:I53,"=NenormMatOtZPR",M35:M53) -> 196.8 | N35: =ROUND(СУММПРОИЗВЕСЛИ(F35,I35:I38,"s",E35:E38,M35:M38,0),0)+SUMIF(I35:I53,"=NenormMatOtZPR",N35:N53) -> 157
A36: 2. 1. | B36: 2 | C36: Затраты труда машинистов | D36: чел.-ч | E36: =ОКРУГЛВСЕ(СУММПРОИЗВЕСЛИ(1,K35:K38,"mWithZTM",D35:D38,E35:E38,-1)+СУММКОЭФПРОЦЕНТЕСЛИ(1,1,K35:K38,"mWithZTM_Proch",E35:E38,-1),11) -> 1.6 | F36: =ОКРУГЛВСЕ(СУММПРОИЗВЕСЛИ(1,K35:K38,"mWithZTM",D35:D38,F35:F38,-1)+СУММКОЭФПРОЦЕНТЕСЛИ(1,1,K35:K38,"mWithZTM_Proch",F35:F38,-1),11) -> 1.28 | G36: =IF(F36=0,0,ROUND(H36/F36,3)) -> 167.188 | H36: =ROUND(СУММЕСЛИДА1НЕ1(L35:L38,"mWithZPM",D35:D38,0,H35:H38),0) -> 214 | J36: Ж | M36: =IF(F36=0,0,ROUND(N36/F36,3)) -> 13.281 | N36: =ROUND(СУММЕСЛИДА1НЕ1(L35:L38,"mWithZPM",D35:D38,0,N35:N38),0) -> 17
A37: 2. 2. | B37: =ПОЛУЧШИФР(Ресурсы!A39,1) -> СЦЭСМ 120202 | C37: =Ресурсы!B39 -> Автогрейдеры среднего типа 99 кВт (135 л.с.) | D37: маш.-ч | E37: 1.6 | F37: =ОКРУГЛВСЕ(IF(E37="",0,E37)*IF(F35="",0,F35),11) -> 1.28 | G37: =Ресурсы!D39 -> 958.4 | H37: =ROUND(IF(F37="",0,F37)*IF(G37="",0,G37),0) -> 1227 | I37: s | J37: IsMash | M37: =Ресурсы!C39 -> 123 | N37: =ROUND(IF(F37="",0,F37)*IF(M37="",0,M37),0) -> 157
D38: =Ресурсы!G39 -> 1 | G38: =Ресурсы!F39 -> 166.8 | H38: =ROUND(IF(F37="",0,F37)*IF(G38="",0,G38),0) -> 214 | K38: mWithZTM | L38: mWithZPM | M38: =Ресурсы!E39 -> 13.5 | N38: =ROUND(IF(F37="",0,F37)*IF(M38="",0,M38),0) -> 17
C39: Зарплата рабочих
C40: Эксплуатация машин | H40: 1227 | N40: 157
C41: в т.ч. зарплата машинистов | H41: 214 | N41: 17
C42: Материалы
C43: в т.ч. Вспомогательные материалы от стоимости материалов
C44: в т.ч. Вспомогательные ненормируемые материалы | I44: NenormMatOtZPR
C45: в т.ч. Ненормированная з.п. рабочих
C46: в т.ч. Ненормированная стоимость эксплуатации машин
C47: в т.ч. Ненормированная оплата механизаторов
C48: Накладные расходы | G48: 11.7 | H48: =IF('Текущие цены с учетом расхода'!N7>0,'Текущие цены с учетом расхода'!N7,IF('Текущие цены с учетом расхода'!N7<0,'Текущие цены с учетом расхода'!N7,"")) -> 144 | J48: Nakl | M48: 11.7 | N48: =IF('Базовые цены с учетом расхода'!N7>0,'Базовые цены с учетом расхода'!N7,IF('Базовые цены с учетом расхода'!N7<0,'Базовые цены с учетом расхода'!N7,"")) -> 18
C49: НР от ЗПР | H49: =IF('Текущие цены с учетом расхода'!P7>0,'Текущие цены с учетом расхода'!P7,IF('Текущие цены с учетом расхода'!P7<0,'Текущие цены с учетом расхода'!P7,"")) ->  | J49: Nakl_ZPR | N49: =IF('Базовые цены с учетом расхода'!P7>0,'Базовые цены с учетом расхода'!P7,IF('Базовые цены с учетом расхода'!P7<0,'Базовые цены с учетом расхода'!P7,"")) -> 
C50: НР от ЗПМ | H50: =IF('Текущие цены с учетом расхода'!Q7>0,'Текущие цены с учетом расхода'!Q7,IF('Текущие цены с учетом расхода'!Q7<0,'Текущие цены с учетом расхода'!Q7,"")) ->  | J50: Nakl_ZPM | N50: =IF('Базовые цены с учетом расхода'!Q7>0,'Базовые цены с учетом расхода'!Q7,IF('Базовые цены с учетом расхода'!Q7<0,'Базовые цены с учетом расхода'!Q7,"")) -> 
C51: Плановые накопления / Сметная прибыль | G51: 8 | H51: =IF('Текущие цены с учетом расхода'!O7>0,'Текущие цены с учетом расхода'!O7,IF('Текущие цены с учетом расхода'!O7<0,'Текущие цены с учетом расхода'!O7,"")) -> 110 | J51: Plan | M51: 8 | N51: =IF('Базовые цены с учетом расхода'!O7>0,'Базовые цены с учетом расхода'!O7,IF('Базовые цены с учетом расхода'!O7<0,'Базовые цены с учетом расхода'!O7,"")) -> 14
C52: СП от ЗПР | H52: =IF('Текущие цены с учетом расхода'!R7>0,'Текущие цены с учетом расхода'!R7,IF('Текущие цены с учетом расхода'!R7<0,'Текущие цены с учетом расхода'!R7,"")) ->  | J52: Plan_ZPR | N52: =IF('Базовые цены с учетом расхода'!R7>0,'Базовые цены с учетом расхода'!R7,IF('Базовые цены с учетом расхода'!R7<0,'Базовые цены с учетом расхода'!R7,"")) -> 
C53: СП от ЗПМ | H53: =IF('Текущие цены с учетом расхода'!S7>0,'Текущие цены с учетом расхода'!S7,IF('Текущие цены с учетом расхода'!S7<0,'Текущие цены с учетом расхода'!S7,"")) ->  | J53: Plan_ZPM | N53: =IF('Базовые цены с учетом расхода'!S7>0,'Базовые цены с учетом расхода'!S7,IF('Базовые цены с учетом расхода'!S7<0,'Базовые цены с учетом расхода'!S7,"")) -> 
A54: 3. | B54: ГЭСНс 01-05-001-01 | C54: Удаление снежного вала шнекороторными снегоочистителями на базе автомобиля | D54: 10 км вала | F54: 0.1 | G54: =ROUND(СУММПРОИЗВЕСЛИ(1,I54:I57,"s",E54:E57,G54:G57,0),2)+SUMIF(I54:I72,"=NenormMatOtZPR",G54:G72) -> 11881.98 | H54: =ROUND(СУММПРОИЗВЕСЛИ(F54,I54:I57,"s",E54:E57,G54:G57,0),0)+SUMIF(I54:I72,"=NenormMatOtZPR",H54:H72) -> 1188 | I54: sum | M54: =ROUND(СУММПРОИЗВЕСЛИ(1,I54:I57,"s",E54:E57,M54:M57,0),2)+SUMIF(I54:I72,"=NenormMatOtZPR",M54:M72) -> 2205.63 | N54: =ROUND(СУММПРОИЗВЕСЛИ(F54,I54:I57,"s",E54:E57,M54:M57,0),0)+SUMIF(I54:I72,"=NenormMatOtZPR",N54:N72) -> 221
A55: 3. 1. | B55: 2 | C55: Затраты труда машинистов | D55: чел.-ч | E55: =ОКРУГЛВСЕ(СУММПРОИЗВЕСЛИ(1,K54:K57,"mWithZTM",D54:D57,E54:E57,-1)+СУММКОЭФПРОЦЕНТЕСЛИ(1,1,K54:K57,"mWithZTM_Proch",E54:E57,-1),11) -> 7.07 | F55: =ОКРУГЛВСЕ(СУММПРОИЗВЕСЛИ(1,K54:K57,"mWithZTM",D54:D57,F54:F57,-1)+СУММКОЭФПРОЦЕНТЕСЛИ(1,1,K54:K57,"mWithZTM_Proch",F54:F57,-1),11) -> 0.707 | G55: =IF(F55=0,0,ROUND(H55/F55,3)) -> 142.857 | H55: =ROUND(СУММЕСЛИДА1НЕ1(L54:L57,"mWithZPM",D54:D57,0,H54:H57),0) -> 101 | J55: Ж | M55: =IF(F55=0,0,ROUND(N55/F55,3)) -> 11.315 | N55: =ROUND(СУММЕСЛИДА1НЕ1(L54:L57,"mWithZPM",D54:D57,0,N54:N57),0) -> 8
A56: 3. 2. | B56: =ПОЛУЧШИФР(Ресурсы!A43,1) -> СЦЭСМ 121902 | C56: =Ресурсы!B43 -> Снегоочистители на автомобиле шнекороторные | D56: маш.-ч | E56: 7.07 | F56: =ОКРУГЛВСЕ(IF(E56="",0,E56)*IF(F54="",0,F54),11) -> 0.707 | G56: =Ресурсы!D43 -> 1680.62 | H56: =ROUND(IF(F56="",0,F56)*IF(G56="",0,G56),0) -> 1188 | I56: s | J56: IsMash | M56: =Ресурсы!C43 -> 311.97 | N56: =ROUND(IF(F56="",0,F56)*IF(M56="",0,M56),0) -> 221
D57: =Ресурсы!G43 -> 1 | G57: =Ресурсы!F43 -> 142.8 | H57: =ROUND(IF(F56="",0,F56)*IF(G57="",0,G57),0) -> 101 | K57: mWithZTM | L57: mWithZPM | M57: =Ресурсы!E43 -> 11.6 | N57: =ROUND(IF(F56="",0,F56)*IF(M57="",0,M57),0) -> 8
C58: Зарплата рабочих
C59: Эксплуатация машин | H59: 1188 | N59: 221
C60: в т.ч. зарплата машинистов | H60: 101 | N60: 8
C61: Материалы
C62: в т.ч. Вспомогательные материалы от стоимости материалов
C63: в т.ч. Вспомогательные ненормируемые материалы | I63: NenormMatOtZPR
C64: в т.ч. Ненормированная з.п. рабочих
C65: в т.ч. Ненормированная стоимость эксплуатации машин
C66: в т.ч. Ненормированная оплата механизаторов
C67: Накладные расходы | G67: 11.7 | H67: =IF('Текущие цены с учетом расхода'!N8>0,'Текущие цены с учетом расхода'!N8,IF('Текущие цены с учетом расхода'!N8<0,'Текущие цены с учетом расхода'!N8,"")) -> 139 | J67: Nakl | M67: 11.7 | N67: =IF('Базовые цены с учетом расхода'!N8>0,'Базовые цены с учетом расхода'!N8,IF('Базовые цены с учетом расхода'!N8<0,'Базовые цены с учетом расхода'!N8,"")) -> 26
C68: НР от ЗПР | H68: =IF('Текущие цены с учетом расхода'!P8>0,'Текущие цены с учетом расхода'!P8,IF('Текущие цены с учетом расхода'!P8<0,'Текущие цены с учетом расхода'!P8,"")) ->  | J68: Nakl_ZPR | N68: =IF('Базовые цены с учетом расхода'!P8>0,'Базовые цены с учетом расхода'!P8,IF('Базовые цены с учетом расхода'!P8<0,'Базовые цены с учетом расхода'!P8,"")) -> 
C69: НР от ЗПМ | H69: =IF('Текущие цены с учетом расхода'!Q8>0,'Текущие цены с учетом расхода'!Q8,IF('Текущие цены с учетом расхода'!Q8<0,'Текущие цены с учетом расхода'!Q8,"")) ->  | J69: Nakl_ZPM | N69: =IF('Базовые цены с учетом расхода'!Q8>0,'Базовые цены с учетом расхода'!Q8,IF('Базовые цены с учетом расхода'!Q8<0,'Базовые цены с учетом расхода'!Q8,"")) -> 
C70: Плановые накопления / Сметная прибыль | G70: 8 | H70: =IF('Текущие цены с учетом расхода'!O8>0,'Текущие цены с учетом расхода'!O8,IF('Текущие цены с учетом расхода'!O8<0,'Текущие цены с учетом расхода'!O8,"")) -> 106 | J70: Plan | M70: 8 | N70: =IF('Базовые цены с учетом расхода'!O8>0,'Базовые цены с учетом расхода'!O8,IF('Базовые цены с учетом расхода'!O8<0,'Базовые цены с учетом расхода'!O8,"")) -> 20
C71: СП от ЗПР | H71: =IF('Текущие цены с учетом расхода'!R8>0,'Текущие цены с учетом расхода'!R8,IF('Текущие цены с учетом расхода'!R8<0,'Текущие цены с учетом расхода'!R8,"")) ->  | J71: Plan_ZPR | N71: =IF('Базовые цены с учетом расхода'!R8>0,'Базовые цены с учетом расхода'!R8,IF('Базовые цены с учетом расхода'!R8<0,'Базовые цены с учетом расхода'!R8,"")) -> 
C72: СП от ЗПМ | H72: =IF('Текущие цены с учетом расхода'!S8>0,'Текущие цены с учетом расхода'!S8,IF('Текущие цены с учетом расхода'!S8<0,'Текущие цены с учетом расхода'!S8,"")) ->  | J72: Plan_ZPM | N72: =IF('Базовые цены с учетом расхода'!S8>0,'Базовые цены с учетом расхода'!S8,IF('Базовые цены с учетом расхода'!S8<0,'Базовые цены с учетом расхода'!S8,"")) -> 
B73: 2.Водоотвод
A74: 4. | B74: ГЭСНс 01-05-012-01 | C74: Устройство траншей в снегу бульдозерами | D74: 10 км | F74: 0.015 | G74: =ROUND(СУММПРОИЗВЕСЛИ(1,I74:I77,"s",E74:E77,G74:G77,0),2)+SUMIF(I74:I92,"=NenormMatOtZPR",G74:G92) -> 2423.52 | H74: =ROUND(СУММПРОИЗВЕСЛИ(F74,I74:I77,"s",E74:E77,G74:G77,0),0)+SUMIF(I74:I92,"=NenormMatOtZPR",H74:H92) -> 36 | I74: sum | M74: =ROUND(СУММПРОИЗВЕСЛИ(1,I74:I77,"s",E74:E77,M74:M77,0),2)+SUMIF(I74:I92,"=NenormMatOtZPR",M74:M92) -> 316.84 | N74: =ROUND(СУММПРОИЗВЕСЛИ(F74,I74:I77,"s",E74:E77,M74:M77,0),0)+SUMIF(I74:I92,"=NenormMatOtZPR",N74:N92) -> 5
A75: 4. 1. | B75: 2 | C75: Затраты труда машинистов | D75: чел.-ч | E75: =ОКРУГЛВСЕ(СУММПРОИЗВЕСЛИ(1,K74:K77,"mWithZTM",D74:D77,E74:E77,-1)+СУММКОЭФПРОЦЕНТЕСЛИ(1,1,K74:K77,"mWithZTM_Proch",E74:E77,-1),11) -> 3.96 | F75: =ОКРУГЛВСЕ(СУММПРОИЗВЕСЛИ(1,K74:K77,"mWithZTM",D74:D77,F74:F77,-1)+СУММКОЭФПРОЦЕНТЕСЛИ(1,1,K74:K77,"mWithZTM_Proch",F74:F77,-1),11) -> 0.0594 | G75: =IF(F75=0,0,ROUND(H75/F75,3)) -> 185.185 | H75: =ROUND(СУММЕСЛИДА1НЕ1(L74:L77,"mWithZPM",D74:D77,0,H74:H77),0) -> 11 | J75: Ж | M75: =IF(F75=0,0,ROUND(N75/F75,3)) -> 16.835 | N75: =ROUND(СУММЕСЛИДА1НЕ1(L74:L77,"mWithZPM",D74:D77,0,N74:N77),0) -> 1
A76: 4. 2. | B76: =ПОЛУЧШИФР(Ресурсы!A37,1) -> СЦЭСМ 070149 | C76: =Ресурсы!B37 -> Бульдозеры при работе на других видах строительства 79 кВт (108 л.с.) | D76: маш.-ч | E76: 3.96 | F76: =ОКРУГЛВСЕ(IF(E76="",0,E76)*IF(F74="",0,F74),11) -> 0.0594 | G76: =Ресурсы!D37 -> 612 | H76: =ROUND(IF(F76="",0,F76)*IF(G76="",0,G76),0) -> 36 | I76: s | J76: IsMash | M76: =Ресурсы!C37 -> 80.01 | N76: =ROUND(IF(F76="",0,F76)*IF(M76="",0,M76),0) -> 5
D77: =Ресурсы!G37 -> 1 | G77: =Ресурсы!F37 -> 178 | H77: =ROUND(IF(F76="",0,F76)*IF(G77="",0,G77),0) -> 11 | K77: mWithZTM | L77: mWithZPM | M77: =Ресурсы!E37 -> 14.4 | N77: =ROUND(IF(F76="",0,F76)*IF(M77="",0,M77),0) -> 1
C78: Зарплата рабочих
C79: Эксплуатация машин | H79: 36 | N79: 5
C80: в т.ч. зарплата машинистов | H80: 11 | N80: 1
C81: Материалы
C82: в т.ч. Вспомогательные материалы от стоимости материалов
C83: в т.ч. Вспомогательные ненормируемые материалы | I83: NenormMatOtZPR
C84: в т.ч. Ненормированная з.п. рабочих
C85: в т.ч. Ненормированная стоимость эксплуатации машин
C86: в т.ч. Ненормированная оплата механизаторов
C87: Накладные расходы | G87: 11.7 | H87: =IF('Текущие цены с учетом расхода'!N9>0,'Текущие цены с учетом расхода'!N9,IF('Текущие цены с учетом расхода'!N9<0,'Текущие цены с учетом расхода'!N9,"")) -> 4 | J87: Nakl | M87: 11.7 | N87: =IF('Базовые цены с учетом расхода'!N9>0,'Базовые цены с учетом расхода'!N9,IF('Базовые цены с учетом расхода'!N9<0,'Базовые цены с учетом расхода'!N9,"")) -> 1
C88: НР от ЗПР | H88: =IF('Текущие цены с учетом расхода'!P9>0,'Текущие цены с учетом расхода'!P9,IF('Текущие цены с учетом расхода'!P9<0,'Текущие цены с учетом расхода'!P9,"")) ->  | J88: Nakl_ZPR | N88: =IF('Базовые цены с учетом расхода'!P9>0,'Базовые цены с учетом расхода'!P9,IF('Базовые цены с учетом расхода'!P9<0,'Базовые цены с учетом расхода'!P9,"")) -> 
C89: НР от ЗПМ | H89: =IF('Текущие цены с учетом расхода'!Q9>0,'Текущие цены с учетом расхода'!Q9,IF('Текущие цены с учетом расхода'!Q9<0,'Текущие цены с учетом расхода'!Q9,"")) ->  | J89: Nakl_ZPM | N89: =IF('Базовые цены с учетом расхода'!Q9>0,'Базовые цены с учетом расхода'!Q9,IF('Базовые цены с учетом расхода'!Q9<0,'Базовые цены с учетом расхода'!Q9,"")) -> 
C90: Плановые накопления / Сметная прибыль | G90: 8 | H90: =IF('Текущие цены с учетом расхода'!O9>0,'Текущие цены с учетом расхода'!O9,IF('Текущие цены с учетом расхода'!O9<0,'Текущие цены с учетом расхода'!O9,"")) -> 3 | J90: Plan | M90: 8 | N90: =IF('Базовые цены с учетом расхода'!O9>0,'Базовые цены с учетом расхода'!O9,IF('Базовые цены с учетом расхода'!O9<0,'Базовые цены с учетом расхода'!O9,"")) -> 
C91: СП от ЗПР | H91: =IF('Текущие цены с учетом расхода'!R9>0,'Текущие цены с учетом расхода'!R9,IF('Текущие цены с учетом расхода'!R9<0,'Текущие цены с учетом расхода'!R9,"")) ->  | J91: Plan_ZPR | N91: =IF('Базовые цены с учетом расхода'!R9>0,'Базовые цены с учетом расхода'!R9,IF('Базовые цены с учетом расхода'!R9<0,'Базовые цены с учетом расхода'!R9,"")) -> 
C92: СП от ЗПМ | H92: =IF('Текущие цены с учетом расхода'!S9>0,'Текущие цены с учетом расхода'!S9,IF('Текущие цены с учетом расхода'!S9<0,'Текущие цены с учетом расхода'!S9,"")) ->  | J92: Plan_ZPM | N92: =IF('Базовые цены с учетом расхода'!S9>0,'Базовые цены с учетом расхода'!S9,IF('Базовые цены с учетом расхода'!S9<0,'Базовые цены с учетом расхода'!S9,"")) -> 
B93: II. АСФАЛЬТОБЕТОННОЕ ПОКРЫТИЕ
A94: 5. | B94: ГЭСНс 01-05-002-02 | C94: Очистка дороги от снега плужным оборудованием на базе комбинированной дорожной машины мощностью от 210 до 270 л.с. | D94: 10000 м2 | F94: 12 | G94: =ROUND(СУММПРОИЗВЕСЛИ(1,I94:I97,"s",E94:E97,G94:G97,0),2)+SUMIF(I94:I112,"=NenormMatOtZPR",G94:G112) -> 324.03 | H94: =ROUND(СУММПРОИЗВЕСЛИ(F94,I94:I97,"s",E94:E97,G94:G97,0),0)+SUMIF(I94:I112,"=NenormMatOtZPR",H94:H112) -> 3888 | I94: sum | M94: =ROUND(СУММПРОИЗВЕСЛИ(1,I94:I97,"s",E94:E97,M94:M97,0),2)+SUMIF(I94:I112,"=NenormMatOtZPR",M94:M112) -> 53.93 | N94: =ROUND(СУММПРОИЗВЕСЛИ(F94,I94:I97,"s",E94:E97,M94:M97,0),0)+SUMIF(I94:I112,"=NenormMatOtZPR",N94:N112) -> 647
A95: 5. 1. | B95: 2 | C95: Затраты труда машинистов | D95: чел.-ч | E95: =ОКРУГЛВСЕ(СУММПРОИЗВЕСЛИ(1,K94:K97,"mWithZTM",D94:D97,E94:E97,-1)+СУММКОЭФПРОЦЕНТЕСЛИ(1,1,K94:K97,"mWithZTM_Proch",E94:E97,-1),11) -> 0.29 | F95: =ОКРУГЛВСЕ(СУММПРОИЗВЕСЛИ(1,K94:K97,"mWithZTM",D94:D97,F94:F97,-1)+СУММКОЭФПРОЦЕНТЕСЛИ(1,1,K94:K97,"mWithZTM_Proch",F94:F97,-1),11) -> 3.48 | G95: =IF(F95=0,0,ROUND(H95/F95,3)) -> 174.425 | H95: =ROUND(СУММЕСЛИДА1НЕ1(L94:L97,"mWithZPM",D94:D97,0,H94:H97),0) -> 607 | J95: Ж | M95: =IF(F95=0,0,ROUND(N95/F95,3)) -> 13.506 | N95: =ROUND(СУММЕСЛИДА1НЕ1(L94:L97,"mWithZPM",D94:D97,0,N94:N97),0) -> 47
A96: 5. 2. | B96: =ПОЛУЧШИФР(Ресурсы!A41,1) -> СЦЭСМ 121342 | C96: =Ресурсы!B41 -> Машины дорожные комбинированные, мощностью от 210 до 270 л.с. | D96: маш.-ч | E96: 0.29 | F96: =ОКРУГЛВСЕ(IF(E96="",0,E96)*IF(F94="",0,F94),11) -> 3.48 | G96: =Ресурсы!D41 -> 1117.34 | H96: =ROUND(IF(F96="",0,F96)*IF(G96="",0,G96),0) -> 3888 | I96: s | J96: IsMash | M96: =Ресурсы!C41 -> 185.95 | N96: =ROUND(IF(F96="",0,F96)*IF(M96="",0,M96),0) -> 647
D97: =Ресурсы!G41 -> 1 | G97: =Ресурсы!F41 -> 174.31 | H97: =ROUND(IF(F96="",0,F96)*IF(G97="",0,G97),0) -> 607 | K97: mWithZTM | L97: mWithZPM | M97: =Ресурсы!E41 -> 13.5 | N97: =ROUND(IF(F96="",0,F96)*IF(M97="",0,M97),0) -> 47
C98: Зарплата рабочих
C99: Эксплуатация машин | H99: 3888 | N99: 647
C100: в т.ч. зарплата машинистов | H100: 607 | N100: 47
C101: Материалы
C102: в т.ч. Вспомогательные материалы от стоимости материалов
C103: в т.ч. Вспомогательные ненормируемые материалы | I103: NenormMatOtZPR
C104: в т.ч. Ненормированная з.п. рабочих
C105: в т.ч. Ненормированная стоимость эксплуатации машин
C106: в т.ч. Ненормированная оплата механизаторов
C107: Накладные расходы | G107: 11.7 | H107: =IF('Текущие цены с учетом расхода'!N10>0,'Текущие цены с учетом расхода'!N10,IF('Текущие цены с учетом расхода'!N10<0,'Текущие цены с учетом расхода'!N10,"")) -> 455 | J107: Nakl | M107: 11.7 | N107: =IF('Базовые цены с учетом расхода'!N10>0,'Базовые цены с учетом расхода'!N10,IF('Базовые цены с учетом расхода'!N10<0,'Базовые цены с учетом расхода'!N10,"")) -> 76
C108: НР от ЗПР | H108: =IF('Текущие цены с учетом расхода'!P10>0,'Текущие цены с учетом расхода'!P10,IF('Текущие цены с учетом расхода'!P10<0,'Текущие цены с учетом расхода'!P10,"")) ->  | J108: Nakl_ZPR | N108: =IF('Базовые цены с учетом расхода'!P10>0,'Базовые цены с учетом расхода'!P10,IF('Базовые цены с учетом расхода'!P10<0,'Базовые цены с учетом расхода'!P10,"")) -> 
C109: НР от ЗПМ | H109: =IF('Текущие цены с учетом расхода'!Q10>0,'Текущие цены с учетом расхода'!Q10,IF('Текущие цены с учетом расхода'!Q10<0,'Текущие цены с учетом расхода'!Q10,"")) ->  | J109: Nakl_ZPM | N109: =IF('Базовые цены с учетом расхода'!Q10>0,'Базовые цены с учетом расхода'!Q10,IF('Базовые цены с учетом расхода'!Q10<0,'Базовые цены с учетом расхода'!Q10,"")) -> 
C110: Плановые накопления / Сметная прибыль | G110: 8 | H110: =IF('Текущие цены с учетом расхода'!O10>0,'Текущие цены с учетом расхода'!O10,IF('Текущие цены с учетом расхода'!O10<0,'Текущие цены с учетом расхода'!O10,"")) -> 347 | J110: Plan | M110: 8 | N110: =IF('Базовые цены с учетом расхода'!O10>0,'Базовые цены с учетом расхода'!O10,IF('Базовые цены с учетом расхода'!O10<0,'Базовые цены с учетом расхода'!O10,"")) -> 58
C111: СП от ЗПР | H111: =IF('Текущие цены с учетом расхода'!R10>0,'Текущие цены с учетом расхода'!R10,IF('Текущие цены с учетом расхода'!R10<0,'Текущие цены с учетом расхода'!R10,"")) ->  | J111: Plan_ZPR | N111: =IF('Базовые цены с учетом расхода'!R10>0,'Базовые цены с учетом расхода'!R10,IF('Базовые цены с учетом расхода'!R10<0,'Базовые цены с учетом расхода'!R10,"")) -> 
C112: СП от ЗПМ | H112: =IF('Текущие цены с учетом расхода'!S10>0,'Текущие цены с учетом расхода'!S10,IF('Текущие цены с учетом расхода'!S10<0,'Текущие цены с учетом расхода'!S10,"")) ->  | J112: Plan_ZPM | N112: =IF('Базовые цены с учетом расхода'!S10>0,'Базовые цены с учетом расхода'!S10,IF('Базовые цены с учетом расхода'!S10<0,'Базовые цены с учетом расхода'!S10,"")) -> 
A113: 6. | B113: ВрСНиРс-05-026-1 | C113: Приготовление пескосоляной смеси соотношение 1:9 бульдозерами | D113: 100 м3 | F113: 0.1788 | G113: =ROUND(СУММПРОИЗВЕСЛИ(1,I113:I119,"s",E113:E119,G113:G119,0),2)+SUMIF(I113:I134,"=NenormMatOtZPR",G113:G134) -> 57541.62 | H113: =ROUND(СУММПРОИЗВЕСЛИ(F113,I113:I119,"s",E113:E119,G113:G119,0),0)+SUMIF(I113:I134,"=NenormMatOtZPR",H113:H134) -> 10288 | I113: sum | M113: =ROUND(СУММПРОИЗВЕСЛИ(1,I113:I119,"s",E113:E119,M113:M119,0),2)+SUMIF(I113:I134,"=NenormMatOtZPR",M113:M134) -> 0 | N113: =ROUND(СУММПРОИЗВЕСЛИ(F113,I113:I119,"s",E113:E119,M113:M119,0),0)+SUMIF(I113:I134,"=NenormMatOtZPR",N113:N134) -> 0
C114: =IF(ROUND((186*0.15/1.56)/100,4)=F113,"Объем: 186*0.15/1.56","") -> Объем: 186*0.15/1.56
A115: 6. 1. | B115: ГЭСН 2 | C115: Затраты труда машинистов | D115: чел.-ч | E115: =ОКРУГЛВСЕ(СУММПРОИЗВЕСЛИ(1,K113:K119,"mWithZTM",D113:D119,E113:E119,-1)+СУММКОЭФПРОЦЕНТЕСЛИ(1,1,K113:K119,"mWithZTM_Proch",E113:E119,-1),11) -> 7.63 | F115: =ОКРУГЛВСЕ(СУММПРОИЗВЕСЛИ(1,K113:K119,"mWithZTM",D113:D119,F113:F119,-1)+СУММКОЭФПРОЦЕНТЕСЛИ(1,1,K113:K119,"mWithZTM_Proch",F113:F119,-1),11) -> 1.364244 | G115: =IF(F115=0,0,ROUND(H115/F115,3)) -> 178.121 | H115: =ROUND(СУММЕСЛИДА1НЕ1(L113:L119,"mWithZPM",D113:D119,0,H113:H119),0) -> 243 | J115: Ж | M115: =IF(F115=0,0,ROUND(N115/F115,3)) -> 0 | N115: =ROUND(СУММЕСЛИДА1НЕ1(L113:L119,"mWithZPM",D113:D119,0,N113:N119),0) -> 0
A116: 6. 2. | B116: =ПОЛУЧШИФР(Ресурсы!A38,1) -> СЦЭСМ 070149 | C116: =Ресурсы!B38 -> Бульдозеры при работе на других видах строительства (кроме водохозяйственного) 79 (108) кВт (л.с.) | D116: маш.-ч | E116: 7.63 | F116: =ОКРУГЛВСЕ(IF(E116="",0,E116)*IF(F113="",0,F113),11) -> 1.364244 | G116: =Ресурсы!D38 -> 612 | H116: =ROUND(IF(F116="",0,F116)*IF(G116="",0,G116),0) -> 835 | I116: s | J116: IsMash | M116: =Ресурсы!C38 -> 0 | N116: =ROUND(IF(F116="",0,F116)*IF(M116="",0,M116),0) -> 0
D117: =Ресурсы!G38 -> 1 | G117: =Ресурсы!F38 -> 178 | H117: =ROUND(IF(F116="",0,F116)*IF(G117="",0,G117),0) -> 243 | K117: mWithZTM | L117: mWithZPM | M117: =Ресурсы!E38 -> 0 | N117: =ROUND(IF(F116="",0,F116)*IF(M117="",0,M117),0) -> 0
A118: 6. 3. | B118: =ПОЛУЧШИФР(Ресурсы!A22,0) -> с113-0277 | C118: =Ресурсы!B22 -> Концентрат минеральный Галит (соль техническая) | D118: т | E118: 12 | F118: =ОКРУГЛВСЕ(IF(E118="",0,E118)*IF(F113="",0,F113),11) -> 2.1456 | G118: =ROUND(Ресурсы!D22*Начисления!AV11,2) -> 1902.88 | H118: =ROUND(IF(F118="",0,F118)*IF(G118="",0,G118),0) -> 4083 | I118: s | J118: IsMater | M118: =ROUND(Ресурсы!C22*Начисления!AV11,2) -> 0 | N118: =ROUND(IF(F118="",0,F118)*IF(M118="",0,M118),0) -> 0
A119: 6. 4. | B119: =ПОЛУЧШИФР(Ресурсы!A27,0) -> с408-0122 | C119: =Ресурсы!B27 -> Песок природный для строительных работ средний | D119: м3 | E119: 90 | F119: =ОКРУГЛВСЕ(IF(E119="",0,E119)*IF(F113="",0,F113),11) -> 16.092 | G119: =ROUND(Ресурсы!D27*Начисления!AV11,2) -> 333.75 | H119: =ROUND(IF(F119="",0,F119)*IF(G119="",0,G119),0) -> 5371 | I119: s | J119: IsMater | M119: =ROUND(Ресурсы!C27*Начисления!AV11,2) -> 0 | N119: =ROUND(IF(F119="",0,F119)*IF(M119="",0,M119),0) -> 0
C120: Зарплата рабочих
C121: Эксплуатация машин | H121: 835
C122: в т.ч. зарплата машинистов | H122: 243
C123: Материалы | H123: 9454
C124: в т.ч. Вспомогательные материалы от стоимости материалов
C125: в т.ч. Вспомогательные ненормируемые материалы | I125: NenormMatOtZPR
C126: в т.ч. Ненормированная з.п. рабочих
C127: в т.ч. Ненормированная стоимость эксплуатации машин
C128: в т.ч. Ненормированная оплата механизаторов
C129: Накладные расходы | G129: 11.7 | H129: =IF('Текущие цены с учетом расхода'!N11>0,'Текущие цены с учетом расхода'!N11,IF('Текущие цены с учетом расхода'!N11<0,'Текущие цены с учетом расхода'!N11,"")) -> 1204 | J129: Nakl | N129: =IF('Базовые цены с учетом расхода'!N11>0,'Базовые цены с учетом расхода'!N11,IF('Базовые цены с учетом расхода'!N11<0,'Базовые цены с учетом расхода'!N11,"")) -> 
C130: НР от ЗПР | H130: =IF('Текущие цены с учетом расхода'!P11>0,'Текущие цены с учетом расхода'!P11,IF('Текущие цены с учетом расхода'!P11<0,'Текущие цены с учетом расхода'!P11,"")) ->  | J130: Nakl_ZPR | N130: =IF('Базовые цены с учетом расхода'!P11>0,'Базовые цены с учетом расхода'!P11,IF('Базовые цены с учетом расхода'!P11<0,'Базовые цены с учетом расхода'!P11,"")) -> 
C131: НР от ЗПМ | H131: =IF('Текущие цены с учетом расхода'!Q11>0,'Текущие цены с учетом расхода'!Q11,IF('Текущие цены с учетом расхода'!Q11<0,'Текущие цены с учетом расхода'!Q11,"")) ->  | J131: Nakl_ZPM | N131: =IF('Базовые цены с учетом расхода'!Q11>0,'Базовые цены с учетом расхода'!Q11,IF('Базовые цены с учетом расхода'!Q11<0,'Базовые цены с учетом расхода'!Q11,"")) -> 
C132: Плановые накопления / Сметная прибыль | G132: 8 | H132: =IF('Текущие цены с учетом расхода'!O11>0,'Текущие цены с учетом расхода'!O11,IF('Текущие цены с учетом расхода'!O11<0,'Текущие цены с учетом расхода'!O11,"")) -> 919 | J132: Plan | N132: =IF('Базовые цены с учетом расхода'!O11>0,'Базовые цены с учетом расхода'!O11,IF('Базовые цены с учетом расхода'!O11<0,'Базовые цены с учетом расхода'!O11,"")) -> 
C133: СП от ЗПР | H133: =IF('Текущие цены с учетом расхода'!R11>0,'Текущие цены с учетом расхода'!R11,IF('Текущие цены с учетом расхода'!R11<0,'Текущие цены с учетом расхода'!R11,"")) ->  | J133: Plan_ZPR | N133: =IF('Базовые цены с учетом расхода'!R11>0,'Базовые цены с учетом расхода'!R11,IF('Базовые цены с учетом расхода'!R11<0,'Базовые цены с учетом расхода'!R11,"")) -> 
C134: СП от ЗПМ | H134: =IF('Текущие цены с учетом расхода'!S11>0,'Текущие цены с учетом расхода'!S11,IF('Текущие цены с учетом расхода'!S11<0,'Текущие цены с учетом расхода'!S11,"")) ->  | J134: Plan_ZPM | N134: =IF('Базовые цены с учетом расхода'!S11>0,'Базовые цены с учетом расхода'!S11,IF('Базовые цены с учетом расхода'!S11<0,'Базовые цены с учетом расхода'!S11,"")) -> 
A135: 7. | B135: ГЭСНс 01-05-011-01 | C135: Доставка противогололедных материалов к месту распределения комбинированной дорожной машины мощностью от 210 до 270 л.с. | D135: 10 км расстояния доставки | F135: 0.5 | G135: =ROUND(СУММПРОИЗВЕСЛИ(1,I135:I138,"s",E135:E138,G135:G138,0),2)+SUMIF(I135:I153,"=NenormMatOtZPR",G135:G153) -> 670.4 | H135: =ROUND(СУММПРОИЗВЕСЛИ(F135,I135:I138,"s",E135:E138,G135:G138,0),0)+SUMIF(I135:I153,"=NenormMatOtZPR",H135:H153) -> 335 | I135: sum | M135: =ROUND(СУММПРОИЗВЕСЛИ(1,I135:I138,"s",E135:E138,M135:M138,0),2)+SUMIF(I135:I153,"=NenormMatOtZPR",M135:M153) -> 111.57 | N135: =ROUND(СУММПРОИЗВЕСЛИ(F135,I135:I138,"s",E135:E138,M135:M138,0),0)+SUMIF(I135:I153,"=NenormMatOtZPR",N135:N153) -> 56
A136: 7. 1. | B136: 2 | C136: Затраты труда машинистов | D136: чел.-ч | E136: =ОКРУГЛВСЕ(СУММПРОИЗВЕСЛИ(1,K135:K138,"mWithZTM",D135:D138,E135:E138,-1)+СУММКОЭФПРОЦЕНТЕСЛИ(1,1,K135:K138,"mWithZTM_Proch",E135:E138,-1),11) -> 0.6 | F136: =ОКРУГЛВСЕ(СУММПРОИЗВЕСЛИ(1,K135:K138,"mWithZTM",D135:D138,F135:F138,-1)+СУММКОЭФПРОЦЕНТЕСЛИ(1,1,K135:K138,"mWithZTM_Proch",F135:F138,-1),11) -> 0.3 | G136: =IF(F136=0,0,ROUND(H136/F136,3)) -> 173.333 | H136: =ROUND(СУММЕСЛИДА1НЕ1(L135:L138,"mWithZPM",D135:D138,0,H135:H138),0) -> 52 | J136: Ж | M136: =IF(F136=0,0,ROUND(N136/F136,3)) -> 13.333 | N136: =ROUND(СУММЕСЛИДА1НЕ1(L135:L138,"mWithZPM",D135:D138,0,N135:N138),0) -> 4
A137: 7. 2. | B137: =ПОЛУЧШИФР(Ресурсы!A41,1) -> СЦЭСМ 121342 | C137: =Ресурсы!B41 -> Машины дорожные комбинированные, мощностью от 210 до 270 л.с. | D137: маш.-ч | E137: 0.6 | F137: =ОКРУГЛВСЕ(IF(E137="",0,E137)*IF(F135="",0,F135),11) -> 0.3 | G137: =Ресурсы!D41 -> 1117.34 | H137: =ROUND(IF(F137="",0,F137)*IF(G137="",0,G137),0) -> 335 | I137: s | J137: IsMash | M137: =Ресурсы!C41 -> 185.95 | N137: =ROUND(IF(F137="",0,F137)*IF(M137="",0,M137),0) -> 56
D138: =Ресурсы!G41 -> 1 | G138: =Ресурсы!F41 -> 174.31 | H138: =ROUND(IF(F137="",0,F137)*IF(G138="",0,G138),0) -> 52 | K138: mWithZTM | L138: mWithZPM | M138: =Ресурсы!E41 -> 13.5 | N138: =ROUND(IF(F137="",0,F137)*IF(M138="",0,M138),0) -> 4
C139: Зарплата рабочих
C140: Эксплуатация машин | H140: 335 | N140: 56
C141: в т.ч. зарплата машинистов | H141: 52 | N141: 4
C142: Материалы
C143: в т.ч. Вспомогательные материалы от стоимости материалов
C144: в т.ч. Вспомогательные ненормируемые материалы | I144: NenormMatOtZPR
C145: в т.ч. Ненормированная з.п. рабочих
C146: в т.ч. Ненормированная стоимость эксплуатации машин
C147: в т.ч. Ненормированная оплата механизаторов
C148: Накладные расходы | G148: 11.7 | H148: =IF('Текущие цены с учетом расхода'!N12>0,'Текущие цены с учетом расхода'!N12,IF('Текущие цены с учетом расхода'!N12<0,'Текущие цены с учетом расхода'!N12,"")) -> 39 | J148: Nakl | M148: 11.7 | N148: =IF('Базовые цены с учетом расхода'!N12>0,'Базовые цены с учетом расхода'!N12,IF('Базовые цены с учетом расхода'!N12<0,'Базовые цены с учетом расхода'!N12,"")) -> 7
C149: НР от ЗПР | H149: =IF('Текущие цены с учетом расхода'!P12>0,'Текущие цены с учетом расхода'!P12,IF('Текущие цены с учетом расхода'!P12<0,'Текущие цены с учетом расхода'!P12,"")) ->  | J149: Nakl_ZPR | N149: =IF('Базовые цены с учетом расхода'!P12>0,'Базовые цены с учетом расхода'!P12,IF('Базовые цены с учетом расхода'!P12<0,'Базовые цены с учетом расхода'!P12,"")) -> 
C150: НР от ЗПМ | H150: =IF('Текущие цены с учетом расхода'!Q12>0,'Текущие цены с учетом расхода'!Q12,IF('Текущие цены с учетом расхода'!Q12<0,'Текущие цены с учетом расхода'!Q12,"")) ->  | J150: Nakl_ZPM | N150: =IF('Базовые цены с учетом расхода'!Q12>0,'Базовые цены с учетом расхода'!Q12,IF('Базовые цены с учетом расхода'!Q12<0,'Базовые цены с учетом расхода'!Q12,"")) -> 
C151: Плановые накопления / Сметная прибыль | G151: 8 | H151: =IF('Текущие цены с учетом расхода'!O12>0,'Текущие цены с учетом расхода'!O12,IF('Текущие цены с учетом расхода'!O12<0,'Текущие цены с учетом расхода'!O12,"")) -> 30 | J151: Plan | M151: 8 | N151: =IF('Базовые цены с учетом расхода'!O12>0,'Базовые цены с учетом расхода'!O12,IF('Базовые цены с учетом расхода'!O12<0,'Базовые цены с учетом расхода'!O12,"")) -> 5
C152: СП от ЗПР | H152: =IF('Текущие цены с учетом расхода'!R12>0,'Текущие цены с учетом расхода'!R12,IF('Текущие цены с учетом расхода'!R12<0,'Текущие цены с учетом расхода'!R12,"")) ->  | J152: Plan_ZPR | N152: =IF('Базовые цены с учетом расхода'!R12>0,'Базовые цены с учетом расхода'!R12,IF('Базовые цены с учетом расхода'!R12<0,'Базовые цены с учетом расхода'!R12,"")) -> 
C153: СП от ЗПМ | H153: =IF('Текущие цены с учетом расхода'!S12>0,'Текущие цены с учетом расхода'!S12,IF('Текущие цены с учетом расхода'!S12<0,'Текущие цены с учетом расхода'!S12,"")) ->  | J153: Plan_ZPM | N153: =IF('Базовые цены с учетом расхода'!S12>0,'Базовые цены с учетом расхода'!S12,IF('Базовые цены с учетом расхода'!S12<0,'Базовые цены с учетом расхода'!S12,"")) -> 
A154: 8. | B154: ГЭСНс 01-05-010-01 | C154: Распределение пескосоляной смеси или фрикционных материалов комбинированной дорожной машины мощностью от 210 до 270 л.с. | D154: 10000 м2 | F154: 18.6 | G154: =ROUND(СУММПРОИЗВЕСЛИ(1,I154:I159,"s",E154:E159,G154:G159,0),2)+SUMIF(I154:I174,"=NenormMatOtZPR",G154:G174) -> 755.69 | H154: =ROUND(СУММПРОИЗВЕСЛИ(F154,I154:I159,"s",E154:E159,G154:G159,0),0)+SUMIF(I154:I174,"=NenormMatOtZPR",H154:H174) -> 14056 | I154: sum | M154: =ROUND(СУММПРОИЗВЕСЛИ(1,I154:I159,"s",E154:E159,M154:M159,0),2)+SUMIF(I154:I174,"=NenormMatOtZPR",M154:M174) -> 125.81 | N154: =ROUND(СУММПРОИЗВЕСЛИ(F154,I154:I159,"s",E154:E159,M154:M159,0),0)+SUMIF(I154:I174,"=NenormMatOtZPR",N154:N174) -> 2340
A155: 8. 1. | B155: 2 | C155: Затраты труда машинистов | D155: чел.-ч | E155: =ОКРУГЛВСЕ(СУММПРОИЗВЕСЛИ(1,K154:K159,"mWithZTM",D154:D159,E154:E159,-1)+СУММКОЭФПРОЦЕНТЕСЛИ(1,1,K154:K159,"mWithZTM_Proch",E154:E159,-1),11) -> 0.72 | F155: =ОКРУГЛВСЕ(СУММПРОИЗВЕСЛИ(1,K154:K159,"mWithZTM",D154:D159,F154:F159,-1)+СУММКОЭФПРОЦЕНТЕСЛИ(1,1,K154:K159,"mWithZTM_Proch",F154:F159,-1),11) -> 13.392 | G155: =IF(F155=0,0,ROUND(H155/F155,3)) -> 170.774 | H155: =ROUND(СУММЕСЛИДА1НЕ1(L154:L159,"mWithZPM",D154:D159,0,H154:H159),0) -> 2287 | J155: Ж | M155: =IF(F155=0,0,ROUND(N155/F155,3)) -> 13.292 | N155: =ROUND(СУММЕСЛИДА1НЕ1(L154:L159,"mWithZPM",D154:D159,0,N154:N159),0) -> 178
A156: 8. 2. | B156: =ПОЛУЧШИФР(Ресурсы!A34,1) -> СЦЭСМ 031811 | C156: =Ресурсы!B34 -> Погрузчики одноковшовые универсальные фронтальные пневмоколесные 2 т | D156: маш.-ч | E156: 0.08 | F156: =ОКРУГЛВСЕ(IF(E156="",0,E156)*IF(F154="",0,F154),11) -> 1.488 | G156: =Ресурсы!D34 -> 507.45 | H156: =ROUND(IF(F156="",0,F156)*IF(G156="",0,G156),0) -> 755 | I156: s | J156: IsMash | M156: =Ресурсы!C34 -> 85 | N156: =ROUND(IF(F156="",0,F156)*IF(M156="",0,M156),0) -> 126
D157: =Ресурсы!G34 -> 1 | G157: =Ресурсы!F34 -> 142.8 | H157: =ROUND(IF(F156="",0,F156)*IF(G157="",0,G157),0) -> 212 | K157: mWithZTM | L157: mWithZPM | M157: =Ресурсы!E34 -> 11.6 | N157: =ROUND(IF(F156="",0,F156)*IF(M157="",0,M157),0) -> 17
A158: 8. 3. | B158: =ПОЛУЧШИФР(Ресурсы!A41,1) -> СЦЭСМ 121342 | C158: =Ресурсы!B41 -> Машины дорожные комбинированные, мощностью от 210 до 270 л.с. | D158: маш.-ч | E158: 0.64 | F158: =ОКРУГЛВСЕ(IF(E158="",0,E158)*IF(F154="",0,F154),11) -> 11.904 | G158: =Ресурсы!D41 -> 1117.34 | H158: =ROUND(IF(F158="",0,F158)*IF(G158="",0,G158),0) -> 13301 | I158: s | J158: IsMash | M158: =Ресурсы!C41 -> 185.95 | N158: =ROUND(IF(F158="",0,F158)*IF(M158="",0,M158),0) -> 2214
D159: =Ресурсы!G41 -> 1 | G159: =Ресурсы!F41 -> 174.31 | H159: =ROUND(IF(F158="",0,F158)*IF(G159="",0,G159),0) -> 2075 | K159: mWithZTM | L159: mWithZPM | M159: =Ресурсы!E41 -> 13.5 | N159: =ROUND(IF(F158="",0,F158)*IF(M159="",0,M159),0) -> 161
C160: Зарплата рабочих
C161: Эксплуатация машин | H161: 14056 | N161: 2340
C162: в т.ч. зарплата машинистов | H162: 2287 | N162: 178
C163: Материалы
C164: в т.ч. Вспомогательные материалы от стоимости материалов
C165: в т.ч. Вспомогательные ненормируемые материалы | I165: NenormMatOtZPR
C166: в т.ч. Ненормированная з.п. рабочих
C167: в т.ч. Ненормированная стоимость эксплуатации машин
C168: в т.ч. Ненормированная оплата механизаторов
C169: Накладные расходы | G169: 11.7 | H169: =IF('Текущие цены с учетом расхода'!N13>0,'Текущие цены с учетом расхода'!N13,IF('Текущие цены с учетом расхода'!N13<0,'Текущие цены с учетом расхода'!N13,"")) -> 1645 | J169: Nakl | M169: 11.7 | N169: =IF('Базовые цены с учетом расхода'!N13>0,'Базовые цены с учетом расхода'!N13,IF('Базовые цены с учетом расхода'!N13<0,'Базовые цены с учетом расхода'!N13,"")) -> 274
C170: НР от ЗПР | H170: =IF('Текущие цены с учетом расхода'!P13>0,'Текущие цены с учетом расхода'!P13,IF('Текущие цены с учетом расхода'!P13<0,'Текущие цены с учетом расхода'!P13,"")) ->  | J170: Nakl_ZPR | N170: =IF('Базовые цены с учетом расхода'!P13>0,'Базовые цены с учетом расхода'!P13,IF('Базовые цены с учетом расхода'!P13<0,'Базовые цены с учетом расхода'!P13,"")) -> 
C171: НР от ЗПМ | H171: =IF('Текущие цены с учетом расхода'!Q13>0,'Текущие цены с учетом расхода'!Q13,IF('Текущие цены с учетом расхода'!Q13<0,'Текущие цены с учетом расхода'!Q13,"")) ->  | J171: Nakl_ZPM | N171: =IF('Базовые цены с учетом расхода'!Q13>0,'Базовые цены с учетом расхода'!Q13,IF('Базовые цены с учетом расхода'!Q13<0,'Базовые цены с учетом расхода'!Q13,"")) -> 
C172: Плановые накопления / Сметная прибыль | G172: 8 | H172: =IF('Текущие цены с учетом расхода'!O13>0,'Текущие цены с учетом расхода'!O13,IF('Текущие цены с учетом расхода'!O13<0,'Текущие цены с учетом расхода'!O13,"")) -> 1256 | J172: Plan | M172: 8 | N172: =IF('Базовые цены с учетом расхода'!O13>0,'Базовые цены с учетом расхода'!O13,IF('Базовые цены с учетом расхода'!O13<0,'Базовые цены с учетом расхода'!O13,"")) -> 209
C173: СП от ЗПР | H173: =IF('Текущие цены с учетом расхода'!R13>0,'Текущие цены с учетом расхода'!R13,IF('Текущие цены с учетом расхода'!R13<0,'Текущие цены с учетом расхода'!R13,"")) ->  | J173: Plan_ZPR | N173: =IF('Базовые цены с учетом расхода'!R13>0,'Базовые цены с учетом расхода'!R13,IF('Базовые цены с учетом расхода'!R13<0,'Базовые цены с учетом расхода'!R13,"")) -> 
C174: СП от ЗПМ | H174: =IF('Текущие цены с учетом расхода'!S13>0,'Текущие цены с учетом расхода'!S13,IF('Текущие цены с учетом расхода'!S13<0,'Текущие цены с учетом расхода'!S13,"")) ->  | J174: Plan_ZPM | N174: =IF('Базовые цены с учетом расхода'!S13>0,'Базовые цены с учетом расхода'!S13,IF('Базовые цены с учетом расхода'!S13<0,'Базовые цены с учетом расхода'!S13,"")) -> 
A175: 9. | B175: ГЭСНс 01-05-002-02 | C175: Очистка дороги от снега плужным оборудованием на базе комбинированной дорожной машины мощностью от 210 до 270 л.с. (планировка проезжей части со снежным накатом) | D175: 10000 м2 | F175: 27.6 | G175: =ROUND(СУММПРОИЗВЕСЛИ(1,I175:I178,"s",E175:E178,G175:G178,0),2)+SUMIF(I175:I193,"=NenormMatOtZPR",G175:G193) -> 324.03 | H175: =ROUND(СУММПРОИЗВЕСЛИ(F175,I175:I178,"s",E175:E178,G175:G178,0),0)+SUMIF(I175:I193,"=NenormMatOtZPR",H175:H193) -> 8943 | I175: sum | M175: =ROUND(СУММПРОИЗВЕСЛИ(1,I175:I178,"s",E175:E178,M175:M178,0),2)+SUMIF(I175:I193,"=NenormMatOtZPR",M175:M193) -> 53.93 | N175: =ROUND(СУММПРОИЗВЕСЛИ(F175,I175:I178,"s",E175:E178,M175:M178,0),0)+SUMIF(I175:I193,"=NenormMatOtZPR",N175:N193) -> 1488
A176: 9. 1. | B176: 2 | C176: Затраты труда машинистов | D176: чел.-ч | E176: =ОКРУГЛВСЕ(СУММПРОИЗВЕСЛИ(1,K175:K178,"mWithZTM",D175:D178,E175:E178,-1)+СУММКОЭФПРОЦЕНТЕСЛИ(1,1,K175:K178,"mWithZTM_Proch",E175:E178,-1),11) -> 0.29 | F176: =ОКРУГЛВСЕ(СУММПРОИЗВЕСЛИ(1,K175:K178,"mWithZTM",D175:D178,F175:F178,-1)+СУММКОЭФПРОЦЕНТЕСЛИ(1,1,K175:K178,"mWithZTM_Proch",F175:F178,-1),11) -> 8.004 | G176: =IF(F176=0,0,ROUND(H176/F176,3)) -> 174.288 | H176: =ROUND(СУММЕСЛИДА1НЕ1(L175:L178,"mWithZPM",D175:D178,0,H175:H178),0) -> 1395 | J176: Ж | M176: =IF(F176=0,0,ROUND(N176/F176,3)) -> 13.493 | N176: =ROUND(СУММЕСЛИДА1НЕ1(L175:L178,"mWithZPM",D175:D178,0,N175:N178),0) -> 108
A177: 9. 2. | B177: =ПОЛУЧШИФР(Ресурсы!A41,1) -> СЦЭСМ 121342 | C177: =Ресурсы!B41 -> Машины дорожные комбинированные, мощностью от 210 до 270 л.с. | D177: маш.-ч | E177: 0.29 | F177: =ОКРУГЛВСЕ(IF(E177="",0,E177)*IF(F175="",0,F175),11) -> 8.004 | G177: =Ресурсы!D41 -> 1117.34 | H177: =ROUND(IF(F177="",0,F177)*IF(G177="",0,G177),0) -> 8943 | I177: s | J177: IsMash | M177: =Ресурсы!C41 -> 185.95 | N177: =ROUND(IF(F177="",0,F177)*IF(M177="",0,M177),0) -> 1488
D178: =Ресурсы!G41 -> 1 | G178: =Ресурсы!F41 -> 174.31 | H178: =ROUND(IF(F177="",0,F177)*IF(G178="",0,G178),0) -> 1395 | K178: mWithZTM | L178: mWithZPM | M178: =Ресурсы!E41 -> 13.5 | N178: =ROUND(IF(F177="",0,F177)*IF(M178="",0,M178),0) -> 108
C179: Зарплата рабочих
C180: Эксплуатация машин | H180: 8943 | N180: 1488
C181: в т.ч. зарплата машинистов | H181: 1395 | N181: 108
C182: Материалы
C183: в т.ч. Вспомогательные материалы от стоимости материалов
C184: в т.ч. Вспомогательные ненормируемые материалы | I184: NenormMatOtZPR
C185: в т.ч. Ненормированная з.п. рабочих
C186: в т.ч. Ненормированная стоимость эксплуатации машин
C187: в т.ч. Ненормированная оплата механизаторов
C188: Накладные расходы | G188: 11.7 | H188: =IF('Текущие цены с учетом расхода'!N14>0,'Текущие цены с учетом расхода'!N14,IF('Текущие цены с учетом расхода'!N14<0,'Текущие цены с учетом расхода'!N14,"")) -> 1046 | J188: Nakl | M188: 11.7 | N188: =IF('Базовые цены с учетом расхода'!N14>0,'Базовые цены с учетом расхода'!N14,IF('Базовые цены с учетом расхода'!N14<0,'Базовые цены с учетом расхода'!N14,"")) -> 174
C189: НР от ЗПР | H189: =IF('Текущие цены с учетом расхода'!P14>0,'Текущие цены с учетом расхода'!P14,IF('Текущие цены с учетом расхода'!P14<0,'Текущие цены с учетом расхода'!P14,"")) ->  | J189: Nakl_ZPR | N189: =IF('Базовые цены с учетом расхода'!P14>0,'Базовые цены с учетом расхода'!P14,IF('Базовые цены с учетом расхода'!P14<0,'Базовые цены с учетом расхода'!P14,"")) -> 
C190: НР от ЗПМ | H190: =IF('Текущие цены с учетом расхода'!Q14>0,'Текущие цены с учетом расхода'!Q14,IF('Текущие цены с учетом расхода'!Q14<0,'Текущие цены с учетом расхода'!Q14,"")) ->  | J190: Nakl_ZPM | N190: =IF('Базовые цены с учетом расхода'!Q14>0,'Базовые цены с учетом расхода'!Q14,IF('Базовые цены с учетом расхода'!Q14<0,'Базовые цены с учетом расхода'!Q14,"")) -> 
C191: Плановые накопления / Сметная прибыль | G191: 8 | H191: =IF('Текущие цены с учетом расхода'!O14>0,'Текущие цены с учетом расхода'!O14,IF('Текущие цены с учетом расхода'!O14<0,'Текущие цены с учетом расхода'!O14,"")) -> 799 | J191: Plan | M191: 8 | N191: =IF('Базовые цены с учетом расхода'!O14>0,'Базовые цены с учетом расхода'!O14,IF('Базовые цены с учетом расхода'!O14<0,'Базовые цены с учетом расхода'!O14,"")) -> 133
C192: СП от ЗПР | H192: =IF('Текущие цены с учетом расхода'!R14>0,'Текущие цены с учетом расхода'!R14,IF('Текущие цены с учетом расхода'!R14<0,'Текущие цены с учетом расхода'!R14,"")) ->  | J192: Plan_ZPR | N192: =IF('Базовые цены с учетом расхода'!R14>0,'Базовые цены с учетом расхода'!R14,IF('Базовые цены с учетом расхода'!R14<0,'Базовые цены с учетом расхода'!R14,"")) -> 
C193: СП от ЗПМ | H193: =IF('Текущие цены с учетом расхода'!S14>0,'Текущие цены с учетом расхода'!S14,IF('Текущие цены с учетом расхода'!S14<0,'Текущие цены с учетом расхода'!S14,"")) ->  | J193: Plan_ZPM | N193: =IF('Базовые цены с учетом расхода'!S14>0,'Базовые цены с учетом расхода'!S14,IF('Базовые цены с учетом расхода'!S14<0,'Базовые цены с учетом расхода'!S14,"")) -> 
A194: 10. | B194: ГЭСНс 01-05-006-01 | C194: Очистка дороги от снега средними автогрейдерами, снег уплотненный до 300 мм (планировка проезжей части со снежным накатом) | D194: 10000 м2 | F194: 1.2 | G194: =ROUND(СУММПРОИЗВЕСЛИ(1,I194:I197,"s",E194:E197,G194:G197,0),2)+SUMIF(I194:I212,"=NenormMatOtZPR",G194:G212) -> 814.64 | H194: =ROUND(СУММПРОИЗВЕСЛИ(F194,I194:I197,"s",E194:E197,G194:G197,0),0)+SUMIF(I194:I212,"=NenormMatOtZPR",H194:H212) -> 978 | I194: sum | M194: =ROUND(СУММПРОИЗВЕСЛИ(1,I194:I197,"s",E194:E197,M194:M197,0),2)+SUMIF(I194:I212,"=NenormMatOtZPR",M194:M212) -> 104.55 | N194: =ROUND(СУММПРОИЗВЕСЛИ(F194,I194:I197,"s",E194:E197,M194:M197,0),0)+SUMIF(I194:I212,"=NenormMatOtZPR",N194:N212) -> 125
A195: 10. 1. | B195: 2 | C195: Затраты труда машинистов | D195: чел.-ч | E195: =ОКРУГЛВСЕ(СУММПРОИЗВЕСЛИ(1,K194:K197,"mWithZTM",D194:D197,E194:E197,-1)+СУММКОЭФПРОЦЕНТЕСЛИ(1,1,K194:K197,"mWithZTM_Proch",E194:E197,-1),11) -> 0.85 | F195: =ОКРУГЛВСЕ(СУММПРОИЗВЕСЛИ(1,K194:K197,"mWithZTM",D194:D197,F194:F197,-1)+СУММКОЭФПРОЦЕНТЕСЛИ(1,1,K194:K197,"mWithZTM_Proch",F194:F197,-1),11) -> 1.02 | G195: =IF(F195=0,0,ROUND(H195/F195,3)) -> 166.667 | H195: =ROUND(СУММЕСЛИДА1НЕ1(L194:L197,"mWithZPM",D194:D197,0,H194:H197),0) -> 170 | J195: Ж | M195: =IF(F195=0,0,ROUND(N195/F195,3)) -> 13.725 | N195: =ROUND(СУММЕСЛИДА1НЕ1(L194:L197,"mWithZPM",D194:D197,0,N194:N197),0) -> 14
A196: 10. 2. | B196: =ПОЛУЧШИФР(Ресурсы!A39,1) -> СЦЭСМ 120202 | C196: =Ресурсы!B39 -> Автогрейдеры среднего типа 99 кВт (135 л.с.) | D196: маш.-ч | E196: 0.85 | F196: =ОКРУГЛВСЕ(IF(E196="",0,E196)*IF(F194="",0,F194),11) -> 1.02 | G196: =Ресурсы!D39 -> 958.4 | H196: =ROUND(IF(F196="",0,F196)*IF(G196="",0,G196),0) -> 978 | I196: s | J196: IsMash | M196: =Ресурсы!C39 -> 123 | N196: =ROUND(IF(F196="",0,F196)*IF(M196="",0,M196),0) -> 125
D197: =Ресурсы!G39 -> 1 | G197: =Ресурсы!F39 -> 166.8 | H197: =ROUND(IF(F196="",0,F196)*IF(G197="",0,G197),0) -> 170 | K197: mWithZTM | L197: mWithZPM | M197: =Ресурсы!E39 -> 13.5 | N197: =ROUND(IF(F196="",0,F196)*IF(M197="",0,M197),0) -> 14
C198: Зарплата рабочих
C199: Эксплуатация машин | H199: 978 | N199: 125
C200: в т.ч. зарплата машинистов | H200: 170 | N200: 14
C201: Материалы
C202: в т.ч. Вспомогательные материалы от стоимости материалов
... 489 more rows

Sheet Ресурсы
A1: Шифр | B1: Наименование | C1: Цена за единицу | E1: В том числе | G1: Кол-во механизаторов | H1: Tag
C2: базовая | D2: текущая | E2: базовая | F2: текущая
A3: 0-4001 | B3: Дорожный рабочий 1 разряда | C3: 7.19 | D3: 92.69 | G3: 0 | H3: 0
A4: 0-4002 | B4: Дорожный рабочий 2 разряда | C4: 7.8 | D4: 100.57 | G4: 0 | H4: 0
A5: 0-4003 | B5: Дорожный рабочий 3 разряда | C5: 8.53 | D5: 109.94 | G5: 0 | H5: 0
A6: 0-4004 | B6: Дорожный рабочий 4 разряда | C6: 9.62 | D6: 124.02 | G6: 0 | H6: 0
A7: ГЭСН 2.0 | B7: Рабочие-строители (средний разряд 2.0) | D7: 100.57 | G7: 0 | H7: 0
A8: ГЭСН 3.0 | B8: Рабочие-строители (средний разряд 3.0) | D8: 109.94 | G8: 0 | H8: 0
A9: ГЭСН 4.0 | B9: Рабочие-строители (средний разряд 4.0) | D9: 124.02 | G9: 0 | H9: 0
A10: 2 | B10: Затраты труда машинистов
A11: С101-1305 | B11: Портландцемент общестроительного назначения бездобавочный, марки: 400 | D11: 3708.31 | G11: 0 | H11: 0
A12: ССЦ 101-1513 | B12: Электроды диаметром 4 мм Э42 | C12: 10315 | D12: 52025.92 | E12: 10066.36 | G12: 0 | H12: 0
A13: ССЦ 101-1513 | B13: Электроды диаметром 4 мм Э42 | D13: 52025.92 | G13: 0 | H13: 1
A14: С101-1556 | B14: Битумы нефтяные дорожные марки БНД-60/90, БНД-90/130 первый сорт | D14: 14016.54 | G14: 0 | H14: 0
A15: ССЦ 101-1579 | B15: Пленка для дорожных знаков с покрытием обратной стороны клеевым составом | C15: 133601.8 | D15: 681443.95 | E15: 130930.81 | G15: 0 | H15: 0
A16: ССЦ 101-1805 | B16: Гвозди строительные | C16: 11978 | D16: 30959.39 | E16: 11702.98 | G16: 0 | H16: 0
A17: С101-1977 | B17: Болты с гайками и шайбами строительные | D17: 45.19 | G17: 0 | H17: 0
A18: С101-4289 | B18: Знаки дорожные на оцинкованной подоснове со световозвращающей пленкой: предупреждающие, размером 900х900х900 мм, тип 1.1, 1.2, 1.5-1.33 | D18: 1011.86 | G18: 0 | H18: 0
A19: С101-4432 | B19: Комплект металлоконструкций барьерного ограждения, марка: 11ДО-2,0-190 кДж У2(СД-1,68 Ш12), огрунтованное | D19: 996830.51 | G19: 0 | H19: 0
A20: ССЦ 102-0085 | B20: Бруски обрезные хвойных пород длиной 2-3,75 м, шириной 75-150 мм, толщиной 40-75 мм, III сорта | C20: 1100 | D20: 3464.96 | E20: 1068.79 | G20: 0 | H20: 0
A21: ССЦ 102-0113 | B21: Доски обрезные хвойных пород длиной 2-3,75 м, шириной 75-150 мм, толщиной 25 мм, III сорта | C21: 1045 | D21: 3774.49 | E21: 1017.73 | G21: 0 | H21: 0
A22: С113-0277 | B22: Концентрат минеральный Галит (соль техническая) | D22: 1902.88 | G22: 0 | H22: 0
A23: ССЦ 113-8028 | B23: Эмаль ПФ-115 белая | C23: 12.27 | D23: 58.58 | E23: 12.02 | G23: 0 | H23: 0
A24: ССЦ 113-8029 | B24: Эмаль ПФ-115 цветная | C24: 16.66 | D24: 67.23 | E24: 16.31 | G24: 0 | H24: 0
A25: С201-0841 | B25: Стойки для дорожных знаков со струбцинами | D25: 38.45 | G25: 0 | H25: 0
A26: С408-0023 | B26: Щебень из природного камня для строительных работ марка: 400, фракция 20-40 мм | D26: 1269.01 | G26: 0 | H26: 0
A27: С408-0122 | B27: Песок природный для строительных работ средний | D27: 333.75 | G27: 0 | H27: 0
A28: С408-0124 | B28: Песок природный для стрительных работ мелкий | D28: 141.55 | G28: 0 | H28: 0
A29: С410-0074 | B29: Щебень черный горячий, фракция 20-25 мм | D29: 1210.13 | G29: 0 | H29: 0
A30: ССЦ 411-0001 | B30: Вода | C30: 2.44 | D30: 10.85 | E30: 0.87 | G30: 0 | H30: 0
A31: СЦЭСМ 010409 | B31: Тракторы на пневмоколесном ходу при работе на других видах строительства 40 кВт (55 л.с.) | C31: 66.56 | D31: 386.66 | E31: 11.6 | F31: 142.8 | G31: 1 | H31: 0
A32: СЦЭСМ 021140 | B32: Краны на автомобильном ходу при работе на других видах строительства 6,3 т | C32: 88.01 | D32: 534.98 | E32: 11.6 | F32: 142.8 | G32: 1 | H32: 0
A33: СЦЭСМ 021140 | B33: Краны на автомобильном ходу при работе на других видах строительства 6,3 т | D33: 534.98 | F33: 142.8 | G33: 1 | H33: 1
A34: СЦЭСМ 031811 | B34: Погрузчики одноковшовые универсальные фронтальные пневмоколесные 2 т | C34: 85 | D34: 507.45 | E34: 11.6 | F34: 142.8 | G34: 1 | H34: 0
A35: СЦЭСМ 040202 | B35: Агрегаты сварочные передвижные с номинальным сварочным током 250-400 А с дизельным двигателем | C35: 14 | D35: 80.34 | G35: 0 | H35: 0
A36: СЦЭСМ 040202 | B36: Агрегаты сварочные передвижные с номинальным сварочным током 250-400 А с дизельным двигателем | D36: 80.34 | G36: 0 | H36: 1
A37: СЦЭСМ 070149 | B37: Бульдозеры при работе на других видах строительства 79 кВт (108 л.с.) | C37: 80.01 | D37: 612 | E37: 14.4 | F37: 178 | G37: 1 | H37: 0
A38: СЦЭСМ 070149 | B38: Бульдозеры при работе на других видах строительства (кроме водохозяйственного) 79 (108) кВт (л.с.) | D38: 612 | F38: 178 | G38: 1 | H38: 1
A39: СЦЭСМ 120202 | B39: Автогрейдеры среднего типа 99 кВт (135 л.с.) | C39: 123 | D39: 958.4 | E39: 13.5 | F39: 166.8 | G39: 1 | H39: 0
A40: СЦЭСМ 121011 | B40: Котлы битумные передвижные 400 л | C40: 30 | D40: 158.25 | G40: 0 | H40: 0
A41: СЦЭСМ 121342 | B41: Машины дорожные комбинированные, мощностью от 210 до 270 л.с. | C41: 185.95 | D41: 1117.34 | E41: 13.5 | F41: 174.31 | G41: 1 | H41: 0
A42: СЦЭСМ 121550 | B42: Машины дорожной службы (машина дорожного мастера) | C42: 86.5 | D42: 552.55 | E42: 11.6 | F42: 149.81 | G42: 1 | H42: 0
A43: СЦЭСМ 121902 | B43: Снегоочистители на автомобиле шнекороторные | C43: 311.97 | D43: 1680.62 | E43: 11.6 | F43: 142.8 | G43: 1 | H43: 0
A44: СЦЭСМ 400052 | B44: Автомобиль-самосвал, грузоподъемность до 10 т | C44: 112.47 | D44: 702 | E44: 13.5 | F44: 142.8 | G44: 1 | H44: 0

Sheet Базовые цены за единицу
B1: C1 | C1: C2 | D1: C3 | E1: C4 | F1: C5 | G1: C6 | H1: VOZVR | I1: C8 | J1: C9 | K1: C10 | L1: C11 | M1: C12 | N1: NAKL | O1: PLAN | P1: NAKL_ZPR | Q1: NAKL_ZPM | R1: PLAN_ZPR | S1: PLAN_ZPM | T1: RN11 | U1: RN12 | V1: RN13 | X1: OBORUD_VSPOMOG | Y1: NAKL_PN | Z1: NAKL_VX | AA1: PLAN_PN | AB1: PLAN_VX | AC1: VTCH_PN | AD1: VTCH_VX | AE1: MR_BY_ZPR_VSPOMOG | AF1: NAKL_INC | AG1: PLAN_INC
B3: N = < ГЭСНс * 2015_s * 15_15_зр >
B4: Автомобильные дороги регионального или межмуниципального значения с автобусным движением с допустимым уровнем содержания - норматив "Авт" (ЗИМНИЕ РАБОТЫ)
A6: ='Форма по МДС 81-35.2004'!A16 -> 1. | B6: ='Форма по МДС 81-35.2004'!M16 -> 148.76 | C6: =ROUND(СУММПРОИЗВЕСЛИ(1,'Форма по МДС 81-35.2004'!J16:J34,"Г",'Форма по МДС 81-35.2004'!E16:E34,'Форма по МДС 81-35.2004'!M16:M34,0),2) -> 0 | D6: =ROUND(СУММПРОИЗВЕСЛИ(1,'Форма по МДС 81-35.2004'!J16:J34,"IsMash",'Форма по МДС 81-35.2004'!E16:E34,'Форма по МДС 81-35.2004'!M16:M34,0),2) -> 148.76 | E6: =ROUND(СУММПРОИЗВЕСЛИ(1,'Форма по МДС 81-35.2004'!J16:J34,"Ж",'Форма по МДС 81-35.2004'!E16:E34,'Форма по МДС 81-35.2004'!M16:M34,0),2) -> 10.83 | F6: =ROUND(СУММПРОИЗВЕСЛИ(1,'Форма по МДС 81-35.2004'!J16:J34,"IsMater",'Форма по МДС 81-35.2004'!E16:E34,'Форма по МДС 81-35.2004'!M16:M34,0),2) -> 0 | G6: 0 | H6: 0 | I6: =ОКРУГЛВСЕ(SUMIF('Форма по МДС 81-35.2004'!J16:J34,"Г",'Форма по МДС 81-35.2004'!E16:E34),8) -> 0 | J6: 0 | K6: =ОКРУГЛВСЕ(SUMIF('Форма по МДС 81-35.2004'!J16:J34,"Ж",'Форма по МДС 81-35.2004'!E16:E34),8) -> 0.8 | L6: 0 | M6: 0 | N6: 17.40492 | O6: 13.2931936 | P6: 0 | Q6: 0 | R6: 0 | S6: 0 | T6: 0 | U6: 0 | V6: 0 | X6: 0 | Y6: 0 | Z6: 0 | AA6: 0 | AB6: 0 | AC6: 0 | AD6: 0 | AE6: 0
A7: ='Форма по МДС 81-35.2004'!A35 -> 2. | B7: ='Форма по МДС 81-35.2004'!M35 -> 196.8 | C7: =ROUND(СУММПРОИЗВЕСЛИ(1,'Форма по МДС 81-35.2004'!J35:J53,"Г",'Форма по МДС 81-35.2004'!E35:E53,'Форма по МДС 81-35.2004'!M35:M53,0),2) -> 0 | D7: =ROUND(СУММПРОИЗВЕСЛИ(1,'Форма по МДС 81-35.2004'!J35:J53,"IsMash",'Форма по МДС 81-35.2004'!E35:E53,'Форма по МДС 81-35.2004'!M35:M53,0),2) -> 196.8 | E7: =ROUND(СУММПРОИЗВЕСЛИ(1,'Форма по МДС 81-35.2004'!J35:J53,"Ж",'Форма по МДС 81-35.2004'!E35:E53,'Форма по МДС 81-35.2004'!M35:M53,0),2) -> 21.25 | F7: =ROUND(СУММПРОИЗВЕСЛИ(1,'Форма по МДС 81-35.2004'!J35:J53,"IsMater",'Форма по МДС 81-35.2004'!E35:E53,'Форма по МДС 81-35.2004'!M35:M53,0),2) -> 0 | G7: 0 | H7: 0 | I7: =ОКРУГЛВСЕ(SUMIF('Форма по МДС 81-35.2004'!J35:J53,"Г",'Форма по МДС 81-35.2004'!E35:E53),8) -> 0 | J7: 0 | K7: =ОКРУГЛВСЕ(SUMIF('Форма по МДС 81-35.2004'!J35:J53,"Ж",'Форма по МДС 81-35.2004'!E35:E53),8) -> 1.6 | L7: 0 | M7: 0 | N7: 23.0256 | O7: 17.586048 | P7: 0 | Q7: 0 | R7: 0 | S7: 0 | T7: 0 | U7: 0 | V7: 0 | X7: 0 | Y7: 0 | Z7: 0 | AA7: 0 | AB7: 0 | AC7: 0 | AD7: 0 | AE7: 0
A8: ='Форма по МДС 81-35.2004'!A54 -> 3. | B8: ='Форма по МДС 81-35.2004'!M54 -> 2205.63 | C8: =ROUND(СУММПРОИЗВЕСЛИ(1,'Форма по МДС 81-35.2004'!J54:J72,"Г",'Форма по МДС 81-35.2004'!E54:E72,'Форма по МДС 81-35.2004'!M54:M72,0),2) -> 0 | D8: =ROUND(СУММПРОИЗВЕСЛИ(1,'Форма по МДС 81-35.2004'!J54:J72,"IsMash",'Форма по МДС 81-35.2004'!E54:E72,'Форма по МДС 81-35.2004'!M54:M72,0),2) -> 2205.63 | E8: =ROUND(СУММПРОИЗВЕСЛИ(1,'Форма по МДС 81-35.2004'!J54:J72,"Ж",'Форма по МДС 81-35.2004'!E54:E72,'Форма по МДС 81-35.2004'!M54:M72,0),2) -> 80 | F8: =ROUND(СУММПРОИЗВЕСЛИ(1,'Форма по МДС 81-35.2004'!J54:J72,"IsMater",'Форма по МДС 81-35.2004'!E54:E72,'Форма по МДС 81-35.2004'!M54:M72,0),2) -> 0 | G8: 0 | H8: 0 | I8: =ОКРУГЛВСЕ(SUMIF('Форма по МДС 81-35.2004'!J54:J72,"Г",'Форма по МДС 81-35.2004'!E54:E72),8) -> 0 | J8: 0 | K8: =ОКРУГЛВСЕ(SUMIF('Форма по МДС 81-35.2004'!J54:J72,"Ж",'Форма по МДС 81-35.2004'!E54:E72),8) -> 7.07 | L8: 0 | M8: 0 | N8: 258.05871 | O8: 197.0950968 | P8: 0 | Q8: 0 | R8: 0 | S8: 0 | T8: 0 | U8: 0 | V8: 0 | X8: 0 | Y8: 0 | Z8: 0 | AA8: 0 | AB8: 0 | AC8: 0 | AD8: 0 | AE8: 0
A9: ='Форма по МДС 81-35.2004'!A74 -> 4. | B9: ='Форма по МДС 81-35.2004'!M74 -> 316.84 | C9: =ROUND(СУММПРОИЗВЕСЛИ(1,'Форма по МДС 81-35.2004'!J74:J92,"Г",'Форма по МДС 81-35.2004'!E74:E92,'Форма по МДС 81-35.2004'!M74:M92,0),2) -> 0 | D9: =ROUND(СУММПРОИЗВЕСЛИ(1,'Форма по МДС 81-35.2004'!J74:J92,"IsMash",'Форма по МДС 81-35.2004'!E74:E92,'Форма по МДС 81-35.2004'!M74:M92,0),2) -> 316.84 | E9: =ROUND(СУММПРОИЗВЕСЛИ(1,'Форма по МДС 81-35.2004'!J74:J92,"Ж",'Форма по МДС 81-35.2004'!E74:E92,'Форма по МДС 81-35.2004'!M74:M92,0),2) -> 66.67 | F9: =ROUND(СУММПРОИЗВЕСЛИ(1,'Форма по МДС 81-35.2004'!J74:J92,"IsMater",'Форма по МДС 81-35.2004'!E74:E92,'Форма по МДС 81-35.2004'!M74:M92,0),2) -> 0 | G9: 0 | H9: 0 | I9: =ОКРУГЛВСЕ(SUMIF('Форма по МДС 81-35.2004'!J74:J92,"Г",'Форма по МДС 81-35.2004'!E74:E92),8) -> 0 | J9: 0 | K9: =ОКРУГЛВСЕ(SUMIF('Форма по МДС 81-35.2004'!J74:J92,"Ж",'Форма по МДС 81-35.2004'!E74:E92),8) -> 3.96 | L9: 0 | M9: 0 | N9: 37.07028 | O9: 28.3128224 | P9: 0 | Q9: 0 | R9: 0 | S9: 0 | T9: 0 | U9: 0 | V9: 0 | X9: 0 | Y9: 0 | Z9: 0 | AA9: 0 | AB9: 0 | AC9: 0 | AD9: 0 | AE9: 0
A10: ='Форма по МДС 81-35.2004'!A94 -> 5. | B10: ='Форма по МДС 81-35.2004'!M94 -> 53.93 | C10: =ROUND(СУММПРОИЗВЕСЛИ(1,'Форма по МДС 81-35.2004'!J94:J112,"Г",'Форма по МДС 81-35.2004'!E94:E112,'Форма по МДС 81-35.2004'!M94:M112,0),2) -> 0 | D10: =ROUND(СУММПРОИЗВЕСЛИ(1,'Форма по МДС 81-35.2004'!J94:J112,"IsMash",'Форма по МДС 81-35.2004'!E94:E112,'Форма по МДС 81-35.2004'!M94:M112,0),2) -> 53.93 | E10: =ROUND(СУММПРОИЗВЕСЛИ(1,'Форма по МДС 81-35.2004'!J94:J112,"Ж",'Форма по МДС 81-35.2004'!E94:E112,'Форма по МДС 81-35.2004'!M94:M112,0),2) -> 3.92 | F10: =ROUND(СУММПРОИЗВЕСЛИ(1,'Форма по МДС 81-35.2004'!J94:J112,"IsMater",'Форма по МДС 81-35.2004'!E94:E112,'Форма по МДС 81-35.2004'!M94:M112,0),2) -> 0 | G10: 0 | H10: 0 | I10: =ОКРУГЛВСЕ(SUMIF('Форма по МДС 81-35.2004'!J94:J112,"Г",'Форма по МДС 81-35.2004'!E94:E112),8) -> 0 | J10: 0 | K10: =ОКРУГЛВСЕ(SUMIF('Форма по МДС 81-35.2004'!J94:J112,"Ж",'Форма по МДС 81-35.2004'!E94:E112),8) -> 0.29 | L10: 0 | M10: 0 | N10: 6.30981 | O10: 4.8191848 | P10: 0 | Q10: 0 | R10: 0 | S10: 0 | T10: 0 | U10: 0 | V10: 0 | X10: 0 | Y10: 0 | Z10: 0 | AA10: 0 | AB10: 0 | AC10: 0 | AD10: 0 | AE10: 0
A11: ='Форма по МДС 81-35.2004'!A113 -> 6. | B11: ='Форма по МДС 81-35.2004'!M113 -> 0 | C11: =ROUND(СУММПРОИЗВЕСЛИ(1,'Форма по МДС 81-35.2004'!J113:J134,"Г",'Форма по МДС 81-35.2004'!E113:E134,'Форма по МДС 81-35.2004'!M113:M134,0),2) -> 0 | D11: =ROUND(СУММПРОИЗВЕСЛИ(1,'Форма по МДС 81-35.2004'!J113:J134,"IsMash",'Форма по МДС 81-35.2004'!E113:E134,'Форма по МДС 81-35.2004'!M113:M134,0),2) -> 0 | E11: =ROUND(СУММПРОИЗВЕСЛИ(1,'Форма по МДС 81-35.2004'!J113:J134,"Ж",'Форма по МДС 81-35.2004'!E113:E134,'Форма по МДС 81-35.2004'!M113:M134,0),2) -> 0 | F11: =ROUND(СУММПРОИЗВЕСЛИ(1,'Форма по МДС 81-35.2004'!J113:J134,"IsMater",'Форма по МДС 81-35.2004'!E113:E134,'Форма по МДС 81-35.2004'!M113:M134,0),2) -> 0 | G11: 0 | H11: 0 | I11: =ОКРУГЛВСЕ(SUMIF('Форма по МДС 81-35.2004'!J113:J134,"Г",'Форма по МДС 81-35.2004'!E113:E134),8) -> 0 | J11: 0 | K11: =ОКРУГЛВСЕ(SUMIF('Форма по МДС 81-35.2004'!J113:J134,"Ж",'Форма по МДС 81-35.2004'!E113:E134),8) -> 7.63 | L11: 0 | M11: 0 | N11: 0 | O11: 0 | P11: 0 | Q11: 0 | R11: 0 | S11: 0 | T11: 0 | U11: 0 | V11: 0 | X11: 0 | Y11: 0 | Z11: 0 | AA11: 0 | AB11: 0 | AC11: 0 | AD11: 0 | AE11: 0
A12: ='Форма по МДС 81-35.2004'!A135 -> 7. | B12: ='Форма по МДС 81-35.2004'!M135 -> 111.57 | C12: =ROUND(СУММПРОИЗВЕСЛИ(1,'Форма по МДС 81-35.2004'!J135:J153,"Г",'Форма по МДС 81-35.2004'!E135:E153,'Форма по МДС 81-35.2004'!M135:M153,0),2) -> 0 | D12: =ROUND(СУММПРОИЗВЕСЛИ(1,'Форма по МДС 81-35.2004'!J135:J153,"IsMash",'Форма по МДС 81-35.2004'!E135:E153,'Форма по МДС 81-35.2004'!M135:M153,0),2) -> 111.57 | E12: =ROUND(СУММПРОИЗВЕСЛИ(1,'Форма по МДС 81-35.2004'!J135:J153,"Ж",'Форма по МДС 81-35.2004'!E135:E153,'Форма по МДС 81-35.2004'!M135:M153,0),2) -> 8 | F12: =ROUND(СУММПРОИЗВЕСЛИ(1,'Форма по МДС 81-35.2004'!J135:J153,"IsMater",'Форма по МДС 81-35.2004'!E135:E153,'Форма по МДС 81-35.2004'!M135:M153,0),2) -> 0 | G12: 0 | H12: 0 | I12: =ОКРУГЛВСЕ(SUMIF('Форма по МДС 81-35.2004'!J135:J153,"Г",'Форма по МДС 81-35.2004'!E135:E153),8) -> 0 | J12: 0 | K12: =ОКРУГЛВСЕ(SUMIF('Форма по МДС 81-35.2004'!J135:J153,"Ж",'Форма по МДС 81-35.2004'!E135:E153),8) -> 0.6 | L12: 0 | M12: 0 | N12: 13.05369 | O12: 9.9698952 | P12: 0 | Q12: 0 | R12: 0 | S12: 0 | T12: 0 | U12: 0 | V12: 0 | X12: 0 | Y12: 0 | Z12: 0 | AA12: 0 | AB12: 0 | AC12: 0 | AD12: 0 | AE12: 0
A13: ='Форма по МДС 81-35.2004'!A154 -> 8. | B13: ='Форма по МДС 81-35.2004'!M154 -> 125.81 | C13: =ROUND(СУММПРОИЗВЕСЛИ(1,'Форма по МДС 81-35.2004'!J154:J174,"Г",'Форма по МДС 81-35.2004'!E154:E174,'Форма по МДС 81-35.2004'!M154:M174,0),2) -> 0 | D13: =ROUND(СУММПРОИЗВЕСЛИ(1,'Форма по МДС 81-35.2004'!J154:J174,"IsMash",'Форма по МДС 81-35.2004'!E154:E174,'Форма по МДС 81-35.2004'!M154:M174,0),2) -> 125.81 | E13: =ROUND(СУММПРОИЗВЕСЛИ(1,'Форма по МДС 81-35.2004'!J154:J174,"Ж",'Форма по МДС 81-35.2004'!E154:E174,'Форма по МДС 81-35.2004'!M154:M174,0),2) -> 9.57 | F13: =ROUND(СУММПРОИЗВЕСЛИ(1,'Форма по МДС 81-35.2004'!J154:J174,"IsMater",'Форма по МДС 81-35.2004'!E154:E174,'Форма по МДС 81-35.2004'!M154:M174,0),2) -> 0 | G13: 0 | H13: 0 | I13: =ОКРУГЛВСЕ(SUMIF('Форма по МДС 81-35.2004'!J154:J174,"Г",'Форма по МДС 81-35.2004'!E154:E174),8) -> 0 | J13: 0 | K13: =ОКРУГЛВСЕ(SUMIF('Форма по МДС 81-35.2004'!J154:J174,"Ж",'Форма по МДС 81-35.2004'!E154:E174),8) -> 0.72 | L13: 0 | M13: 0 | N13: 14.71977 | O13: 11.2423816 | P13: 0 | Q13: 0 | R13: 0 | S13: 0 | T13: 0 | U13: 0 | V13: 0 | X13: 0 | Y13: 0 | Z13: 0 | AA13: 0 | AB13: 0 | AC13: 0 | AD13: 0 | AE13: 0
A14: ='Форма по МДС 81-35.2004'!A175 -> 9. | B14: ='Форма по МДС 81-35.2004'!M175 -> 53.93 | C14: =ROUND(СУММПРОИЗВЕСЛИ(1,'Форма по МДС 81-35.2004'!J175:J193,"Г",'Форма по МДС 81-35.2004'!E175:E193,'Форма по МДС 81-35.2004'!M175:M193,0),2) -> 0 | D14: =ROUND(СУММПРОИЗВЕСЛИ(1,'Форма по МДС 81-35.2004'!J175:J193,"IsMash",'Форма по МДС 81-35.2004'!E175:E193,'Форма по МДС 81-35.2004'!M175:M193,0),2) -> 53.93 | E14: =ROUND(СУММПРОИЗВЕСЛИ(1,'Форма по МДС 81-35.2004'!J175:J193,"Ж",'Форма по МДС 81-35.2004'!E175:E193,'Форма по МДС 81-35.2004'!M175:M193,0),2) -> 3.91 | F14: =ROUND(СУММПРОИЗВЕСЛИ(1,'Форма по МДС 81-35.2004'!J175:J193,"IsMater",'Форма по МДС 81-35.2004'!E175:E193,'Форма по МДС 81-35.2004'!M175:M193,0),2) -> 0 | G14: 0 | H14: 0 | I14: =ОКРУГЛВСЕ(SUMIF('Форма по МДС 81-35.2004'!J175:J193,"Г",'Форма по МДС 81-35.2004'!E175:E193),8) -> 0 | J14: 0 | K14: =ОКРУГЛВСЕ(SUMIF('Форма по МДС 81-35.2004'!J175:J193,"Ж",'Форма по МДС 81-35.2004'!E175:E193),8) -> 0.29 | L14: 0 | M14: 0 | N14: 6.30981 | O14: 4.8191848 | P14: 0 | Q14: 0 | R14: 0 | S14: 0 | T14: 0 | U14: 0 | V14: 0 | X14: 0 | Y14: 0 | Z14: 0 | AA14: 0 | AB14: 0 | AC14: 0 | AD14: 0 | AE14: 0
A15: ='Форма по МДС 81-35.2004'!A194 -> 10. | B15: ='Форма по МДС 81-35.2004'!M194 -> 104.55 | C15: =ROUND(СУММПРОИЗВЕСЛИ(1,'Форма по МДС 81-35.2004'!J194:J212,"Г",'Форма по МДС 81-35.2004'!E194:E212,'Форма по МДС 81-35.2004'!M194:M212,0),2) -> 0 | D15: =ROUND(СУММПРОИЗВЕСЛИ(1,'Форма по МДС 81-35.2004'!J194:J212,"IsMash",'Форма по МДС 81-35.2004'!E194:E212,'Форма по МДС 81-35.2004'!M194:M212,0),2) -> 104.55 | E15: =ROUND(СУММПРОИЗВЕСЛИ(1,'Форма по МДС 81-35.2004'!J194:J212,"Ж",'Форма по МДС 81-35.2004'!E194:E212,'Форма по МДС 81-35.2004'!M194:M212,0),2) -> 11.67 | F15: =ROUND(СУММПРОИЗВЕСЛИ(1,'Форма по МДС 81-35.2004'!J194:J212,"IsMater",'Форма по МДС 81-35.2004'!E194:E212,'Форма по МДС 81-35.2004'!M194:M212,0),2) -> 0 | G15: 0 | H15: 0 | I15: =ОКРУГЛВСЕ(SUMIF('Форма по МДС 81-35.2004'!J194:J212,"Г",'Форма по МДС 81-35.2004'!E194:E212),8) -> 0 | J15: 0 | K15: =ОКРУГЛВСЕ(SUMIF('Форма по МДС 81-35.2004'!J194:J212,"Ж",'Форма по МДС 81-35.2004'!E194:E212),8) -> 0.85 | L15: 0 | M15: 0 | N15: 12.23235 | O15: 9.342588 | P15: 0 | Q15: 0 | R15: 0 | S15: 0 | T15: 0 | U15: 0 | V15: 0 | X15: 0 | Y15: 0 | Z15: 0 | AA15: 0 | AB15: 0 | AC15: 0 | AD15: 0 | AE15: 0
A16: ='Форма по МДС 81-35.2004'!A213 -> 11. | B16: ='Форма по МДС 81-35.2004'!M213 -> 2045.33 | C16: =ROUND(СУММПРОИЗВЕСЛИ(1,'Форма по МДС 81-35.2004'!J213:J237,"Г",'Форма по МДС 81-35.2004'!E213:E237,'Форма по МДС 81-35.2004'!M213:M237,0),2) -> 365.4 | D16: =ROUND(СУММПРОИЗВЕСЛИ(1,'Форма по МДС 81-35.2004'!J213:J237,"IsMash",'Форма по МДС 81-35.2004'!E213:E237,'Форма по МДС 81-35.2004'!M213:M237,0),2) -> 1679.93 | E16: =ROUND(СУММПРОИЗВЕСЛИ(1,'Форма по МДС 81-35.2004'!J213:J237,"Ж",'Форма по МДС 81-35.2004'!E213:E237,'Форма по МДС 81-35.2004'!M213:M237,0),2) -> 181.82 | F16: =ROUND(СУММПРОИЗВЕСЛИ(1,'Форма по МДС 81-35.2004'!J213:J237,"IsMater",'Форма по МДС 81-35.2004'!E213:E237,'Форма по МДС 81-35.2004'!M213:M237,0),2) -> 0 | G16: 0 | H16: 0 | I16: =ОКРУГЛВСЕ(SUMIF('Форма по МДС 81-35.2004'!J213:J237,"Г",'Форма по МДС 81-35.2004'!E213:E237),8) -> 43.26 | J16: 0 | K16: =ОКРУГЛВСЕ(SUMIF('Форма по МДС 81-35.2004'!J213:J237,"Ж",'Форма по МДС 81-35.2004'!E213:E237),8) -> 14.42 | L16: 0 | M16: 0 | N16: 239.30361 | O16: 182.7706888 | P16: 0 | Q16: 0 | R16: 0 | S16: 0 | T16: 0 | U16: 0 | V16: 0 | X16: 0 | Y16: 0 | Z16: 0 | AA16: 0 | AB16: 0 | AC16: 0 | AD16: 0 | AE16: 0
A17: ='Форма по МДС 81-35.2004'!A238 -> 12. | B17: ='Форма по МДС 81-35.2004'!M238 -> 347.65 | C17: =ROUND(СУММПРОИЗВЕСЛИ(1,'Форма по МДС 81-35.2004'!J238:J257,"Г",'Форма по МДС 81-35.2004'!E238:E257,'Форма по МДС 81-35.2004'!M238:M257,0),2) -> 0 | D17: =ROUND(СУММПРОИЗВЕСЛИ(1,'Форма по МДС 81-35.2004'!J238:J257,"IsMash",'Форма по МДС 81-35.2004'!E238:E257,'Форма по МДС 81-35.2004'!M238:M257,0),2) -> 347.65 | E17: =ROUND(СУММПРОИЗВЕСЛИ(1,'Форма по МДС 81-35.2004'!J238:J257,"Ж",'Форма по МДС 81-35.2004'!E238:E257,'Форма по МДС 81-35.2004'!M238:M257,0),2) -> 40 | F17: =ROUND(СУММПРОИЗВЕСЛИ(1,'Форма по МДС 81-35.2004'!J238:J257,"IsMater",'Форма по МДС 81-35.2004'!E238:E257,'Форма по МДС 81-35.2004'!M238:M257,0),2) -> 0 | G17: 0 | H17: 0 | I17: =ОКРУГЛВСЕ(SUMIF('Форма по МДС 81-35.2004'!J238:J257,"Г",'Форма по МДС 81-35.2004'!E238:E257),8) -> 0 | J17: 0 | K17: =ОКРУГЛВСЕ(SUMIF('Форма по МДС 81-35.2004'!J238:J257,"Ж",'Форма по МДС 81-35.2004'!E238:E257),8) -> 4.09 | L17: 0 | M17: 0 | N17: 40.67505 | O17: 31.066004 | P17: 0 | Q17: 0 | R17: 0 | S17: 0 | T17: 0 | U17: 0 | V17: 0 | X17: 0 | Y17: 0 | Z17: 0 | AA17: 0 | AB17: 0 | AC17: 0 | AD17: 0 | AE17: 0
A18: ='Форма по МДС 81-35.2004'!A258 -> 13. | B18: ='Форма по МДС 81-35.2004'!M258 -> 433.01 | C18: =ROUND(СУММПРОИЗВЕСЛИ(1,'Форма по МДС 81-35.2004'!J258:J276,"Г",'Форма по МДС 81-35.2004'!E258:E276,'Форма по МДС 81-35.2004'!M258:M276,0),2) -> 0 | D18: =ROUND(СУММПРОИЗВЕСЛИ(1,'Форма по МДС 81-35.2004'!J258:J276,"IsMash",'Форма по МДС 81-35.2004'!E258:E276,'Форма по МДС 81-35.2004'!M258:M276,0),2) -> 433.01 | E18: =ROUND(СУММПРОИЗВЕСЛИ(1,'Форма по МДС 81-35.2004'!J258:J276,"Ж",'Форма по МДС 81-35.2004'!E258:E276,'Форма по МДС 81-35.2004'!M258:M276,0),2) -> 0 | F18: =ROUND(СУММПРОИЗВЕСЛИ(1,'Форма по МДС 81-35.2004'!J258:J276,"IsMater",'Форма по МДС 81-35.2004'!E258:E276,'Форма по МДС 81-35.2004'!M258:M276,0),2) -> 0 | G18: 0 | H18: 0 | I18: =ОКРУГЛВСЕ(SUMIF('Форма по МДС 81-35.2004'!J258:J276,"Г",'Форма по МДС 81-35.2004'!E258:E276),8) -> 0 | J18: 0 | K18: =ОКРУГЛВСЕ(SUMIF('Форма по МДС 81-35.2004'!J258:J276,"Ж",'Форма по МДС 81-35.2004'!E258:E276),8) -> 0 | L18: 0 | M18: 0 | N18: 50.66217 | O18: 38.6937736 | P18: 0 | Q18: 0 | R18: 0 | S18: 0 | T18: 0 | U18: 0 | V18: 0 | X18: 0 | Y18: 0 | Z18: 0 | AA18: 0 | AB18: 0 | AC18: 0 | AD18: 0 | AE18: 0
A19: ='Форма по МДС 81-35.2004'!A277 -> 14. | B19: ='Форма по МДС 81-35.2004'!M277 -> 76.48 | C19: =ROUND(СУММПРОИЗВЕСЛИ(1,'Форма по МДС 81-35.2004'!J277:J296,"Г",'Форма по МДС 81-35.2004'!E277:E296,'Форма по МДС 81-35.2004'!M277:M296,0),2) -> 0 | D19: =ROUND(СУММПРОИЗВЕСЛИ(1,'Форма по МДС 81-35.2004'!J277:J296,"IsMash",'Форма по МДС 81-35.2004'!E277:E296,'Форма по МДС 81-35.2004'!M277:M296,0),2) -> 76.48 | E19: =ROUND(СУММПРОИЗВЕСЛИ(1,'Форма по МДС 81-35.2004'!J277:J296,"Ж",'Форма по МДС 81-35.2004'!E277:E296,'Форма по МДС 81-35.2004'!M277:M296,0),2) -> 0 | F19: =ROUND(СУММПРОИЗВЕСЛИ(1,'Форма по МДС 81-35.2004'!J277:J296,"IsMater",'Форма по МДС 81-35.2004'!E277:E296,'Форма по МДС 81-35.2004'!M277:M296,0),2) -> 0 | G19: 0 | H19: 0 | I19: =ОКРУГЛВСЕ(SUMIF('Форма по МДС 81-35.2004'!J277:J296,"Г",'Форма по МДС 81-35.2004'!E277:E296),8) -> 0 | J19: 0 | K19: =ОКРУГЛВСЕ(SUMIF('Форма по МДС 81-35.2004'!J277:J296,"Ж",'Форма по МДС 81-35.2004'!E277:E296),8) -> 0 | L19: 0 | M19: 0 | N19: 8.94816 | O19: 6.8342528 | P19: 0 | Q19: 0 | R19: 0 | S19: 0 | T19: 0 | U19: 0 | V19: 0 | X19: 0 | Y19: 0 | Z19: 0 | AA19: 0 | AB19: 0 | AC19: 0 | AD19: 0 | AE19: 0
A20: ='Форма по МДС 81-35.2004'!A299 -> 15. | B20: ='Форма по МДС 81-35.2004'!M299 -> 136.99 | C20: =ROUND(СУММПРОИЗВЕСЛИ(1,'Форма по МДС 81-35.2004'!J299:J318,"Г",'Форма по МДС 81-35.2004'!E299:E318,'Форма по МДС 81-35.2004'!M299:M318,0),2) -> 57.41 | D20: =ROUND(СУММПРОИЗВЕСЛИ(1,'Форма по МДС 81-35.2004'!J299:J318,"IsMash",'Форма по МДС 81-35.2004'!E299:E318,'Форма по МДС 81-35.2004'!M299:M318,0),2) -> 79.58 | E20: =ROUND(СУММПРОИЗВЕСЛИ(1,'Форма по МДС 81-35.2004'!J299:J318,"Ж",'Форма по МДС 81-35.2004'!E299:E318,'Форма по МДС 81-35.2004'!M299:M318,0),2) -> 14.71 | F20: =ROUND(СУММПРОИЗВЕСЛИ(1,'Форма по МДС 81-35.2004'!J299:J318,"IsMater",'Форма по МДС 81-35.2004'!E299:E318,'Форма по МДС 81-35.2004'!M299:M318,0),2) -> 0 | G20: 0 | H20: 0 | I20: =ОКРУГЛВСЕ(SUMIF('Форма по МДС 81-35.2004'!J299:J318,"Г",'Форма по МДС 81-35.2004'!E299:E318),8) -> 7.36 | J20: 0 | K20: =ОКРУГЛВСЕ(SUMIF('Форма по МДС 81-35.2004'!J299:J318,"Ж",'Форма по МДС 81-35.2004'!E299:E318),8) -> 0.92 | L20: 0 | M20: 0 | N20: 16.02783 | O20: 12.2414264 | P20: 0 | Q20: 0 | R20: 0 | S20: 0 | T20: 0 | U20: 0 | V20: 0 | X20: 0 | Y20: 0 | Z20: 0 | AA20: 0 | AB20: 0 | AC20: 0 | AD20: 0 | AE20: 0
A21: ='Форма по МДС 81-35.2004'!A319 -> 16. | B21: ='Форма по МДС 81-35.2004'!M319 -> 7781.58 | C21: =ROUND(СУММПРОИЗВЕСЛИ(1,'Форма по МДС 81-35.2004'!J319:J339,"Г",'Форма по МДС 81-35.2004'!E319:E339,'Форма по МДС 81-35.2004'!M319:M339,0),2) -> 270.6 | D21: =ROUND(СУММПРОИЗВЕСЛИ(1,'Форма по МДС 81-35.2004'!J319:J339,"IsMash",'Форма по МДС 81-35.2004'!E319:E339,'Форма по МДС 81-35.2004'!M319:M339,0),2) -> 0 | E21: =ROUND(СУММПРОИЗВЕСЛИ(1,'Форма по МДС 81-35.2004'!J319:J339,"Ж",'Форма по МДС 81-35.2004'!E319:E339,'Форма по МДС 81-35.2004'!M319:M339,0),2) -> 0 | F21: =ROUND(СУММПРОИЗВЕСЛИ(1,'Форма по МДС 81-35.2004'!J319:J339,"IsMater",'Форма по МДС 81-35.2004'!E319:E339,'Форма по МДС 81-35.2004'!M319:M339,0),2) -> 7510.99 | G21: 7315.43 | H21: 0 | I21: =ОКРУГЛВСЕ(SUMIF('Форма по МДС 81-35.2004'!J319:J339,"Г",'Форма по МДС 81-35.2004'!E319:E339),8) -> 33.39 | J21: 0 | K21: =ОКРУГЛВСЕ(SUMIF('Форма по МДС 81-35.2004'!J319:J339,"Ж",'Форма по МДС 81-35.2004'!E319:E339),8) -> 0 | L21: 0 | M21: 0 | N21: 910.44486 | O21: 695.3619888 | P21: 0 | Q21: 0 | R21: 0 | S21: 0 | T21: 0 | U21: 0 | V21: 0 | X21: 0 | Y21: 0 | Z21: 0 | AA21: 0 | AB21: 0 | AC21: 0 | AD21: 0 | AE21: 0
A22: ='Форма по МДС 81-35.2004'!A340 -> 17. | B22: ='Форма по МДС 81-35.2004'!M340 -> 1561.03 | C22: =ROUND(СУММПРОИЗВЕСЛИ(1,'Форма по МДС 81-35.2004'!J340:J359,"Г",'Форма по МДС 81-35.2004'!E340:E359,'Форма по МДС 81-35.2004'!M340:M359,0),2) -> 366.62 | D22: =ROUND(СУММПРОИЗВЕСЛИ(1,'Форма по МДС 81-35.2004'!J340:J359,"IsMash",'Форма по МДС 81-35.2004'!E340:E359,'Форма по МДС 81-35.2004'!M340:M359,0),2) -> 0 | E22: =ROUND(СУММПРОИЗВЕСЛИ(1,'Форма по МДС 81-35.2004'!J340:J359,"Ж",'Форма по МДС 81-35.2004'!E340:E359,'Форма по МДС 81-35.2004'!M340:M359,0),2) -> 0 | F22: =ROUND(СУММПРОИЗВЕСЛИ(1,'Форма по МДС 81-35.2004'!J340:J359,"IsMater",'Форма по МДС 81-35.2004'!E340:E359,'Форма по МДС 81-35.2004'!M340:M359,0),2) -> 1194.41 | G22: 1165 | H22: 0 | I22: =ОКРУГЛВСЕ(SUMIF('Форма по МДС 81-35.2004'!J340:J359,"Г",'Форма по МДС 81-35.2004'!E340:E359),8) -> 38.11 | J22: 0 | K22: =ОКРУГЛВСЕ(SUMIF('Форма по МДС 81-35.2004'!J340:J359,"Ж",'Форма по МДС 81-35.2004'!E340:E359),8) -> 0 | L22: 0 | M22: 0 | N22: 182.64051 | O22: 139.4936408 | P22: 0 | Q22: 0 | R22: 0 | S22: 0 | T22: 0 | U22: 0 | V22: 0 | X22: 0 | Y22: 0 | Z22: 0 | AA22: 0 | AB22: 0 | AC22: 0 | AD22: 0 | AE22: 0
A23: ='Форма по МДС 81-35.2004'!A360 -> 18. | B23: ='Форма по МДС 81-35.2004'!M360 -> 27.07 | C23: =ROUND(СУММПРОИЗВЕСЛИ(1,'Форма по МДС 81-35.2004'!J360:J379,"Г",'Форма по МДС 81-35.2004'!E360:E379,'Форма по МДС 81-35.2004'!M360:M379,0),2) -> 7.18 | D23: =ROUND(СУММПРОИЗВЕСЛИ(1,'Форма по МДС 81-35.2004'!J360:J379,"IsMash",'Форма по МДС 81-35.2004'!E360:E379,'Форма по МДС 81-35.2004'!M360:M379,0),2) -> 19.9 | E23: =ROUND(СУММПРОИЗВЕСЛИ(1,'Форма по МДС 81-35.2004'!J360:J379,"Ж",'Форма по МДС 81-35.2004'!E360:E379,'Форма по МДС 81-35.2004'!M360:M379,0),2) -> 0 | F23: =ROUND(СУММПРОИЗВЕСЛИ(1,'Форма по МДС 81-35.2004'!J360:J379,"IsMater",'Форма по МДС 81-35.2004'!E360:E379,'Форма по МДС 81-35.2004'!M360:M379,0),2) -> 0 | G23: 0 | H23: 0 | I23: =ОКРУГЛВСЕ(SUMIF('Форма по МДС 81-35.2004'!J360:J379,"Г",'Форма по МДС 81-35.2004'!E360:E379),8) -> 0.92 | J23: 0 | K23: =ОКРУГЛВСЕ(SUMIF('Форма по МДС 81-35.2004'!J360:J379,"Ж",'Форма по МДС 81-35.2004'!E360:E379),8) -> 0.23 | L23: 0 | M23: 0 | N23: 3.16719 | O23: 2.4189752 | P23: 0 | Q23: 0 | R23: 0 | S23: 0 | T23: 0 | U23: 0 | V23: 0 | X23: 0 | Y23: 0 | Z23: 0 | AA23: 0 | AB23: 0 | AC23: 0 | AD23: 0 | AE23: 0
A24: ='Форма по МДС 81-35.2004'!A380 -> 19. | B24: ='Форма по МДС 81-35.2004'!M380 -> 50.63 | C24: =ROUND(СУММПРОИЗВЕСЛИ(1,'Форма по МДС 81-35.2004'!J380:J399,"Г",'Форма по МДС 81-35.2004'!E380:E399,'Форма по МДС 81-35.2004'!M380:M399,0),2) -> 21.22 | D24: =ROUND(СУММПРОИЗВЕСЛИ(1,'Форма по МДС 81-35.2004'!J380:J399,"IsMash",'Форма по МДС 81-35.2004'!E380:E399,'Форма по МДС 81-35.2004'!M380:M399,0),2) -> 29.41 | E24: =ROUND(СУММПРОИЗВЕСЛИ(1,'Форма по МДС 81-35.2004'!J380:J399,"Ж",'Форма по МДС 81-35.2004'!E380:E399,'Форма по МДС 81-35.2004'!M380:M399,0),2) -> 0 | F24: =ROUND(СУММПРОИЗВЕСЛИ(1,'Форма по МДС 81-35.2004'!J380:J399,"IsMater",'Форма по МДС 81-35.2004'!E380:E399,'Форма по МДС 81-35.2004'!M380:M399,0),2) -> 0 | G24: 0 | H24: 0 | I24: =ОКРУГЛВСЕ(SUMIF('Форма по МДС 81-35.2004'!J380:J399,"Г",'Форма по МДС 81-35.2004'!E380:E399),8) -> 2.72 | J24: 0 | K24: =ОКРУГЛВСЕ(SUMIF('Форма по МДС 81-35.2004'!J380:J399,"Ж",'Форма по МДС 81-35.2004'!E380:E399),8) -> 0.34 | L24: 0 | M24: 0 | N24: 5.92371 | O24: 4.5242968 | P24: 0 | Q24: 0 | R24: 0 | S24: 0 | T24: 0 | U24: 0 | V24: 0 | X24: 0 | Y24: 0 | Z24: 0 | AA24: 0 | AB24: 0 | AC24: 0 | AD24: 0 | AE24: 0
A25: ='Форма по МДС 81-35.2004'!A402 -> 20. | B25: ='Форма по МДС 81-35.2004'!M402 -> 68.49 | C25: =ROUND(СУММПРОИЗВЕСЛИ(1,'Форма по МДС 81-35.2004'!J402:J421,"Г",'Форма по МДС 81-35.2004'!E402:E421,'Форма по МДС 81-35.2004'!M402:M421,0),2) -> 28.7 | D25: =ROUND(СУММПРОИЗВЕСЛИ(1,'Форма по МДС 81-35.2004'!J402:J421,"IsMash",'Форма по МДС 81-35.2004'!E402:E421,'Форма по МДС 81-35.2004'!M402:M421,0),2) -> 39.79 | E25: =ROUND(СУММПРОИЗВЕСЛИ(1,'Форма по МДС 81-35.2004'!J402:J421,"Ж",'Форма по МДС 81-35.2004'!E402:E421,'Форма по МДС 81-35.2004'!M402:M421,0),2) -> 0 | F25: =ROUND(СУММПРОИЗВЕСЛИ(1,'Форма по МДС 81-35.2004'!J402:J421,"IsMater",'Форма по МДС 81-35.2004'!E402:E421,'Форма по МДС 81-35.2004'!M402:M421,0),2) -> 0 | G25: 0 | H25: 0 | I25: =ОКРУГЛВСЕ(SUMIF('Форма по МДС 81-35.2004'!J402:J421,"Г",'Форма по МДС 81-35.2004'!E402:E421),8) -> 3.68 | J25: 0 | K25: =ОКРУГЛВСЕ(SUMIF('Форма по МДС 81-35.2004'!J402:J421,"Ж",'Форма по МДС 81-35.2004'!E402:E421),8) -> 0.46 | L25: 0 | M25: 0 | N25: 8.01333 | O25: 6.1202664 | P25: 0 | Q25: 0 | R25: 0 | S25: 0 | T25: 0 | U25: 0 | V25: 0 | X25: 0 | Y25: 0 | Z25: 0 | AA25: 0 | AB25: 0 | AC25: 0 | AD25: 0 | AE25: 0
A26: ='Форма по МДС 81-35.2004'!A422 -> 21. | B26: ='Форма по МДС 81-35.2004'!M422 -> 83.38 | C26: =ROUND(СУММПРОИЗВЕСЛИ(1,'Форма по МДС 81-35.2004'!J422:J441,"Г",'Форма по МДС 81-35.2004'!E422:E441,'Форма по МДС 81-35.2004'!M422:M441,0),2) -> 34.94 | D26: =ROUND(СУММПРОИЗВЕСЛИ(1,'Форма по МДС 81-35.2004'!J422:J441,"IsMash",'Форма по МДС 81-35.2004'!E422:E441,'Форма по МДС 81-35.2004'!M422:M441,0),2) -> 48.44 | E26: =ROUND(СУММПРОИЗВЕСЛИ(1,'Форма по МДС 81-35.2004'!J422:J441,"Ж",'Форма по МДС 81-35.2004'!E422:E441,'Форма по МДС 81-35.2004'!M422:M441,0),2) -> 0 | F26: =ROUND(СУММПРОИЗВЕСЛИ(1,'Форма по МДС 81-35.2004'!J422:J441,"IsMater",'Форма по МДС 81-35.2004'!E422:E441,'Форма по МДС 81-35.2004'!M422:M441,0),2) -> 0 | G26: 0 | H26: 0 | I26: =ОКРУГЛВСЕ(SUMIF('Форма по МДС 81-35.2004'!J422:J441,"Г",'Форма по МДС 81-35.2004'!E422:E441),8) -> 4.48 | J26: 0 | K26: =ОКРУГЛВСЕ(SUMIF('Форма по МДС 81-35.2004'!J422:J441,"Ж",'Форма по МДС 81-35.2004'!E422:E441),8) -> 0.56 | L26: 0 | M26: 0 | N26: 9.75546 | O26: 7.4508368 | P26: 0 | Q26: 0 | R26: 0 | S26: 0 | T26: 0 | U26: 0 | V26: 0 | X26: 0 | Y26: 0 | Z26: 0 | AA26: 0 | AB26: 0 | AC26: 0 | AD26: 0 | AE26: 0
A27: ='Форма по МДС 81-35.2004'!A442 -> 22. | B27: ='Форма по МДС 81-35.2004'!M442 -> 9081.93 | C27: =ROUND(СУММПРОИЗВЕСЛИ(1,'Форма по МДС 81-35.2004'!J442:J470,"Г",'Форма по МДС 81-35.2004'!E442:E470,'Форма по МДС 81-35.2004'!M442:M470,0),2) -> 2447.21 | D27: =ROUND(СУММПРОИЗВЕСЛИ(1,'Форма по МДС 81-35.2004'!J442:J470,"IsMash",'Форма по МДС 81-35.2004'!E442:E470,'Форма по МДС 81-35.2004'!M442:M470,0),2) -> 6481.45 | E27: =ROUND(СУММПРОИЗВЕСЛИ(1,'Форма по МДС 81-35.2004'!J442:J470,"Ж",'Форма по МДС 81-35.2004'!E442:E470,'Форма по МДС 81-35.2004'!M442:M470,0),2) -> 909.13 | F27: =ROUND(СУММПРОИЗВЕСЛИ(1,'Форма по МДС 81-35.2004'!J442:J470,"IsMater",'Форма по МДС 81-35.2004'!E442:E470,'Форма по МДС 81-35.2004'!M442:M470,0),2) -> 153.27 | G27: 148.15 | H27: 0 | I27: =ОКРУГЛВСЕ(SUMIF('Форма по МДС 81-35.2004'!J442:J470,"Г",'Форма по МДС 81-35.2004'!E442:E470),8) -> 299.72 | J27: 0 | K27: =ОКРУГЛВСЕ(SUMIF('Форма по МДС 81-35.2004'!J442:J470,"Ж",'Форма по МДС 81-35.2004'!E442:E470),8) -> 74.93 | L27: 0 | M27: 0 | N27: 1062.58581 | O27: 811.5612648 | P27: 0 | Q27: 0 | R27: 0 | S27: 0 | T27: 0 | U27: 0 | V27: 0 | X27: 0 | Y27: 0 | Z27: 0 | AA27: 0 | AB27: 0 | AC27: 0 | AD27: 0 | AE27: 0
A28: ='Форма по МДС 81-35.2004'!A472 -> 23. | B28: ='Форма по МДС 81-35.2004'!M472 -> 3246.64 | C28: =ROUND(СУММПРОИЗВЕСЛИ(1,'Форма по МДС 81-35.2004'!J472:J498,"Г",'Форма по МДС 81-35.2004'!E472:E498,'Форма по МДС 81-35.2004'!M472:M498,0),2) -> 787.66 | D28: =ROUND(СУММПРОИЗВЕСЛИ(1,'Форма по МДС 81-35.2004'!J472:J498,"IsMash",'Форма по МДС 81-35.2004'!E472:E498,'Форма по МДС 81-35.2004'!M472:M498,0),2) -> 2443.09 | E28: =ROUND(СУММПРОИЗВЕСЛИ(1,'Форма по МДС 81-35.2004'!J472:J498,"Ж",'Форма по МДС 81-35.2004'!E472:E498,'Форма по МДС 81-35.2004'!M472:M498,0),2) -> 400 | F28: =ROUND(СУММПРОИЗВЕСЛИ(1,'Форма по МДС 81-35.2004'!J472:J498,"IsMater",'Форма по МДС 81-35.2004'!E472:E498,'Форма по МДС 81-35.2004'!M472:M498,0),2) -> 15.89 | G28: 15.5 | H28: 0 | I28: =ОКРУГЛВСЕ(SUMIF('Форма по МДС 81-35.2004'!J472:J498,"Г",'Форма по МДС 81-35.2004'!E472:E498),8) -> 90.7 | J28: 0 | K28: =ОКРУГЛВСЕ(SUMIF('Форма по МДС 81-35.2004'!J472:J498,"Ж",'Форма по МДС 81-35.2004'!E472:E498),8) -> 25.92 | L28: 0 | M28: 0 | N28: 379.85688 | O28: 290.1197504 | P28: 0 | Q28: 0 | R28: 0 | S28: 0 | T28: 0 | U28: 0 | V28: 0 | X28: 0 | Y28: 0 | Z28: 0 | AA28: 0 | AB28: 0 | AC28: 0 | AD28: 0 | AE28: 0
A29: ='Форма по МДС 81-35.2004'!A499 -> 24. | B29: ='Форма по МДС 81-35.2004'!M499 -> 818.29 | C29: =ROUND(СУММПРОИЗВЕСЛИ(1,'Форма по МДС 81-35.2004'!J499:J524,"Г",'Форма по МДС 81-35.2004'!E499:E524,'Форма по МДС 81-35.2004'!M499:M524,0),2) -> 0 | D29: =ROUND(СУММПРОИЗВЕСЛИ(1,'Форма по МДС 81-35.2004'!J499:J524,"IsMash",'Форма по МДС 81-35.2004'!E499:E524,'Форма по МДС 81-35.2004'!M499:M524,0),2) -> 818.29 | E29: =ROUND(СУММПРОИЗВЕСЛИ(1,'Форма по МДС 81-35.2004'!J499:J524,"Ж",'Форма по МДС 81-35.2004'!E499:E524,'Форма по МДС 81-35.2004'!M499:M524,0),2) -> 199.99 | F29: =ROUND(СУММПРОИЗВЕСЛИ(1,'Форма по МДС 81-35.2004'!J499:J524,"IsMater",'Форма по МДС 81-35.2004'!E499:E524,'Форма по МДС 81-35.2004'!M499:M524,0),2) -> 0 | G29: 0 | H29: 0 | I29: =ОКРУГЛВСЕ(SUMIF('Форма по МДС 81-35.2004'!J499:J524,"Г",'Форма по МДС 81-35.2004'!E499:E524),8) -> 75.68 | J29: 0 | K29: =ОКРУГЛВСЕ(SUMIF('Форма по МДС 81-35.2004'!J499:J524,"Ж",'Форма по МДС 81-35.2004'!E499:E524),8) -> 28.38 | L29: 0 | M29: 0 | N29: 95.73993 | O29: 73.1223944 | P29: 0 | Q29: 0 | R29: 0 | S29: 0 | T29: 0 | U29: 0 | V29: 0 | X29: 0 | Y29: 0 | Z29: 0 | AA29: 0 | AB29: 0 | AC29: 0 | AD29: 0 | AE29: 0
A30: ='Форма по МДС 81-35.2004'!A525 -> 25. | B30: ='Форма по МДС 81-35.2004'!M525 -> 0 | C30: =ROUND(СУММПРОИЗВЕСЛИ(1,'Форма по МДС 81-35.2004'!J525:J543,"Г",'Форма по МДС 81-35.2004'!E525:E543,'Форма по МДС 81-35.2004'!M525:M543,0),2) -> 0 | D30: =ROUND(СУММПРОИЗВЕСЛИ(1,'Форма по МДС 81-35.2004'!J525:J543,"IsMash",'Форма по МДС 81-35.2004'!E525:E543,'Форма по МДС 81-35.2004'!M525:M543,0),2) -> 0 | E30: =ROUND(СУММПРОИЗВЕСЛИ(1,'Форма по МДС 81-35.2004'!J525:J543,"Ж",'Форма по МДС 81-35.2004'!E525:E543,'Форма по МДС 81-35.2004'!M525:M543,0),2) -> 0 | F30: =ROUND(СУММПРОИЗВЕСЛИ(1,'Форма по МДС 81-35.2004'!J525:J543,"IsMater",'Форма по МДС 81-35.2004'!E525:E543,'Форма по МДС 81-35.2004'!M525:M543,0),2) -> 0 | G30: 0 | H30: 0 | I30: =ОКРУГЛВСЕ(SUMIF('Форма по МДС 81-35.2004'!J525:J543,"Г",'Форма по МДС 81-35.2004'!E525:E543),8) -> 0 | J30: 0 | K30: =ОКРУГЛВСЕ(SUMIF('Форма по МДС 81-35.2004'!J525:J543,"Ж",'Форма по МДС 81-35.2004'!E525:E543),8) -> 0 | L30: 0 | M30: 0 | N30: 0 | O30: 0 | P30: 0 | Q30: 0 | R30: 0 | S30: 0 | T30: 0 | U30: 0 | V30: 0 | X30: 0 | Y30: 0 | Z30: 0 | AA30: 0 | AB30: 0 | AC30: 0 | AD30: 0 | AE30: 0
A31: ='Форма по МДС 81-35.2004'!A545 -> 26. | B31: ='Форма по МДС 81-35.2004'!M545 -> 695.83 | C31: =ROUND(СУММПРОИЗВЕСЛИ(1,'Форма по МДС 81-35.2004'!J545:J564,"Г",'Форма по МДС 81-35.2004'!E545:E564,'Форма по МДС 81-35.2004'!M545:M564,0),2) -> 244.3 | D31: =ROUND(СУММПРОИЗВЕСЛИ(1,'Форма по МДС 81-35.2004'!J545:J564,"IsMash",'Форма по МДС 81-35.2004'!E545:E564,'Форма по МДС 81-35.2004'!M545:M564,0),2) -> 451.53 | E31: =ROUND(СУММПРОИЗВЕСЛИ(1,'Форма по МДС 81-35.2004'!J545:J564,"Ж",'Форма по МДС 81-35.2004'!E545:E564,'Форма по МДС 81-35.2004'!M545:M564,0),2) -> 52.63 | F31: =ROUND(СУММПРОИЗВЕСЛИ(1,'Форма по МДС 81-35.2004'!J545:J564,"IsMater",'Форма по МДС 81-35.2004'!E545:E564,'Форма по МДС 81-35.2004'!M545:M564,0),2) -> 0 | G31: 0 | H31: 0 | I31: =ОКРУГЛВСЕ(SUMIF('Форма по МДС 81-35.2004'!J545:J564,"Г",'Форма по МДС 81-35.2004'!E545:E564),8) -> 31.32 | J31: 0 | K31: =ОКРУГЛВСЕ(SUMIF('Форма по МДС 81-35.2004'!J545:J564,"Ж",'Форма по МДС 81-35.2004'!E545:E564),8) -> 5.22 | L31: 0 | M31: 0 | N31: 81.41211 | O31: 62.1793688 | P31: 0 | Q31: 0 | R31: 0 | S31: 0 | T31: 0 | U31: 0 | V31: 0 | X31: 0 | Y31: 0 | Z31: 0 | AA31: 0 | AB31: 0 | AC31: 0 | AD31: 0 | AE31: 0
A32: ='Форма по МДС 81-35.2004'!A566 -> 27. | B32: ='Форма по МДС 81-35.2004'!M566 -> 9.98 | C32: =ROUND(СУММПРОИЗВЕСЛИ(1,'Форма по МДС 81-35.2004'!J566:J584,"Г",'Форма по МДС 81-35.2004'!E566:E584,'Форма по МДС 81-35.2004'!M566:M584,0),2) -> 0 | D32: =ROUND(СУММПРОИЗВЕСЛИ(1,'Форма по МДС 81-35.2004'!J566:J584,"IsMash",'Форма по МДС 81-35.2004'!E566:E584,'Форма по МДС 81-35.2004'!M566:M584,0),2) -> 9.98 | E32: =ROUND(СУММПРОИЗВЕСЛИ(1,'Форма по МДС 81-35.2004'!J566:J584,"Ж",'Форма по МДС 81-35.2004'!E566:E584,'Форма по МДС 81-35.2004'!M566:M584,0),2) -> 1.63 | F32: =ROUND(СУММПРОИЗВЕСЛИ(1,'Форма по МДС 81-35.2004'!J566:J584,"IsMater",'Форма по МДС 81-35.2004'!E566:E584,'Форма по МДС 81-35.2004'!M566:M584,0),2) -> 0 | G32: 0 | H32: 0 | I32: =ОКРУГЛВСЕ(SUMIF('Форма по МДС 81-35.2004'!J566:J584,"Г",'Форма по МДС 81-35.2004'!E566:E584),8) -> 0 | J32: 0 | K32: =ОКРУГЛВСЕ(SUMIF('Форма по МДС 81-35.2004'!J566:J584,"Ж",'Форма по МДС 81-35.2004'!E566:E584),8) -> 0.15 | L32: 0 | M32: 0 | N32: 1.16766 | O32: 0.8918128 | P32: 0 | Q32: 0 | R32: 0 | S32: 0 | T32: 0 | U32: 0 | V32: 0 | X32: 0 | Y32: 0 | Z32: 0 | AA32: 0 | AB32: 0 | AC32: 0 | AD32: 0 | AE32: 0

Sheet Текущие цены за единицу
B1: C1 | C1: C2 | D1: C3 | E1: C4 | F1: C5 | G1: C6 | H1: VOZVR | I1: C8 | J1: C9 | K1: C10 | L1: C11 | M1: C12 | N1: NAKL | O1: PLAN | P1: NAKL_ZPR | Q1: NAKL_ZPM | R1: PLAN_ZPR | S1: PLAN_ZPM | T1: RN11 | U1: RN12 | V1: RN13 | X1: OBORUD_VSPOMOG | Y1: NAKL_PN | Z1: NAKL_VX | AA1: PLAN_PN | AB1: PLAN_VX | AC1: VTCH_PN | AD1: VTCH_VX | AE1: MR_BY_ZPR_VSPOMOG | AF1: NAKL_INC | AG1: PLAN_INC
B3: N = < ГЭСНс * 2015_s * 15_15_зр >
B4: Автомобильные дороги регионального или межмуниципального значения с автобусным движением с допустимым уровнем содержания - норматив "Авт" (ЗИМНИЕ РАБОТЫ)
A6: ='Форма по МДС 81-35.2004'!A16 -> 1. | B6: ='Форма по МДС 81-35.2004'!G16 -> 893.87 | C6: =ROUND(СУММПРОИЗВЕСЛИ(1,'Форма по МДС 81-35.2004'!J16:J34,"Г",'Форма по МДС 81-35.2004'!E16:E34,'Форма по МДС 81-35.2004'!G16:G34,0),16777275) -> 0 | D6: =ROUND(СУММПРОИЗВЕСЛИ(1,'Форма по МДС 81-35.2004'!J16:J34,"IsMash",'Форма по МДС 81-35.2004'!E16:E34,'Форма по МДС 81-35.2004'!G16:G34,0),16777275) -> 893.872 | E6: =ROUND(СУММПРОИЗВЕСЛИ(1,'Форма по МДС 81-35.2004'!J16:J34,"Ж",'Форма по МДС 81-35.2004'!E16:E34,'Форма по МДС 81-35.2004'!G16:G34,0),16777275) -> 139.5 | F6: =ROUND(СУММПРОИЗВЕСЛИ(1,'Форма по МДС 81-35.2004'!J16:J34,"IsMater",'Форма по МДС 81-35.2004'!E16:E34,'Форма по МДС 81-35.2004'!G16:G34,0),16777275) -> 0 | G6: 0 | H6: 0 | I6: =ОКРУГЛВСЕ(SUMIF('Форма по МДС 81-35.2004'!J16:J34,"Г",'Форма по МДС 81-35.2004'!E16:E34),8) -> 0 | J6: 0 | K6: =ОКРУГЛВСЕ(SUMIF('Форма по МДС 81-35.2004'!J16:J34,"Ж",'Форма по МДС 81-35.2004'!E16:E34),8) -> 0.8 | L6: 0 | M6: 0 | N6: 104.58279 | O6: 79.8762232 | P6: 0 | Q6: 0 | R6: 0 | S6: 0 | T6: 0 | U6: 0 | V6: 0 | X6: 0 | Y6: 0 | Z6: 0 | AA6: 0 | AB6: 0 | AC6: 0 | AD6: 0 | AE6: 0
A7: ='Форма по МДС 81-35.2004'!A35 -> 2. | B7: ='Форма по МДС 81-35.2004'!G35 -> 1533.44 | C7: =ROUND(СУММПРОИЗВЕСЛИ(1,'Форма по МДС 81-35.2004'!J35:J53,"Г",'Форма по МДС 81-35.2004'!E35:E53,'Форма по МДС 81-35.2004'!G35:G53,0),16777275) -> 0 | D7: =ROUND(СУММПРОИЗВЕСЛИ(1,'Форма по МДС 81-35.2004'!J35:J53,"IsMash",'Форма по МДС 81-35.2004'!E35:E53,'Форма по МДС 81-35.2004'!G35:G53,0),16777275) -> 1533.44 | E7: =ROUND(СУММПРОИЗВЕСЛИ(1,'Форма по МДС 81-35.2004'!J35:J53,"Ж",'Форма по МДС 81-35.2004'!E35:E53,'Форма по МДС 81-35.2004'!G35:G53,0),16777275) -> 267.5008 | F7: =ROUND(СУММПРОИЗВЕСЛИ(1,'Форма по МДС 81-35.2004'!J35:J53,"IsMater",'Форма по МДС 81-35.2004'!E35:E53,'Форма по МДС 81-35.2004'!G35:G53,0),16777275) -> 0 | G7: 0 | H7: 0 | I7: =ОКРУГЛВСЕ(SUMIF('Форма по МДС 81-35.2004'!J35:J53,"Г",'Форма по МДС 81-35.2004'!E35:E53),8) -> 0 | J7: 0 | K7: =ОКРУГЛВСЕ(SUMIF('Форма по МДС 81-35.2004'!J35:J53,"Ж",'Форма по МДС 81-35.2004'!E35:E53),8) -> 1.6 | L7: 0 | M7: 0 | N7: 179.41248 | O7: 137.0281984 | P7: 0 | Q7: 0 | R7: 0 | S7: 0 | T7: 0 | U7: 0 | V7: 0 | X7: 0 | Y7: 0 | Z7: 0 | AA7: 0 | AB7: 0 | AC7: 0 | AD7: 0 | AE7: 0
A8: ='Форма по МДС 81-35.2004'!A54 -> 3. | B8: ='Форма по МДС 81-35.2004'!G54 -> 11881.98 | C8: =ROUND(СУММПРОИЗВЕСЛИ(1,'Форма по МДС 81-35.2004'!J54:J72,"Г",'Форма по МДС 81-35.2004'!E54:E72,'Форма по МДС 81-35.2004'!G54:G72,0),16777275) -> 0 | D8: =ROUND(СУММПРОИЗВЕСЛИ(1,'Форма по МДС 81-35.2004'!J54:J72,"IsMash",'Форма по МДС 81-35.2004'!E54:E72,'Форма по МДС 81-35.2004'!G54:G72,0),16777275) -> 11881.9834 | E8: =ROUND(СУММПРОИЗВЕСЛИ(1,'Форма по МДС 81-35.2004'!J54:J72,"Ж",'Форма по МДС 81-35.2004'!E54:E72,'Форма по МДС 81-35.2004'!G54:G72,0),16777275) -> 1009.99899 | F8: =ROUND(СУММПРОИЗВЕСЛИ(1,'Форма по МДС 81-35.2004'!J54:J72,"IsMater",'Форма по МДС 81-35.2004'!E54:E72,'Форма по МДС 81-35.2004'!G54:G72,0),16777275) -> 0 | G8: 0 | H8: 0 | I8: =ОКРУГЛВСЕ(SUMIF('Форма по МДС 81-35.2004'!J54:J72,"Г",'Форма по МДС 81-35.2004'!E54:E72),8) -> 0 | J8: 0 | K8: =ОКРУГЛВСЕ(SUMIF('Форма по МДС 81-35.2004'!J54:J72,"Ж",'Форма по МДС 81-35.2004'!E54:E72),8) -> 7.07 | L8: 0 | M8: 0 | N8: 1390.19166 | O8: 1061.773733 | P8: 0 | Q8: 0 | R8: 0 | S8: 0 | T8: 0 | U8: 0 | V8: 0 | X8: 0 | Y8: 0 | Z8: 0 | AA8: 0 | AB8: 0 | AC8: 0 | AD8: 0 | AE8: 0
A9: ='Форма по МДС 81-35.2004'!A74 -> 4. | B9: ='Форма по МДС 81-35.2004'!G74 -> 2423.52 | C9: =ROUND(СУММПРОИЗВЕСЛИ(1,'Форма по МДС 81-35.2004'!J74:J92,"Г",'Форма по МДС 81-35.2004'!E74:E92,'Форма по МДС 81-35.2004'!G74:G92,0),16777275) -> 0 | D9: =ROUND(СУММПРОИЗВЕСЛИ(1,'Форма по МДС 81-35.2004'!J74:J92,"IsMash",'Форма по МДС 81-35.2004'!E74:E92,'Форма по МДС 81-35.2004'!G74:G92,0),16777275) -> 2423.52 | E9: =ROUND(СУММПРОИЗВЕСЛИ(1,'Форма по МДС 81-35.2004'!J74:J92,"Ж",'Форма по МДС 81-35.2004'!E74:E92,'Форма по МДС 81-35.2004'!G74:G92,0),16777275) -> 733.3326 | F9: =ROUND(СУММПРОИЗВЕСЛИ(1,'Форма по МДС 81-35.2004'!J74:J92,"IsMater",'Форма по МДС 81-35.2004'!E74:E92,'Форма по МДС 81-35.2004'!G74:G92,0),16777275) -> 0 | G9: 0 | H9: 0 | I9: =ОКРУГЛВСЕ(SUMIF('Форма по МДС 81-35.2004'!J74:J92,"Г",'Форма по МДС 81-35.2004'!E74:E92),8) -> 0 | J9: 0 | K9: =ОКРУГЛВСЕ(SUMIF('Форма по МДС 81-35.2004'!J74:J92,"Ж",'Форма по МДС 81-35.2004'!E74:E92),8) -> 3.96 | L9: 0 | M9: 0 | N9: 283.55184 | O9: 216.5657472 | P9: 0 | Q9: 0 | R9: 0 | S9: 0 | T9: 0 | U9: 0 | V9: 0 | X9: 0 | Y9: 0 | Z9: 0 | AA9: 0 | AB9: 0 | AC9: 0 | AD9: 0 | AE9: 0
A10: ='Форма по МДС 81-35.2004'!A94 -> 5. | B10: ='Форма по МДС 81-35.2004'!G94 -> 324.03 | C10: =ROUND(СУММПРОИЗВЕСЛИ(1,'Форма по МДС 81-35.2004'!J94:J112,"Г",'Форма по МДС 81-35.2004'!E94:E112,'Форма по МДС 81-35.2004'!G94:G112,0),16777275) -> 0 | D10: =ROUND(СУММПРОИЗВЕСЛИ(1,'Форма по МДС 81-35.2004'!J94:J112,"IsMash",'Форма по МДС 81-35.2004'!E94:E112,'Форма по МДС 81-35.2004'!G94:G112,0),16777275) -> 324.0286 | E10: =ROUND(СУММПРОИЗВЕСЛИ(1,'Форма по МДС 81-35.2004'!J94:J112,"Ж",'Форма по МДС 81-35.2004'!E94:E112,'Форма по МДС 81-35.2004'!G94:G112,0),16777275) -> 50.58325 | F10: =ROUND(СУММПРОИЗВЕСЛИ(1,'Форма по МДС 81-35.2004'!J94:J112,"IsMater",'Форма по МДС 81-35.2004'!E94:E112,'Форма по МДС 81-35.2004'!G94:G112,0),16777275) -> 0 | G10: 0 | H10: 0 | I10: =ОКРУГЛВСЕ(SUMIF('Форма по МДС 81-35.2004'!J94:J112,"Г",'Форма по МДС 81-35.2004'!E94:E112),8) -> 0 | J10: 0 | K10: =ОКРУГЛВСЕ(SUMIF('Форма по МДС 81-35.2004'!J94:J112,"Ж",'Форма по МДС 81-35.2004'!E94:E112),8) -> 0.29 | L10: 0 | M10: 0 | N10: 37.91151 | O10: 28.9553208 | P10: 0 | Q10: 0 | R10: 0 | S10: 0 | T10: 0 | U10: 0 | V10: 0 | X10: 0 | Y10: 0 | Z10: 0 | AA10: 0 | AB10: 0 | AC10: 0 | AD10: 0 | AE10: 0
A11: ='Форма по МДС 81-35.2004'!A113 -> 6. | B11: ='Форма по МДС 81-35.2004'!G113 -> 57541.62 | C11: =ROUND(СУММПРОИЗВЕСЛИ(1,'Форма по МДС 81-35.2004'!J113:J134,"Г",'Форма по МДС 81-35.2004'!E113:E134,'Форма по МДС 81-35.2004'!G113:G134,0),16777275) -> 0 | D11: =ROUND(СУММПРОИЗВЕСЛИ(1,'Форма по МДС 81-35.2004'!J113:J134,"IsMash",'Форма по МДС 81-35.2004'!E113:E134,'Форма по МДС 81-35.2004'!G113:G134,0),16777275) -> 4669.56 | E11: =ROUND(СУММПРОИЗВЕСЛИ(1,'Форма по МДС 81-35.2004'!J113:J134,"Ж",'Форма по МДС 81-35.2004'!E113:E134,'Форма по МДС 81-35.2004'!G113:G134,0),16777275) -> 1359.06323 | F11: =ROUND(СУММПРОИЗВЕСЛИ(1,'Форма по МДС 81-35.2004'!J113:J134,"IsMater",'Форма по МДС 81-35.2004'!E113:E134,'Форма по МДС 81-35.2004'!G113:G134,0),16777275) -> 52872.06 | G11: 0 | H11: 0 | I11: =ОКРУГЛВСЕ(SUMIF('Форма по МДС 81-35.2004'!J113:J134,"Г",'Форма по МДС 81-35.2004'!E113:E134),8) -> 0 | J11: 0 | K11: =ОКРУГЛВСЕ(SUMIF('Форма по МДС 81-35.2004'!J113:J134,"Ж",'Форма по МДС 81-35.2004'!E113:E134),8) -> 7.63 | L11: 0 | M11: 0 | N11: 6732.36954 | O11: 5141.919163 | P11: 0 | Q11: 0 | R11: 0 | S11: 0 | T11: 0 | U11: 0 | V11: 0 | X11: 0 | Y11: 0 | Z11: 0 | AA11: 0 | AB11: 0 | AC11: 0 | AD11: 0 | AE11: 0
A12: ='Форма по МДС 81-35.2004'!A135 -> 7. | B12: ='Форма по МДС 81-35.2004'!G135 -> 670.4 | C12: =ROUND(СУММПРОИЗВЕСЛИ(1,'Форма по МДС 81-35.2004'!J135:J153,"Г",'Форма по МДС 81-35.2004'!E135:E153,'Форма по МДС 81-35.2004'!G135:G153,0),16777275) -> 0 | D12: =ROUND(СУММПРОИЗВЕСЛИ(1,'Форма по МДС 81-35.2004'!J135:J153,"IsMash",'Форма по МДС 81-35.2004'!E135:E153,'Форма по МДС 81-35.2004'!G135:G153,0),16777275) -> 670.404 | E12: =ROUND(СУММПРОИЗВЕСЛИ(1,'Форма по МДС 81-35.2004'!J135:J153,"Ж",'Форма по МДС 81-35.2004'!E135:E153,'Форма по МДС 81-35.2004'!G135:G153,0),16777275) -> 103.9998 | F12: =ROUND(СУММПРОИЗВЕСЛИ(1,'Форма по МДС 81-35.2004'!J135:J153,"IsMater",'Форма по МДС 81-35.2004'!E135:E153,'Форма по МДС 81-35.2004'!G135:G153,0),16777275) -> 0 | G12: 0 | H12: 0 | I12: =ОКРУГЛВСЕ(SUMIF('Форма по МДС 81-35.2004'!J135:J153,"Г",'Форма по МДС 81-35.2004'!E135:E153),8) -> 0 | J12: 0 | K12: =ОКРУГЛВСЕ(SUMIF('Форма по МДС 81-35.2004'!J135:J153,"Ж",'Форма по МДС 81-35.2004'!E135:E153),8) -> 0.6 | L12: 0 | M12: 0 | N12: 78.4368 | O12: 59.906944 | P12: 0 | Q12: 0 | R12: 0 | S12: 0 | T12: 0 | U12: 0 | V12: 0 | X12: 0 | Y12: 0 | Z12: 0 | AA12: 0 | AB12: 0 | AC12: 0 | AD12: 0 | AE12: 0
A13: ='Форма по МДС 81-35.2004'!A154 -> 8. | B13: ='Форма по МДС 81-35.2004'!G154 -> 755.69 | C13: =ROUND(СУММПРОИЗВЕСЛИ(1,'Форма по МДС 81-35.2004'!J154:J174,"Г",'Форма по МДС 81-35.2004'!E154:E174,'Форма по МДС 81-35.2004'!G154:G174,0),16777275) -> 0 | D13: =ROUND(СУММПРОИЗВЕСЛИ(1,'Форма по МДС 81-35.2004'!J154:J174,"IsMash",'Форма по МДС 81-35.2004'!E154:E174,'Форма по МДС 81-35.2004'!G154:G174,0),16777275) -> 755.6936 | E13: =ROUND(СУММПРОИЗВЕСЛИ(1,'Форма по МДС 81-35.2004'!J154:J174,"Ж",'Форма по МДС 81-35.2004'!E154:E174,'Форма по МДС 81-35.2004'!G154:G174,0),16777275) -> 122.95728 | F13: =ROUND(СУММПРОИЗВЕСЛИ(1,'Форма по МДС 81-35.2004'!J154:J174,"IsMater",'Форма по МДС 81-35.2004'!E154:E174,'Форма по МДС 81-35.2004'!G154:G174,0),16777275) -> 0 | G13: 0 | H13: 0 | I13: =ОКРУГЛВСЕ(SUMIF('Форма по МДС 81-35.2004'!J154:J174,"Г",'Форма по МДС 81-35.2004'!E154:E174),8) -> 0 | J13: 0 | K13: =ОКРУГЛВСЕ(SUMIF('Форма по МДС 81-35.2004'!J154:J174,"Ж",'Форма по МДС 81-35.2004'!E154:E174),8) -> 0.72 | L13: 0 | M13: 0 | N13: 88.41573 | O13: 67.5284584 | P13: 0 | Q13: 0 | R13: 0 | S13: 0 | T13: 0 | U13: 0 | V13: 0 | X13: 0 | Y13: 0 | Z13: 0 | AA13: 0 | AB13: 0 | AC13: 0 | AD13: 0 | AE13: 0
A14: ='Форма по МДС 81-35.2004'!A175 -> 9. | B14: ='Форма по МДС 81-35.2004'!G175 -> 324.03 | C14: =ROUND(СУММПРОИЗВЕСЛИ(1,'Форма по МДС 81-35.2004'!J175:J193,"Г",'Форма по МДС 81-35.2004'!E175:E193,'Форма по МДС 81-35.2004'!G175:G193,0),16777275) -> 0 | D14: =ROUND(СУММПРОИЗВЕСЛИ(1,'Форма по МДС 81-35.2004'!J175:J193,"IsMash",'Форма по МДС 81-35.2004'!E175:E193,'Форма по МДС 81-35.2004'!G175:G193,0),16777275) -> 324.0286 | E14: =ROUND(СУММПРОИЗВЕСЛИ(1,'Форма по МДС 81-35.2004'!J175:J193,"Ж",'Форма по МДС 81-35.2004'!E175:E193,'Форма по МДС 81-35.2004'!G175:G193,0),16777275) -> 50.54352 | F14: =ROUND(СУММПРОИЗВЕСЛИ(1,'Форма по МДС 81-35.2004'!J175:J193,"IsMater",'Форма по МДС 81-35.2004'!E175:E193,'Форма по МДС 81-35.2004'!G175:G193,0),16777275) -> 0 | G14: 0 | H14: 0 | I14: =ОКРУГЛВСЕ(SUMIF('Форма по МДС 81-35.2004'!J175:J193,"Г",'Форма по МДС 81-35.2004'!E175:E193),8) -> 0 | J14: 0 | K14: =ОКРУГЛВСЕ(SUMIF('Форма по МДС 81-35.2004'!J175:J193,"Ж",'Форма по МДС 81-35.2004'!E175:E193),8) -> 0.29 | L14: 0 | M14: 0 | N14: 37.91151 | O14: 28.9553208 | P14: 0 | Q14: 0 | R14: 0 | S14: 0 | T14: 0 | U14: 0 | V14: 0 | X14: 0 | Y14: 0 | Z14: 0 | AA14: 0 | AB14: 0 | AC14: 0 | AD14: 0 | AE14: 0
A15: ='Форма по МДС 81-35.2004'!A194 -> 10. | B15: ='Форма по МДС 81-35.2004'!G194 -> 814.64 | C15: =ROUND(СУММПРОИЗВЕСЛИ(1,'Форма по МДС 81-35.2004'!J194:J212,"Г",'Форма по МДС 81-35.2004'!E194:E212,'Форма по МДС 81-35.2004'!G194:G212,0),16777275) -> 0 | D15: =ROUND(СУММПРОИЗВЕСЛИ(1,'Форма по МДС 81-35.2004'!J194:J212,"IsMash",'Форма по МДС 81-35.2004'!E194:E212,'Форма по МДС 81-35.2004'!G194:G212,0),16777275) -> 814.64 | E15: =ROUND(СУММПРОИЗВЕСЛИ(1,'Форма по МДС 81-35.2004'!J194:J212,"Ж",'Форма по МДС 81-35.2004'!E194:E212,'Форма по МДС 81-35.2004'!G194:G212,0),16777275) -> 141.66695 | F15: =ROUND(СУММПРОИЗВЕСЛИ(1,'Форма по МДС 81-35.2004'!J194:J212,"IsMater",'Форма по МДС 81-35.2004'!E194:E212,'Форма по МДС 81-35.2004'!G194:G212,0),16777275) -> 0 | G15: 0 | H15: 0 | I15: =ОКРУГЛВСЕ(SUMIF('Форма по МДС 81-35.2004'!J194:J212,"Г",'Форма по МДС 81-35.2004'!E194:E212),8) -> 0 | J15: 0 | K15: =ОКРУГЛВСЕ(SUMIF('Форма по МДС 81-35.2004'!J194:J212,"Ж",'Форма по МДС 81-35.2004'!E194:E212),8) -> 0.85 | L15: 0 | M15: 0 | N15: 95.31288 | O15: 72.7962304 | P15: 0 | Q15: 0 | R15: 0 | S15: 0 | T15: 0 | U15: 0 | V15: 0 | X15: 0 | Y15: 0 | Z15: 0 | AA15: 0 | AB15: 0 | AC15: 0 | AD15: 0 | AE15: 0
A16: ='Форма по МДС 81-35.2004'!A213 -> 11. | B16: ='Форма по МДС 81-35.2004'!G213 -> 29831.39 | C16: =ROUND(СУММПРОИЗВЕСЛИ(1,'Форма по МДС 81-35.2004'!J213:J237,"Г",'Форма по МДС 81-35.2004'!E213:E237,'Форма по МДС 81-35.2004'!G213:G237,0),16777275) -> 4710.293 | D16: =ROUND(СУММПРОИЗВЕСЛИ(1,'Форма по МДС 81-35.2004'!J213:J237,"IsMash",'Форма по МДС 81-35.2004'!E213:E237,'Форма по МДС 81-35.2004'!G213:G237,0),16777275) -> 10249.736 | E16: =ROUND(СУММПРОИЗВЕСЛИ(1,'Форма по МДС 81-35.2004'!J213:J237,"Ж",'Форма по МДС 81-35.2004'!E213:E237,'Форма по МДС 81-35.2004'!G213:G237,0),16777275) -> 2181.8181 | F16: =ROUND(СУММПРОИЗВЕСЛИ(1,'Форма по МДС 81-35.2004'!J213:J237,"IsMater",'Форма по МДС 81-35.2004'!E213:E237,'Форма по МДС 81-35.2004'!G213:G237,0),16777275) -> 14871.36364 | G16: 0 | H16: 0 | I16: =ОКРУГЛВСЕ(SUMIF('Форма по МДС 81-35.2004'!J213:J237,"Г",'Форма по МДС 81-35.2004'!E213:E237),8) -> 43.26 | J16: 0 | K16: =ОКРУГЛВСЕ(SUMIF('Форма по МДС 81-35.2004'!J213:J237,"Ж",'Форма по МДС 81-35.2004'!E213:E237),8) -> 14.42 | L16: 0 | M16: 0 | N16: 3490.27263 | O16: 2665.73301 | P16: 0 | Q16: 0 | R16: 0 | S16: 0 | T16: 0 | U16: 0 | V16: 0 | X16: 0 | Y16: 0 | Z16: 0 | AA16: 0 | AB16: 0 | AC16: 0 | AD16: 0 | AE16: 0
A17: ='Форма по МДС 81-35.2004'!A238 -> 12. | B17: ='Форма по МДС 81-35.2004'!G238 -> 2075.47 | C17: =ROUND(СУММПРОИЗВЕСЛИ(1,'Форма по МДС 81-35.2004'!J238:J257,"Г",'Форма по МДС 81-35.2004'!E238:E257,'Форма по МДС 81-35.2004'!G238:G257,0),16777275) -> 0 | D17: =ROUND(СУММПРОИЗВЕСЛИ(1,'Форма по МДС 81-35.2004'!J238:J257,"IsMash",'Форма по МДС 81-35.2004'!E238:E257,'Форма по МДС 81-35.2004'!G238:G257,0),16777275) -> 2075.4705 | E17: =ROUND(СУММПРОИЗВЕСЛИ(1,'Форма по МДС 81-35.2004'!J238:J257,"Ж",'Форма по МДС 81-35.2004'!E238:E257,'Форма по МДС 81-35.2004'!G238:G257,0),16777275) -> 579.99881 | F17: =ROUND(СУММПРОИЗВЕСЛИ(1,'Форма по МДС 81-35.2004'!J238:J257,"IsMater",'Форма по МДС 81-35.2004'!E238:E257,'Форма по МДС 81-35.2004'!G238:G257,0),16777275) -> 0 | G17: 0 | H17: 0 | I17: =ОКРУГЛВСЕ(SUMIF('Форма по МДС 81-35.2004'!J238:J257,"Г",'Форма по МДС 81-35.2004'!E238:E257),8) -> 0 | J17: 0 | K17: =ОКРУГЛВСЕ(SUMIF('Форма по МДС 81-35.2004'!J238:J257,"Ж",'Форма по МДС 81-35.2004'!E238:E257),8) -> 4.09 | L17: 0 | M17: 0 | N17: 242.82999 | O17: 185.4639992 | P17: 0 | Q17: 0 | R17: 0 | S17: 0 | T17: 0 | U17: 0 | V17: 0 | X17: 0 | Y17: 0 | Z17: 0 | AA17: 0 | AB17: 0 | AC17: 0 | AD17: 0 | AE17: 0
A18: ='Форма по МДС 81-35.2004'!A258 -> 13. | B18: ='Форма по МДС 81-35.2004'!G258 -> 2702.7 | C18: =ROUND(СУММПРОИЗВЕСЛИ(1,'Форма по МДС 81-35.2004'!J258:J276,"Г",'Форма по МДС 81-35.2004'!E258:E276,'Форма по МДС 81-35.2004'!G258:G276,0),16777275) -> 0 | D18: =ROUND(СУММПРОИЗВЕСЛИ(1,'Форма по МДС 81-35.2004'!J258:J276,"IsMash",'Форма по МДС 81-35.2004'!E258:E276,'Форма по МДС 81-35.2004'!G258:G276,0),16777275) -> 2702.7 | E18: =ROUND(СУММПРОИЗВЕСЛИ(1,'Форма по МДС 81-35.2004'!J258:J276,"Ж",'Форма по МДС 81-35.2004'!E258:E276,'Форма по МДС 81-35.2004'!G258:G276,0),16777275) -> 0 | F18: =ROUND(СУММПРОИЗВЕСЛИ(1,'Форма по МДС 81-35.2004'!J258:J276,"IsMater",'Форма по МДС 81-35.2004'!E258:E276,'Форма по МДС 81-35.2004'!G258:G276,0),16777275) -> 0 | G18: 0 | H18: 0 | I18: =ОКРУГЛВСЕ(SUMIF('Форма по МДС 81-35.2004'!J258:J276,"Г",'Форма по МДС 81-35.2004'!E258:E276),8) -> 0 | J18: 0 | K18: =ОКРУГЛВСЕ(SUMIF('Форма по МДС 81-35.2004'!J258:J276,"Ж",'Форма по МДС 81-35.2004'!E258:E276),8) -> 0 | L18: 0 | M18: 0 | N18: 316.2159 | O18: 241.513272 | P18: 0 | Q18: 0 | R18: 0 | S18: 0 | T18: 0 | U18: 0 | V18: 0 | X18: 0 | Y18: 0 | Z18: 0 | AA18: 0 | AB18: 0 | AC18: 0 | AD18: 0 | AE18: 0
A19: ='Форма по МДС 81-35.2004'!A277 -> 14. | B19: ='Форма по МДС 81-35.2004'!G277 -> 477.36 | C19: =ROUND(СУММПРОИЗВЕСЛИ(1,'Форма по МДС 81-35.2004'!J277:J296,"Г",'Форма по МДС 81-35.2004'!E277:E296,'Форма по МДС 81-35.2004'!G277:G296,0),16777275) -> 0 | D19: =ROUND(СУММПРОИЗВЕСЛИ(1,'Форма по МДС 81-35.2004'!J277:J296,"IsMash",'Форма по МДС 81-35.2004'!E277:E296,'Форма по МДС 81-35.2004'!G277:G296,0),16777275) -> 477.36 | E19: =ROUND(СУММПРОИЗВЕСЛИ(1,'Форма по МДС 81-35.2004'!J277:J296,"Ж",'Форма по МДС 81-35.2004'!E277:E296,'Форма по МДС 81-35.2004'!G277:G296,0),16777275) -> 0 | F19: =ROUND(СУММПРОИЗВЕСЛИ(1,'Форма по МДС 81-35.2004'!J277:J296,"IsMater",'Форма по МДС 81-35.2004'!E277:E296,'Форма по МДС 81-35.2004'!G277:G296,0),16777275) -> 0 | G19: 0 | H19: 0 | I19: =ОКРУГЛВСЕ(SUMIF('Форма по МДС 81-35.2004'!J277:J296,"Г",'Форма по МДС 81-35.2004'!E277:E296),8) -> 0 | J19: 0 | K19: =ОКРУГЛВСЕ(SUMIF('Форма по МДС 81-35.2004'!J277:J296,"Ж",'Форма по МДС 81-35.2004'!E277:E296),8) -> 0 | L19: 0 | M19: 0 | N19: 55.85112 | O19: 42.6568896 | P19: 0 | Q19: 0 | R19: 0 | S19: 0 | T19: 0 | U19: 0 | V19: 0 | X19: 0 | Y19: 0 | Z19: 0 | AA19: 0 | AB19: 0 | AC19: 0 | AD19: 0 | AE19: 0
A20: ='Форма по МДС 81-35.2004'!A299 -> 15. | B20: ='Форма по МДС 81-35.2004'!G299 -> 1248.54 | C20: =ROUND(СУММПРОИЗВЕСЛИ(1,'Форма по МДС 81-35.2004'!J299:J318,"Г",'Форма по МДС 81-35.2004'!E299:E318,'Форма по МДС 81-35.2004'!G299:G318,0),16777275) -> 740.1952 | D20: =ROUND(СУММПРОИЗВЕСЛИ(1,'Форма по МДС 81-35.2004'!J299:J318,"IsMash",'Форма по МДС 81-35.2004'!E299:E318,'Форма по МДС 81-35.2004'!G299:G318,0),16777275) -> 508.346 | E20: =ROUND(СУММПРОИЗВЕСЛИ(1,'Форма по МДС 81-35.2004'!J299:J318,"Ж",'Форма по МДС 81-35.2004'!E299:E318,'Форма по МДС 81-35.2004'!G299:G318,0),16777275) -> 132.35304 | F20: =ROUND(СУММПРОИЗВЕСЛИ(1,'Форма по МДС 81-35.2004'!J299:J318,"IsMater",'Форма по МДС 81-35.2004'!E299:E318,'Форма по МДС 81-35.2004'!G299:G318,0),16777275) -> 0 | G20: 0 | H20: 0 | I20: =ОКРУГЛВСЕ(SUMIF('Форма по МДС 81-35.2004'!J299:J318,"Г",'Форма по МДС 81-35.2004'!E299:E318),8) -> 7.36 | J20: 0 | K20: =ОКРУГЛВСЕ(SUMIF('Форма по МДС 81-35.2004'!J299:J318,"Ж",'Форма по МДС 81-35.2004'!E299:E318),8) -> 0.92 | L20: 0 | M20: 0 | N20: 146.07918 | O20: 111.5695344 | P20: 0 | Q20: 0 | R20: 0 | S20: 0 | T20: 0 | U20: 0 | V20: 0 | X20: 0 | Y20: 0 | Z20: 0 | AA20: 0 | AB20: 0 | AC20: 0 | AD20: 0 | AE20: 0
A21: ='Форма по МДС 81-35.2004'!A319 -> 16. | B21: ='Форма по МДС 81-35.2004'!G319 -> 30470.04 | C21: =ROUND(СУММПРОИЗВЕСЛИ(1,'Форма по МДС 81-35.2004'!J319:J339,"Г",'Форма по МДС 81-35.2004'!E319:E339,'Форма по МДС 81-35.2004'!G319:G339,0),16777275) -> 3488.369 | D21: =ROUND(СУММПРОИЗВЕСЛИ(1,'Форма по МДС 81-35.2004'!J319:J339,"IsMash",'Форма по МДС 81-35.2004'!E319:E339,'Форма по МДС 81-35.2004'!G319:G339,0),16777275) -> 0 | E21: =ROUND(СУММПРОИЗВЕСЛИ(1,'Форма по МДС 81-35.2004'!J319:J339,"Ж",'Форма по МДС 81-35.2004'!E319:E339,'Форма по МДС 81-35.2004'!G319:G339,0),16777275) -> 0 | F21: =ROUND(СУММПРОИЗВЕСЛИ(1,'Форма по МДС 81-35.2004'!J319:J339,"IsMater",'Форма по МДС 81-35.2004'!E319:E339,'Форма по МДС 81-35.2004'!G319:G339,0),16777275) -> 26981.66718 | G21: 0 | H21: 0 | I21: =ОКРУГЛВСЕ(SUMIF('Форма по МДС 81-35.2004'!J319:J339,"Г",'Форма по МДС 81-35.2004'!E319:E339),8) -> 33.39 | J21: 0 | K21: =ОКРУГЛВСЕ(SUMIF('Форма по МДС 81-35.2004'!J319:J339,"Ж",'Форма по МДС 81-35.2004'!E319:E339),8) -> 0 | L21: 0 | M21: 0 | N21: 3564.99468 | O21: 2722.802774 | P21: 0 | Q21: 0 | R21: 0 | S21: 0 | T21: 0 | U21: 0 | V21: 0 | X21: 0 | Y21: 0 | Z21: 0 | AA21: 0 | AB21: 0 | AC21: 0 | AD21: 0 | AE21: 0
A22: ='Форма по МДС 81-35.2004'!A340 -> 17. | B22: ='Форма по МДС 81-35.2004'!G340 -> 9531.15 | C22: =ROUND(СУММПРОИЗВЕСЛИ(1,'Форма по МДС 81-35.2004'!J340:J359,"Г",'Форма по МДС 81-35.2004'!E340:E359,'Форма по МДС 81-35.2004'!G340:G359,0),16777275) -> 4726.4022 | D22: =ROUND(СУММПРОИЗВЕСЛИ(1,'Форма по МДС 81-35.2004'!J340:J359,"IsMash",'Форма по МДС 81-35.2004'!E340:E359,'Форма по МДС 81-35.2004'!G340:G359,0),16777275) -> 0 | E22: =ROUND(СУММПРОИЗВЕСЛИ(1,'Форма по МДС 81-35.2004'!J340:J359,"Ж",'Форма по МДС 81-35.2004'!E340:E359,'Форма по МДС 81-35.2004'!G340:G359,0),16777275) -> 0 | F22: =ROUND(СУММПРОИЗВЕСЛИ(1,'Форма по МДС 81-35.2004'!J340:J359,"IsMater",'Форма по МДС 81-35.2004'!E340:E359,'Форма по МДС 81-35.2004'!G340:G359,0),16777275) -> 4804.7518 | G22: 0 | H22: 0 | I22: =ОКРУГЛВСЕ(SUMIF('Форма по МДС 81-35.2004'!J340:J359,"Г",'Форма по МДС 81-35.2004'!E340:E359),8) -> 38.11 | J22: 0 | K22: =ОКРУГЛВСЕ(SUMIF('Форма по МДС 81-35.2004'!J340:J359,"Ж",'Форма по МДС 81-35.2004'!E340:E359),8) -> 0 | L22: 0 | M22: 0 | N22: 1115.14455 | O22: 851.703564 | P22: 0 | Q22: 0 | R22: 0 | S22: 0 | T22: 0 | U22: 0 | V22: 0 | X22: 0 | Y22: 0 | Z22: 0 | AA22: 0 | AB22: 0 | AC22: 0 | AD22: 0 | AE22: 0
A23: ='Форма по МДС 81-35.2004'!A360 -> 18. | B23: ='Форма по МДС 81-35.2004'!G360 -> 219.61 | C23: =ROUND(СУММПРОИЗВЕСЛИ(1,'Форма по МДС 81-35.2004'!J360:J379,"Г",'Форма по МДС 81-35.2004'!E360:E379,'Форма по МДС 81-35.2004'!G360:G379,0),16777275) -> 92.5244 | D23: =ROUND(СУММПРОИЗВЕСЛИ(1,'Форма по МДС 81-35.2004'!J360:J379,"IsMash",'Форма по МДС 81-35.2004'!E360:E379,'Форма по МДС 81-35.2004'!G360:G379,0),16777275) -> 127.0865 | E23: =ROUND(СУММПРОИЗВЕСЛИ(1,'Форма по МДС 81-35.2004'!J360:J379,"Ж",'Форма по МДС 81-35.2004'!E360:E379,'Форма по МДС 81-35.2004'!G360:G379,0),16777275) -> 0 | F23: =ROUND(СУММПРОИЗВЕСЛИ(1,'Форма по МДС 81-35.2004'!J360:J379,"IsMater",'Форма по МДС 81-35.2004'!E360:E379,'Форма по МДС 81-35.2004'!G360:G379,0),16777275) -> 0 | G23: 0 | H23: 0 | I23: =ОКРУГЛВСЕ(SUMIF('Форма по МДС 81-35.2004'!J360:J379,"Г",'Форма по МДС 81-35.2004'!E360:E379),8) -> 0.92 | J23: 0 | K23: =ОКРУГЛВСЕ(SUMIF('Форма по МДС 81-35.2004'!J360:J379,"Ж",'Форма по МДС 81-35.2004'!E360:E379),8) -> 0.23 | L23: 0 | M23: 0 | N23: 25.69437 | O23: 19.6243496 | P23: 0 | Q23: 0 | R23: 0 | S23: 0 | T23: 0 | U23: 0 | V23: 0 | X23: 0 | Y23: 0 | Z23: 0 | AA23: 0 | AB23: 0 | AC23: 0 | AD23: 0 | AE23: 0
A24: ='Форма по МДС 81-35.2004'!A380 -> 19. | B24: ='Форма по МДС 81-35.2004'!G380 -> 461.42 | C24: =ROUND(СУММПРОИЗВЕСЛИ(1,'Форма по МДС 81-35.2004'!J380:J399,"Г",'Форма по МДС 81-35.2004'!E380:E399,'Форма по МДС 81-35.2004'!G380:G399,0),16777275) -> 273.5504 | D24: =ROUND(СУММПРОИЗВЕСЛИ(1,'Форма по МДС 81-35.2004'!J380:J399,"IsMash",'Форма по МДС 81-35.2004'!E380:E399,'Форма по МДС 81-35.2004'!G380:G399,0),16777275) -> 187.867 | E24: =ROUND(СУММПРОИЗВЕСЛИ(1,'Форма по МДС 81-35.2004'!J380:J399,"Ж",'Форма по МДС 81-35.2004'!E380:E399,'Форма по МДС 81-35.2004'!G380:G399,0),16777275) -> 60.00014 | F24: =ROUND(СУММПРОИЗВЕСЛИ(1,'Форма по МДС 81-35.2004'!J380:J399,"IsMater",'Форма по МДС 81-35.2004'!E380:E399,'Форма по МДС 81-35.2004'!G380:G399,0),16777275) -> 0 | G24: 0 | H24: 0 | I24: =ОКРУГЛВСЕ(SUMIF('Форма по МДС 81-35.2004'!J380:J399,"Г",'Форма по МДС 81-35.2004'!E380:E399),8) -> 2.72 | J24: 0 | K24: =ОКРУГЛВСЕ(SUMIF('Форма по МДС 81-35.2004'!J380:J399,"Ж",'Форма по МДС 81-35.2004'!E380:E399),8) -> 0.34 | L24: 0 | M24: 0 | N24: 53.98614 | O24: 41.2324912 | P24: 0 | Q24: 0 | R24: 0 | S24: 0 | T24: 0 | U24: 0 | V24: 0 | X24: 0 | Y24: 0 | Z24: 0 | AA24: 0 | AB24: 0 | AC24: 0 | AD24: 0 | AE24: 0
A25: ='Форма по МДС 81-35.2004'!A402 -> 20. | B25: ='Форма по МДС 81-35.2004'!G402 -> 624.27 | C25: =ROUND(СУММПРОИЗВЕСЛИ(1,'Форма по МДС 81-35.2004'!J402:J421,"Г",'Форма по МДС 81-35.2004'!E402:E421,'Форма по МДС 81-35.2004'!G402:G421,0),16777275) -> 370.0976 | D25: =ROUND(СУММПРОИЗВЕСЛИ(1,'Форма по МДС 81-35.2004'!J402:J421,"IsMash",'Форма по МДС 81-35.2004'!E402:E421,'Форма по МДС 81-35.2004'!G402:G421,0),16777275) -> 254.173 | E25: =ROUND(СУММПРОИЗВЕСЛИ(1,'Форма по МДС 81-35.2004'!J402:J421,"Ж",'Форма по МДС 81-35.2004'!E402:E421,'Форма по МДС 81-35.2004'!G402:G421,0),16777275) -> 99.99986 | F25: =ROUND(СУММПРОИЗВЕСЛИ(1,'Форма по МДС 81-35.2004'!J402:J421,"IsMater",'Форма по МДС 81-35.2004'!E402:E421,'Форма по МДС 81-35.2004'!G402:G421,0),16777275) -> 0 | G25: 0 | H25: 0 | I25: =ОКРУГЛВСЕ(SUMIF('Форма по МДС 81-35.2004'!J402:J421,"Г",'Форма по МДС 81-35.2004'!E402:E421),8) -> 3.68 | J25: 0 | K25: =ОКРУГЛВСЕ(SUMIF('Форма по МДС 81-35.2004'!J402:J421,"Ж",'Форма по МДС 81-35.2004'!E402:E421),8) -> 0.46 | L25: 0 | M25: 0 | N25: 73.03959 | O25: 55.7847672 | P25: 0 | Q25: 0 | R25: 0 | S25: 0 | T25: 0 | U25: 0 | V25: 0 | X25: 0 | Y25: 0 | Z25: 0 | AA25: 0 | AB25: 0 | AC25: 0 | AD25: 0 | AE25: 0
A26: ='Форма по МДС 81-35.2004'!A422 -> 21. | B26: ='Форма по МДС 81-35.2004'!G422 -> 759.98 | C26: =ROUND(СУММПРОИЗВЕСЛИ(1,'Форма по МДС 81-35.2004'!J422:J441,"Г",'Форма по МДС 81-35.2004'!E422:E441,'Форма по МДС 81-35.2004'!G422:G441,0),16777275) -> 450.5536 | D26: =ROUND(СУММПРОИЗВЕСЛИ(1,'Форма по МДС 81-35.2004'!J422:J441,"IsMash",'Форма по МДС 81-35.2004'!E422:E441,'Форма по МДС 81-35.2004'!G422:G441,0),16777275) -> 309.428 | E26: =ROUND(СУММПРОИЗВЕСЛИ(1,'Форма по МДС 81-35.2004'!J422:J441,"Ж",'Форма по МДС 81-35.2004'!E422:E441,'Форма по МДС 81-35.2004'!G422:G441,0),16777275) -> 0 | F26: =ROUND(СУММПРОИЗВЕСЛИ(1,'Форма по МДС 81-35.2004'!J422:J441,"IsMater",'Форма по МДС 81-35.2004'!E422:E441,'Форма по МДС 81-35.2004'!G422:G441,0),16777275) -> 0 | G26: 0 | H26: 0 | I26: =ОКРУГЛВСЕ(SUMIF('Форма по МДС 81-35.2004'!J422:J441,"Г",'Форма по МДС 81-35.2004'!E422:E441),8) -> 4.48 | J26: 0 | K26: =ОКРУГЛВСЕ(SUMIF('Форма по МДС 81-35.2004'!J422:J441,"Ж",'Форма по МДС 81-35.2004'!E422:E441),8) -> 0.56 | L26: 0 | M26: 0 | N26: 88.91766 | O26: 67.9118128 | P26: 0 | Q26: 0 | R26: 0 | S26: 0 | T26: 0 | U26: 0 | V26: 0 | X26: 0 | Y26: 0 | Z26: 0 | AA26: 0 | AB26: 0 | AC26: 0 | AD26: 0 | AE26: 0
A27: ='Форма по МДС 81-35.2004'!A442 -> 22. | B27: ='Форма по МДС 81-35.2004'!G442 -> 296935.79 | C27: =ROUND(СУММПРОИЗВЕСЛИ(1,'Форма по МДС 81-35.2004'!J442:J470,"Г",'Форма по МДС 81-35.2004'!E442:E470,'Форма по МДС 81-35.2004'!G442:G470,0),16777275) -> 31547.0286 | D27: =ROUND(СУММПРОИЗВЕСЛИ(1,'Форма по МДС 81-35.2004'!J442:J470,"IsMash",'Форма по МДС 81-35.2004'!E442:E470,'Форма по МДС 81-35.2004'!G442:G470,0),16777275) -> 41402.5715 | E27: =ROUND(СУММПРОИЗВЕСЛИ(1,'Форма по МДС 81-35.2004'!J442:J470,"Ж",'Форма по МДС 81-35.2004'!E442:E470,'Форма по МДС 81-35.2004'!G442:G470,0),16777275) -> 11212.15055 | F27: =ROUND(СУММПРОИЗВЕСЛИ(1,'Форма по МДС 81-35.2004'!J442:J470,"IsMater",'Форма по МДС 81-35.2004'!E442:E470,'Форма по МДС 81-35.2004'!G442:G470,0),16777275) -> 223986.193 | G27: 0 | H27: 0 | I27: =ОКРУГЛВСЕ(SUMIF('Форма по МДС 81-35.2004'!J442:J470,"Г",'Форма по МДС 81-35.2004'!E442:E470),8) -> 299.72 | J27: 0 | K27: =ОКРУГЛВСЕ(SUMIF('Форма по МДС 81-35.2004'!J442:J470,"Ж",'Форма по МДС 81-35.2004'!E442:E470),8) -> 74.93 | L27: 0 | M27: 0 | N27: 34741.48743 | O27: 26534.18219 | P27: 0 | Q27: 0 | R27: 0 | S27: 0 | T27: 0 | U27: 0 | V27: 0 | X27: 0 | Y27: 0 | Z27: 0 | AA27: 0 | AB27: 0 | AC27: 0 | AD27: 0 | AE27: 0
A28: ='Форма по МДС 81-35.2004'!A472 -> 23. | B28: ='Форма по МДС 81-35.2004'!G472 -> 26662.78 | C28: =ROUND(СУММПРОИЗВЕСЛИ(1,'Форма по МДС 81-35.2004'!J472:J498,"Г",'Форма по МДС 81-35.2004'!E472:E498,'Форма по МДС 81-35.2004'!G472:G498,0),16777275) -> 10154.6357 | D28: =ROUND(СУММПРОИЗВЕСЛИ(1,'Форма по МДС 81-35.2004'!J472:J498,"IsMash",'Форма по МДС 81-35.2004'!E472:E498,'Форма по МДС 81-35.2004'!G472:G498,0),16777275) -> 15135.5952 | E28: =ROUND(СУММПРОИЗВЕСЛИ(1,'Форма по МДС 81-35.2004'!J472:J498,"Ж",'Форма по МДС 81-35.2004'!E472:E498,'Форма по МДС 81-35.2004'!G472:G498,0),16777275) -> 3800.0016 | F28: =ROUND(СУММПРОИЗВЕСЛИ(1,'Форма по МДС 81-35.2004'!J472:J498,"IsMater",'Форма по МДС 81-35.2004'!E472:E498,'Форма по МДС 81-35.2004'!G472:G498,0),16777275) -> 1372.553917 | G28: 0 | H28: 0 | I28: =ОКРУГЛВСЕ(SUMIF('Форма по МДС 81-35.2004'!J472:J498,"Г",'Форма по МДС 81-35.2004'!E472:E498),8) -> 90.7 | J28: 0 | K28: =ОКРУГЛВСЕ(SUMIF('Форма по МДС 81-35.2004'!J472:J498,"Ж",'Форма по МДС 81-35.2004'!E472:E498),8) -> 25.92 | L28: 0 | M28: 0 | N28: 3119.54526 | O28: 2382.586021 | P28: 0 | Q28: 0 | R28: 0 | S28: 0 | T28: 0 | U28: 0 | V28: 0 | X28: 0 | Y28: 0 | Z28: 0 | AA28: 0 | AB28: 0 | AC28: 0 | AD28: 0 | AE28: 0
A29: ='Форма по МДС 81-35.2004'!A499 -> 24. | B29: ='Форма по МДС 81-35.2004'!G499 -> 24332.53 | C29: =ROUND(СУММПРОИЗВЕСЛИ(1,'Форма по МДС 81-35.2004'!J499:J524,"Г",'Форма по МДС 81-35.2004'!E499:E524,'Форма по МДС 81-35.2004'!G499:G524,0),16777275) -> 8143.4518 | D29: =ROUND(СУММПРОИЗВЕСЛИ(1,'Форма по МДС 81-35.2004'!J499:J524,"IsMash",'Форма по МДС 81-35.2004'!E499:E524,'Форма по МДС 81-35.2004'!G499:G524,0),16777275) -> 16108.961 | E29: =ROUND(СУММПРОИЗВЕСЛИ(1,'Форма по МДС 81-35.2004'!J499:J524,"Ж",'Форма по МДС 81-35.2004'!E499:E524,'Форма по МДС 81-35.2004'!G499:G524,0),16777275) -> 4200.01296 | F29: =ROUND(СУММПРОИЗВЕСЛИ(1,'Форма по МДС 81-35.2004'!J499:J524,"IsMater",'Форма по МДС 81-35.2004'!E499:E524,'Форма по МДС 81-35.2004'!G499:G524,0),16777275) -> 80.1199168 | G29: 0 | H29: 0 | I29: =ОКРУГЛВСЕ(SUMIF('Форма по МДС 81-35.2004'!J499:J524,"Г",'Форма по МДС 81-35.2004'!E499:E524),8) -> 75.68 | J29: 0 | K29: =ОКРУГЛВСЕ(SUMIF('Форма по МДС 81-35.2004'!J499:J524,"Ж",'Форма по МДС 81-35.2004'!E499:E524),8) -> 28.38 | L29: 0 | M29: 0 | N29: 2846.90601 | O29: 2174.354881 | P29: 0 | Q29: 0 | R29: 0 | S29: 0 | T29: 0 | U29: 0 | V29: 0 | X29: 0 | Y29: 0 | Z29: 0 | AA29: 0 | AB29: 0 | AC29: 0 | AD29: 0 | AE29: 0
A30: ='Форма по МДС 81-35.2004'!A525 -> 25. | B30: ='Форма по МДС 81-35.2004'!G525 -> 996830.51 | C30: =ROUND(СУММПРОИЗВЕСЛИ(1,'Форма по МДС 81-35.2004'!J525:J543,"Г",'Форма по МДС 81-35.2004'!E525:E543,'Форма по МДС 81-35.2004'!G525:G543,0),16777275) -> 0 | D30: =ROUND(СУММПРОИЗВЕСЛИ(1,'Форма по МДС 81-35.2004'!J525:J543,"IsMash",'Форма по МДС 81-35.2004'!E525:E543,'Форма по МДС 81-35.2004'!G525:G543,0),16777275) -> 0 | E30: =ROUND(СУММПРОИЗВЕСЛИ(1,'Форма по МДС 81-35.2004'!J525:J543,"Ж",'Форма по МДС 81-35.2004'!E525:E543,'Форма по МДС 81-35.2004'!G525:G543,0),16777275) -> 0 | F30: =ROUND(СУММПРОИЗВЕСЛИ(1,'Форма по МДС 81-35.2004'!J525:J543,"IsMater",'Форма по МДС 81-35.2004'!E525:E543,'Форма по МДС 81-35.2004'!G525:G543,0),16777275) -> 996830.51 | G30: 0 | H30: 0 | I30: =ОКРУГЛВСЕ(SUMIF('Форма по МДС 81-35.2004'!J525:J543,"Г",'Форма по МДС 81-35.2004'!E525:E543),8) -> 0 | J30: 0 | K30: =ОКРУГЛВСЕ(SUMIF('Форма по МДС 81-35.2004'!J525:J543,"Ж",'Форма по МДС 81-35.2004'!E525:E543),8) -> 0 | L30: 0 | M30: 0 | N30: 116629.1697 | O30: 89076.77437 | P30: 0 | Q30: 0 | R30: 0 | S30: 0 | T30: 0 | U30: 0 | V30: 0 | X30: 0 | Y30: 0 | Z30: 0 | AA30: 0 | AB30: 0 | AC30: 0 | AD30: 0 | AE30: 0
A31: ='Форма по МДС 81-35.2004'!A545 -> 26. | B31: ='Форма по МДС 81-35.2004'!G545 -> 6034.16 | C31: =ROUND(СУММПРОИЗВЕСЛИ(1,'Форма по МДС 81-35.2004'!J545:J564,"Г",'Форма по МДС 81-35.2004'!E545:E564,'Форма по МДС 81-35.2004'!G545:G564,0),16777275) -> 3149.8524 | D31: =ROUND(СУММПРОИЗВЕСЛИ(1,'Форма по МДС 81-35.2004'!J545:J564,"IsMash",'Форма по МДС 81-35.2004'!E545:E564,'Форма по МДС 81-35.2004'!G545:G564,0),16777275) -> 2884.311 | E31: =ROUND(СУММПРОИЗВЕСЛИ(1,'Форма по МДС 81-35.2004'!J545:J564,"Ж",'Форма по МДС 81-35.2004'!E545:E564,'Форма по МДС 81-35.2004'!G545:G564,0),16777275) -> 789.4728 | F31: =ROUND(СУММПРОИЗВЕСЛИ(1,'Форма по МДС 81-35.2004'!J545:J564,"IsMater",'Форма по МДС 81-35.2004'!E545:E564,'Форма по МДС 81-35.2004'!G545:G564,0),16777275) -> 0 | G31: 0 | H31: 0 | I31: =ОКРУГЛВСЕ(SUMIF('Форма по МДС 81-35.2004'!J545:J564,"Г",'Форма по МДС 81-35.2004'!E545:E564),8) -> 31.32 | J31: 0 | K31: =ОКРУГЛВСЕ(SUMIF('Форма по МДС 81-35.2004'!J545:J564,"Ж",'Форма по МДС 81-35.2004'!E545:E564),8) -> 5.22 | L31: 0 | M31: 0 | N31: 705.99672 | O31: 539.2125376 | P31: 0 | Q31: 0 | R31: 0 | S31: 0 | T31: 0 | U31: 0 | V31: 0 | X31: 0 | Y31: 0 | Z31: 0 | AA31: 0 | AB31: 0 | AC31: 0 | AD31: 0 | AE31: 0
A32: ='Форма по МДС 81-35.2004'!A566 -> 27. | B32: ='Форма по МДС 81-35.2004'!G566 -> 58 | C32: =ROUND(СУММПРОИЗВЕСЛИ(1,'Форма по МДС 81-35.2004'!J566:J584,"Г",'Форма по МДС 81-35.2004'!E566:E584,'Форма по МДС 81-35.2004'!G566:G584,0),16777275) -> 0 | D32: =ROUND(СУММПРОИЗВЕСЛИ(1,'Форма по МДС 81-35.2004'!J566:J584,"IsMash",'Форма по МДС 81-35.2004'!E566:E584,'Форма по МДС 81-35.2004'!G566:G584,0),16777275) -> 57.999 | E32: =ROUND(СУММПРОИЗВЕСЛИ(1,'Форма по МДС 81-35.2004'!J566:J584,"Ж",'Форма по МДС 81-35.2004'!E566:E584,'Форма по МДС 81-35.2004'!G566:G584,0),16777275) -> 21.5259 | F32: =ROUND(СУММПРОИЗВЕСЛИ(1,'Форма по МДС 81-35.2004'!J566:J584,"IsMater",'Форма по МДС 81-35.2004'!E566:E584,'Форма по МДС 81-35.2004'!G566:G584,0),16777275) -> 0 | G32: 0 | H32: 0 | I32: =ОКРУГЛВСЕ(SUMIF('Форма по МДС 81-35.2004'!J566:J584,"Г",'Форма по МДС 81-35.2004'!E566:E584),8) -> 0 | J32: 0 | K32: =ОКРУГЛВСЕ(SUMIF('Форма по МДС 81-35.2004'!J566:J584,"Ж",'Форма по МДС 81-35.2004'!E566:E584),8) -> 0.15 | L32: 0 | M32: 0 | N32: 6.786 | O32: 5.18288 | P32: 0 | Q32: 0 | R32: 0 | S32: 0 | T32: 0 | U32: 0 | V32: 0 | X32: 0 | Y32: 0 | Z32: 0 | AA32: 0 | AB32: 0 | AC32: 0 | AD32: 0 | AE32: 0

Sheet Базовые цены с учетом расхода
B1: C1 | C1: C2 | D1: C3 | E1: C4 | F1: C5 | G1: C6 | H1: VOZVR | I1: C8 | J1: C9 | K1: C10 | L1: C11 | M1: C12 | N1: NAKL | O1: PLAN | P1: NAKL_ZPR | Q1: NAKL_ZPM | R1: PLAN_ZPR | S1: PLAN_ZPM | T1: RN11 | U1: RN12 | V1: RN13 | X1: OBORUD_VSPOMOG | Y1: NAKL_PN | Z1: NAKL_VX | AA1: PLAN_PN | AB1: PLAN_VX | AC1: VTCH_PN | AD1: VTCH_VX | AE1: MR_BY_ZPR_VSPOMOG | AF1: NAKL_INC | AG1: PLAN_INC
B3: N = < ГЭСНс * 2015_s * 15_15_зр >
B4: Автомобильные дороги регионального или межмуниципального значения с автобусным движением с допустимым уровнем содержания - норматив "Авт" (ЗИМНИЕ РАБОТЫ)
A6: ='Форма по МДС 81-35.2004'!A16 -> 1. | B6: ='Форма по МДС 81-35.2004'!N16 -> 893 | C6: =ROUND(SUMIF('Форма по МДС 81-35.2004'!J16:J34,"Г",'Форма по МДС 81-35.2004'!N16:N34),0) -> 0 | D6: =ROUND(SUMIF('Форма по МДС 81-35.2004'!J16:J34,"IsMash",'Форма по МДС 81-35.2004'!N16:N34),0) -> 893 | E6: ='Форма по МДС 81-35.2004'!N17 -> 65 | F6: =ROUND(SUMIF('Форма по МДС 81-35.2004'!J16:J34,"IsMater",'Форма по МДС 81-35.2004'!N16:N34),0) -> 0 | G6: =ROUND('Форма по МДС 81-35.2004'!F16*'Базовые цены за единицу'!G6,0) -> 0 | H6: =ROUND('Форма по МДС 81-35.2004'!F16*'Базовые цены за единицу'!H6,0) -> 0 | I6: =ОКРУГЛВСЕ(SUMIF('Форма по МДС 81-35.2004'!J16:J34,"Г",'Форма по МДС 81-35.2004'!F16:F34),8) -> 0 | J6: =ОКРУГЛВСЕ('Форма по МДС 81-35.2004'!F16*'Базовые цены за единицу'!J6,8) -> 0 | K6: =ОКРУГЛВСЕ(SUMIF('Форма по МДС 81-35.2004'!J16:J34,"Ж",'Форма по МДС 81-35.2004'!F16:F34),8) -> 4.8 | L6: =ROUND('Форма по МДС 81-35.2004'!F16*'Базовые цены за единицу'!L6,0) -> 0 | M6: =ROUND('Форма по МДС 81-35.2004'!F16*'Базовые цены за единицу'!M6,0) -> 0 | N6: =ROUND(B6*'Форма по МДС 81-35.2004'!M29/100,0) -> 104 | O6: =ROUND((B6+N6)*'Форма по МДС 81-35.2004'!M32/100,0) -> 80 | P6: =ROUND('Форма по МДС 81-35.2004'!F16*'Базовые цены за единицу'!P6,0) -> 0 | Q6: =ROUND('Форма по МДС 81-35.2004'!F16*'Базовые цены за единицу'!Q6,0) -> 0 | R6: =ROUND('Форма по МДС 81-35.2004'!F16*'Базовые цены за единицу'!R6,0) -> 0 | S6: =ROUND('Форма по МДС 81-35.2004'!F16*'Базовые цены за единицу'!S6,0) -> 0 | T6: =ROUND('Форма по МДС 81-35.2004'!F16*'Базовые цены за единицу'!T6,0) -> 0 | U6: =ROUND('Форма по МДС 81-35.2004'!F16*'Базовые цены за единицу'!U6,0) -> 0 | V6: =ROUND('Форма по МДС 81-35.2004'!F16*'Базовые цены за единицу'!V6,0) -> 0 | X6: =ROUND('Форма по МДС 81-35.2004'!F16*'Базовые цены за единицу'!X6,0) -> 0 | Y6: =IF(Определители!I6="9",ROUND(B6*(Начисления!M6/100)*'Форма по МДС 81-35.2004'!M29/100,0),0) -> 0 | Z6: =IF(Определители!I6="9",ROUND(B6*(100-Начисления!M6/100)*'Форма по МДС 81-35.2004'!M29/100,0),0) -> 0 | AA6: =IF(Определители!I6="9",ROUND((C6+E6)*(Начисления!M6/100)*('Форма по МДС 81-35.2004'!M32/100),0),0) -> 0 | AB6: =IF(Определители!I6="9",ROUND((C6+E6)*(100-Начисления!M6/100)*('Форма по МДС 81-35.2004'!M32/100),0),0) -> 0 | AC6: =IF(Определители!I6="9",ROUND(B6*Начисления!M6/100,0),0) -> 0 | AD6: =IF(Определители!I6="9",ROUND(B6*(100-Начисления!M6)/100,0),0) -> 0 | AE6: =ROUND('Форма по МДС 81-35.2004'!F16*'Базовые цены за единицу'!AE6,0) -> 0
A7: ='Форма по МДС 81-35.2004'!A35 -> 2. | B7: ='Форма по МДС 81-35.2004'!N35 -> 157 | C7: =ROUND(SUMIF('Форма по МДС 81-35.2004'!J35:J53,"Г",'Форма по МДС 81-35.2004'!N35:N53),0) -> 0 | D7: =ROUND(SUMIF('Форма по МДС 81-35.2004'!J35:J53,"IsMash",'Форма по МДС 81-35.2004'!N35:N53),0) -> 157 | E7: ='Форма по МДС 81-35.2004'!N36 -> 17 | F7: =ROUND(SUMIF('Форма по МДС 81-35.2004'!J35:J53,"IsMater",'Форма по МДС 81-35.2004'!N35:N53),0) -> 0 | G7: =ROUND('Форма по МДС 81-35.2004'!F35*'Базовые цены за единицу'!G7,0) -> 0 | H7: =ROUND('Форма по МДС 81-35.2004'!F35*'Базовые цены за единицу'!H7,0) -> 0 | I7: =ОКРУГЛВСЕ(SUMIF('Форма по МДС 81-35.2004'!J35:J53,"Г",'Форма по МДС 81-35.2004'!F35:F53),8) -> 0 | J7: =ОКРУГЛВСЕ('Форма по МДС 81-35.2004'!F35*'Базовые цены за единицу'!J7,8) -> 0 | K7: =ОКРУГЛВСЕ(SUMIF('Форма по МДС 81-35.2004'!J35:J53,"Ж",'Форма по МДС 81-35.2004'!F35:F53),8) -> 1.28 | L7: =ROUND('Форма по МДС 81-35.2004'!F35*'Базовые цены за единицу'!L7,0) -> 0 | M7: =ROUND('Форма по МДС 81-35.2004'!F35*'Базовые цены за единицу'!M7,0) -> 0 | N7: =ROUND(B7*'Форма по МДС 81-35.2004'!M48/100,0) -> 18 | O7: =ROUND((B7+N7)*'Форма по МДС 81-35.2004'!M51/100,0) -> 14 | P7: =ROUND('Форма по МДС 81-35.2004'!F35*'Базовые цены за единицу'!P7,0) -> 0 | Q7: =ROUND('Форма по МДС 81-35.2004'!F35*'Базовые цены за единицу'!Q7,0) -> 0 | R7: =ROUND('Форма по МДС 81-35.2004'!F35*'Базовые цены за единицу'!R7,0) -> 0 | S7: =ROUND('Форма по МДС 81-35.2004'!F35*'Базовые цены за единицу'!S7,0) -> 0 | T7: =ROUND('Форма по МДС 81-35.2004'!F35*'Базовые цены за единицу'!T7,0) -> 0 | U7: =ROUND('Форма по МДС 81-35.2004'!F35*'Базовые цены за единицу'!U7,0) -> 0 | V7: =ROUND('Форма по МДС 81-35.2004'!F35*'Базовые цены за единицу'!V7,0) -> 0 | X7: =ROUND('Форма по МДС 81-35.2004'!F35*'Базовые цены за единицу'!X7,0) -> 0 | Y7: =IF(Определители!I7="9",ROUND(B7*(Начисления!M7/100)*'Форма по МДС 81-35.2004'!M48/100,0),0) -> 0 | Z7: =IF(Определители!I7="9",ROUND(B7*(100-Начисления!M7/100)*'Форма по МДС 81-35.2004'!M48/100,0),0) -> 0 | AA7: =IF(Определители!I7="9",ROUND((C7+E7)*(Начисления!M7/100)*('Форма по МДС 81-35.2004'!M51/100),0),0) -> 0 | AB7: =IF(Определители!I7="9",ROUND((C7+E7)*(100-Начисления!M7/100)*('Форма по МДС 81-35.2004'!M51/100),0),0) -> 0 | AC7: =IF(Определители!I7="9",ROUND(B7*Начисления!M7/100,0),0) -> 0 | AD7: =IF(Определители!I7="9",ROUND(B7*(100-Начисления!M7)/100,0),0) -> 0 | AE7: =ROUND('Форма по МДС 81-35.2004'!F35*'Базовые цены за единицу'!AE7,0) -> 0
A8: ='Форма по МДС 81-35.2004'!A54 -> 3. | B8: ='Форма по МДС 81-35.2004'!N54 -> 221 | C8: =ROUND(SUMIF('Форма по МДС 81-35.2004'!J54:J72,"Г",'Форма по МДС 81-35.2004'!N54:N72),0) -> 0 | D8: =ROUND(SUMIF('Форма по МДС 81-35.2004'!J54:J72,"IsMash",'Форма по МДС 81-35.2004'!N54:N72),0) -> 221 | E8: ='Форма по МДС 81-35.2004'!N55 -> 8 | F8: =ROUND(SUMIF('Форма по МДС 81-35.2004'!J54:J72,"IsMater",'Форма по МДС 81-35.2004'!N54:N72),0) -> 0 | G8: =ROUND('Форма по МДС 81-35.2004'!F54*'Базовые цены за единицу'!G8,0) -> 0 | H8: =ROUND('Форма по МДС 81-35.2004'!F54*'Базовые цены за единицу'!H8,0) -> 0 | I8: =ОКРУГЛВСЕ(SUMIF('Форма по МДС 81-35.2004'!J54:J72,"Г",'Форма по МДС 81-35.2004'!F54:F72),8) -> 0 | J8: =ОКРУГЛВСЕ('Форма по МДС 81-35.2004'!F54*'Базовые цены за единицу'!J8,8) -> 0 | K8: =ОКРУГЛВСЕ(SUMIF('Форма по МДС 81-35.2004'!J54:J72,"Ж",'Форма по МДС 81-35.2004'!F54:F72),8) -> 0.707 | L8: =ROUND('Форма по МДС 81-35.2004'!F54*'Базовые цены за единицу'!L8,0) -> 0 | M8: =ROUND('Форма по МДС 81-35.2004'!F54*'Базовые цены за единицу'!M8,0) -> 0 | N8: =ROUND(B8*'Форма по МДС 81-35.2004'!M67/100,0) -> 26 | O8: =ROUND((B8+N8)*'Форма по МДС 81-35.2004'!M70/100,0) -> 20 | P8: =ROUND('Форма по МДС 81-35.2004'!F54*'Базовые цены за единицу'!P8,0) -> 0 | Q8: =ROUND('Форма по МДС 81-35.2004'!F54*'Базовые цены за единицу'!Q8,0) -> 0 | R8: =ROUND('Форма по МДС 81-35.2004'!F54*'Базовые цены за единицу'!R8,0) -> 0 | S8: =ROUND('Форма по МДС 81-35.2004'!F54*'Базовые цены за единицу'!S8,0) -> 0 | T8: =ROUND('Форма по МДС 81-35.2004'!F54*'Базовые цены за единицу'!T8,0) -> 0 | U8: =ROUND('Форма по МДС 81-35.2004'!F54*'Базовые цены за единицу'!U8,0) -> 0 | V8: =ROUND('Форма по МДС 81-35.2004'!F54*'Базовые цены за единицу'!V8,0) -> 0 | X8: =ROUND('Форма по МДС 81-35.2004'!F54*'Базовые цены за единицу'!X8,0) -> 0 | Y8: =IF(Определители!I8="9",ROUND(B8*(Начисления!M8/100)*'Форма по МДС 81-35.2004'!M67/100,0),0) -> 0 | Z8: =IF(Определители!I8="9",ROUND(B8*(100-Начисления!M8/100)*'Форма по МДС 81-35.2004'!M67/100,0),0) -> 0 | AA8: =IF(Определители!I8="9",ROUND((C8+E8)*(Начисления!M8/100)*('Форма по МДС 81-35.2004'!M70/100),0),0) -> 0 | AB8: =IF(Определители!I8="9",ROUND((C8+E8)*(100-Начисления!M8/100)*('Форма по МДС 81-35.2004'!M70/100),0),0) -> 0 | AC8: =IF(Определители!I8="9",ROUND(B8*Начисления!M8/100,0),0) -> 0 | AD8: =IF(Определители!I8="9",ROUND(B8*(100-Начисления!M8)/100,0),0) -> 0 | AE8: =ROUND('Форма по МДС 81-35.2004'!F54*'Базовые цены за единицу'!AE8,0) -> 0
A9: ='Форма по МДС 81-35.2004'!A74 -> 4. | B9: ='Форма по МДС 81-35.2004'!N74 -> 5 | C9: =ROUND(SUMIF('Форма по МДС 81-35.2004'!J74:J92,"Г",'Форма по МДС 81-35.2004'!N74:N92),0) -> 0 | D9: =ROUND(SUMIF('Форма по МДС 81-35.2004'!J74:J92,"IsMash",'Форма по МДС 81-35.2004'!N74:N92),0) -> 5 | E9: ='Форма по МДС 81-35.2004'!N75 -> 1 | F9: =ROUND(SUMIF('Форма по МДС 81-35.2004'!J74:J92,"IsMater",'Форма по МДС 81-35.2004'!N74:N92),0) -> 0 | G9: =ROUND('Форма по МДС 81-35.2004'!F74*'Базовые цены за единицу'!G9,0) -> 0 | H9: =ROUND('Форма по МДС 81-35.2004'!F74*'Базовые цены за единицу'!H9,0) -> 0 | I9: =ОКРУГЛВСЕ(SUMIF('Форма по МДС 81-35.2004'!J74:J92,"Г",'Форма по МДС 81-35.2004'!F74:F92),8) -> 0 | J9: =ОКРУГЛВСЕ('Форма по МДС 81-35.2004'!F74*'Базовые цены за единицу'!J9,8) -> 0 | K9: =ОКРУГЛВСЕ(SUMIF('Форма по МДС 81-35.2004'!J74:J92,"Ж",'Форма по МДС 81-35.2004'!F74:F92),8) -> 0.0594 | L9: =ROUND('Форма по МДС 81-35.2004'!F74*'Базовые цены за единицу'!L9,0) -> 0 | M9: =ROUND('Форма по МДС 81-35.2004'!F74*'Базовые цены за единицу'!M9,0) -> 0 | N9: =ROUND(B9*'Форма по МДС 81-35.2004'!M87/100,0) -> 1 | O9: =ROUND((B9+N9)*'Форма по МДС 81-35.2004'!M90/100,0) -> 0 | P9: =ROUND('Форма по МДС 81-35.2004'!F74*'Базовые цены за единицу'!P9,0) -> 0 | Q9: =ROUND('Форма по МДС 81-35.2004'!F74*'Базовые цены за единицу'!Q9,0) -> 0 | R9: =ROUND('Форма по МДС 81-35.2004'!F74*'Базовые цены за единицу'!R9,0) -> 0 | S9: =ROUND('Форма по МДС 81-35.2004'!F74*'Базовые цены за единицу'!S9,0) -> 0 | T9: =ROUND('Форма по МДС 81-35.2004'!F74*'Базовые цены за единицу'!T9,0) -> 0 | U9: =ROUND('Форма по МДС 81-35.2004'!F74*'Базовые цены за единицу'!U9,0) -> 0 | V9: =ROUND('Форма по МДС 81-35.2004'!F74*'Базовые цены за единицу'!V9,0) -> 0 | X9: =ROUND('Форма по МДС 81-35.2004'!F74*'Базовые цены за единицу'!X9,0) -> 0 | Y9: =IF(Определители!I9="9",ROUND(B9*(Начисления!M9/100)*'Форма по МДС 81-35.2004'!M87/100,0),0) -> 0 | Z9: =IF(Определители!I9="9",ROUND(B9*(100-Начисления!M9/100)*'Форма по МДС 81-35.2004'!M87/100,0),0) -> 0 | AA9: =IF(Определители!I9="9",ROUND((C9+E9)*(Начисления!M9/100)*('Форма по МДС 81-35.2004'!M90/100),0),0) -> 0 | AB9: =IF(Определители!I9="9",ROUND((C9+E9)*(100-Начисления!M9/100)*('Форма по МДС 81-35.2004'!M90/100),0),0) -> 0 | AC9: =IF(Определители!I9="9",ROUND(B9*Начисления!M9/100,0),0) -> 0 | AD9: =IF(Определители!I9="9",ROUND(B9*(100-Начисления!M9)/100,0),0) -> 0 | AE9: =ROUND('Форма по МДС 81-35.2004'!F74*'Базовые цены за единицу'!AE9,0) -> 0
A10: ='Форма по МДС 81-35.2004'!A94 -> 5. | B10: ='Форма по МДС 81-35.2004'!N94 -> 647 | C10: =ROUND(SUMIF('Форма по МДС 81-35.2004'!J94:J112,"Г",'Форма по МДС 81-35.2004'!N94:N112),0) -> 0 | D10: =ROUND(SUMIF('Форма по МДС 81-35.2004'!J94:J112,"IsMash",'Форма по МДС 81-35.2004'!N94:N112),0) -> 647 | E10: ='Форма по МДС 81-35.2004'!N95 -> 47 | F10: =ROUND(SUMIF('Форма по МДС 81-35.2004'!J94:J112,"IsMater",'Форма по МДС 81-35.2004'!N94:N112),0) -> 0 | G10: =ROUND('Форма по МДС 81-35.2004'!F94*'Базовые цены за единицу'!G10,0) -> 0 | H10: =ROUND('Форма по МДС 81-35.2004'!F94*'Базовые цены за единицу'!H10,0) -> 0 | I10: =ОКРУГЛВСЕ(SUMIF('Форма по МДС 81-35.2004'!J94:J112,"Г",'Форма по МДС 81-35.2004'!F94:F112),8) -> 0 | J10: =ОКРУГЛВСЕ('Форма по МДС 81-35.2004'!F94*'Базовые цены за единицу'!J10,8) -> 0 | K10: =ОКРУГЛВСЕ(SUMIF('Форма по МДС 81-35.2004'!J94:J112,"Ж",'Форма по МДС 81-35.2004'!F94:F112),8) -> 3.48 | L10: =ROUND('Форма по МДС 81-35.2004'!F94*'Базовые цены за единицу'!L10,0) -> 0 | M10: =ROUND('Форма по МДС 81-35.2004'!F94*'Базовые цены за единицу'!M10,0) -> 0 | N10: =ROUND(B10*'Форма по МДС 81-35.2004'!M107/100,0) -> 76 | O10: =ROUND((B10+N10)*'Форма по МДС 81-35.2004'!M110/100,0) -> 58 | P10: =ROUND('Форма по МДС 81-35.2004'!F94*'Базовые цены за единицу'!P10,0) -> 0 | Q10: =ROUND('Форма по МДС 81-35.2004'!F94*'Базовые цены за единицу'!Q10,0) -> 0 | R10: =ROUND('Форма по МДС 81-35.2004'!F94*'Базовые цены за единицу'!R10,0) -> 0 | S10: =ROUND('Форма по МДС 81-35.2004'!F94*'Базовые цены за единицу'!S10,0) -> 0 | T10: =ROUND('Форма по МДС 81-35.2004'!F94*'Базовые цены за единицу'!T10,0) -> 0 | U10: =ROUND('Форма по МДС 81-35.2004'!F94*'Базовые цены за единицу'!U10,0) -> 0 | V10: =ROUND('Форма по МДС 81-35.2004'!F94*'Базовые цены за единицу'!V10,0) -> 0 | X10: =ROUND('Форма по МДС 81-35.2004'!F94*'Базовые цены за единицу'!X10,0) -> 0 | Y10: =IF(Определители!I10="9",ROUND(B10*(Начисления!M10/100)*'Форма по МДС 81-35.2004'!M107/100,0),0) -> 0 | Z10: =IF(Определители!I10="9",ROUND(B10*(100-Начисления!M10/100)*'Форма по МДС 81-35.2004'!M107/100,0),0) -> 0 | AA10: =IF(Определители!I10="9",ROUND((C10+E10)*(Начисления!M10/100)*('Форма по МДС 81-35.2004'!M110/100),0),0) -> 0 | AB10: =IF(Определители!I10="9",ROUND((C10+E10)*(100-Начисления!M10/100)*('Форма по МДС 81-35.2004'!M110/100),0),0) -> 0 | AC10: =IF(Определители!I10="9",ROUND(B10*Начисления!M10/100,0),0) -> 0 | AD10: =IF(Определители!I10="9",ROUND(B10*(100-Начисления!M10)/100,0),0) -> 0 | AE10: =ROUND('Форма по МДС 81-35.2004'!F94*'Базовые цены за единицу'!AE10,0) -> 0
A11: ='Форма по МДС 81-35.2004'!A113 -> 6. | B11: ='Форма по МДС 81-35.2004'!N113 -> 0 | C11: =ROUND(SUMIF('Форма по МДС 81-35.2004'!J113:J134,"Г",'Форма по МДС 81-35.2004'!N113:N134),0) -> 0 | D11: =ROUND(SUMIF('Форма по МДС 81-35.2004'!J113:J134,"IsMash",'Форма по МДС 81-35.2004'!N113:N134),0) -> 0 | E11: ='Форма по МДС 81-35.2004'!N115 -> 0 | F11: =ROUND(SUMIF('Форма по МДС 81-35.2004'!J113:J134,"IsMater",'Форма по МДС 81-35.2004'!N113:N134),0) -> 0 | G11: =ROUND('Форма по МДС 81-35.2004'!F113*'Базовые цены за единицу'!G11,0) -> 0 | H11: =ROUND('Форма по МДС 81-35.2004'!F113*'Базовые цены за единицу'!H11,0) -> 0 | I11: =ОКРУГЛВСЕ(SUMIF('Форма по МДС 81-35.2004'!J113:J134,"Г",'Форма по МДС 81-35.2004'!F113:F134),8) -> 0 | J11: =ОКРУГЛВСЕ('Форма по МДС 81-35.2004'!F113*'Базовые цены за единицу'!J11,8) -> 0 | K11: =ОКРУГЛВСЕ(SUMIF('Форма по МДС 81-35.2004'!J113:J134,"Ж",'Форма по МДС 81-35.2004'!F113:F134),8) -> 1.364244 | L11: =ROUND('Форма по МДС 81-35.2004'!F113*'Базовые цены за единицу'!L11,0) -> 0 | M11: =ROUND('Форма по МДС 81-35.2004'!F113*'Базовые цены за единицу'!M11,0) -> 0 | N11: =ROUND(B11*'Форма по МДС 81-35.2004'!M129/100,0) -> 0 | O11: =ROUND((B11+N11)*'Форма по МДС 81-35.2004'!M132/100,0) -> 0 | P11: =ROUND('Форма по МДС 81-35.2004'!F113*'Базовые цены за единицу'!P11,0) -> 0 | Q11: =ROUND('Форма по МДС 81-35.2004'!F113*'Базовые цены за единицу'!Q11,0) -> 0 | R11: =ROUND('Форма по МДС 81-35.2004'!F113*'Базовые цены за единицу'!R11,0) -> 0 | S11: =ROUND('Форма по МДС 81-35.2004'!F113*'Базовые цены за единицу'!S11,0) -> 0 | T11: =ROUND('Форма по МДС 81-35.2004'!F113*'Базовые цены за единицу'!T11,0) -> 0 | U11: =ROUND('Форма по МДС 81-35.2004'!F113*'Базовые цены за единицу'!U11,0) -> 0 | V11: =ROUND('Форма по МДС 81-35.2004'!F113*'Базовые цены за единицу'!V11,0) -> 0 | X11: =ROUND('Форма по МДС 81-35.2004'!F113*'Базовые цены за единицу'!X11,0) -> 0 | Y11: =IF(Определители!I11="9",ROUND(B11*(Начисления!M11/100)*'Форма по МДС 81-35.2004'!M129/100,0),0) -> 0 | Z11: =IF(Определители!I11="9",ROUND(B11*(100-Начисления!M11/100)*'Форма по МДС 81-35.2004'!M129/100,0),0) -> 0 | AA11: =IF(Определители!I11="9",ROUND((C11+E11)*(Начисления!M11/100)*('Форма по МДС 81-35.2004'!M132/100),0),0) -> 0 | AB11: =IF(Определители!I11="9",ROUND((C11+E11)*(100-Начисления!M11/100)*('Форма по МДС 81-35.2004'!M132/100),0),0) -> 0 | AC11: =IF(Определители!I11="9",ROUND(B11*Начисления!M11/100,0),0) -> 0 | AD11: =IF(Определители!I11="9",ROUND(B11*(100-Начисления!M11)/100,0),0) -> 0 | AE11: =ROUND('Форма по МДС 81-35.2004'!F113*'Базовые цены за единицу'!AE11,0) -> 0
A12: ='Форма по МДС 81-35.2004'!A135 -> 7. | B12: ='Форма по МДС 81-35.2004'!N135 -> 56 | C12: =ROUND(SUMIF('Форма по МДС 81-35.2004'!J135:J153,"Г",'Форма по МДС 81-35.2004'!N135:N153),0) -> 0 | D12: =ROUND(SUMIF('Форма по МДС 81-35.2004'!J135:J153,"IsMash",'Форма по МДС 81-35.2004'!N135:N153),0) -> 56 | E12: ='Форма по МДС 81-35.2004'!N136 -> 4 | F12: =ROUND(SUMIF('Форма по МДС 81-35.2004'!J135:J153,"IsMater",'Форма по МДС 81-35.2004'!N135:N153),0) -> 0 | G12: =ROUND('Форма по МДС 81-35.2004'!F135*'Базовые цены за единицу'!G12,0) -> 0 | H12: =ROUND('Форма по МДС 81-35.2004'!F135*'Базовые цены за единицу'!H12,0) -> 0 | I12: =ОКРУГЛВСЕ(SUMIF('Форма по МДС 81-35.2004'!J135:J153,"Г",'Форма по МДС 81-35.2004'!F135:F153),8) -> 0 | J12: =ОКРУГЛВСЕ('Форма по МДС 81-35.2004'!F135*'Базовые цены за единицу'!J12,8) -> 0 | K12: =ОКРУГЛВСЕ(SUMIF('Форма по МДС 81-35.2004'!J135:J153,"Ж",'Форма по МДС 81-35.2004'!F135:F153),8) -> 0.3 | L12: =ROUND('Форма по МДС 81-35.2004'!F135*'Базовые цены за единицу'!L12,0) -> 0 | M12: =ROUND('Форма по МДС 81-35.2004'!F135*'Базовые цены за единицу'!M12,0) -> 0 | N12: =ROUND(B12*'Форма по МДС 81-35.2004'!M148/100,0) -> 7 | O12: =ROUND((B12+N12)*'Форма по МДС 81-35.2004'!M151/100,0) -> 5 | P12: =ROUND('Форма по МДС 81-35.2004'!F135*'Базовые цены за единицу'!P12,0) -> 0 | Q12: =ROUND('Форма по МДС 81-35.2004'!F135*'Базовые цены за единицу'!Q12,0) -> 0 | R12: =ROUND('Форма по МДС 81-35.2004'!F135*'Базовые цены за единицу'!R12,0) -> 0 | S12: =ROUND('Форма по МДС 81-35.2004'!F135*'Базовые цены за единицу'!S12,0) -> 0 | T12: =ROUND('Форма по МДС 81-35.2004'!F135*'Базовые цены за единицу'!T12,0) -> 0 | U12: =ROUND('Форма по МДС 81-35.2004'!F135*'Базовые цены за единицу'!U12,0) -> 0 | V12: =ROUND('Форма по МДС 81-35.2004'!F135*'Базовые цены за единицу'!V12,0) -> 0 | X12: =ROUND('Форма по МДС 81-35.2004'!F135*'Базовые цены за единицу'!X12,0) -> 0 | Y12: =IF(Определители!I12="9",ROUND(B12*(Начисления!M12/100)*'Форма по МДС 81-35.2004'!M148/100,0),0) -> 0 | Z12: =IF(Определители!I12="9",ROUND(B12*(100-Начисления!M12/100)*'Форма по МДС 81-35.2004'!M148/100,0),0) -> 0 | AA12: =IF(Определители!I12="9",ROUND((C12+E12)*(Начисления!M12/100)*('Форма по МДС 81-35.2004'!M151/100),0),0) -> 0 | AB12: =IF(Определители!I12="9",ROUND((C12+E12)*(100-Начисления!M12/100)*('Форма по МДС 81-35.2004'!M151/100),0),0) -> 0 | AC12: =IF(Определители!I12="9",ROUND(B12*Начисления!M12/100,0),0) -> 0 | AD12: =IF(Определители!I12="9",ROUND(B12*(100-Начисления!M12)/100,0),0) -> 0 | AE12: =ROUND('Форма по МДС 81-35.2004'!F135*'Базовые цены за единицу'!AE12,0) -> 0
A13: ='Форма по МДС 81-35.2004'!A154 -> 8. | B13: ='Форма по МДС 81-35.2004'!N154 -> 2340 | C13: =ROUND(SUMIF('Форма по МДС 81-35.2004'!J154:J174,"Г",'Форма по МДС 81-35.2004'!N154:N174),0) -> 0 | D13: =ROUND(SUMIF('Форма по МДС 81-35.2004'!J154:J174,"IsMash",'Форма по МДС 81-35.2004'!N154:N174),0) -> 2340 | E13: ='Форма по МДС 81-35.2004'!N155 -> 178 | F13: =ROUND(SUMIF('Форма по МДС 81-35.2004'!J154:J174,"IsMater",'Форма по МДС 81-35.2004'!N154:N174),0) -> 0 | G13: =ROUND('Форма по МДС 81-35.2004'!F154*'Базовые цены за единицу'!G13,0) -> 0 | H13: =ROUND('Форма по МДС 81-35.2004'!F154*'Базовые цены за единицу'!H13,0) -> 0 | I13: =ОКРУГЛВСЕ(SUMIF('Форма по МДС 81-35.2004'!J154:J174,"Г",'Форма по МДС 81-35.2004'!F154:F174),8) -> 0 | J13: =ОКРУГЛВСЕ('Форма по МДС 81-35.2004'!F154*'Базовые цены за единицу'!J13,8) -> 0 | K13: =ОКРУГЛВСЕ(SUMIF('Форма по МДС 81-35.2004'!J154:J174,"Ж",'Форма по МДС 81-35.2004'!F154:F174),8) -> 13.392 | L13: =ROUND('Форма по МДС 81-35.2004'!F154*'Базовые цены за единицу'!L13,0) -> 0 | M13: =ROUND('Форма по МДС 81-35.2004'!F154*'Базовые цены за единицу'!M13,0) -> 0 | N13: =ROUND(B13*'Форма по МДС 81-35.2004'!M169/100,0) -> 274 | O13: =ROUND((B13+N13)*'Форма по МДС 81-35.2004'!M172/100,0) -> 209 | P13: =ROUND('Форма по МДС 81-35.2004'!F154*'Базовые цены за единицу'!P13,0) -> 0 | Q13: =ROUND('Форма по МДС 81-35.2004'!F154*'Базовые цены за единицу'!Q13,0) -> 0 | R13: =ROUND('Форма по МДС 81-35.2004'!F154*'Базовые цены за единицу'!R13,0) -> 0 | S13: =ROUND('Форма по МДС 81-35.2004'!F154*'Базовые цены за единицу'!S13,0) -> 0 | T13: =ROUND('Форма по МДС 81-35.2004'!F154*'Базовые цены за единицу'!T13,0) -> 0 | U13: =ROUND('Форма по МДС 81-35.2004'!F154*'Базовые цены за единицу'!U13,0) -> 0 | V13: =ROUND('Форма по МДС 81-35.2004'!F154*'Базовые цены за единицу'!V13,0) -> 0 | X13: =ROUND('Форма по МДС 81-35.2004'!F154*'Базовые цены за единицу'!X13,0) -> 0 | Y13: =IF(Определители!I13="9",ROUND(B13*(Начисления!M13/100)*'Форма по МДС 81-35.2004'!M169/100,0),0) -> 0 | Z13: =IF(Определители!I13="9",ROUND(B13*(100-Начисления!M13/100)*'Форма по МДС 81-35.2004'!M169/100,0),0) -> 0 | AA13: =IF(Определители!I13="9",ROUND((C13+E13)*(Начисления!M13/100)*('Форма по МДС 81-35.2004'!M172/100),0),0) -> 0 | AB13: =IF(Определители!I13="9",ROUND((C13+E13)*(100-Начисления!M13/100)*('Форма по МДС 81-35.2004'!M172/100),0),0) -> 0 | AC13: =IF(Определители!I13="9",ROUND(B13*Начисления!M13/100,0),0) -> 0 | AD13: =IF(Определители!I13="9",ROUND(B13*(100-Начисления!M13)/100,0),0) -> 0 | AE13: =ROUND('Форма по МДС 81-35.2004'!F154*'Базовые цены за единицу'!AE13,0) -> 0
A14: ='Форма по МДС 81-35.2004'!A175 -> 9. | B14: ='Форма по МДС 81-35.2004'!N175 -> 1488 | C14: =ROUND(SUMIF('Форма по МДС 81-35.2004'!J175:J193,"Г",'Форма по МДС 81-35.2004'!N175:N193),0) -> 0 | D14: =ROUND(SUMIF('Форма по МДС 81-35.2004'!J175:J193,"IsMash",'Форма по МДС 81-35.2004'!N175:N193),0) -> 1488 | E14: ='Форма по МДС 81-35.2004'!N176 -> 108 | F14: =ROUND(SUMIF('Форма по МДС 81-35.2004'!J175:J193,"IsMater",'Форма по МДС 81-35.2004'!N175:N193),0) -> 0 | G14: =ROUND('Форма по МДС 81-35.2004'!F175*'Базовые цены за единицу'!G14,0) -> 0 | H14: =ROUND('Форма по МДС 81-35.2004'!F175*'Базовые цены за единицу'!H14,0) -> 0 | I14: =ОКРУГЛВСЕ(SUMIF('Форма по МДС 81-35.2004'!J175:J193,"Г",'Форма по МДС 81-35.2004'!F175:F193),8) -> 0 | J14: =ОКРУГЛВСЕ('Форма по МДС 81-35.2004'!F175*'Базовые цены за единицу'!J14,8) -> 0 | K14: =ОКРУГЛВСЕ(SUMIF('Форма по МДС 81-35.2004'!J175:J193,"Ж",'Форма по МДС 81-35.2004'!F175:F193),8) -> 8.004 | L14: =ROUND('Форма по МДС 81-35.2004'!F175*'Базовые цены за единицу'!L14,0) -> 0 | M14: =ROUND('Форма по МДС 81-35.2004'!F175*'Базовые цены за единицу'!M14,0) -> 0 | N14: =ROUND(B14*'Форма по МДС 81-35.2004'!M188/100,0) -> 174 | O14: =ROUND((B14+N14)*'Форма по МДС 81-35.2004'!M191/100,0) -> 133 | P14: =ROUND('Форма по МДС 81-35.2004'!F175*'Базовые цены за единицу'!P14,0) -> 0 | Q14: =ROUND('Форма по МДС 81-35.2004'!F175*'Базовые цены за единицу'!Q14,0) -> 0 | R14: =ROUND('Форма по МДС 81-35.2004'!F175*'Базовые цены за единицу'!R14,0) -> 0 | S14: =ROUND('Форма по МДС 81-35.2004'!F175*'Базовые цены за единицу'!S14,0) -> 0 | T14: =ROUND('Форма по МДС 81-35.2004'!F175*'Базовые цены за единицу'!T14,0) -> 0 | U14: =ROUND('Форма по МДС 81-35.2004'!F175*'Базовые цены за единицу'!U14,0) -> 0 | V14: =ROUND('Форма по МДС 81-35.2004'!F175*'Базовые цены за единицу'!V14,0) -> 0 | X14: =ROUND('Форма по МДС 81-35.2004'!F175*'Базовые цены за единицу'!X14,0) -> 0 | Y14: =IF(Определители!I14="9",ROUND(B14*(Начисления!M14/100)*'Форма по МДС 81-35.2004'!M188/100,0),0) -> 0 | Z14: =IF(Определители!I14="9",ROUND(B14*(100-Начисления!M14/100)*'Форма по МДС 81-35.2004'!M188/100,0),0) -> 0 | AA14: =IF(Определители!I14="9",ROUND((C14+E14)*(Начисления!M14/100)*('Форма по МДС 81-35.2004'!M191/100),0),0) -> 0 | AB14: =IF(Определители!I14="9",ROUND((C14+E14)*(100-Начисления!M14/100)*('Форма по МДС 81-35.2004'!M191/100),0),0) -> 0 | AC14: =IF(Определители!I14="9",ROUND(B14*Начисления!M14/100,0),0) -> 0 | AD14: =IF(Определители!I14="9",ROUND(B14*(100-Начисления!M14)/100,0),0) -> 0 | AE14: =ROUND('Форма по МДС 81-35.2004'!F175*'Базовые цены за единицу'!AE14,0) -> 0
A15: ='Форма по МДС 81-35.2004'!A194 -> 10. | B15: ='Форма по МДС 81-35.2004'!N194 -> 125 | C15: =ROUND(SUMIF('Форма по МДС 81-35.2004'!J194:J212,"Г",'Форма по МДС 81-35.2004'!N194:N212),0) -> 0 | D15: =ROUND(SUMIF('Форма по МДС 81-35.2004'!J194:J212,"IsMash",'Форма по МДС 81-35.2004'!N194:N212),0) -> 125 | E15: ='Форма по МДС 81-35.2004'!N195 -> 14 | F15: =ROUND(SUMIF('Форма по МДС 81-35.2004'!J194:J212,"IsMater",'Форма по МДС 81-35.2004'!N194:N212),0) -> 0 | G15: =ROUND('Форма по МДС 81-35.2004'!F194*'Базовые цены за единицу'!G15,0) -> 0 | H15: =ROUND('Форма по МДС 81-35.2004'!F194*'Базовые цены за единицу'!H15,0) -> 0 | I15: =ОКРУГЛВСЕ(SUMIF('Форма по МДС 81-35.2004'!J194:J212,"Г",'Форма по МДС 81-35.2004'!F194:F212),8) -> 0 | J15: =ОКРУГЛВСЕ('Форма по МДС 81-35.2004'!F194*'Базовые цены за единицу'!J15,8) -> 0 | K15: =ОКРУГЛВСЕ(SUMIF('Форма по МДС 81-35.2004'!J194:J212,"Ж",'Форма по МДС 81-35.2004'!F194:F212),8) -> 1.02 | L15: =ROUND('Форма по МДС 81-35.2004'!F194*'Базовые цены за единицу'!L15,0) -> 0 | M15: =ROUND('Форма по МДС 81-35.2004'!F194*'Базовые цены за единицу'!M15,0) -> 0 | N15: =ROUND(B15*'Форма по МДС 81-35.2004'!M207/100,0) -> 15 | O15: =ROUND((B15+N15)*'Форма по МДС 81-35.2004'!M210/100,0) -> 11 | P15: =ROUND('Форма по МДС 81-35.2004'!F194*'Базовые цены за единицу'!P15,0) -> 0 | Q15: =ROUND('Форма по МДС 81-35.2004'!F194*'Базовые цены за единицу'!Q15,0) -> 0 | R15: =ROUND('Форма по МДС 81-35.2004'!F194*'Базовые цены за единицу'!R15,0) -> 0 | S15: =ROUND('Форма по МДС 81-35.2004'!F194*'Базовые цены за единицу'!S15,0) -> 0 | T15: =ROUND('Форма по МДС 81-35.2004'!F194*'Базовые цены за единицу'!T15,0) -> 0 | U15: =ROUND('Форма по МДС 81-35.2004'!F194*'Базовые цены за единицу'!U15,0) -> 0 | V15: =ROUND('Форма по МДС 81-35.2004'!F194*'Базовые цены за единицу'!V15,0) -> 0 | X15: =ROUND('Форма по МДС 81-35.2004'!F194*'Базовые цены за единицу'!X15,0) -> 0 | Y15: =IF(Определители!I15="9",ROUND(B15*(Начисления!M15/100)*'Форма по МДС 81-35.2004'!M207/100,0),0) -> 0 | Z15: =IF(Определители!I15="9",ROUND(B15*(100-Начисления!M15/100)*'Форма по МДС 81-35.2004'!M207/100,0),0) -> 0 | AA15: =IF(Определители!I15="9",ROUND((C15+E15)*(Начисления!M15/100)*('Форма по МДС 81-35.2004'!M210/100),0),0) -> 0 | AB15: =IF(Определители!I15="9",ROUND((C15+E15)*(100-Начисления!M15/100)*('Форма по МДС 81-35.2004'!M210/100),0),0) -> 0 | AC15: =IF(Определители!I15="9",ROUND(B15*Начисления!M15/100,0),0) -> 0 | AD15: =IF(Определители!I15="9",ROUND(B15*(100-Начисления!M15)/100,0),0) -> 0 | AE15: =ROUND('Форма по МДС 81-35.2004'!F194*'Базовые цены за единицу'!AE15,0) -> 0
A16: ='Форма по МДС 81-35.2004'!A213 -> 11. | B16: ='Форма по МДС 81-35.2004'!N213 -> 11 | C16: =ROUND(SUMIF('Форма по МДС 81-35.2004'!J213:J237,"Г",'Форма по МДС 81-35.2004'!N213:N237),0) -> 3 | D16: =ROUND(SUMIF('Форма по МДС 81-35.2004'!J213:J237,"IsMash",'Форма по МДС 81-35.2004'!N213:N237),0) -> 9 | E16: ='Форма по МДС 81-35.2004'!N214 -> 1 | F16: =ROUND(SUMIF('Форма по МДС 81-35.2004'!J213:J237,"IsMater",'Форма по МДС 81-35.2004'!N213:N237),0) -> 0 | G16: =ROUND('Форма по МДС 81-35.2004'!F213*'Базовые цены за единицу'!G16,0) -> 0 | H16: =ROUND('Форма по МДС 81-35.2004'!F213*'Базовые цены за единицу'!H16,0) -> 0 | I16: =ОКРУГЛВСЕ(SUMIF('Форма по МДС 81-35.2004'!J213:J237,"Г",'Форма по МДС 81-35.2004'!F213:F237),8) -> 0.23793 | J16: =ОКРУГЛВСЕ('Форма по МДС 81-35.2004'!F213*'Базовые цены за единицу'!J16,8) -> 0 | K16: =ОКРУГЛВСЕ(SUMIF('Форма по МДС 81-35.2004'!J213:J237,"Ж",'Форма по МДС 81-35.2004'!F213:F237),8) -> 0.07931 | L16: =ROUND('Форма по МДС 81-35.2004'!F213*'Базовые цены за единицу'!L16,0) -> 0 | M16: =ROUND('Форма по МДС 81-35.2004'!F213*'Базовые цены за единицу'!M16,0) -> 0 | N16: =ROUND(B16*'Форма по МДС 81-35.2004'!M232/100,0) -> 1 | O16: =ROUND((B16+N16)*'Форма по МДС 81-35.2004'!M235/100,0) -> 1 | P16: =ROUND('Форма по МДС 81-35.2004'!F213*'Базовые цены за единицу'!P16,0) -> 0 | Q16: =ROUND('Форма по МДС 81-35.2004'!F213*'Базовые цены за единицу'!Q16,0) -> 0 | R16: =ROUND('Форма по МДС 81-35.2004'!F213*'Базовые цены за единицу'!R16,0) -> 0 | S16: =ROUND('Форма по МДС 81-35.2004'!F213*'Базовые цены за единицу'!S16,0) -> 0 | T16: =ROUND('Форма по МДС 81-35.2004'!F213*'Базовые цены за единицу'!T16,0) -> 0 | U16: =ROUND('Форма по МДС 81-35.2004'!F213*'Базовые цены за единицу'!U16,0) -> 0 | V16: =ROUND('Форма по МДС 81-35.2004'!F213*'Базовые цены за единицу'!V16,0) -> 0 | X16: =ROUND('Форма по МДС 81-35.2004'!F213*'Базовые цены за единицу'!X16,0) -> 0 | Y16: =IF(Определители!I16="9",ROUND(B16*(Начисления!M16/100)*'Форма по МДС 81-35.2004'!M232/100,0),0) -> 0 | Z16: =IF(Определители!I16="9",ROUND(B16*(100-Начисления!M16/100)*'Форма по МДС 81-35.2004'!M232/100,0),0) -> 0 | AA16: =IF(Определители!I16="9",ROUND((C16+E16)*(Начисления!M16/100)*('Форма по МДС 81-35.2004'!M235/100),0),0) -> 0 | AB16: =IF(Определители!I16="9",ROUND((C16+E16)*(100-Начисления!M16/100)*('Форма по МДС 81-35.2004'!M235/100),0),0) -> 0 | AC16: =IF(Определители!I16="9",ROUND(B16*Начисления!M16/100,0),0) -> 0 | AD16: =IF(Определители!I16="9",ROUND(B16*(100-Начисления!M16)/100,0),0) -> 0 | AE16: =ROUND('Форма по МДС 81-35.2004'!F213*'Базовые цены за единицу'!AE16,0) -> 0
A17: ='Форма по МДС 81-35.2004'!A238 -> 12. | B17: ='Форма по МДС 81-35.2004'!N238 -> 17 | C17: =ROUND(SUMIF('Форма по МДС 81-35.2004'!J238:J257,"Г",'Форма по МДС 81-35.2004'!N238:N257),0) -> 0 | D17: =ROUND(SUMIF('Форма по МДС 81-35.2004'!J238:J257,"IsMash",'Форма по МДС 81-35.2004'!N238:N257),0) -> 17 | E17: ='Форма по МДС 81-35.2004'!N240 -> 2 | F17: =ROUND(SUMIF('Форма по МДС 81-35.2004'!J238:J257,"IsMater",'Форма по МДС 81-35.2004'!N238:N257),0) -> 0 | G17: =ROUND('Форма по МДС 81-35.2004'!F238*'Базовые цены за единицу'!G17,0) -> 0 | H17: =ROUND('Форма по МДС 81-35.2004'!F238*'Базовые цены за единицу'!H17,0) -> 0 | I17: =ОКРУГЛВСЕ(SUMIF('Форма по МДС 81-35.2004'!J238:J257,"Г",'Форма по МДС 81-35.2004'!F238:F257),8) -> 0 | J17: =ОКРУГЛВСЕ('Форма по МДС 81-35.2004'!F238*'Базовые цены за единицу'!J17,8) -> 0 | K17: =ОКРУГЛВСЕ(SUMIF('Форма по МДС 81-35.2004'!J238:J257,"Ж",'Форма по МДС 81-35.2004'!F238:F257),8) -> 0.2045 | L17: =ROUND('Форма по МДС 81-35.2004'!F238*'Базовые цены за единицу'!L17,0) -> 0 | M17: =ROUND('Форма по МДС 81-35.2004'!F238*'Базовые цены за единицу'!M17,0) -> 0 | N17: =ROUND(B17*'Форма по МДС 81-35.2004'!M252/100,0) -> 2 | O17: =ROUND((B17+N17)*'Форма по МДС 81-35.2004'!M255/100,0) -> 2 | P17: =ROUND('Форма по МДС 81-35.2004'!F238*'Базовые цены за единицу'!P17,0) -> 0 | Q17: =ROUND('Форма по МДС 81-35.2004'!F238*'Базовые цены за единицу'!Q17,0) -> 0 | R17: =ROUND('Форма по МДС 81-35.2004'!F238*'Базовые цены за единицу'!R17,0) -> 0 | S17: =ROUND('Форма по МДС 81-35.2004'!F238*'Базовые цены за единицу'!S17,0) -> 0 | T17: =ROUND('Форма по МДС 81-35.2004'!F238*'Базовые цены за единицу'!T17,0) -> 0 | U17: =ROUND('Форма по МДС 81-35.2004'!F238*'Базовые цены за единицу'!U17,0) -> 0 | V17: =ROUND('Форма по МДС 81-35.2004'!F238*'Базовые цены за единицу'!V17,0) -> 0 | X17: =ROUND('Форма по МДС 81-35.2004'!F238*'Базовые цены за единицу'!X17,0) -> 0 | Y17: =IF(Определители!I17="9",ROUND(B17*(Начисления!M17/100)*'Форма по МДС 81-35.2004'!M252/100,0),0) -> 0 | Z17: =IF(Определители!I17="9",ROUND(B17*(100-Начисления!M17/100)*'Форма по МДС 81-35.2004'!M252/100,0),0) -> 0 | AA17: =IF(Определители!I17="9",ROUND((C17+E17)*(Начисления!M17/100)*('Форма по МДС 81-35.2004'!M255/100),0),0) -> 0 | AB17: =IF(Определители!I17="9",ROUND((C17+E17)*(100-Начисления!M17/100)*('Форма по МДС 81-35.2004'!M255/100),0),0) -> 0 | AC17: =IF(Определители!I17="9",ROUND(B17*Начисления!M17/100,0),0) -> 0 | AD17: =IF(Определители!I17="9",ROUND(B17*(100-Начисления!M17)/100,0),0) -> 0 | AE17: =ROUND('Форма по МДС 81-35.2004'!F238*'Базовые цены за единицу'!AE17,0) -> 0
A18: ='Форма по МДС 81-35.2004'!A258 -> 13. | B18: ='Форма по МДС 81-35.2004'!N258 -> 4 | C18: =ROUND(SUMIF('Форма по МДС 81-35.2004'!J258:J276,"Г",'Форма по МДС 81-35.2004'!N258:N276),0) -> 0 | D18: =ROUND(SUMIF('Форма по МДС 81-35.2004'!J258:J276,"IsMash",'Форма по МДС 81-35.2004'!N258:N276),0) -> 4 | E18: ='Форма по МДС 81-35.2004'!N259 -> 0 | F18: =ROUND(SUMIF('Форма по МДС 81-35.2004'!J258:J276,"IsMater",'Форма по МДС 81-35.2004'!N258:N276),0) -> 0 | G18: =ROUND('Форма по МДС 81-35.2004'!F258*'Базовые цены за единицу'!G18,0) -> 0 | H18: =ROUND('Форма по МДС 81-35.2004'!F258*'Базовые цены за единицу'!H18,0) -> 0 | I18: =ОКРУГЛВСЕ(SUMIF('Форма по МДС 81-35.2004'!J258:J276,"Г",'Форма по МДС 81-35.2004'!F258:F276),8) -> 0 | J18: =ОКРУГЛВСЕ('Форма по МДС 81-35.2004'!F258*'Базовые цены за единицу'!J18,8) -> 0 | K18: =ОКРУГЛВСЕ(SUMIF('Форма по МДС 81-35.2004'!J258:J276,"Ж",'Форма по МДС 81-35.2004'!F258:F276),8) -> 0 | L18: =ROUND('Форма по МДС 81-35.2004'!F258*'Базовые цены за единицу'!L18,0) -> 0 | M18: =ROUND('Форма по МДС 81-35.2004'!F258*'Базовые цены за единицу'!M18,0) -> 0 | N18: =ROUND(B18*'Форма по МДС 81-35.2004'!M271/100,0) -> 0 | O18: =ROUND((B18+N18)*'Форма по МДС 81-35.2004'!M274/100,0) -> 0 | P18: =ROUND('Форма по МДС 81-35.2004'!F258*'Базовые цены за единицу'!P18,0) -> 0 | Q18: =ROUND('Форма по МДС 81-35.2004'!F258*'Базовые цены за единицу'!Q18,0) -> 0 | R18: =ROUND('Форма по МДС 81-35.2004'!F258*'Базовые цены за единицу'!R18,0) -> 0 | S18: =ROUND('Форма по МДС 81-35.2004'!F258*'Базовые цены за единицу'!S18,0) -> 0 | T18: =ROUND('Форма по МДС 81-35.2004'!F258*'Базовые цены за единицу'!T18,0) -> 0 | U18: =ROUND('Форма по МДС 81-35.2004'!F258*'Базовые цены за единицу'!U18,0) -> 0 | V18: =ROUND('Форма по МДС 81-35.2004'!F258*'Базовые цены за единицу'!V18,0) -> 0 | X18: =ROUND('Форма по МДС 81-35.2004'!F258*'Базовые цены за единицу'!X18,0) -> 0 | Y18: =IF(Определители!I18="9",ROUND(B18*(Начисления!M18/100)*'Форма по МДС 81-35.2004'!M271/100,0),0) -> 0 | Z18: =IF(Определители!I18="9",ROUND(B18*(100-Начисления!M18/100)*'Форма по МДС 81-35.2004'!M271/100,0),0) -> 0 | AA18: =IF(Определители!I18="9",ROUND((C18+E18)*(Начисления!M18/100)*('Форма по МДС 81-35.2004'!M274/100),0),0) -> 0 | AB18: =IF(Определители!I18="9",ROUND((C18+E18)*(100-Начисления!M18/100)*('Форма по МДС 81-35.2004'!M274/100),0),0) -> 0 | AC18: =IF(Определители!I18="9",ROUND(B18*Начисления!M18/100,0),0) -> 0 | AD18: =IF(Определители!I18="9",ROUND(B18*(100-Начисления!M18)/100,0),0) -> 0 | AE18: =ROUND('Форма по МДС 81-35.2004'!F258*'Базовые цены за единицу'!AE18,0) -> 0
A19: ='Форма по МДС 81-35.2004'!A277 -> 14. | B19: ='Форма по МДС 81-35.2004'!N277 -> 8 | C19: =ROUND(SUMIF('Форма по МДС 81-35.2004'!J277:J296,"Г",'Форма по МДС 81-35.2004'!N277:N296),0) -> 0 | D19: =ROUND(SUMIF('Форма по МДС 81-35.2004'!J277:J296,"IsMash",'Форма по МДС 81-35.2004'!N277:N296),0) -> 8 | E19: ='Форма по МДС 81-35.2004'!N279 -> 0 | F19: =ROUND(SUMIF('Форма по МДС 81-35.2004'!J277:J296,"IsMater",'Форма по МДС 81-35.2004'!N277:N296),0) -> 0 | G19: =ROUND('Форма по МДС 81-35.2004'!F277*'Базовые цены за единицу'!G19,0) -> 0 | H19: =ROUND('Форма по МДС 81-35.2004'!F277*'Базовые цены за единицу'!H19,0) -> 0 | I19: =ОКРУГЛВСЕ(SUMIF('Форма по МДС 81-35.2004'!J277:J296,"Г",'Форма по МДС 81-35.2004'!F277:F296),8) -> 0 | J19: =ОКРУГЛВСЕ('Форма по МДС 81-35.2004'!F277*'Базовые цены за единицу'!J19,8) -> 0 | K19: =ОКРУГЛВСЕ(SUMIF('Форма по МДС 81-35.2004'!J277:J296,"Ж",'Форма по МДС 81-35.2004'!F277:F296),8) -> 0 | L19: =ROUND('Форма по МДС 81-35.2004'!F277*'Базовые цены за единицу'!L19,0) -> 0 | M19: =ROUND('Форма по МДС 81-35.2004'!F277*'Базовые цены за единицу'!M19,0) -> 0 | N19: =ROUND(B19*'Форма по МДС 81-35.2004'!M291/100,0) -> 1 | O19: =ROUND((B19+N19)*'Форма по МДС 81-35.2004'!M294/100,0) -> 1 | P19: =ROUND('Форма по МДС 81-35.2004'!F277*'Базовые цены за единицу'!P19,0) -> 0 | Q19: =ROUND('Форма по МДС 81-35.2004'!F277*'Базовые цены за единицу'!Q19,0) -> 0 | R19: =ROUND('Форма по МДС 81-35.2004'!F277*'Базовые цены за единицу'!R19,0) -> 0 | S19: =ROUND('Форма по МДС 81-35.2004'!F277*'Базовые цены за единицу'!S19,0) -> 0 | T19: =ROUND('Форма по МДС 81-35.2004'!F277*'Базовые цены за единицу'!T19,0) -> 0 | U19: =ROUND('Форма по МДС 81-35.2004'!F277*'Базовые цены за единицу'!U19,0) -> 0 | V19: =ROUND('Форма по МДС 81-35.2004'!F277*'Базовые цены за единицу'!V19,0) -> 0 | X19: =ROUND('Форма по МДС 81-35.2004'!F277*'Базовые цены за единицу'!X19,0) -> 0 | Y19: =IF(Определители!I19="9",ROUND(B19*(Начисления!M19/100)*'Форма по МДС 81-35.2004'!M291/100,0),0) -> 0 | Z19: =IF(Определители!I19="9",ROUND(B19*(100-Начисления!M19/100)*'Форма по МДС 81-35.2004'!M291/100,0),0) -> 0 | AA19: =IF(Определители!I19="9",ROUND((C19+E19)*(Начисления!M19/100)*('Форма по МДС 81-35.2004'!M294/100),0),0) -> 0 | AB19: =IF(Определители!I19="9",ROUND((C19+E19)*(100-Начисления!M19/100)*('Форма по МДС 81-35.2004'!M294/100),0),0) -> 0 | AC19: =IF(Определители!I19="9",ROUND(B19*Начисления!M19/100,0),0) -> 0 | AD19: =IF(Определители!I19="9",ROUND(B19*(100-Начисления!M19)/100,0),0) -> 0 | AE19: =ROUND('Форма по МДС 81-35.2004'!F277*'Базовые цены за единицу'!AE19,0) -> 0
A20: ='Форма по МДС 81-35.2004'!A299 -> 15. | B20: ='Форма по МДС 81-35.2004'!N299 -> 9 | C20: =ROUND(SUMIF('Форма по МДС 81-35.2004'!J299:J318,"Г",'Форма по МДС 81-35.2004'!N299:N318),0) -> 4 | D20: =ROUND(SUMIF('Форма по МДС 81-35.2004'!J299:J318,"IsMash",'Форма по МДС 81-35.2004'!N299:N318),0) -> 5 | E20: ='Форма по МДС 81-35.2004'!N300 -> 1 | F20: =ROUND(SUMIF('Форма по МДС 81-35.2004'!J299:J318,"IsMater",'Форма по МДС 81-35.2004'!N299:N318),0) -> 0 | G20: =ROUND('Форма по МДС 81-35.2004'!F299*'Базовые цены за единицу'!G20,0) -> 0 | H20: =ROUND('Форма по МДС 81-35.2004'!F299*'Базовые цены за единицу'!H20,0) -> 0 | I20: =ОКРУГЛВСЕ(SUMIF('Форма по МДС 81-35.2004'!J299:J318,"Г",'Форма по МДС 81-35.2004'!F299:F318),8) -> 0.50048 | J20: =ОКРУГЛВСЕ('Форма по МДС 81-35.2004'!F299*'Базовые цены за единицу'!J20,8) -> 0 | K20: =ОКРУГЛВСЕ(SUMIF('Форма по МДС 81-35.2004'!J299:J318,"Ж",'Форма по МДС 81-35.2004'!F299:F318),8) -> 0.06256 | L20: =ROUND('Форма по МДС 81-35.2004'!F299*'Базовые цены за единицу'!L20,0) -> 0 | M20: =ROUND('Форма по МДС 81-35.2004'!F299*'Базовые цены за единицу'!M20,0) -> 0 | N20: =ROUND(B20*'Форма по МДС 81-35.2004'!M313/100,0) -> 1 | O20: =ROUND((B20+N20)*'Форма по МДС 81-35.2004'!M316/100,0) -> 1 | P20: =ROUND('Форма по МДС 81-35.2004'!F299*'Базовые цены за единицу'!P20,0) -> 0 | Q20: =ROUND('Форма по МДС 81-35.2004'!F299*'Базовые цены за единицу'!Q20,0) -> 0 | R20: =ROUND('Форма по МДС 81-35.2004'!F299*'Базовые цены за единицу'!R20,0) -> 0 | S20: =ROUND('Форма по МДС 81-35.2004'!F299*'Базовые цены за единицу'!S20,0) -> 0 | T20: =ROUND('Форма по МДС 81-35.2004'!F299*'Базовые цены за единицу'!T20,0) -> 0 | U20: =ROUND('Форма по МДС 81-35.2004'!F299*'Базовые цены за единицу'!U20,0) -> 0 | V20: =ROUND('Форма по МДС 81-35.2004'!F299*'Базовые цены за единицу'!V20,0) -> 0 | X20: =ROUND('Форма по МДС 81-35.2004'!F299*'Базовые цены за единицу'!X20,0) -> 0 | Y20: =IF(Определители!I20="9",ROUND(B20*(Начисления!M20/100)*'Форма по МДС 81-35.2004'!M313/100,0),0) -> 0 | Z20: =IF(Определители!I20="9",ROUND(B20*(100-Начисления!M20/100)*'Форма по МДС 81-35.2004'!M313/100,0),0) -> 0 | AA20: =IF(Определители!I20="9",ROUND((C20+E20)*(Начисления!M20/100)*('Форма по МДС 81-35.2004'!M316/100),0),0) -> 0 | AB20: =IF(Определители!I20="9",ROUND((C20+E20)*(100-Начисления!M20/100)*('Форма по МДС 81-35.2004'!M316/100),0),0) -> 0 | AC20: =IF(Определители!I20="9",ROUND(B20*Начисления!M20/100,0),0) -> 0 | AD20: =IF(Определители!I20="9",ROUND(B20*(100-Начисления!M20)/100,0),0) -> 0 | AE20: =ROUND('Форма по МДС 81-35.2004'!F299*'Базовые цены за единицу'!AE20,0) -> 0
A21: ='Форма по МДС 81-35.2004'!A319 -> 16. | B21: ='Форма по МДС 81-35.2004'!N319 -> 54 | C21: =ROUND(SUMIF('Форма по МДС 81-35.2004'!J319:J339,"Г",'Форма по МДС 81-35.2004'!N319:N339),0) -> 2 | D21: =ROUND(SUMIF('Форма по МДС 81-35.2004'!J319:J339,"IsMash",'Форма по МДС 81-35.2004'!N319:N339),0) -> 0 | E21: ='Форма по МДС 81-35.2004'!N320 -> 0 | F21: =ROUND(SUMIF('Форма по МДС 81-35.2004'!J319:J339,"IsMater",'Форма по МДС 81-35.2004'!N319:N339),0) -> 53 | G21: =ROUND('Форма по МДС 81-35.2004'!F319*'Базовые цены за единицу'!G21,0) -> 51 | H21: =ROUND('Форма по МДС 81-35.2004'!F319*'Базовые цены за единицу'!H21,0) -> 0 | I21: =ОКРУГЛВСЕ(SUMIF('Форма по МДС 81-35.2004'!J319:J339,"Г",'Форма по МДС 81-35.2004'!F319:F339),8) -> 0.23373 | J21: =ОКРУГЛВСЕ('Форма по МДС 81-35.2004'!F319*'Базовые цены за единицу'!J21,8) -> 0 | K21: =ОКРУГЛВСЕ(SUMIF('Форма по МДС 81-35.2004'!J319:J339,"Ж",'Форма по МДС 81-35.2004'!F319:F339),8) -> 0 | L21: =ROUND('Форма по МДС 81-35.2004'!F319*'Базовые цены за единицу'!L21,0) -> 0 | M21: =ROUND('Форма по МДС 81-35.2004'!F319*'Базовые цены за единицу'!M21,0) -> 0 | N21: =ROUND(B21*'Форма по МДС 81-35.2004'!M334/100,0) -> 6 | O21: =ROUND((B21+N21)*'Форма по МДС 81-35.2004'!M337/100,0) -> 5 | P21: =ROUND('Форма по МДС 81-35.2004'!F319*'Базовые цены за единицу'!P21,0) -> 0 | Q21: =ROUND('Форма по МДС 81-35.2004'!F319*'Базовые цены за единицу'!Q21,0) -> 0 | R21: =ROUND('Форма по МДС 81-35.2004'!F319*'Базовые цены за единицу'!R21,0) -> 0 | S21: =ROUND('Форма по МДС 81-35.2004'!F319*'Базовые цены за единицу'!S21,0) -> 0 | T21: =ROUND('Форма по МДС 81-35.2004'!F319*'Базовые цены за единицу'!T21,0) -> 0 | U21: =ROUND('Форма по МДС 81-35.2004'!F319*'Базовые цены за единицу'!U21,0) -> 0 | V21: =ROUND('Форма по МДС 81-35.2004'!F319*'Базовые цены за единицу'!V21,0) -> 0 | X21: =ROUND('Форма по МДС 81-35.2004'!F319*'Базовые цены за единицу'!X21,0) -> 0 | Y21: =IF(Определители!I21="9",ROUND(B21*(Начисления!M21/100)*'Форма по МДС 81-35.2004'!M334/100,0),0) -> 0 | Z21: =IF(Определители!I21="9",ROUND(B21*(100-Начисления!M21/100)*'Форма по МДС 81-35.2004'!M334/100,0),0) -> 0 | AA21: =IF(Определители!I21="9",ROUND((C21+E21)*(Начисления!M21/100)*('Форма по МДС 81-35.2004'!M337/100),0),0) -> 0 | AB21: =IF(Определители!I21="9",ROUND((C21+E21)*(100-Начисления!M21/100)*('Форма по МДС 81-35.2004'!M337/100),0),0) -> 0 | AC21: =IF(Определители!I21="9",ROUND(B21*Начисления!M21/100,0),0) -> 0 | AD21: =IF(Определители!I21="9",ROUND(B21*(100-Начисления!M21)/100,0),0) -> 0 | AE21: =ROUND('Форма по МДС 81-35.2004'!F319*'Базовые цены за единицу'!AE21,0) -> 0
A22: ='Форма по МДС 81-35.2004'!A340 -> 17. | B22: ='Форма по МДС 81-35.2004'!N340 -> 8 | C22: =ROUND(SUMIF('Форма по МДС 81-35.2004'!J340:J359,"Г",'Форма по МДС 81-35.2004'!N340:N359),0) -> 2 | D22: =ROUND(SUMIF('Форма по МДС 81-35.2004'!J340:J359,"IsMash",'Форма по МДС 81-35.2004'!N340:N359),0) -> 0 | E22: ='Форма по МДС 81-35.2004'!N341 -> 0 | F22: =ROUND(SUMIF('Форма по МДС 81-35.2004'!J340:J359,"IsMater",'Форма по МДС 81-35.2004'!N340:N359),0) -> 6 | G22: =ROUND('Форма по МДС 81-35.2004'!F340*'Базовые цены за единицу'!G22,0) -> 6 | H22: =ROUND('Форма по МДС 81-35.2004'!F340*'Базовые цены за единицу'!H22,0) -> 0 | I22: =ОКРУГЛВСЕ(SUMIF('Форма по МДС 81-35.2004'!J340:J359,"Г",'Форма по МДС 81-35.2004'!F340:F359),8) -> 0.19055 | J22: =ОКРУГЛВСЕ('Форма по МДС 81-35.2004'!F340*'Базовые цены за единицу'!J22,8) -> 0 | K22: =ОКРУГЛВСЕ(SUMIF('Форма по МДС 81-35.2004'!J340:J359,"Ж",'Форма по МДС 81-35.2004'!F340:F359),8) -> 0 | L22: =ROUND('Форма по МДС 81-35.2004'!F340*'Базовые цены за единицу'!L22,0) -> 0 | M22: =ROUND('Форма по МДС 81-35.2004'!F340*'Базовые цены за единицу'!M22,0) -> 0 | N22: =ROUND(B22*'Форма по МДС 81-35.2004'!M354/100,0) -> 1 | O22: =ROUND((B22+N22)*'Форма по МДС 81-35.2004'!M357/100,0) -> 1 | P22: =ROUND('Форма по МДС 81-35.2004'!F340*'Базовые цены за единицу'!P22,0) -> 0 | Q22: =ROUND('Форма по МДС 81-35.2004'!F340*'Базовые цены за единицу'!Q22,0) -> 0 | R22: =ROUND('Форма по МДС 81-35.2004'!F340*'Базовые цены за единицу'!R22,0) -> 0 | S22: =ROUND('Форма по МДС 81-35.2004'!F340*'Базовые цены за единицу'!S22,0) -> 0 | T22: =ROUND('Форма по МДС 81-35.2004'!F340*'Базовые цены за единицу'!T22,0) -> 0 | U22: =ROUND('Форма по МДС 81-35.2004'!F340*'Базовые цены за единицу'!U22,0) -> 0 | V22: =ROUND('Форма по МДС 81-35.2004'!F340*'Базовые цены за единицу'!V22,0) -> 0 | X22: =ROUND('Форма по МДС 81-35.2004'!F340*'Базовые цены за единицу'!X22,0) -> 0 | Y22: =IF(Определители!I22="9",ROUND(B22*(Начисления!M22/100)*'Форма по МДС 81-35.2004'!M354/100,0),0) -> 0 | Z22: =IF(Определители!I22="9",ROUND(B22*(100-Начисления!M22/100)*'Форма по МДС 81-35.2004'!M354/100,0),0) -> 0 | AA22: =IF(Определители!I22="9",ROUND((C22+E22)*(Начисления!M22/100)*('Форма по МДС 81-35.2004'!M357/100),0),0) -> 0 | AB22: =IF(Определители!I22="9",ROUND((C22+E22)*(100-Начисления!M22/100)*('Форма по МДС 81-35.2004'!M357/100),0),0) -> 0 | AC22: =IF(Определители!I22="9",ROUND(B22*Начисления!M22/100,0),0) -> 0 | AD22: =IF(Определители!I22="9",ROUND(B22*(100-Начисления!M22)/100,0),0) -> 0 | AE22: =ROUND('Форма по МДС 81-35.2004'!F340*'Базовые цены за единицу'!AE22,0) -> 0
A23: ='Форма по МДС 81-35.2004'!A360 -> 18. | B23: ='Форма по МДС 81-35.2004'!N360 -> 0 | C23: =ROUND(SUMIF('Форма по МДС 81-35.2004'!J360:J379,"Г",'Форма по МДС 81-35.2004'!N360:N379),0) -> 0 | D23: =ROUND(SUMIF('Форма по МДС 81-35.2004'!J360:J379,"IsMash",'Форма по МДС 81-35.2004'!N360:N379),0) -> 0 | E23: ='Форма по МДС 81-35.2004'!N361 -> 0 | F23: =ROUND(SUMIF('Форма по МДС 81-35.2004'!J360:J379,"IsMater",'Форма по МДС 81-35.2004'!N360:N379),0) -> 0 | G23: =ROUND('Форма по МДС 81-35.2004'!F360*'Базовые цены за единицу'!G23,0) -> 0 | H23: =ROUND('Форма по МДС 81-35.2004'!F360*'Базовые цены за единицу'!H23,0) -> 0 | I23: =ОКРУГЛВСЕ(SUMIF('Форма по МДС 81-35.2004'!J360:J379,"Г",'Форма по МДС 81-35.2004'!F360:F379),8) -> 0.0046 | J23: =ОКРУГЛВСЕ('Форма по МДС 81-35.2004'!F360*'Базовые цены за единицу'!J23,8) -> 0 | K23: =ОКРУГЛВСЕ(SUMIF('Форма по МДС 81-35.2004'!J360:J379,"Ж",'Форма по МДС 81-35.2004'!F360:F379),8) -> 0.00115 | L23: =ROUND('Форма по МДС 81-35.2004'!F360*'Базовые цены за единицу'!L23,0) -> 0 | M23: =ROUND('Форма по МДС 81-35.2004'!F360*'Базовые цены за единицу'!M23,0) -> 0 | N23: =ROUND(B23*'Форма по МДС 81-35.2004'!M374/100,0) -> 0 | O23: =ROUND((B23+N23)*'Форма по МДС 81-35.2004'!M377/100,0) -> 0 | P23: =ROUND('Форма по МДС 81-35.2004'!F360*'Базовые цены за единицу'!P23,0) -> 0 | Q23: =ROUND('Форма по МДС 81-35.2004'!F360*'Базовые цены за единицу'!Q23,0) -> 0 | R23: =ROUND('Форма по МДС 81-35.2004'!F360*'Базовые цены за единицу'!R23,0) -> 0 | S23: =ROUND('Форма по МДС 81-35.2004'!F360*'Базовые цены за единицу'!S23,0) -> 0 | T23: =ROUND('Форма по МДС 81-35.2004'!F360*'Базовые цены за единицу'!T23,0) -> 0 | U23: =ROUND('Форма по МДС 81-35.2004'!F360*'Базовые цены за единицу'!U23,0) -> 0 | V23: =ROUND('Форма по МДС 81-35.2004'!F360*'Базовые цены за единицу'!V23,0) -> 0 | X23: =ROUND('Форма по МДС 81-35.2004'!F360*'Базовые цены за единицу'!X23,0) -> 0 | Y23: =IF(Определители!I23="9",ROUND(B23*(Начисления!M23/100)*'Форма по МДС 81-35.2004'!M374/100,0),0) -> 0 | Z23: =IF(Определители!I23="9",ROUND(B23*(100-Начисления!M23/100)*'Форма по МДС 81-35.2004'!M374/100,0),0) -> 0 | AA23: =IF(Определители!I23="9",ROUND((C23+E23)*(Начисления!M23/100)*('Форма по МДС 81-35.2004'!M377/100),0),0) -> 0 | AB23: =IF(Определители!I23="9",ROUND((C23+E23)*(100-Начисления!M23/100)*('Форма по МДС 81-35.2004'!M377/100),0),0) -> 0 | AC23: =IF(Определители!I23="9",ROUND(B23*Начисления!M23/100,0),0) -> 0 | AD23: =IF(Определители!I23="9",ROUND(B23*(100-Начисления!M23)/100,0),0) -> 0 | AE23: =ROUND('Форма по МДС 81-35.2004'!F360*'Базовые цены за единицу'!AE23,0) -> 0
A24: ='Форма по МДС 81-35.2004'!A380 -> 19. | B24: ='Форма по МДС 81-35.2004'!N380 -> 3 | C24: =ROUND(SUMIF('Форма по МДС 81-35.2004'!J380:J399,"Г",'Форма по МДС 81-35.2004'!N380:N399),0) -> 1 | D24: =ROUND(SUMIF('Форма по МДС 81-35.2004'!J380:J399,"IsMash",'Форма по МДС 81-35.2004'!N380:N399),0) -> 1 | E24: ='Форма по МДС 81-35.2004'!N381 -> 0 | F24: =ROUND(SUMIF('Форма по МДС 81-35.2004'!J380:J399,"IsMater",'Форма по МДС 81-35.2004'!N380:N399),0) -> 0 | G24: =ROUND('Форма по МДС 81-35.2004'!F380*'Базовые цены за единицу'!G24,0) -> 0 | H24: =ROUND('Форма по МДС 81-35.2004'!F380*'Базовые цены за единицу'!H24,0) -> 0 | I24: =ОКРУГЛВСЕ(SUMIF('Форма по МДС 81-35.2004'!J380:J399,"Г",'Форма по МДС 81-35.2004'!F380:F399),8) -> 0.136 | J24: =ОКРУГЛВСЕ('Форма по МДС 81-35.2004'!F380*'Базовые цены за единицу'!J24,8) -> 0 | K24: =ОКРУГЛВСЕ(SUMIF('Форма по МДС 81-35.2004'!J380:J399,"Ж",'Форма по МДС 81-35.2004'!F380:F399),8) -> 0.017 | L24: =ROUND('Форма по МДС 81-35.2004'!F380*'Базовые цены за единицу'!L24,0) -> 0 | M24: =ROUND('Форма по МДС 81-35.2004'!F380*'Базовые цены за единицу'!M24,0) -> 0 | N24: =ROUND(B24*'Форма по МДС 81-35.2004'!M394/100,0) -> 0 | O24: =ROUND((B24+N24)*'Форма по МДС 81-35.2004'!M397/100,0) -> 0 | P24: =ROUND('Форма по МДС 81-35.2004'!F380*'Базовые цены за единицу'!P24,0) -> 0 | Q24: =ROUND('Форма по МДС 81-35.2004'!F380*'Базовые цены за единицу'!Q24,0) -> 0 | R24: =ROUND('Форма по МДС 81-35.2004'!F380*'Базовые цены за единицу'!R24,0) -> 0 | S24: =ROUND('Форма по МДС 81-35.2004'!F380*'Базовые цены за единицу'!S24,0) -> 0 | T24: =ROUND('Форма по МДС 81-35.2004'!F380*'Базовые цены за единицу'!T24,0) -> 0 | U24: =ROUND('Форма по МДС 81-35.2004'!F380*'Базовые цены за единицу'!U24,0) -> 0 | V24: =ROUND('Форма по МДС 81-35.2004'!F380*'Базовые цены за единицу'!V24,0) -> 0 | X24: =ROUND('Форма по МДС 81-35.2004'!F380*'Базовые цены за единицу'!X24,0) -> 0 | Y24: =IF(Определители!I24="9",ROUND(B24*(Начисления!M24/100)*'Форма по МДС 81-35.2004'!M394/100,0),0) -> 0 | Z24: =IF(Определители!I24="9",ROUND(B24*(100-Начисления!M24/100)*'Форма по МДС 81-35.2004'!M394/100,0),0) -> 0 | AA24: =IF(Определители!I24="9",ROUND((C24+E24)*(Начисления!M24/100)*('Форма по МДС 81-35.2004'!M397/100),0),0) -> 0 | AB24: =IF(Определители!I24="9",ROUND((C24+E24)*(100-Начисления!M24/100)*('Форма по МДС 81-35.2004'!M397/100),0),0) -> 0 | AC24: =IF(Определители!I24="9",ROUND(B24*Начисления!M24/100,0),0) -> 0 | AD24: =IF(Определители!I24="9",ROUND(B24*(100-Начисления!M24)/100,0),0) -> 0 | AE24: =ROUND('Форма по МДС 81-35.2004'!F380*'Базовые цены за единицу'!AE24,0) -> 0
A25: ='Форма по МДС 81-35.2004'!A402 -> 20. | B25: ='Форма по МДС 81-35.2004'!N402 -> 1 | C25: =ROUND(SUMIF('Форма по МДС 81-35.2004'!J402:J421,"Г",'Форма по МДС 81-35.2004'!N402:N421),0) -> 0 | D25: =ROUND(SUMIF('Форма по МДС 81-35.2004'!J402:J421,"IsMash",'Форма по МДС 81-35.2004'!N402:N421),0) -> 0 | E25: ='Форма по МДС 81-35.2004'!N403 -> 0 | F25: =ROUND(SUMIF('Форма по МДС 81-35.2004'!J402:J421,"IsMater",'Форма по МДС 81-35.2004'!N402:N421),0) -> 0 | G25: =ROUND('Форма по МДС 81-35.2004'!F402*'Базовые цены за единицу'!G25,0) -> 0 | H25: =ROUND('Форма по МДС 81-35.2004'!F402*'Базовые цены за единицу'!H25,0) -> 0 | I25: =ОКРУГЛВСЕ(SUMIF('Форма по МДС 81-35.2004'!J402:J421,"Г",'Форма по МДС 81-35.2004'!F402:F421),8) -> 0.0368 | J25: =ОКРУГЛВСЕ('Форма по МДС 81-35.2004'!F402*'Базовые цены за единицу'!J25,8) -> 0 | K25: =ОКРУГЛВСЕ(SUMIF('Форма по МДС 81-35.2004'!J402:J421,"Ж",'Форма по МДС 81-35.2004'!F402:F421),8) -> 0.0046 | L25: =ROUND('Форма по МДС 81-35.2004'!F402*'Базовые цены за единицу'!L25,0) -> 0 | M25: =ROUND('Форма по МДС 81-35.2004'!F402*'Базовые цены за единицу'!M25,0) -> 0 | N25: =ROUND(B25*'Форма по МДС 81-35.2004'!M416/100,0) -> 0 | O25: =ROUND((B25+N25)*'Форма по МДС 81-35.2004'!M419/100,0) -> 0 | P25: =ROUND('Форма по МДС 81-35.2004'!F402*'Базовые цены за единицу'!P25,0) -> 0 | Q25: =ROUND('Форма по МДС 81-35.2004'!F402*'Базовые цены за единицу'!Q25,0) -> 0 | R25: =ROUND('Форма по МДС 81-35.2004'!F402*'Базовые цены за единицу'!R25,0) -> 0 | S25: =ROUND('Форма по МДС 81-35.2004'!F402*'Базовые цены за единицу'!S25,0) -> 0 | T25: =ROUND('Форма по МДС 81-35.2004'!F402*'Базовые цены за единицу'!T25,0) -> 0 | U25: =ROUND('Форма по МДС 81-35.2004'!F402*'Базовые цены за единицу'!U25,0) -> 0 | V25: =ROUND('Форма по МДС 81-35.2004'!F402*'Базовые цены за единицу'!V25,0) -> 0 | X25: =ROUND('Форма по МДС 81-35.2004'!F402*'Базовые цены за единицу'!X25,0) -> 0 | Y25: =IF(Определители!I25="9",ROUND(B25*(Начисления!M25/100)*'Форма по МДС 81-35.2004'!M416/100,0),0) -> 0 | Z25: =IF(Определители!I25="9",ROUND(B25*(100-Начисления!M25/100)*'Форма по МДС 81-35.2004'!M416/100,0),0) -> 0 | AA25: =IF(Определители!I25="9",ROUND((C25+E25)*(Начисления!M25/100)*('Форма по МДС 81-35.2004'!M419/100),0),0) -> 0 | AB25: =IF(Определители!I25="9",ROUND((C25+E25)*(100-Начисления!M25/100)*('Форма по МДС 81-35.2004'!M419/100),0),0) -> 0 | AC25: =IF(Определители!I25="9",ROUND(B25*Начисления!M25/100,0),0) -> 0 | AD25: =IF(Определители!I25="9",ROUND(B25*(100-Начисления!M25)/100,0),0) -> 0 | AE25: =ROUND('Форма по МДС 81-35.2004'!F402*'Базовые цены за единицу'!AE25,0) -> 0
A26: ='Форма по МДС 81-35.2004'!A422 -> 21. | B26: ='Форма по МДС 81-35.2004'!N422 -> 0 | C26: =ROUND(SUMIF('Форма по МДС 81-35.2004'!J422:J441,"Г",'Форма по МДС 81-35.2004'!N422:N441),0) -> 0 | D26: =ROUND(SUMIF('Форма по МДС 81-35.2004'!J422:J441,"IsMash",'Форма по МДС 81-35.2004'!N422:N441),0) -> 0 | E26: ='Форма по МДС 81-35.2004'!N423 -> 0 | F26: =ROUND(SUMIF('Форма по МДС 81-35.2004'!J422:J441,"IsMater",'Форма по МДС 81-35.2004'!N422:N441),0) -> 0 | G26: =ROUND('Форма по МДС 81-35.2004'!F422*'Базовые цены за единицу'!G26,0) -> 0 | H26: =ROUND('Форма по МДС 81-35.2004'!F422*'Базовые цены за единицу'!H26,0) -> 0 | I26: =ОКРУГЛВСЕ(SUMIF('Форма по МДС 81-35.2004'!J422:J441,"Г",'Форма по МДС 81-35.2004'!F422:F441),8) -> 0.00896 | J26: =ОКРУГЛВСЕ('Форма по МДС 81-35.2004'!F422*'Базовые цены за единицу'!J26,8) -> 0 | K26: =ОКРУГЛВСЕ(SUMIF('Форма по МДС 81-35.2004'!J422:J441,"Ж",'Форма по МДС 81-35.2004'!F422:F441),8) -> 0.00112 | L26: =ROUND('Форма по МДС 81-35.2004'!F422*'Базовые цены за единицу'!L26,0) -> 0 | M26: =ROUND('Форма по МДС 81-35.2004'!F422*'Базовые цены за единицу'!M26,0) -> 0 | N26: =ROUND(B26*'Форма по МДС 81-35.2004'!M436/100,0) -> 0 | O26: =ROUND((B26+N26)*'Форма по МДС 81-35.2004'!M439/100,0) -> 0 | P26: =ROUND('Форма по МДС 81-35.2004'!F422*'Базовые цены за единицу'!P26,0) -> 0 | Q26: =ROUND('Форма по МДС 81-35.2004'!F422*'Базовые цены за единицу'!Q26,0) -> 0 | R26: =ROUND('Форма по МДС 81-35.2004'!F422*'Базовые цены за единицу'!R26,0) -> 0 | S26: =ROUND('Форма по МДС 81-35.2004'!F422*'Базовые цены за единицу'!S26,0) -> 0 | T26: =ROUND('Форма по МДС 81-35.2004'!F422*'Базовые цены за единицу'!T26,0) -> 0 | U26: =ROUND('Форма по МДС 81-35.2004'!F422*'Базовые цены за единицу'!U26,0) -> 0 | V26: =ROUND('Форма по МДС 81-35.2004'!F422*'Базовые цены за единицу'!V26,0) -> 0 | X26: =ROUND('Форма по МДС 81-35.2004'!F422*'Базовые цены за единицу'!X26,0) -> 0 | Y26: =IF(Определители!I26="9",ROUND(B26*(Начисления!M26/100)*'Форма по МДС 81-35.2004'!M436/100,0),0) -> 0 | Z26: =IF(Определители!I26="9",ROUND(B26*(100-Начисления!M26/100)*'Форма по МДС 81-35.2004'!M436/100,0),0) -> 0 | AA26: =IF(Определители!I26="9",ROUND((C26+E26)*(Начисления!M26/100)*('Форма по МДС 81-35.2004'!M439/100),0),0) -> 0 | AB26: =IF(Определители!I26="9",ROUND((C26+E26)*(100-Начисления!M26/100)*('Форма по МДС 81-35.2004'!M439/100),0),0) -> 0 | AC26: =IF(Определители!I26="9",ROUND(B26*Начисления!M26/100,0),0) -> 0 | AD26: =IF(Определители!I26="9",ROUND(B26*(100-Начисления!M26)/100,0),0) -> 0 | AE26: =ROUND('Форма по МДС 81-35.2004'!F422*'Базовые цены за единицу'!AE26,0) -> 0
A27: ='Форма по МДС 81-35.2004'!A442 -> 22. | B27: ='Форма по МДС 81-35.2004'!N442 -> 60 | C27: =ROUND(SUMIF('Форма по МДС 81-35.2004'!J442:J470,"Г",'Форма по МДС 81-35.2004'!N442:N470),0) -> 16 | D27: =ROUND(SUMIF('Форма по МДС 81-35.2004'!J442:J470,"IsMash",'Форма по МДС 81-35.2004'!N442:N470),0) -> 43 | E27: ='Форма по МДС 81-35.2004'!N443 -> 6 | F27: =ROUND(SUMIF('Форма по МДС 81-35.2004'!J442:J470,"IsMater",'Форма по МДС 81-35.2004'!N442:N470),0) -> 1 | G27: =ROUND('Форма по МДС 81-35.2004'!F442*'Базовые цены за единицу'!G27,0) -> 1 | H27: =ROUND('Форма по МДС 81-35.2004'!F442*'Базовые цены за единицу'!H27,0) -> 0 | I27: =ОКРУГЛВСЕ(SUMIF('Форма по МДС 81-35.2004'!J442:J470,"Г",'Форма по МДС 81-35.2004'!F442:F470),8) -> 1.978152 | J27: =ОКРУГЛВСЕ('Форма по МДС 81-35.2004'!F442*'Базовые цены за единицу'!J27,8) -> 0 | K27: =ОКРУГЛВСЕ(SUMIF('Форма по МДС 81-35.2004'!J442:J470,"Ж",'Форма по МДС 81-35.2004'!F442:F470),8) -> 0.494538 | L27: =ROUND('Форма по МДС 81-35.2004'!F442*'Базовые цены за единицу'!L27,0) -> 0 | M27: =ROUND('Форма по МДС 81-35.2004'!F442*'Базовые цены за единицу'!M27,0) -> 0 | N27: =ROUND(B27*'Форма по МДС 81-35.2004'!M465/100,0) -> 7 | O27: =ROUND((B27+N27)*'Форма по МДС 81-35.2004'!M468/100,0) -> 5 | P27: =ROUND('Форма по МДС 81-35.2004'!F442*'Базовые цены за единицу'!P27,0) -> 0 | Q27: =ROUND('Форма по МДС 81-35.2004'!F442*'Базовые цены за единицу'!Q27,0) -> 0 | R27: =ROUND('Форма по МДС 81-35.2004'!F442*'Базовые цены за единицу'!R27,0) -> 0 | S27: =ROUND('Форма по МДС 81-35.2004'!F442*'Базовые цены за единицу'!S27,0) -> 0 | T27: =ROUND('Форма по МДС 81-35.2004'!F442*'Базовые цены за единицу'!T27,0) -> 0 | U27: =ROUND('Форма по МДС 81-35.2004'!F442*'Базовые цены за единицу'!U27,0) -> 0 | V27: =ROUND('Форма по МДС 81-35.2004'!F442*'Базовые цены за единицу'!V27,0) -> 0 | X27: =ROUND('Форма по МДС 81-35.2004'!F442*'Базовые цены за единицу'!X27,0) -> 0 | Y27: =IF(Определители!I27="9",ROUND(B27*(Начисления!M27/100)*'Форма по МДС 81-35.2004'!M465/100,0),0) -> 0 | Z27: =IF(Определители!I27="9",ROUND(B27*(100-Начисления!M27/100)*'Форма по МДС 81-35.2004'!M465/100,0),0) -> 0 | AA27: =IF(Определители!I27="9",ROUND((C27+E27)*(Начисления!M27/100)*('Форма по МДС 81-35.2004'!M468/100),0),0) -> 0 | AB27: =IF(Определители!I27="9",ROUND((C27+E27)*(100-Начисления!M27/100)*('Форма по МДС 81-35.2004'!M468/100),0),0) -> 0 | AC27: =IF(Определители!I27="9",ROUND(B27*Начисления!M27/100,0),0) -> 0 | AD27: =IF(Определители!I27="9",ROUND(B27*(100-Начисления!M27)/100,0),0) -> 0 | AE27: =ROUND('Форма по МДС 81-35.2004'!F442*'Базовые цены за единицу'!AE27,0) -> 0
A28: ='Форма по МДС 81-35.2004'!A472 -> 23. | B28: ='Форма по МДС 81-35.2004'!N472 -> 16 | C28: =ROUND(SUMIF('Форма по МДС 81-35.2004'!J472:J498,"Г",'Форма по МДС 81-35.2004'!N472:N498),0) -> 5 | D28: =ROUND(SUMIF('Форма по МДС 81-35.2004'!J472:J498,"IsMash",'Форма по МДС 81-35.2004'!N472:N498),0) -> 13 | E28: ='Форма по МДС 81-35.2004'!N473 -> 2 | F28: =ROUND(SUMIF('Форма по МДС 81-35.2004'!J472:J498,"IsMater",'Форма по МДС 81-35.2004'!N472:N498),0) -> 0 | G28: =ROUND('Форма по МДС 81-35.2004'!F472*'Базовые цены за единицу'!G28,0) -> 0 | H28: =ROUND('Форма по МДС 81-35.2004'!F472*'Базовые цены за единицу'!H28,0) -> 0 | I28: =ОКРУГЛВСЕ(SUMIF('Форма по МДС 81-35.2004'!J472:J498,"Г",'Форма по МДС 81-35.2004'!F472:F498),8) -> 0.4535 | J28: =ОКРУГЛВСЕ('Форма по МДС 81-35.2004'!F472*'Базовые цены за единицу'!J28,8) -> 0 | K28: =ОКРУГЛВСЕ(SUMIF('Форма по МДС 81-35.2004'!J472:J498,"Ж",'Форма по МДС 81-35.2004'!F472:F498),8) -> 0.1296 | L28: =ROUND('Форма по МДС 81-35.2004'!F472*'Базовые цены за единицу'!L28,0) -> 0 | M28: =ROUND('Форма по МДС 81-35.2004'!F472*'Базовые цены за единицу'!M28,0) -> 0 | N28: =ROUND(B28*'Форма по МДС 81-35.2004'!M493/100,0) -> 2 | O28: =ROUND((B28+N28)*'Форма по МДС 81-35.2004'!M496/100,0) -> 1 | P28: =ROUND('Форма по МДС 81-35.2004'!F472*'Базовые цены за единицу'!P28,0) -> 0 | Q28: =ROUND('Форма по МДС 81-35.2004'!F472*'Базовые цены за единицу'!Q28,0) -> 0 | R28: =ROUND('Форма по МДС 81-35.2004'!F472*'Базовые цены за единицу'!R28,0) -> 0 | S28: =ROUND('Форма по МДС 81-35.2004'!F472*'Базовые цены за единицу'!S28,0) -> 0 | T28: =ROUND('Форма по МДС 81-35.2004'!F472*'Базовые цены за единицу'!T28,0) -> 0 | U28: =ROUND('Форма по МДС 81-35.2004'!F472*'Базовые цены за единицу'!U28,0) -> 0 | V28: =ROUND('Форма по МДС 81-35.2004'!F472*'Базовые цены за единицу'!V28,0) -> 0 | X28: =ROUND('Форма по МДС 81-35.2004'!F472*'Базовые цены за единицу'!X28,0) -> 0 | Y28: =IF(Определители!I28="9",ROUND(B28*(Начисления!M28/100)*'Форма по МДС 81-35.2004'!M493/100,0),0) -> 0 | Z28: =IF(Определители!I28="9",ROUND(B28*(100-Начисления!M28/100)*'Форма по МДС 81-35.2004'!M493/100,0),0) -> 0 | AA28: =IF(Определители!I28="9",ROUND((C28+E28)*(Начисления!M28/100)*('Форма по МДС 81-35.2004'!M496/100),0),0) -> 0 | AB28: =IF(Определители!I28="9",ROUND((C28+E28)*(100-Начисления!M28/100)*('Форма по МДС 81-35.2004'!M496/100),0),0) -> 0 | AC28: =IF(Определители!I28="9",ROUND(B28*Начисления!M28/100,0),0) -> 0 | AD28: =IF(Определители!I28="9",ROUND(B28*(100-Начисления!M28)/100,0),0) -> 0 | AE28: =ROUND('Форма по МДС 81-35.2004'!F472*'Базовые цены за единицу'!AE28,0) -> 0
A29: ='Форма по МДС 81-35.2004'!A499 -> 24. | B29: ='Форма по МДС 81-35.2004'!N499 -> 4 | C29: =ROUND(SUMIF('Форма по МДС 81-35.2004'!J499:J524,"Г",'Форма по МДС 81-35.2004'!N499:N524),0) -> 0 | D29: =ROUND(SUMIF('Форма по МДС 81-35.2004'!J499:J524,"IsMash",'Форма по МДС 81-35.2004'!N499:N524),0) -> 4 | E29: ='Форма по МДС 81-35.2004'!N500 -> 1 | F29: =ROUND(SUMIF('Форма по МДС 81-35.2004'!J499:J524,"IsMater",'Форма по МДС 81-35.2004'!N499:N524),0) -> 0 | G29: =ROUND('Форма по МДС 81-35.2004'!F499*'Базовые цены за единицу'!G29,0) -> 0 | H29: =ROUND('Форма по МДС 81-35.2004'!F499*'Базовые цены за единицу'!H29,0) -> 0 | I29: =ОКРУГЛВСЕ(SUMIF('Форма по МДС 81-35.2004'!J499:J524,"Г",'Форма по МДС 81-35.2004'!F499:F524),8) -> 0.3784 | J29: =ОКРУГЛВСЕ('Форма по МДС 81-35.2004'!F499*'Базовые цены за единицу'!J29,8) -> 0 | K29: =ОКРУГЛВСЕ(SUMIF('Форма по МДС 81-35.2004'!J499:J524,"Ж",'Форма по МДС 81-35.2004'!F499:F524),8) -> 0.1419 | L29: =ROUND('Форма по МДС 81-35.2004'!F499*'Базовые цены за единицу'!L29,0) -> 0 | M29: =ROUND('Форма по МДС 81-35.2004'!F499*'Базовые цены за единицу'!M29,0) -> 0 | N29: =ROUND(B29*'Форма по МДС 81-35.2004'!M519/100,0) -> 0 | O29: =ROUND((B29+N29)*'Форма по МДС 81-35.2004'!M522/100,0) -> 0 | P29: =ROUND('Форма по МДС 81-35.2004'!F499*'Базовые цены за единицу'!P29,0) -> 0 | Q29: =ROUND('Форма по МДС 81-35.2004'!F499*'Базовые цены за единицу'!Q29,0) -> 0 | R29: =ROUND('Форма по МДС 81-35.2004'!F499*'Базовые цены за единицу'!R29,0) -> 0 | S29: =ROUND('Форма по МДС 81-35.2004'!F499*'Базовые цены за единицу'!S29,0) -> 0 | T29: =ROUND('Форма по МДС 81-35.2004'!F499*'Базовые цены за единицу'!T29,0) -> 0 | U29: =ROUND('Форма по МДС 81-35.2004'!F499*'Базовые цены за единицу'!U29,0) -> 0 | V29: =ROUND('Форма по МДС 81-35.2004'!F499*'Базовые цены за единицу'!V29,0) -> 0 | X29: =ROUND('Форма по МДС 81-35.2004'!F499*'Базовые цены за единицу'!X29,0) -> 0 | Y29: =IF(Определители!I29="9",ROUND(B29*(Начисления!M29/100)*'Форма по МДС 81-35.2004'!M519/100,0),0) -> 0 | Z29: =IF(Определители!I29="9",ROUND(B29*(100-Начисления!M29/100)*'Форма по МДС 81-35.2004'!M519/100,0),0) -> 0 | AA29: =IF(Определители!I29="9",ROUND((C29+E29)*(Начисления!M29/100)*('Форма по МДС 81-35.2004'!M522/100),0),0) -> 0 | AB29: =IF(Определители!I29="9",ROUND((C29+E29)*(100-Начисления!M29/100)*('Форма по МДС 81-35.2004'!M522/100),0),0) -> 0 | AC29: =IF(Определители!I29="9",ROUND(B29*Начисления!M29/100,0),0) -> 0 | AD29: =IF(Определители!I29="9",ROUND(B29*(100-Начисления!M29)/100,0),0) -> 0 | AE29: =ROUND('Форма по МДС 81-35.2004'!F499*'Базовые цены за единицу'!AE29,0) -> 0
A30: ='Форма по МДС 81-35.2004'!A525 -> 25. | B30: ='Форма по МДС 81-35.2004'!N525 -> 0 | C30: =ROUND(SUMIF('Форма по МДС 81-35.2004'!J525:J543,"Г",'Форма по МДС 81-35.2004'!N525:N543),0) -> 0 | D30: =ROUND(SUMIF('Форма по МДС 81-35.2004'!J525:J543,"IsMash",'Форма по МДС 81-35.2004'!N525:N543),0) -> 0 | E30: ='Форма по МДС 81-35.2004'!N527 -> 0 | F30: =ROUND(SUMIF('Форма по МДС 81-35.2004'!J525:J543,"IsMater",'Форма по МДС 81-35.2004'!N525:N543),0) -> 0 | G30: =ROUND('Форма по МДС 81-35.2004'!F525*'Базовые цены за единицу'!G30,0) -> 0 | H30: =ROUND('Форма по МДС 81-35.2004'!F525*'Базовые цены за единицу'!H30,0) -> 0 | I30: =ОКРУГЛВСЕ(SUMIF('Форма по МДС 81-35.2004'!J525:J543,"Г",'Форма по МДС 81-35.2004'!F525:F543),8) -> 0 | J30: =ОКРУГЛВСЕ('Форма по МДС 81-35.2004'!F525*'Базовые цены за единицу'!J30,8) -> 0 | K30: =ОКРУГЛВСЕ(SUMIF('Форма по МДС 81-35.2004'!J525:J543,"Ж",'Форма по МДС 81-35.2004'!F525:F543),8) -> 0 | L30: =ROUND('Форма по МДС 81-35.2004'!F525*'Базовые цены за единицу'!L30,0) -> 0 | M30: =ROUND('Форма по МДС 81-35.2004'!F525*'Базовые цены за единицу'!M30,0) -> 0 | N30: =ROUND(B30*'Форма по МДС 81-35.2004'!M538/100,0) -> 0 | O30: =ROUND((B30+N30)*'Форма по МДС 81-35.2004'!M541/100,0) -> 0 | P30: =ROUND('Форма по МДС 81-35.2004'!F525*'Базовые цены за единицу'!P30,0) -> 0 | Q30: =ROUND('Форма по МДС 81-35.2004'!F525*'Базовые цены за единицу'!Q30,0) -> 0 | R30: =ROUND('Форма по МДС 81-35.2004'!F525*'Базовые цены за единицу'!R30,0) -> 0 | S30: =ROUND('Форма по МДС 81-35.2004'!F525*'Базовые цены за единицу'!S30,0) -> 0 | T30: =ROUND('Форма по МДС 81-35.2004'!F525*'Базовые цены за единицу'!T30,0) -> 0 | U30: =ROUND('Форма по МДС 81-35.2004'!F525*'Базовые цены за единицу'!U30,0) -> 0 | V30: =ROUND('Форма по МДС 81-35.2004'!F525*'Базовые цены за единицу'!V30,0) -> 0 | X30: =ROUND('Форма по МДС 81-35.2004'!F525*'Базовые цены за единицу'!X30,0) -> 0 | Y30: =IF(Определители!I30="9",ROUND(B30*(Начисления!M30/100)*'Форма по МДС 81-35.2004'!M538/100,0),0) -> 0 | Z30: =IF(Определители!I30="9",ROUND(B30*(100-Начисления!M30/100)*'Форма по МДС 81-35.2004'!M538/100,0),0) -> 0 | AA30: =IF(Определители!I30="9",ROUND((C30+E30)*(Начисления!M30/100)*('Форма по МДС 81-35.2004'!M541/100),0),0) -> 0 | AB30: =IF(Определители!I30="9",ROUND((C30+E30)*(100-Начисления!M30/100)*('Форма по МДС 81-35.2004'!M541/100),0),0) -> 0 | AC30: =IF(Определители!I30="9",ROUND(B30*Начисления!M30/100,0),0) -> 0 | AD30: =IF(Определители!I30="9",ROUND(B30*(100-Начисления!M30)/100,0),0) -> 0 | AE30: =ROUND('Форма по МДС 81-35.2004'!F525*'Базовые цены за единицу'!AE30,0) -> 0
A31: ='Форма по МДС 81-35.2004'!A545 -> 26. | B31: ='Форма по МДС 81-35.2004'!N545 -> 26 | C31: =ROUND(SUMIF('Форма по МДС 81-35.2004'!J545:J564,"Г",'Форма по МДС 81-35.2004'!N545:N564),0) -> 9 | D31: =ROUND(SUMIF('Форма по МДС 81-35.2004'!J545:J564,"IsMash",'Форма по МДС 81-35.2004'!N545:N564),0) -> 17 | E31: ='Форма по МДС 81-35.2004'!N546 -> 2 | F31: =ROUND(SUMIF('Форма по МДС 81-35.2004'!J545:J564,"IsMater",'Форма по МДС 81-35.2004'!N545:N564),0) -> 0 | G31: =ROUND('Форма по МДС 81-35.2004'!F545*'Базовые цены за единицу'!G31,0) -> 0 | H31: =ROUND('Форма по МДС 81-35.2004'!F545*'Базовые цены за единицу'!H31,0) -> 0 | I31: =ОКРУГЛВСЕ(SUMIF('Форма по МДС 81-35.2004'!J545:J564,"Г",'Форма по МДС 81-35.2004'!F545:F564),8) -> 1.19016 | J31: =ОКРУГЛВСЕ('Форма по МДС 81-35.2004'!F545*'Базовые цены за единицу'!J31,8) -> 0 | K31: =ОКРУГЛВСЕ(SUMIF('Форма по МДС 81-35.2004'!J545:J564,"Ж",'Форма по МДС 81-35.2004'!F545:F564),8) -> 0.19836 | L31: =ROUND('Форма по МДС 81-35.2004'!F545*'Базовые цены за единицу'!L31,0) -> 0 | M31: =ROUND('Форма по МДС 81-35.2004'!F545*'Базовые цены за единицу'!M31,0) -> 0 | N31: =ROUND(B31*'Форма по МДС 81-35.2004'!M559/100,0) -> 3 | O31: =ROUND((B31+N31)*'Форма по МДС 81-35.2004'!M562/100,0) -> 2 | P31: =ROUND('Форма по МДС 81-35.2004'!F545*'Базовые цены за единицу'!P31,0) -> 0 | Q31: =ROUND('Форма по МДС 81-35.2004'!F545*'Базовые цены за единицу'!Q31,0) -> 0 | R31: =ROUND('Форма по МДС 81-35.2004'!F545*'Базовые цены за единицу'!R31,0) -> 0 | S31: =ROUND('Форма по МДС 81-35.2004'!F545*'Базовые цены за единицу'!S31,0) -> 0 | T31: =ROUND('Форма по МДС 81-35.2004'!F545*'Базовые цены за единицу'!T31,0) -> 0 | U31: =ROUND('Форма по МДС 81-35.2004'!F545*'Базовые цены за единицу'!U31,0) -> 0 | V31: =ROUND('Форма по МДС 81-35.2004'!F545*'Базовые цены за единицу'!V31,0) -> 0 | X31: =ROUND('Форма по МДС 81-35.2004'!F545*'Базовые цены за единицу'!X31,0) -> 0 | Y31: =IF(Определители!I31="9",ROUND(B31*(Начисления!M31/100)*'Форма по МДС 81-35.2004'!M559/100,0),0) -> 0 | Z31: =IF(Определители!I31="9",ROUND(B31*(100-Начисления!M31/100)*'Форма по МДС 81-35.2004'!M559/100,0),0) -> 0 | AA31: =IF(Определители!I31="9",ROUND((C31+E31)*(Начисления!M31/100)*('Форма по МДС 81-35.2004'!M562/100),0),0) -> 0 | AB31: =IF(Определители!I31="9",ROUND((C31+E31)*(100-Начисления!M31/100)*('Форма по МДС 81-35.2004'!M562/100),0),0) -> 0 | AC31: =IF(Определители!I31="9",ROUND(B31*Начисления!M31/100,0),0) -> 0 | AD31: =IF(Определители!I31="9",ROUND(B31*(100-Начисления!M31)/100,0),0) -> 0 | AE31: =ROUND('Форма по МДС 81-35.2004'!F545*'Базовые цены за единицу'!AE31,0) -> 0
A32: ='Форма по МДС 81-35.2004'!A566 -> 27. | B32: ='Форма по МДС 81-35.2004'!N566 -> 37 | C32: =ROUND(SUMIF('Форма по МДС 81-35.2004'!J566:J584,"Г",'Форма по МДС 81-35.2004'!N566:N584),0) -> 0 | D32: =ROUND(SUMIF('Форма по МДС 81-35.2004'!J566:J584,"IsMash",'Форма по МДС 81-35.2004'!N566:N584),0) -> 37 | E32: ='Форма по МДС 81-35.2004'!N567 -> 6 | F32: =ROUND(SUMIF('Форма по МДС 81-35.2004'!J566:J584,"IsMater",'Форма по МДС 81-35.2004'!N566:N584),0) -> 0 | G32: =ROUND('Форма по МДС 81-35.2004'!F566*'Базовые цены за единицу'!G32,0) -> 0 | H32: =ROUND('Форма по МДС 81-35.2004'!F566*'Базовые цены за единицу'!H32,0) -> 0 | I32: =ОКРУГЛВСЕ(SUMIF('Форма по МДС 81-35.2004'!J566:J584,"Г",'Форма по МДС 81-35.2004'!F566:F584),8) -> 0 | J32: =ОКРУГЛВСЕ('Форма по МДС 81-35.2004'!F566*'Базовые цены за единицу'!J32,8) -> 0 | K32: =ОКРУГЛВСЕ(SUMIF('Форма по МДС 81-35.2004'!J566:J584,"Ж",'Форма по МДС 81-35.2004'!F566:F584),8) -> 0.5505 | L32: =ROUND('Форма по МДС 81-35.2004'!F566*'Базовые цены за единицу'!L32,0) -> 0 | M32: =ROUND('Форма по МДС 81-35.2004'!F566*'Базовые цены за единицу'!M32,0) -> 0 | N32: =ROUND(B32*'Форма по МДС 81-35.2004'!M579/100,0) -> 4 | O32: =ROUND((B32+N32)*'Форма по МДС 81-35.2004'!M582/100,0) -> 3 | P32: =ROUND('Форма по МДС 81-35.2004'!F566*'Базовые цены за единицу'!P32,0) -> 0 | Q32: =ROUND('Форма по МДС 81-35.2004'!F566*'Базовые цены за единицу'!Q32,0) -> 0 | R32: =ROUND('Форма по МДС 81-35.2004'!F566*'Базовые цены за единицу'!R32,0) -> 0 | S32: =ROUND('Форма по МДС 81-35.2004'!F566*'Базовые цены за единицу'!S32,0) -> 0 | T32: =ROUND('Форма по МДС 81-35.2004'!F566*'Базовые цены за единицу'!T32,0) -> 0 | U32: =ROUND('Форма по МДС 81-35.2004'!F566*'Базовые цены за единицу'!U32,0) -> 0 | V32: =ROUND('Форма по МДС 81-35.2004'!F566*'Базовые цены за единицу'!V32,0) -> 0 | X32: =ROUND('Форма по МДС 81-35.2004'!F566*'Базовые цены за единицу'!X32,0) -> 0 | Y32: =IF(Определители!I32="9",ROUND(B32*(Начисления!M32/100)*'Форма по МДС 81-35.2004'!M579/100,0),0) -> 0 | Z32: =IF(Определители!I32="9",ROUND(B32*(100-Начисления!M32/100)*'Форма по МДС 81-35.2004'!M579/100,0),0) -> 0 | AA32: =IF(Определители!I32="9",ROUND((C32+E32)*(Начисления!M32/100)*('Форма по МДС 81-35.2004'!M582/100),0),0) -> 0 | AB32: =IF(Определители!I32="9",ROUND((C32+E32)*(100-Начисления!M32/100)*('Форма по МДС 81-35.2004'!M582/100),0),0) -> 0 | AC32: =IF(Определители!I32="9",ROUND(B32*Начисления!M32/100,0),0) -> 0 | AD32: =IF(Определители!I32="9",ROUND(B32*(100-Начисления!M32)/100,0),0) -> 0 | AE32: =ROUND('Форма по МДС 81-35.2004'!F566*'Базовые цены за единицу'!AE32,0) -> 0

Sheet Текущие цены с учетом расхода
B1: C1 | C1: C2 | D1: C3 | E1: C4 | F1: C5 | G1: C6 | H1: VOZVR | I1: C8 | J1: C9 | K1: C10 | L1: C11 | M1: C12 | N1: NAKL | O1: PLAN | P1: NAKL_ZPR | Q1: NAKL_ZPM | R1: PLAN_ZPR | S1: PLAN_ZPM | T1: RN11 | U1: RN12 | V1: RN13 | X1: OBORUD_VSPOMOG | Y1: NAKL_PN | Z1: NAKL_VX | AA1: PLAN_PN | AB1: PLAN_VX | AC1: VTCH_PN | AD1: VTCH_VX | AE1: MR_BY_ZPR_VSPOMOG | AF1: NAKL_INC | AG1: PLAN_INC
B3: N = < ГЭСНс * 2015_s * 15_15_зр >
B4: Автомобильные дороги регионального или межмуниципального значения с автобусным движением с допустимым уровнем содержания - норматив "Авт" (ЗИМНИЕ РАБОТЫ)
A6: ='Форма по МДС 81-35.2004'!A16 -> 1. | B6: ='Форма по МДС 81-35.2004'!H16 -> 5363 | C6: =ROUND(SUMIF('Форма по МДС 81-35.2004'!J16:J34,"Г",'Форма по МДС 81-35.2004'!H16:H34),0) -> 0 | D6: =ROUND(SUMIF('Форма по МДС 81-35.2004'!J16:J34,"IsMash",'Форма по МДС 81-35.2004'!H16:H34),0) -> 5363 | E6: ='Форма по МДС 81-35.2004'!H17 -> 837 | F6: =ROUND(SUMIF('Форма по МДС 81-35.2004'!J16:J34,"IsMater",'Форма по МДС 81-35.2004'!H16:H34),0) -> 0 | G6: =ROUND('Форма по МДС 81-35.2004'!F16*'Текущие цены за единицу'!G6,0) -> 0 | H6: =ROUND('Форма по МДС 81-35.2004'!F16*'Текущие цены за единицу'!H6,0) -> 0 | I6: =ОКРУГЛВСЕ(SUMIF('Форма по МДС 81-35.2004'!J16:J34,"Г",'Форма по МДС 81-35.2004'!F16:F34),8) -> 0 | J6: =ОКРУГЛВСЕ('Форма по МДС 81-35.2004'!F16*'Текущие цены за единицу'!J6,8) -> 0 | K6: =ОКРУГЛВСЕ(SUMIF('Форма по МДС 81-35.2004'!J16:J34,"Ж",'Форма по МДС 81-35.2004'!F16:F34),8) -> 4.8 | L6: =ROUND('Форма по МДС 81-35.2004'!F16*'Текущие цены за единицу'!L6,0) -> 0 | M6: =ROUND('Форма по МДС 81-35.2004'!F16*'Текущие цены за единицу'!M6,0) -> 0 | N6: =ROUND(B6*'Форма по МДС 81-35.2004'!G29/100,0) -> 627 | O6: =ROUND((B6+N6)*'Форма по МДС 81-35.2004'!G32/100,0) -> 479 | P6: =ROUND('Форма по МДС 81-35.2004'!F16*'Текущие цены за единицу'!P6,0) -> 0 | Q6: =ROUND('Форма по МДС 81-35.2004'!F16*'Текущие цены за единицу'!Q6,0) -> 0 | R6: =ROUND('Форма по МДС 81-35.2004'!F16*'Текущие цены за единицу'!R6,0) -> 0 | S6: =ROUND('Форма по МДС 81-35.2004'!F16*'Текущие цены за единицу'!S6,0) -> 0 | T6: =ROUND('Форма по МДС 81-35.2004'!F16*'Текущие цены за единицу'!T6,0) -> 0 | U6: =ROUND('Форма по МДС 81-35.2004'!F16*'Текущие цены за единицу'!U6,0) -> 0 | V6: =ROUND('Форма по МДС 81-35.2004'!F16*'Текущие цены за единицу'!V6,0) -> 0 | X6: =ROUND('Форма по МДС 81-35.2004'!F16*'Текущие цены за единицу'!X6,0) -> 0 | Y6: =IF(Определители!I6="9",ROUND(B6*(Начисления!M6/100)*'Форма по МДС 81-35.2004'!G29/100,0),0) -> 0 | Z6: =IF(Определители!I6="9",ROUND(B6*(100-Начисления!M6/100)*'Форма по МДС 81-35.2004'!G29/100,0),0) -> 0 | AA6: =IF(Определители!I6="9",ROUND((C6+E6)*(Начисления!M6/100)*('Форма по МДС 81-35.2004'!G32/100),0),0) -> 0 | AB6: =IF(Определители!I6="9",ROUND((C6+E6)*(100-Начисления!M6/100)*('Форма по МДС 81-35.2004'!G32/100),0),0) -> 0 | AC6: =IF(Определители!I6="9",ROUND(B6*Начисления!M6/100,0),0) -> 0 | AD6: =IF(Определители!I6="9",ROUND(B6*(100-Начисления!M6)/100,0),0) -> 0 | AE6: =ROUND('Форма по МДС 81-35.2004'!F16*'Текущие цены за единицу'!AE6,0) -> 0
A7: ='Форма по МДС 81-35.2004'!A35 -> 2. | B7: ='Форма по МДС 81-35.2004'!H35 -> 1227 | C7: =ROUND(SUMIF('Форма по МДС 81-35.2004'!J35:J53,"Г",'Форма по МДС 81-35.2004'!H35:H53),0) -> 0 | D7: =ROUND(SUMIF('Форма по МДС 81-35.2004'!J35:J53,"IsMash",'Форма по МДС 81-35.2004'!H35:H53),0) -> 1227 | E7: ='Форма по МДС 81-35.2004'!H36 -> 214 | F7: =ROUND(SUMIF('Форма по МДС 81-35.2004'!J35:J53,"IsMater",'Форма по МДС 81-35.2004'!H35:H53),0) -> 0 | G7: =ROUND('Форма по МДС 81-35.2004'!F35*'Текущие цены за единицу'!G7,0) -> 0 | H7: =ROUND('Форма по МДС 81-35.2004'!F35*'Текущие цены за единицу'!H7,0) -> 0 | I7: =ОКРУГЛВСЕ(SUMIF('Форма по МДС 81-35.2004'!J35:J53,"Г",'Форма по МДС 81-35.2004'!F35:F53),8) -> 0 | J7: =ОКРУГЛВСЕ('Форма по МДС 81-35.2004'!F35*'Текущие цены за единицу'!J7,8) -> 0 | K7: =ОКРУГЛВСЕ(SUMIF('Форма по МДС 81-35.2004'!J35:J53,"Ж",'Форма по МДС 81-35.2004'!F35:F53),8) -> 1.28 | L7: =ROUND('Форма по МДС 81-35.2004'!F35*'Текущие цены за единицу'!L7,0) -> 0 | M7: =ROUND('Форма по МДС 81-35.2004'!F35*'Текущие цены за единицу'!M7,0) -> 0 | N7: =ROUND(B7*'Форма по МДС 81-35.2004'!G48/100,0) -> 144 | O7: =ROUND((B7+N7)*'Форма по МДС 81-35.2004'!G51/100,0) -> 110 | P7: =ROUND('Форма по МДС 81-35.2004'!F35*'Текущие цены за единицу'!P7,0) -> 0 | Q7: =ROUND('Форма по МДС 81-35.2004'!F35*'Текущие цены за единицу'!Q7,0) -> 0 | R7: =ROUND('Форма по МДС 81-35.2004'!F35*'Текущие цены за единицу'!R7,0) -> 0 | S7: =ROUND('Форма по МДС 81-35.2004'!F35*'Текущие цены за единицу'!S7,0) -> 0 | T7: =ROUND('Форма по МДС 81-35.2004'!F35*'Текущие цены за единицу'!T7,0) -> 0 | U7: =ROUND('Форма по МДС 81-35.2004'!F35*'Текущие цены за единицу'!U7,0) -> 0 | V7: =ROUND('Форма по МДС 81-35.2004'!F35*'Текущие цены за единицу'!V7,0) -> 0 | X7: =ROUND('Форма по МДС 81-35.2004'!F35*'Текущие цены за единицу'!X7,0) -> 0 | Y7: =IF(Определители!I7="9",ROUND(B7*(Начисления!M7/100)*'Форма по МДС 81-35.2004'!G48/100,0),0) -> 0 | Z7: =IF(Определители!I7="9",ROUND(B7*(100-Начисления!M7/100)*'Форма по МДС 81-35.2004'!G48/100,0),0) -> 0 | AA7: =IF(Определители!I7="9",ROUND((C7+E7)*(Начисления!M7/100)*('Форма по МДС 81-35.2004'!G51/100),0),0) -> 0 | AB7: =IF(Определители!I7="9",ROUND((C7+E7)*(100-Начисления!M7/100)*('Форма по МДС 81-35.2004'!G51/100),0),0) -> 0 | AC7: =IF(Определители!I7="9",ROUND(B7*Начисления!M7/100,0),0) -> 0 | AD7: =IF(Определители!I7="9",ROUND(B7*(100-Начисления!M7)/100,0),0) -> 0 | AE7: =ROUND('Форма по МДС 81-35.2004'!F35*'Текущие цены за единицу'!AE7,0) -> 0
A8: ='Форма по МДС 81-35.2004'!A54 -> 3. | B8: ='Форма по МДС 81-35.2004'!H54 -> 1188 | C8: =ROUND(SUMIF('Форма по МДС 81-35.2004'!J54:J72,"Г",'Форма по МДС 81-35.2004'!H54:H72),0) -> 0 | D8: =ROUND(SUMIF('Форма по МДС 81-35.2004'!J54:J72,"IsMash",'Форма по МДС 81-35.2004'!H54:H72),0) -> 1188 | E8: ='Форма по МДС 81-35.2004'!H55 -> 101 | F8: =ROUND(SUMIF('Форма по МДС 81-35.2004'!J54:J72,"IsMater",'Форма по МДС 81-35.2004'!H54:H72),0) -> 0 | G8: =ROUND('Форма по МДС 81-35.2004'!F54*'Текущие цены за единицу'!G8,0) -> 0 | H8: =ROUND('Форма по МДС 81-35.2004'!F54*'Текущие цены за единицу'!H8,0) -> 0 | I8: =ОКРУГЛВСЕ(SUMIF('Форма по МДС 81-35.2004'!J54:J72,"Г",'Форма по МДС 81-35.2004'!F54:F72),8) -> 0 | J8: =ОКРУГЛВСЕ('Форма по МДС 81-35.2004'!F54*'Текущие цены за единицу'!J8,8) -> 0 | K8: =ОКРУГЛВСЕ(SUMIF('Форма по МДС 81-35.2004'!J54:J72,"Ж",'Форма по МДС 81-35.2004'!F54:F72),8) -> 0.707 | L8: =ROUND('Форма по МДС 81-35.2004'!F54*'Текущие цены за единицу'!L8,0) -> 0 | M8: =ROUND('Форма по МДС 81-35.2004'!F54*'Текущие цены за единицу'!M8,0) -> 0 | N8: =ROUND(B8*'Форма по МДС 81-35.2004'!G67/100,0) -> 139 | O8: =ROUND((B8+N8)*'Форма по МДС 81-35.2004'!G70/100,0) -> 106 | P8: =ROUND('Форма по МДС 81-35.2004'!F54*'Текущие цены за единицу'!P8,0) -> 0 | Q8: =ROUND('Форма по МДС 81-35.2004'!F54*'Текущие цены за единицу'!Q8,0) -> 0 | R8: =ROUND('Форма по МДС 81-35.2004'!F54*'Текущие цены за единицу'!R8,0) -> 0 | S8: =ROUND('Форма по МДС 81-35.2004'!F54*'Текущие цены за единицу'!S8,0) -> 0 | T8: =ROUND('Форма по МДС 81-35.2004'!F54*'Текущие цены за единицу'!T8,0) -> 0 | U8: =ROUND('Форма по МДС 81-35.2004'!F54*'Текущие цены за единицу'!U8,0) -> 0 | V8: =ROUND('Форма по МДС 81-35.2004'!F54*'Текущие цены за единицу'!V8,0) -> 0 | X8: =ROUND('Форма по МДС 81-35.2004'!F54*'Текущие цены за единицу'!X8,0) -> 0 | Y8: =IF(Определители!I8="9",ROUND(B8*(Начисления!M8/100)*'Форма по МДС 81-35.2004'!G67/100,0),0) -> 0 | Z8: =IF(Определители!I8="9",ROUND(B8*(100-Начисления!M8/100)*'Форма по МДС 81-35.2004'!G67/100,0),0) -> 0 | AA8: =IF(Определители!I8="9",ROUND((C8+E8)*(Начисления!M8/100)*('Форма по МДС 81-35.2004'!G70/100),0),0) -> 0 | AB8: =IF(Определители!I8="9",ROUND((C8+E8)*(100-Начисления!M8/100)*('Форма по МДС 81-35.2004'!G70/100),0),0) -> 0 | AC8: =IF(Определители!I8="9",ROUND(B8*Начисления!M8/100,0),0) -> 0 | AD8: =IF(Определители!I8="9",ROUND(B8*(100-Начисления!M8)/100,0),0) -> 0 | AE8: =ROUND('Форма по МДС 81-35.2004'!F54*'Текущие цены за единицу'!AE8,0) -> 0
A9: ='Форма по МДС 81-35.2004'!A74 -> 4. | B9: ='Форма по МДС 81-35.2004'!H74 -> 36 | C9: =ROUND(SUMIF('Форма по МДС 81-35.2004'!J74:J92,"Г",'Форма по МДС 81-35.2004'!H74:H92),0) -> 0 | D9: =ROUND(SUMIF('Форма по МДС 81-35.2004'!J74:J92,"IsMash",'Форма по МДС 81-35.2004'!H74:H92),0) -> 36 | E9: ='Форма по МДС 81-35.2004'!H75 -> 11 | F9: =ROUND(SUMIF('Форма по МДС 81-35.2004'!J74:J92,"IsMater",'Форма по МДС 81-35.2004'!H74:H92),0) -> 0 | G9: =ROUND('Форма по МДС 81-35.2004'!F74*'Текущие цены за единицу'!G9,0) -> 0 | H9: =ROUND('Форма по МДС 81-35.2004'!F74*'Текущие цены за единицу'!H9,0) -> 0 | I9: =ОКРУГЛВСЕ(SUMIF('Форма по МДС 81-35.2004'!J74:J92,"Г",'Форма по МДС 81-35.2004'!F74:F92),8) -> 0 | J9: =ОКРУГЛВСЕ('Форма по МДС 81-35.2004'!F74*'Текущие цены за единицу'!J9,8) -> 0 | K9: =ОКРУГЛВСЕ(SUMIF('Форма по МДС 81-35.2004'!J74:J92,"Ж",'Форма по МДС 81-35.2004'!F74:F92),8) -> 0.0594 | L9: =ROUND('Форма по МДС 81-35.2004'!F74*'Текущие цены за единицу'!L9,0) -> 0 | M9: =ROUND('Форма по МДС 81-35.2004'!F74*'Текущие цены за единицу'!M9,0) -> 0 | N9: =ROUND(B9*'Форма по МДС 81-35.2004'!G87/100,0) -> 4 | O9: =ROUND((B9+N9)*'Форма по МДС 81-35.2004'!G90/100,0) -> 3 | P9: =ROUND('Форма по МДС 81-35.2004'!F74*'Текущие цены за единицу'!P9,0) -> 0 | Q9: =ROUND('Форма по МДС 81-35.2004'!F74*'Текущие цены за единицу'!Q9,0) -> 0 | R9: =ROUND('Форма по МДС 81-35.2004'!F74*'Текущие цены за единицу'!R9,0) -> 0 | S9: =ROUND('Форма по МДС 81-35.2004'!F74*'Текущие цены за единицу'!S9,0) -> 0 | T9: =ROUND('Форма по МДС 81-35.2004'!F74*'Текущие цены за единицу'!T9,0) -> 0 | U9: =ROUND('Форма по МДС 81-35.2004'!F74*'Текущие цены за единицу'!U9,0) -> 0 | V9: =ROUND('Форма по МДС 81-35.2004'!F74*'Текущие цены за единицу'!V9,0) -> 0 | X9: =ROUND('Форма по МДС 81-35.2004'!F74*'Текущие цены за единицу'!X9,0) -> 0 | Y9: =IF(Определители!I9="9",ROUND(B9*(Начисления!M9/100)*'Форма по МДС 81-35.2004'!G87/100,0),0) -> 0 | Z9: =IF(Определители!I9="9",ROUND(B9*(100-Начисления!M9/100)*'Форма по МДС 81-35.2004'!G87/100,0),0) -> 0 | AA9: =IF(Определители!I9="9",ROUND((C9+E9)*(Начисления!M9/100)*('Форма по МДС 81-35.2004'!G90/100),0),0) -> 0 | AB9: =IF(Определители!I9="9",ROUND((C9+E9)*(100-Начисления!M9/100)*('Форма по МДС 81-35.2004'!G90/100),0),0) -> 0 | AC9: =IF(Определители!I9="9",ROUND(B9*Начисления!M9/100,0),0) -> 0 | AD9: =IF(Определители!I9="9",ROUND(B9*(100-Начисления!M9)/100,0),0) -> 0 | AE9: =ROUND('Форма по МДС 81-35.2004'!F74*'Текущие цены за единицу'!AE9,0) -> 0
A10: ='Форма по МДС 81-35.2004'!A94 -> 5. | B10: ='Форма по МДС 81-35.2004'!H94 -> 3888 | C10: =ROUND(SUMIF('Форма по МДС 81-35.2004'!J94:J112,"Г",'Форма по МДС 81-35.2004'!H94:H112),0) -> 0 | D10: =ROUND(SUMIF('Форма по МДС 81-35.2004'!J94:J112,"IsMash",'Форма по МДС 81-35.2004'!H94:H112),0) -> 3888 | E10: ='Форма по МДС 81-35.2004'!H95 -> 607 | F10: =ROUND(SUMIF('Форма по МДС 81-35.2004'!J94:J112,"IsMater",'Форма по МДС 81-35.2004'!H94:H112),0) -> 0 | G10: =ROUND('Форма по МДС 81-35.2004'!F94*'Текущие цены за единицу'!G10,0) -> 0 | H10: =ROUND('Форма по МДС 81-35.2004'!F94*'Текущие цены за единицу'!H10,0) -> 0 | I10: =ОКРУГЛВСЕ(SUMIF('Форма по МДС 81-35.2004'!J94:J112,"Г",'Форма по МДС 81-35.2004'!F94:F112),8) -> 0 | J10: =ОКРУГЛВСЕ('Форма по МДС 81-35.2004'!F94*'Текущие цены за единицу'!J10,8) -> 0 | K10: =ОКРУГЛВСЕ(SUMIF('Форма по МДС 81-35.2004'!J94:J112,"Ж",'Форма по МДС 81-35.2004'!F94:F112),8) -> 3.48 | L10: =ROUND('Форма по МДС 81-35.2004'!F94*'Текущие цены за единицу'!L10,0) -> 0 | M10: =ROUND('Форма по МДС 81-35.2004'!F94*'Текущие цены за единицу'!M10,0) -> 0 | N10: =ROUND(B10*'Форма по МДС 81-35.2004'!G107/100,0) -> 455 | O10: =ROUND((B10+N10)*'Форма по МДС 81-35.2004'!G110/100,0) -> 347 | P10: =ROUND('Форма по МДС 81-35.2004'!F94*'Текущие цены за единицу'!P10,0) -> 0 | Q10: =ROUND('Форма по МДС 81-35.2004'!F94*'Текущие цены за единицу'!Q10,0) -> 0 | R10: =ROUND('Форма по МДС 81-35.2004'!F94*'Текущие цены за единицу'!R10,0) -> 0 | S10: =ROUND('Форма по МДС 81-35.2004'!F94*'Текущие цены за единицу'!S10,0) -> 0 | T10: =ROUND('Форма по МДС 81-35.2004'!F94*'Текущие цены за единицу'!T10,0) -> 0 | U10: =ROUND('Форма по МДС 81-35.2004'!F94*'Текущие цены за единицу'!U10,0) -> 0 | V10: =ROUND('Форма по МДС 81-35.2004'!F94*'Текущие цены за единицу'!V10,0) -> 0 | X10: =ROUND('Форма по МДС 81-35.2004'!F94*'Текущие цены за единицу'!X10,0) -> 0 | Y10: =IF(Определители!I10="9",ROUND(B10*(Начисления!M10/100)*'Форма по МДС 81-35.2004'!G107/100,0),0) -> 0 | Z10: =IF(Определители!I10="9",ROUND(B10*(100-Начисления!M10/100)*'Форма по МДС 81-35.2004'!G107/100,0),0) -> 0 | AA10: =IF(Определители!I10="9",ROUND((C10+E10)*(Начисления!M10/100)*('Форма по МДС 81-35.2004'!G110/100),0),0) -> 0 | AB10: =IF(Определители!I10="9",ROUND((C10+E10)*(100-Начисления!M10/100)*('Форма по МДС 81-35.2004'!G110/100),0),0) -> 0 | AC10: =IF(Определители!I10="9",ROUND(B10*Начисления!M10/100,0),0) -> 0 | AD10: =IF(Определители!I10="9",ROUND(B10*(100-Начисления!M10)/100,0),0) -> 0 | AE10: =ROUND('Форма по МДС 81-35.2004'!F94*'Текущие цены за единицу'!AE10,0) -> 0
A11: ='Форма по МДС 81-35.2004'!A113 -> 6. | B11: ='Форма по МДС 81-35.2004'!H113 -> 10288 | C11: =ROUND(SUMIF('Форма по МДС 81-35.2004'!J113:J134,"Г",'Форма по МДС 81-35.2004'!H113:H134),0) -> 0 | D11: =ROUND(SUMIF('Форма по МДС 81-35.2004'!J113:J134,"IsMash",'Форма по МДС 81-35.2004'!H113:H134),0) -> 835 | E11: ='Форма по МДС 81-35.2004'!H115 -> 243 | F11: =ROUND(SUMIF('Форма по МДС 81-35.2004'!J113:J134,"IsMater",'Форма по МДС 81-35.2004'!H113:H134),0) -> 9454 | G11: =ROUND('Форма по МДС 81-35.2004'!F113*'Текущие цены за единицу'!G11,0) -> 0 | H11: =ROUND('Форма по МДС 81-35.2004'!F113*'Текущие цены за единицу'!H11,0) -> 0 | I11: =ОКРУГЛВСЕ(SUMIF('Форма по МДС 81-35.2004'!J113:J134,"Г",'Форма по МДС 81-35.2004'!F113:F134),8) -> 0 | J11: =ОКРУГЛВСЕ('Форма по МДС 81-35.2004'!F113*'Текущие цены за единицу'!J11,8) -> 0 | K11: =ОКРУГЛВСЕ(SUMIF('Форма по МДС 81-35.2004'!J113:J134,"Ж",'Форма по МДС 81-35.2004'!F113:F134),8) -> 1.364244 | L11: =ROUND('Форма по МДС 81-35.2004'!F113*'Текущие цены за единицу'!L11,0) -> 0 | M11: =ROUND('Форма по МДС 81-35.2004'!F113*'Текущие цены за единицу'!M11,0) -> 0 | N11: =ROUND(B11*'Форма по МДС 81-35.2004'!G129/100,0) -> 1204 | O11: =ROUND((B11+N11)*'Форма по МДС 81-35.2004'!G132/100,0) -> 919 | P11: =ROUND('Форма по МДС 81-35.2004'!F113*'Текущие цены за единицу'!P11,0) -> 0 | Q11: =ROUND('Форма по МДС 81-35.2004'!F113*'Текущие цены за единицу'!Q11,0) -> 0 | R11: =ROUND('Форма по МДС 81-35.2004'!F113*'Текущие цены за единицу'!R11,0) -> 0 | S11: =ROUND('Форма по МДС 81-35.2004'!F113*'Текущие цены за единицу'!S11,0) -> 0 | T11: =ROUND('Форма по МДС 81-35.2004'!F113*'Текущие цены за единицу'!T11,0) -> 0 | U11: =ROUND('Форма по МДС 81-35.2004'!F113*'Текущие цены за единицу'!U11,0) -> 0 | V11: =ROUND('Форма по МДС 81-35.2004'!F113*'Текущие цены за единицу'!V11,0) -> 0 | X11: =ROUND('Форма по МДС 81-35.2004'!F113*'Текущие цены за единицу'!X11,0) -> 0 | Y11: =IF(Определители!I11="9",ROUND(B11*(Начисления!M11/100)*'Форма по МДС 81-35.2004'!G129/100,0),0) -> 0 | Z11: =IF(Определители!I11="9",ROUND(B11*(100-Начисления!M11/100)*'Форма по МДС 81-35.2004'!G129/100,0),0) -> 0 | AA11: =IF(Определители!I11="9",ROUND((C11+E11)*(Начисления!M11/100)*('Форма по МДС 81-35.2004'!G132/100),0),0) -> 0 | AB11: =IF(Определители!I11="9",ROUND((C11+E11)*(100-Начисления!M11/100)*('Форма по МДС 81-35.2004'!G132/100),0),0) -> 0 | AC11: =IF(Определители!I11="9",ROUND(B11*Начисления!M11/100,0),0) -> 0 | AD11: =IF(Определители!I11="9",ROUND(B11*(100-Начисления!M11)/100,0),0) -> 0 | AE11: =ROUND('Форма по МДС 81-35.2004'!F113*'Текущие цены за единицу'!AE11,0) -> 0
A12: ='Форма по МДС 81-35.2004'!A135 -> 7. | B12: ='Форма по МДС 81-35.2004'!H135 -> 335 | C12: =ROUND(SUMIF('Форма по МДС 81-35.2004'!J135:J153,"Г",'Форма по МДС 81-35.2004'!H135:H153),0) -> 0 | D12: =ROUND(SUMIF('Форма по МДС 81-35.2004'!J135:J153,"IsMash",'Форма по МДС 81-35.2004'!H135:H153),0) -> 335 | E12: ='Форма по МДС 81-35.2004'!H136 -> 52 | F12: =ROUND(SUMIF('Форма по МДС 81-35.2004'!J135:J153,"IsMater",'Форма по МДС 81-35.2004'!H135:H153),0) -> 0 | G12: =ROUND('Форма по МДС 81-35.2004'!F135*'Текущие цены за единицу'!G12,0) -> 0 | H12: =ROUND('Форма по МДС 81-35.2004'!F135*'Текущие цены за единицу'!H12,0) -> 0 | I12: =ОКРУГЛВСЕ(SUMIF('Форма по МДС 81-35.2004'!J135:J153,"Г",'Форма по МДС 81-35.2004'!F135:F153),8) -> 0 | J12: =ОКРУГЛВСЕ('Форма по МДС 81-35.2004'!F135*'Текущие цены за единицу'!J12,8) -> 0 | K12: =ОКРУГЛВСЕ(SUMIF('Форма по МДС 81-35.2004'!J135:J153,"Ж",'Форма по МДС 81-35.2004'!F135:F153),8) -> 0.3 | L12: =ROUND('Форма по МДС 81-35.2004'!F135*'Текущие цены за единицу'!L12,0) -> 0 | M12: =ROUND('Форма по МДС 81-35.2004'!F135*'Текущие цены за единицу'!M12,0) -> 0 | N12: =ROUND(B12*'Форма по МДС 81-35.2004'!G148/100,0) -> 39 | O12: =ROUND((B12+N12)*'Форма по МДС 81-35.2004'!G151/100,0) -> 30 | P12: =ROUND('Форма по МДС 81-35.2004'!F135*'Текущие цены за единицу'!P12,0) -> 0 | Q12: =ROUND('Форма по МДС 81-35.2004'!F135*'Текущие цены за единицу'!Q12,0) -> 0 | R12: =ROUND('Форма по МДС 81-35.2004'!F135*'Текущие цены за единицу'!R12,0) -> 0 | S12: =ROUND('Форма по МДС 81-35.2004'!F135*'Текущие цены за единицу'!S12,0) -> 0 | T12: =ROUND('Форма по МДС 81-35.2004'!F135*'Текущие цены за единицу'!T12,0) -> 0 | U12: =ROUND('Форма по МДС 81-35.2004'!F135*'Текущие цены за единицу'!U12,0) -> 0 | V12: =ROUND('Форма по МДС 81-35.2004'!F135*'Текущие цены за единицу'!V12,0) -> 0 | X12: =ROUND('Форма по МДС 81-35.2004'!F135*'Текущие цены за единицу'!X12,0) -> 0 | Y12: =IF(Определители!I12="9",ROUND(B12*(Начисления!M12/100)*'Форма по МДС 81-35.2004'!G148/100,0),0) -> 0 | Z12: =IF(Определители!I12="9",ROUND(B12*(100-Начисления!M12/100)*'Форма по МДС 81-35.2004'!G148/100,0),0) -> 0 | AA12: =IF(Определители!I12="9",ROUND((C12+E12)*(Начисления!M12/100)*('Форма по МДС 81-35.2004'!G151/100),0),0) -> 0 | AB12: =IF(Определители!I12="9",ROUND((C12+E12)*(100-Начисления!M12/100)*('Форма по МДС 81-35.2004'!G151/100),0),0) -> 0 | AC12: =IF(Определители!I12="9",ROUND(B12*Начисления!M12/100,0),0) -> 0 | AD12: =IF(Определители!I12="9",ROUND(B12*(100-Начисления!M12)/100,0),0) -> 0 | AE12: =ROUND('Форма по МДС 81-35.2004'!F135*'Текущие цены за единицу'!AE12,0) -> 0
A13: ='Форма по МДС 81-35.2004'!A154 -> 8. | B13: ='Форма по МДС 81-35.2004'!H154 -> 14056 | C13: =ROUND(SUMIF('Форма по МДС 81-35.2004'!J154:J174,"Г",'Форма по МДС 81-35.2004'!H154:H174),0) -> 0 | D13: =ROUND(SUMIF('Форма по МДС 81-35.2004'!J154:J174,"IsMash",'Форма по МДС 81-35.2004'!H154:H174),0) -> 14056 | E13: ='Форма по МДС 81-35.2004'!H155 -> 2287 | F13: =ROUND(SUMIF('Форма по МДС 81-35.2004'!J154:J174,"IsMater",'Форма по МДС 81-35.2004'!H154:H174),0) -> 0 | G13: =ROUND('Форма по МДС 81-35.2004'!F154*'Текущие цены за единицу'!G13,0) -> 0 | H13: =ROUND('Форма по МДС 81-35.2004'!F154*'Текущие цены за единицу'!H13,0) -> 0 | I13: =ОКРУГЛВСЕ(SUMIF('Форма по МДС 81-35.2004'!J154:J174,"Г",'Форма по МДС 81-35.2004'!F154:F174),8) -> 0 | J13: =ОКРУГЛВСЕ('Форма по МДС 81-35.2004'!F154*'Текущие цены за единицу'!J13,8) -> 0 | K13: =ОКРУГЛВСЕ(SUMIF('Форма по МДС 81-35.2004'!J154:J174,"Ж",'Форма по МДС 81-35.2004'!F154:F174),8) -> 13.392 | L13: =ROUND('Форма по МДС 81-35.2004'!F154*'Текущие цены за единицу'!L13,0) -> 0 | M13: =ROUND('Форма по МДС 81-35.2004'!F154*'Текущие цены за единицу'!M13,0) -> 0 | N13: =ROUND(B13*'Форма по МДС 81-35.2004'!G169/100,0) -> 1645 | O13: =ROUND((B13+N13)*'Форма по МДС 81-35.2004'!G172/100,0) -> 1256 | P13: =ROUND('Форма по МДС 81-35.2004'!F154*'Текущие цены за единицу'!P13,0) -> 0 | Q13: =ROUND('Форма по МДС 81-35.2004'!F154*'Текущие цены за единицу'!Q13,0) -> 0 | R13: =ROUND('Форма по МДС 81-35.2004'!F154*'Текущие цены за единицу'!R13,0) -> 0 | S13: =ROUND('Форма по МДС 81-35.2004'!F154*'Текущие цены за единицу'!S13,0) -> 0 | T13: =ROUND('Форма по МДС 81-35.2004'!F154*'Текущие цены за единицу'!T13,0) -> 0 | U13: =ROUND('Форма по МДС 81-35.2004'!F154*'Текущие цены за единицу'!U13,0) -> 0 | V13: =ROUND('Форма по МДС 81-35.2004'!F154*'Текущие цены за единицу'!V13,0) -> 0 | X13: =ROUND('Форма по МДС 81-35.2004'!F154*'Текущие цены за единицу'!X13,0) -> 0 | Y13: =IF(Определители!I13="9",ROUND(B13*(Начисления!M13/100)*'Форма по МДС 81-35.2004'!G169/100,0),0) -> 0 | Z13: =IF(Определители!I13="9",ROUND(B13*(100-Начисления!M13/100)*'Форма по МДС 81-35.2004'!G169/100,0),0) -> 0 | AA13: =IF(Определители!I13="9",ROUND((C13+E13)*(Начисления!M13/100)*('Форма по МДС 81-35.2004'!G172/100),0),0) -> 0 | AB13: =IF(Определители!I13="9",ROUND((C13+E13)*(100-Начисления!M13/100)*('Форма по МДС 81-35.2004'!G172/100),0),0) -> 0 | AC13: =IF(Определители!I13="9",ROUND(B13*Начисления!M13/100,0),0) -> 0 | AD13: =IF(Определители!I13="9",ROUND(B13*(100-Начисления!M13)/100,0),0) -> 0 | AE13: =ROUND('Форма по МДС 81-35.2004'!F154*'Текущие цены за единицу'!AE13,0) -> 0
A14: ='Форма по МДС 81-35.2004'!A175 -> 9. | B14: ='Форма по МДС 81-35.2004'!H175 -> 8943 | C14: =ROUND(SUMIF('Форма по МДС 81-35.2004'!J175:J193,"Г",'Форма по МДС 81-35.2004'!H175:H193),0) -> 0 | D14: =ROUND(SUMIF('Форма по МДС 81-35.2004'!J175:J193,"IsMash",'Форма по МДС 81-35.2004'!H175:H193),0) -> 8943 | E14: ='Форма по МДС 81-35.2004'!H176 -> 1395 | F14: =ROUND(SUMIF('Форма по МДС 81-35.2004'!J175:J193,"IsMater",'Форма по МДС 81-35.2004'!H175:H193),0) -> 0 | G14: =ROUND('Форма по МДС 81-35.2004'!F175*'Текущие цены за единицу'!G14,0) -> 0 | H14: =ROUND('Форма по МДС 81-35.2004'!F175*'Текущие цены за единицу'!H14,0) -> 0 | I14: =ОКРУГЛВСЕ(SUMIF('Форма по МДС 81-35.2004'!J175:J193,"Г",'Форма по МДС 81-35.2004'!F175:F193),8) -> 0 | J14: =ОКРУГЛВСЕ('Форма по МДС 81-35.2004'!F175*'Текущие цены за единицу'!J14,8) -> 0 | K14: =ОКРУГЛВСЕ(SUMIF('Форма по МДС 81-35.2004'!J175:J193,"Ж",'Форма по МДС 81-35.2004'!F175:F193),8) -> 8.004 | L14: =ROUND('Форма по МДС 81-35.2004'!F175*'Текущие цены за единицу'!L14,0) -> 0 | M14: =ROUND('Форма по МДС 81-35.2004'!F175*'Текущие цены за единицу'!M14,0) -> 0 | N14: =ROUND(B14*'Форма по МДС 81-35.2004'!G188/100,0) -> 1046 | O14: =ROUND((B14+N14)*'Форма по МДС 81-35.2004'!G191/100,0) -> 799 | P14: =ROUND('Форма по МДС 81-35.2004'!F175*'Текущие цены за единицу'!P14,0) -> 0 | Q14: =ROUND('Форма по МДС 81-35.2004'!F175*'Текущие цены за единицу'!Q14,0) -> 0 | R14: =ROUND('Форма по МДС 81-35.2004'!F175*'Текущие цены за единицу'!R14,0) -> 0 | S14: =ROUND('Форма по МДС 81-35.2004'!F175*'Текущие цены за единицу'!S14,0) -> 0 | T14: =ROUND('Форма по МДС 81-35.2004'!F175*'Текущие цены за единицу'!T14,0) -> 0 | U14: =ROUND('Форма по МДС 81-35.2004'!F175*'Текущие цены за единицу'!U14,0) -> 0 | V14: =ROUND('Форма по МДС 81-35.2004'!F175*'Текущие цены за единицу'!V14,0) -> 0 | X14: =ROUND('Форма по МДС 81-35.2004'!F175*'Текущие цены за единицу'!X14,0) -> 0 | Y14: =IF(Определители!I14="9",ROUND(B14*(Начисления!M14/100)*'Форма по МДС 81-35.2004'!G188/100,0),0) -> 0 | Z14: =IF(Определители!I14="9",ROUND(B14*(100-Начисления!M14/100)*'Форма по МДС 81-35.2004'!G188/100,0),0) -> 0 | AA14: =IF(Определители!I14="9",ROUND((C14+E14)*(Начисления!M14/100)*('Форма по МДС 81-35.2004'!G191/100),0),0) -> 0 | AB14: =IF(Определители!I14="9",ROUND((C14+E14)*(100-Начисления!M14/100)*('Форма по МДС 81-35.2004'!G191/100),0),0) -> 0 | AC14: =IF(Определители!I14="9",ROUND(B14*Начисления!M14/100,0),0) -> 0 | AD14: =IF(Определители!I14="9",ROUND(B14*(100-Начисления!M14)/100,0),0) -> 0 | AE14: =ROUND('Форма по МДС 81-35.2004'!F175*'Текущие цены за единицу'!AE14,0) -> 0
A15: ='Форма по МДС 81-35.2004'!A194 -> 10. | B15: ='Форма по МДС 81-35.2004'!H194 -> 978 | C15: =ROUND(SUMIF('Форма по МДС 81-35.2004'!J194:J212,"Г",'Форма по МДС 81-35.2004'!H194:H212),0) -> 0 | D15: =ROUND(SUMIF('Форма по МДС 81-35.2004'!J194:J212,"IsMash",'Форма по МДС 81-35.2004'!H194:H212),0) -> 978 | E15: ='Форма по МДС 81-35.2004'!H195 -> 170 | F15: =ROUND(SUMIF('Форма по МДС 81-35.2004'!J194:J212,"IsMater",'Форма по МДС 81-35.2004'!H194:H212),0) -> 0 | G15: =ROUND('Форма по МДС 81-35.2004'!F194*'Текущие цены за единицу'!G15,0) -> 0 | H15: =ROUND('Форма по МДС 81-35.2004'!F194*'Текущие цены за единицу'!H15,0) -> 0 | I15: =ОКРУГЛВСЕ(SUMIF('Форма по МДС 81-35.2004'!J194:J212,"Г",'Форма по МДС 81-35.2004'!F194:F212),8) -> 0 | J15: =ОКРУГЛВСЕ('Форма по МДС 81-35.2004'!F194*'Текущие цены за единицу'!J15,8) -> 0 | K15: =ОКРУГЛВСЕ(SUMIF('Форма по МДС 81-35.2004'!J194:J212,"Ж",'Форма по МДС 81-35.2004'!F194:F212),8) -> 1.02 | L15: =ROUND('Форма по МДС 81-35.2004'!F194*'Текущие цены за единицу'!L15,0) -> 0 | M15: =ROUND('Форма по МДС 81-35.2004'!F194*'Текущие цены за единицу'!M15,0) -> 0 | N15: =ROUND(B15*'Форма по МДС 81-35.2004'!G207/100,0) -> 114 | O15: =ROUND((B15+N15)*'Форма по МДС 81-35.2004'!G210/100,0) -> 87 | P15: =ROUND('Форма по МДС 81-35.2004'!F194*'Текущие цены за единицу'!P15,0) -> 0 | Q15: =ROUND('Форма по МДС 81-35.2004'!F194*'Текущие цены за единицу'!Q15,0) -> 0 | R15: =ROUND('Форма по МДС 81-35.2004'!F194*'Текущие цены за единицу'!R15,0) -> 0 | S15: =ROUND('Форма по МДС 81-35.2004'!F194*'Текущие цены за единицу'!S15,0) -> 0 | T15: =ROUND('Форма по МДС 81-35.2004'!F194*'Текущие цены за единицу'!T15,0) -> 0 | U15: =ROUND('Форма по МДС 81-35.2004'!F194*'Текущие цены за единицу'!U15,0) -> 0 | V15: =ROUND('Форма по МДС 81-35.2004'!F194*'Текущие цены за единицу'!V15,0) -> 0 | X15: =ROUND('Форма по МДС 81-35.2004'!F194*'Текущие цены за единицу'!X15,0) -> 0 | Y15: =IF(Определители!I15="9",ROUND(B15*(Начисления!M15/100)*'Форма по МДС 81-35.2004'!G207/100,0),0) -> 0 | Z15: =IF(Определители!I15="9",ROUND(B15*(100-Начисления!M15/100)*'Форма по МДС 81-35.2004'!G207/100,0),0) -> 0 | AA15: =IF(Определители!I15="9",ROUND((C15+E15)*(Начисления!M15/100)*('Форма по МДС 81-35.2004'!G210/100),0),0) -> 0 | AB15: =IF(Определители!I15="9",ROUND((C15+E15)*(100-Начисления!M15/100)*('Форма по МДС 81-35.2004'!G210/100),0),0) -> 0 | AC15: =IF(Определители!I15="9",ROUND(B15*Начисления!M15/100,0),0) -> 0 | AD15: =IF(Определители!I15="9",ROUND(B15*(100-Начисления!M15)/100,0),0) -> 0 | AE15: =ROUND('Форма по МДС 81-35.2004'!F194*'Текущие цены за единицу'!AE15,0) -> 0
A16: ='Форма по МДС 81-35.2004'!A213 -> 11. | B16: ='Форма по МДС 81-35.2004'!H213 -> 164 | C16: =ROUND(SUMIF('Форма по МДС 81-35.2004'!J213:J237,"Г",'Форма по МДС 81-35.2004'!H213:H237),0) -> 26 | D16: =ROUND(SUMIF('Форма по МДС 81-35.2004'!J213:J237,"IsMash",'Форма по МДС 81-35.2004'!H213:H237),0) -> 57 | E16: ='Форма по МДС 81-35.2004'!H214 -> 12 | F16: =ROUND(SUMIF('Форма по МДС 81-35.2004'!J213:J237,"IsMater",'Форма по МДС 81-35.2004'!H213:H237),0) -> 81 | G16: =ROUND('Форма по МДС 81-35.2004'!F213*'Текущие цены за единицу'!G16,0) -> 0 | H16: =ROUND('Форма по МДС 81-35.2004'!F213*'Текущие цены за единицу'!H16,0) -> 0 | I16: =ОКРУГЛВСЕ(SUMIF('Форма по МДС 81-35.2004'!J213:J237,"Г",'Форма по МДС 81-35.2004'!F213:F237),8) -> 0.23793 | J16: =ОКРУГЛВСЕ('Форма по МДС 81-35.2004'!F213*'Текущие цены за единицу'!J16,8) -> 0 | K16: =ОКРУГЛВСЕ(SUMIF('Форма по МДС 81-35.2004'!J213:J237,"Ж",'Форма по МДС 81-35.2004'!F213:F237),8) -> 0.07931 | L16: =ROUND('Форма по МДС 81-35.2004'!F213*'Текущие цены за единицу'!L16,0) -> 0 | M16: =ROUND('Форма по МДС 81-35.2004'!F213*'Текущие цены за единицу'!M16,0) -> 0 | N16: =ROUND(B16*'Форма по МДС 81-35.2004'!G232/100,0) -> 19 | O16: =ROUND((B16+N16)*'Форма по МДС 81-35.2004'!G235/100,0) -> 15 | P16: =ROUND('Форма по МДС 81-35.2004'!F213*'Текущие цены за единицу'!P16,0) -> 0 | Q16: =ROUND('Форма по МДС 81-35.2004'!F213*'Текущие цены за единицу'!Q16,0) -> 0 | R16: =ROUND('Форма по МДС 81-35.2004'!F213*'Текущие цены за единицу'!R16,0) -> 0 | S16: =ROUND('Форма по МДС 81-35.2004'!F213*'Текущие цены за единицу'!S16,0) -> 0 | T16: =ROUND('Форма по МДС 81-35.2004'!F213*'Текущие цены за единицу'!T16,0) -> 0 | U16: =ROUND('Форма по МДС 81-35.2004'!F213*'Текущие цены за единицу'!U16,0) -> 0 | V16: =ROUND('Форма по МДС 81-35.2004'!F213*'Текущие цены за единицу'!V16,0) -> 0 | X16: =ROUND('Форма по МДС 81-35.2004'!F213*'Текущие цены за единицу'!X16,0) -> 0 | Y16: =IF(Определители!I16="9",ROUND(B16*(Начисления!M16/100)*'Форма по МДС 81-35.2004'!G232/100,0),0) -> 0 | Z16: =IF(Определители!I16="9",ROUND(B16*(100-Начисления!M16/100)*'Форма по МДС 81-35.2004'!G232/100,0),0) -> 0 | AA16: =IF(Определители!I16="9",ROUND((C16+E16)*(Начисления!M16/100)*('Форма по МДС 81-35.2004'!G235/100),0),0) -> 0 | AB16: =IF(Определители!I16="9",ROUND((C16+E16)*(100-Начисления!M16/100)*('Форма по МДС 81-35.2004'!G235/100),0),0) -> 0 | AC16: =IF(Определители!I16="9",ROUND(B16*Начисления!M16/100,0),0) -> 0 | AD16: =IF(Определители!I16="9",ROUND(B16*(100-Начисления!M16)/100,0),0) -> 0 | AE16: =ROUND('Форма по МДС 81-35.2004'!F213*'Текущие цены за единицу'!AE16,0) -> 0
A17: ='Форма по МДС 81-35.2004'!A238 -> 12. | B17: ='Форма по МДС 81-35.2004'!H238 -> 104 | C17: =ROUND(SUMIF('Форма по МДС 81-35.2004'!J238:J257,"Г",'Форма по МДС 81-35.2004'!H238:H257),0) -> 0 | D17: =ROUND(SUMIF('Форма по МДС 81-35.2004'!J238:J257,"IsMash",'Форма по МДС 81-35.2004'!H238:H257),0) -> 104 | E17: ='Форма по МДС 81-35.2004'!H240 -> 29 | F17: =ROUND(SUMIF('Форма по МДС 81-35.2004'!J238:J257,"IsMater",'Форма по МДС 81-35.2004'!H238:H257),0) -> 0 | G17: =ROUND('Форма по МДС 81-35.2004'!F238*'Текущие цены за единицу'!G17,0) -> 0 | H17: =ROUND('Форма по МДС 81-35.2004'!F238*'Текущие цены за единицу'!H17,0) -> 0 | I17: =ОКРУГЛВСЕ(SUMIF('Форма по МДС 81-35.2004'!J238:J257,"Г",'Форма по МДС 81-35.2004'!F238:F257),8) -> 0 | J17: =ОКРУГЛВСЕ('Форма по МДС 81-35.2004'!F238*'Текущие цены за единицу'!J17,8) -> 0 | K17: =ОКРУГЛВСЕ(SUMIF('Форма по МДС 81-35.2004'!J238:J257,"Ж",'Форма по МДС 81-35.2004'!F238:F257),8) -> 0.2045 | L17: =ROUND('Форма по МДС 81-35.2004'!F238*'Текущие цены за единицу'!L17,0) -> 0 | M17: =ROUND('Форма по МДС 81-35.2004'!F238*'Текущие цены за единицу'!M17,0) -> 0 | N17: =ROUND(B17*'Форма по МДС 81-35.2004'!G252/100,0) -> 12 | O17: =ROUND((B17+N17)*'Форма по МДС 81-35.2004'!G255/100,0) -> 9 | P17: =ROUND('Форма по МДС 81-35.2004'!F238*'Текущие цены за единицу'!P17,0) -> 0 | Q17: =ROUND('Форма по МДС 81-35.2004'!F238*'Текущие цены за единицу'!Q17,0) -> 0 | R17: =ROUND('Форма по МДС 81-35.2004'!F238*'Текущие цены за единицу'!R17,0) -> 0 | S17: =ROUND('Форма по МДС 81-35.2004'!F238*'Текущие цены за единицу'!S17,0) -> 0 | T17: =ROUND('Форма по МДС 81-35.2004'!F238*'Текущие цены за единицу'!T17,0) -> 0 | U17: =ROUND('Форма по МДС 81-35.2004'!F238*'Текущие цены за единицу'!U17,0) -> 0 | V17: =ROUND('Форма по МДС 81-35.2004'!F238*'Текущие цены за единицу'!V17,0) -> 0 | X17: =ROUND('Форма по МДС 81-35.2004'!F238*'Текущие цены за единицу'!X17,0) -> 0 | Y17: =IF(Определители!I17="9",ROUND(B17*(Начисления!M17/100)*'Форма по МДС 81-35.2004'!G252/100,0),0) -> 0 | Z17: =IF(Определители!I17="9",ROUND(B17*(100-Начисления!M17/100)*'Форма по МДС 81-35.2004'!G252/100,0),0) -> 0 | AA17: =IF(Определители!I17="9",ROUND((C17+E17)*(Начисления!M17/100)*('Форма по МДС 81-35.2004'!G255/100),0),0) -> 0 | AB17: =IF(Определители!I17="9",ROUND((C17+E17)*(100-Начисления!M17/100)*('Форма по МДС 81-35.2004'!G255/100),0),0) -> 0 | AC17: =IF(Определители!I17="9",ROUND(B17*Начисления!M17/100,0),0) -> 0 | AD17: =IF(Определители!I17="9",ROUND(B17*(100-Начисления!M17)/100,0),0) -> 0 | AE17: =ROUND('Форма по МДС 81-35.2004'!F238*'Текущие цены за единицу'!AE17,0) -> 0
A18: ='Форма по МДС 81-35.2004'!A258 -> 13. | B18: ='Форма по МДС 81-35.2004'!H258 -> 27 | C18: =ROUND(SUMIF('Форма по МДС 81-35.2004'!J258:J276,"Г",'Форма по МДС 81-35.2004'!H258:H276),0) -> 0 | D18: =ROUND(SUMIF('Форма по МДС 81-35.2004'!J258:J276,"IsMash",'Форма по МДС 81-35.2004'!H258:H276),0) -> 27 | E18: ='Форма по МДС 81-35.2004'!H259 -> 0 | F18: =ROUND(SUMIF('Форма по МДС 81-35.2004'!J258:J276,"IsMater",'Форма по МДС 81-35.2004'!H258:H276),0) -> 0 | G18: =ROUND('Форма по МДС 81-35.2004'!F258*'Текущие цены за единицу'!G18,0) -> 0 | H18: =ROUND('Форма по МДС 81-35.2004'!F258*'Текущие цены за единицу'!H18,0) -> 0 | I18: =ОКРУГЛВСЕ(SUMIF('Форма по МДС 81-35.2004'!J258:J276,"Г",'Форма по МДС 81-35.2004'!F258:F276),8) -> 0 | J18: =ОКРУГЛВСЕ('Форма по МДС 81-35.2004'!F258*'Текущие цены за единицу'!J18,8) -> 0 | K18: =ОКРУГЛВСЕ(SUMIF('Форма по МДС 81-35.2004'!J258:J276,"Ж",'Форма по МДС 81-35.2004'!F258:F276),8) -> 0 | L18: =ROUND('Форма по МДС 81-35.2004'!F258*'Текущие цены за единицу'!L18,0) -> 0 | M18: =ROUND('Форма по МДС 81-35.2004'!F258*'Текущие цены за единицу'!M18,0) -> 0 | N18: =ROUND(B18*'Форма по МДС 81-35.2004'!G271/100,0) -> 3 | O18: =ROUND((B18+N18)*'Форма по МДС 81-35.2004'!G274/100,0) -> 2 | P18: =ROUND('Форма по МДС 81-35.2004'!F258*'Текущие цены за единицу'!P18,0) -> 0 | Q18: =ROUND('Форма по МДС 81-35.2004'!F258*'Текущие цены за единицу'!Q18,0) -> 0 | R18: =ROUND('Форма по МДС 81-35.2004'!F258*'Текущие цены за единицу'!R18,0) -> 0 | S18: =ROUND('Форма по МДС 81-35.2004'!F258*'Текущие цены за единицу'!S18,0) -> 0 | T18: =ROUND('Форма по МДС 81-35.2004'!F258*'Текущие цены за единицу'!T18,0) -> 0 | U18: =ROUND('Форма по МДС 81-35.2004'!F258*'Текущие цены за единицу'!U18,0) -> 0 | V18: =ROUND('Форма по МДС 81-35.2004'!F258*'Текущие цены за единицу'!V18,0) -> 0 | X18: =ROUND('Форма по МДС 81-35.2004'!F258*'Текущие цены за единицу'!X18,0) -> 0 | Y18: =IF(Определители!I18="9",ROUND(B18*(Начисления!M18/100)*'Форма по МДС 81-35.2004'!G271/100,0),0) -> 0 | Z18: =IF(Определители!I18="9",ROUND(B18*(100-Начисления!M18/100)*'Форма по МДС 81-35.2004'!G271/100,0),0) -> 0 | AA18: =IF(Определители!I18="9",ROUND((C18+E18)*(Начисления!M18/100)*('Форма по МДС 81-35.2004'!G274/100),0),0) -> 0 | AB18: =IF(Определители!I18="9",ROUND((C18+E18)*(100-Начисления!M18/100)*('Форма по МДС 81-35.2004'!G274/100),0),0) -> 0 | AC18: =IF(Определители!I18="9",ROUND(B18*Начисления!M18/100,0),0) -> 0 | AD18: =IF(Определители!I18="9",ROUND(B18*(100-Начисления!M18)/100,0),0) -> 0 | AE18: =ROUND('Форма по МДС 81-35.2004'!F258*'Текущие цены за единицу'!AE18,0) -> 0
A19: ='Форма по МДС 81-35.2004'!A277 -> 14. | B19: ='Форма по МДС 81-35.2004'!H277 -> 48 | C19: =ROUND(SUMIF('Форма по МДС 81-35.2004'!J277:J296,"Г",'Форма по МДС 81-35.2004'!H277:H296),0) -> 0 | D19: =ROUND(SUMIF('Форма по МДС 81-35.2004'!J277:J296,"IsMash",'Форма по МДС 81-35.2004'!H277:H296),0) -> 48 | E19: ='Форма по МДС 81-35.2004'!H279 -> 0 | F19: =ROUND(SUMIF('Форма по МДС 81-35.2004'!J277:J296,"IsMater",'Форма по МДС 81-35.2004'!H277:H296),0) -> 0 | G19: =ROUND('Форма по МДС 81-35.2004'!F277*'Текущие цены за единицу'!G19,0) -> 0 | H19: =ROUND('Форма по МДС 81-35.2004'!F277*'Текущие цены за единицу'!H19,0) -> 0 | I19: =ОКРУГЛВСЕ(SUMIF('Форма по МДС 81-35.2004'!J277:J296,"Г",'Форма по МДС 81-35.2004'!F277:F296),8) -> 0 | J19: =ОКРУГЛВСЕ('Форма по МДС 81-35.2004'!F277*'Текущие цены за единицу'!J19,8) -> 0 | K19: =ОКРУГЛВСЕ(SUMIF('Форма по МДС 81-35.2004'!J277:J296,"Ж",'Форма по МДС 81-35.2004'!F277:F296),8) -> 0 | L19: =ROUND('Форма по МДС 81-35.2004'!F277*'Текущие цены за единицу'!L19,0) -> 0 | M19: =ROUND('Форма по МДС 81-35.2004'!F277*'Текущие цены за единицу'!M19,0) -> 0 | N19: =ROUND(B19*'Форма по МДС 81-35.2004'!G291/100,0) -> 6 | O19: =ROUND((B19+N19)*'Форма по МДС 81-35.2004'!G294/100,0) -> 4 | P19: =ROUND('Форма по МДС 81-35.2004'!F277*'Текущие цены за единицу'!P19,0) -> 0 | Q19: =ROUND('Форма по МДС 81-35.2004'!F277*'Текущие цены за единицу'!Q19,0) -> 0 | R19: =ROUND('Форма по МДС 81-35.2004'!F277*'Текущие цены за единицу'!R19,0) -> 0 | S19: =ROUND('Форма по МДС 81-35.2004'!F277*'Текущие цены за единицу'!S19,0) -> 0 | T19: =ROUND('Форма по МДС 81-35.2004'!F277*'Текущие цены за единицу'!T19,0) -> 0 | U19: =ROUND('Форма по МДС 81-35.2004'!F277*'Текущие цены за единицу'!U19,0) -> 0 | V19: =ROUND('Форма по МДС 81-35.2004'!F277*'Текущие цены за единицу'!V19,0) -> 0 | X19: =ROUND('Форма по МДС 81-35.2004'!F277*'Текущие цены за единицу'!X19,0) -> 0 | Y19: =IF(Определители!I19="9",ROUND(B19*(Начисления!M19/100)*'Форма по МДС 81-35.2004'!G291/100,0),0) -> 0 | Z19: =IF(Определители!I19="9",ROUND(B19*(100-Начисления!M19/100)*'Форма по МДС 81-35.2004'!G291/100,0),0) -> 0 | AA19: =IF(Определители!I19="9",ROUND((C19+E19)*(Начисления!M19/100)*('Форма по МДС 81-35.2004'!G294/100),0),0) -> 0 | AB19: =IF(Определители!I19="9",ROUND((C19+E19)*(100-Начисления!M19/100)*('Форма по МДС 81-35.2004'!G294/100),0),0) -> 0 | AC19: =IF(Определители!I19="9",ROUND(B19*Начисления!M19/100,0),0) -> 0 | AD19: =IF(Определители!I19="9",ROUND(B19*(100-Начисления!M19)/100,0),0) -> 0 | AE19: =ROUND('Форма по МДС 81-35.2004'!F277*'Текущие цены за единицу'!AE19,0) -> 0
A20: ='Форма по МДС 81-35.2004'!A299 -> 15. | B20: ='Форма по МДС 81-35.2004'!H299 -> 85 | C20: =ROUND(SUMIF('Форма по МДС 81-35.2004'!J299:J318,"Г",'Форма по МДС 81-35.2004'!H299:H318),0) -> 50 | D20: =ROUND(SUMIF('Форма по МДС 81-35.2004'!J299:J318,"IsMash",'Форма по МДС 81-35.2004'!H299:H318),0) -> 35 | E20: ='Форма по МДС 81-35.2004'!H300 -> 9 | F20: =ROUND(SUMIF('Форма по МДС 81-35.2004'!J299:J318,"IsMater",'Форма по МДС 81-35.2004'!H299:H318),0) -> 0 | G20: =ROUND('Форма по МДС 81-35.2004'!F299*'Текущие цены за единицу'!G20,0) -> 0 | H20: =ROUND('Форма по МДС 81-35.2004'!F299*'Текущие цены за единицу'!H20,0) -> 0 | I20: =ОКРУГЛВСЕ(SUMIF('Форма по МДС 81-35.2004'!J299:J318,"Г",'Форма по МДС 81-35.2004'!F299:F318),8) -> 0.50048 | J20: =ОКРУГЛВСЕ('Форма по МДС 81-35.2004'!F299*'Текущие цены за единицу'!J20,8) -> 0 | K20: =ОКРУГЛВСЕ(SUMIF('Форма по МДС 81-35.2004'!J299:J318,"Ж",'Форма по МДС 81-35.2004'!F299:F318),8) -> 0.06256 | L20: =ROUND('Форма по МДС 81-35.2004'!F299*'Текущие цены за единицу'!L20,0) -> 0 | M20: =ROUND('Форма по МДС 81-35.2004'!F299*'Текущие цены за единицу'!M20,0) -> 0 | N20: =ROUND(B20*'Форма по МДС 81-35.2004'!G313/100,0) -> 10 | O20: =ROUND((B20+N20)*'Форма по МДС 81-35.2004'!G316/100,0) -> 8 | P20: =ROUND('Форма по МДС 81-35.2004'!F299*'Текущие цены за единицу'!P20,0) -> 0 | Q20: =ROUND('Форма по МДС 81-35.2004'!F299*'Текущие цены за единицу'!Q20,0) -> 0 | R20: =ROUND('Форма по МДС 81-35.2004'!F299*'Текущие цены за единицу'!R20,0) -> 0 | S20: =ROUND('Форма по МДС 81-35.2004'!F299*'Текущие цены за единицу'!S20,0) -> 0 | T20: =ROUND('Форма по МДС 81-35.2004'!F299*'Текущие цены за единицу'!T20,0) -> 0 | U20: =ROUND('Форма по МДС 81-35.2004'!F299*'Текущие цены за единицу'!U20,0) -> 0 | V20: =ROUND('Форма по МДС 81-35.2004'!F299*'Текущие цены за единицу'!V20,0) -> 0 | X20: =ROUND('Форма по МДС 81-35.2004'!F299*'Текущие цены за единицу'!X20,0) -> 0 | Y20: =IF(Определители!I20="9",ROUND(B20*(Начисления!M20/100)*'Форма по МДС 81-35.2004'!G313/100,0),0) -> 0 | Z20: =IF(Определители!I20="9",ROUND(B20*(100-Начисления!M20/100)*'Форма по МДС 81-35.2004'!G313/100,0),0) -> 0 | AA20: =IF(Определители!I20="9",ROUND((C20+E20)*(Начисления!M20/100)*('Форма по МДС 81-35.2004'!G316/100),0),0) -> 0 | AB20: =IF(Определители!I20="9",ROUND((C20+E20)*(100-Начисления!M20/100)*('Форма по МДС 81-35.2004'!G316/100),0),0) -> 0 | AC20: =IF(Определители!I20="9",ROUND(B20*Начисления!M20/100,0),0) -> 0 | AD20: =IF(Определители!I20="9",ROUND(B20*(100-Начисления!M20)/100,0),0) -> 0 | AE20: =ROUND('Форма по МДС 81-35.2004'!F299*'Текущие цены за единицу'!AE20,0) -> 0
A21: ='Форма по МДС 81-35.2004'!A319 -> 16. | B21: ='Форма по МДС 81-35.2004'!H319 -> 213 | C21: =ROUND(SUMIF('Форма по МДС 81-35.2004'!J319:J339,"Г",'Форма по МДС 81-35.2004'!H319:H339),0) -> 25 | D21: =ROUND(SUMIF('Форма по МДС 81-35.2004'!J319:J339,"IsMash",'Форма по МДС 81-35.2004'!H319:H339),0) -> 0 | E21: ='Форма по МДС 81-35.2004'!H320 -> 0 | F21: =ROUND(SUMIF('Форма по МДС 81-35.2004'!J319:J339,"IsMater",'Форма по МДС 81-35.2004'!H319:H339),0) -> 189 | G21: =ROUND('Форма по МДС 81-35.2004'!F319*'Текущие цены за единицу'!G21,0) -> 0 | H21: =ROUND('Форма по МДС 81-35.2004'!F319*'Текущие цены за единицу'!H21,0) -> 0 | I21: =ОКРУГЛВСЕ(SUMIF('Форма по МДС 81-35.2004'!J319:J339,"Г",'Форма по МДС 81-35.2004'!F319:F339),8) -> 0.23373 | J21: =ОКРУГЛВСЕ('Форма по МДС 81-35.2004'!F319*'Текущие цены за единицу'!J21,8) -> 0 | K21: =ОКРУГЛВСЕ(SUMIF('Форма по МДС 81-35.2004'!J319:J339,"Ж",'Форма по МДС 81-35.2004'!F319:F339),8) -> 0 | L21: =ROUND('Форма по МДС 81-35.2004'!F319*'Текущие цены за единицу'!L21,0) -> 0 | M21: =ROUND('Форма по МДС 81-35.2004'!F319*'Текущие цены за единицу'!M21,0) -> 0 | N21: =ROUND(B21*'Форма по МДС 81-35.2004'!G334/100,0) -> 25 | O21: =ROUND((B21+N21)*'Форма по МДС 81-35.2004'!G337/100,0) -> 19 | P21: =ROUND('Форма по МДС 81-35.2004'!F319*'Текущие цены за единицу'!P21,0) -> 0 | Q21: =ROUND('Форма по МДС 81-35.2004'!F319*'Текущие цены за единицу'!Q21,0) -> 0 | R21: =ROUND('Форма по МДС 81-35.2004'!F319*'Текущие цены за единицу'!R21,0) -> 0 | S21: =ROUND('Форма по МДС 81-35.2004'!F319*'Текущие цены за единицу'!S21,0) -> 0 | T21: =ROUND('Форма по МДС 81-35.2004'!F319*'Текущие цены за единицу'!T21,0) -> 0 | U21: =ROUND('Форма по МДС 81-35.2004'!F319*'Текущие цены за единицу'!U21,0) -> 0 | V21: =ROUND('Форма по МДС 81-35.2004'!F319*'Текущие цены за единицу'!V21,0) -> 0 | X21: =ROUND('Форма по МДС 81-35.2004'!F319*'Текущие цены за единицу'!X21,0) -> 0 | Y21: =IF(Определители!I21="9",ROUND(B21*(Начисления!M21/100)*'Форма по МДС 81-35.2004'!G334/100,0),0) -> 0 | Z21: =IF(Определители!I21="9",ROUND(B21*(100-Начисления!M21/100)*'Форма по МДС 81-35.2004'!G334/100,0),0) -> 0 | AA21: =IF(Определители!I21="9",ROUND((C21+E21)*(Начисления!M21/100)*('Форма по МДС 81-35.2004'!G337/100),0),0) -> 0 | AB21: =IF(Определители!I21="9",ROUND((C21+E21)*(100-Начисления!M21/100)*('Форма по МДС 81-35.2004'!G337/100),0),0) -> 0 | AC21: =IF(Определители!I21="9",ROUND(B21*Начисления!M21/100,0),0) -> 0 | AD21: =IF(Определители!I21="9",ROUND(B21*(100-Начисления!M21)/100,0),0) -> 0 | AE21: =ROUND('Форма по МДС 81-35.2004'!F319*'Текущие цены за единицу'!AE21,0) -> 0
A22: ='Форма по МДС 81-35.2004'!A340 -> 17. | B22: ='Форма по МДС 81-35.2004'!H340 -> 48 | C22: =ROUND(SUMIF('Форма по МДС 81-35.2004'!J340:J359,"Г",'Форма по МДС 81-35.2004'!H340:H359),0) -> 24 | D22: =ROUND(SUMIF('Форма по МДС 81-35.2004'!J340:J359,"IsMash",'Форма по МДС 81-35.2004'!H340:H359),0) -> 0 | E22: ='Форма по МДС 81-35.2004'!H341 -> 0 | F22: =ROUND(SUMIF('Форма по МДС 81-35.2004'!J340:J359,"IsMater",'Форма по МДС 81-35.2004'!H340:H359),0) -> 24 | G22: =ROUND('Форма по МДС 81-35.2004'!F340*'Текущие цены за единицу'!G22,0) -> 0 | H22: =ROUND('Форма по МДС 81-35.2004'!F340*'Текущие цены за единицу'!H22,0) -> 0 | I22: =ОКРУГЛВСЕ(SUMIF('Форма по МДС 81-35.2004'!J340:J359,"Г",'Форма по МДС 81-35.2004'!F340:F359),8) -> 0.19055 | J22: =ОКРУГЛВСЕ('Форма по МДС 81-35.2004'!F340*'Текущие цены за единицу'!J22,8) -> 0 | K22: =ОКРУГЛВСЕ(SUMIF('Форма по МДС 81-35.2004'!J340:J359,"Ж",'Форма по МДС 81-35.2004'!F340:F359),8) -> 0 | L22: =ROUND('Форма по МДС 81-35.2004'!F340*'Текущие цены за единицу'!L22,0) -> 0 | M22: =ROUND('Форма по МДС 81-35.2004'!F340*'Текущие цены за единицу'!M22,0) -> 0 | N22: =ROUND(B22*'Форма по МДС 81-35.2004'!G354/100,0) -> 6 | O22: =ROUND((B22+N22)*'Форма по МДС 81-35.2004'!G357/100,0) -> 4 | P22: =ROUND('Форма по МДС 81-35.2004'!F340*'Текущие цены за единицу'!P22,0) -> 0 | Q22: =ROUND('Форма по МДС 81-35.2004'!F340*'Текущие цены за единицу'!Q22,0) -> 0 | R22: =ROUND('Форма по МДС 81-35.2004'!F340*'Текущие цены за единицу'!R22,0) -> 0 | S22: =ROUND('Форма по МДС 81-35.2004'!F340*'Текущие цены за единицу'!S22,0) -> 0 | T22: =ROUND('Форма по МДС 81-35.2004'!F340*'Текущие цены за единицу'!T22,0) -> 0 | U22: =ROUND('Форма по МДС 81-35.2004'!F340*'Текущие цены за единицу'!U22,0) -> 0 | V22: =ROUND('Форма по МДС 81-35.2004'!F340*'Текущие цены за единицу'!V22,0) -> 0 | X22: =ROUND('Форма по МДС 81-35.2004'!F340*'Текущие цены за единицу'!X22,0) -> 0 | Y22: =IF(Определители!I22="9",ROUND(B22*(Начисления!M22/100)*'Форма по МДС 81-35.2004'!G354/100,0),0) -> 0 | Z22: =IF(Определители!I22="9",ROUND(B22*(100-Начисления!M22/100)*'Форма по МДС 81-35.2004'!G354/100,0),0) -> 0 | AA22: =IF(Определители!I22="9",ROUND((C22+E22)*(Начисления!M22/100)*('Форма по МДС 81-35.2004'!G357/100),0),0) -> 0 | AB22: =IF(Определители!I22="9",ROUND((C22+E22)*(100-Начисления!M22/100)*('Форма по МДС 81-35.2004'!G357/100),0),0) -> 0 | AC22: =IF(Определители!I22="9",ROUND(B22*Начисления!M22/100,0),0) -> 0 | AD22: =IF(Определители!I22="9",ROUND(B22*(100-Начисления!M22)/100,0),0) -> 0 | AE22: =ROUND('Форма по МДС 81-35.2004'!F340*'Текущие цены за единицу'!AE22,0) -> 0
A23: ='Форма по МДС 81-35.2004'!A360 -> 18. | B23: ='Форма по МДС 81-35.2004'!H360 -> 1 | C23: =ROUND(SUMIF('Форма по МДС 81-35.2004'!J360:J379,"Г",'Форма по МДС 81-35.2004'!H360:H379),0) -> 0 | D23: =ROUND(SUMIF('Форма по МДС 81-35.2004'!J360:J379,"IsMash",'Форма по МДС 81-35.2004'!H360:H379),0) -> 1 | E23: ='Форма по МДС 81-35.2004'!H361 -> 0 | F23: =ROUND(SUMIF('Форма по МДС 81-35.2004'!J360:J379,"IsMater",'Форма по МДС 81-35.2004'!H360:H379),0) -> 0 | G23: =ROUND('Форма по МДС 81-35.2004'!F360*'Текущие цены за единицу'!G23,0) -> 0 | H23: =ROUND('Форма по МДС 81-35.2004'!F360*'Текущие цены за единицу'!H23,0) -> 0 | I23: =ОКРУГЛВСЕ(SUMIF('Форма по МДС 81-35.2004'!J360:J379,"Г",'Форма по МДС 81-35.2004'!F360:F379),8) -> 0.0046 | J23: =ОКРУГЛВСЕ('Форма по МДС 81-35.2004'!F360*'Текущие цены за единицу'!J23,8) -> 0 | K23: =ОКРУГЛВСЕ(SUMIF('Форма по МДС 81-35.2004'!J360:J379,"Ж",'Форма по МДС 81-35.2004'!F360:F379),8) -> 0.00115 | L23: =ROUND('Форма по МДС 81-35.2004'!F360*'Текущие цены за единицу'!L23,0) -> 0 | M23: =ROUND('Форма по МДС 81-35.2004'!F360*'Текущие цены за единицу'!M23,0) -> 0 | N23: =ROUND(B23*'Форма по МДС 81-35.2004'!G374/100,0) -> 0 | O23: =ROUND((B23+N23)*'Форма по МДС 81-35.2004'!G377/100,0) -> 0 | P23: =ROUND('Форма по МДС 81-35.2004'!F360*'Текущие цены за единицу'!P23,0) -> 0 | Q23: =ROUND('Форма по МДС 81-35.2004'!F360*'Текущие цены за единицу'!Q23,0) -> 0 | R23: =ROUND('Форма по МДС 81-35.2004'!F360*'Текущие цены за единицу'!R23,0) -> 0 | S23: =ROUND('Форма по МДС 81-35.2004'!F360*'Текущие цены за единицу'!S23,0) -> 0 | T23: =ROUND('Форма по МДС 81-35.2004'!F360*'Текущие цены за единицу'!T23,0) -> 0 | U23: =ROUND('Форма по МДС 81-35.2004'!F360*'Текущие цены за единицу'!U23,0) -> 0 | V23: =ROUND('Форма по МДС 81-35.2004'!F360*'Текущие цены за единицу'!V23,0) -> 0 | X23: =ROUND('Форма по МДС 81-35.2004'!F360*'Текущие цены за единицу'!X23,0) -> 0 | Y23: =IF(Определители!I23="9",ROUND(B23*(Начисления!M23/100)*'Форма по МДС 81-35.2004'!G374/100,0),0) -> 0 | Z23: =IF(Определители!I23="9",ROUND(B23*(100-Начисления!M23/100)*'Форма по МДС 81-35.2004'!G374/100,0),0) -> 0 | AA23: =IF(Определители!I23="9",ROUND((C23+E23)*(Начисления!M23/100)*('Форма по МДС 81-35.2004'!G377/100),0),0) -> 0 | AB23: =IF(Определители!I23="9",ROUND((C23+E23)*(100-Начисления!M23/100)*('Форма по МДС 81-35.2004'!G377/100),0),0) -> 0 | AC23: =IF(Определители!I23="9",ROUND(B23*Начисления!M23/100,0),0) -> 0 | AD23: =IF(Определители!I23="9",ROUND(B23*(100-Начисления!M23)/100,0),0) -> 0 | AE23: =ROUND('Форма по МДС 81-35.2004'!F360*'Текущие цены за единицу'!AE23,0) -> 0
A24: ='Форма по МДС 81-35.2004'!A380 -> 19. | B24: ='Форма по МДС 81-35.2004'!H380 -> 23 | C24: =ROUND(SUMIF('Форма по МДС 81-35.2004'!J380:J399,"Г",'Форма по МДС 81-35.2004'!H380:H399),0) -> 14 | D24: =ROUND(SUMIF('Форма по МДС 81-35.2004'!J380:J399,"IsMash",'Форма по МДС 81-35.2004'!H380:H399),0) -> 9 | E24: ='Форма по МДС 81-35.2004'!H381 -> 3 | F24: =ROUND(SUMIF('Форма по МДС 81-35.2004'!J380:J399,"IsMater",'Форма по МДС 81-35.2004'!H380:H399),0) -> 0 | G24: =ROUND('Форма по МДС 81-35.2004'!F380*'Текущие цены за единицу'!G24,0) -> 0 | H24: =ROUND('Форма по МДС 81-35.2004'!F380*'Текущие цены за единицу'!H24,0) -> 0 | I24: =ОКРУГЛВСЕ(SUMIF('Форма по МДС 81-35.2004'!J380:J399,"Г",'Форма по МДС 81-35.2004'!F380:F399),8) -> 0.136 | J24: =ОКРУГЛВСЕ('Форма по МДС 81-35.2004'!F380*'Текущие цены за единицу'!J24,8) -> 0 | K24: =ОКРУГЛВСЕ(SUMIF('Форма по МДС 81-35.2004'!J380:J399,"Ж",'Форма по МДС 81-35.2004'!F380:F399),8) -> 0.017 | L24: =ROUND('Форма по МДС 81-35.2004'!F380*'Текущие цены за единицу'!L24,0) -> 0 | M24: =ROUND('Форма по МДС 81-35.2004'!F380*'Текущие цены за единицу'!M24,0) -> 0 | N24: =ROUND(B24*'Форма по МДС 81-35.2004'!G394/100,0) -> 3 | O24: =ROUND((B24+N24)*'Форма по МДС 81-35.2004'!G397/100,0) -> 2 | P24: =ROUND('Форма по МДС 81-35.2004'!F380*'Текущие цены за единицу'!P24,0) -> 0 | Q24: =ROUND('Форма по МДС 81-35.2004'!F380*'Текущие цены за единицу'!Q24,0) -> 0 | R24: =ROUND('Форма по МДС 81-35.2004'!F380*'Текущие цены за единицу'!R24,0) -> 0 | S24: =ROUND('Форма по МДС 81-35.2004'!F380*'Текущие цены за единицу'!S24,0) -> 0 | T24: =ROUND('Форма по МДС 81-35.2004'!F380*'Текущие цены за единицу'!T24,0) -> 0 | U24: =ROUND('Форма по МДС 81-35.2004'!F380*'Текущие цены за единицу'!U24,0) -> 0 | V24: =ROUND('Форма по МДС 81-35.2004'!F380*'Текущие цены за единицу'!V24,0) -> 0 | X24: =ROUND('Форма по МДС 81-35.2004'!F380*'Текущие цены за единицу'!X24,0) -> 0 | Y24: =IF(Определители!I24="9",ROUND(B24*(Начисления!M24/100)*'Форма по МДС 81-35.2004'!G394/100,0),0) -> 0 | Z24: =IF(Определители!I24="9",ROUND(B24*(100-Начисления!M24/100)*'Форма по МДС 81-35.2004'!G394/100,0),0) -> 0 | AA24: =IF(Определители!I24="9",ROUND((C24+E24)*(Начисления!M24/100)*('Форма по МДС 81-35.2004'!G397/100),0),0) -> 0 | AB24: =IF(Определители!I24="9",ROUND((C24+E24)*(100-Начисления!M24/100)*('Форма по МДС 81-35.2004'!G397/100),0),0) -> 0 | AC24: =IF(Определители!I24="9",ROUND(B24*Начисления!M24/100,0),0) -> 0 | AD24: =IF(Определители!I24="9",ROUND(B24*(100-Начисления!M24)/100,0),0) -> 0 | AE24: =ROUND('Форма по МДС 81-35.2004'!F380*'Текущие цены за единицу'!AE24,0) -> 0
A25: ='Форма по МДС 81-35.2004'!A402 -> 20. | B25: ='Форма по МДС 81-35.2004'!H402 -> 6 | C25: =ROUND(SUMIF('Форма по МДС 81-35.2004'!J402:J421,"Г",'Форма по МДС 81-35.2004'!H402:H421),0) -> 4 | D25: =ROUND(SUMIF('Форма по МДС 81-35.2004'!J402:J421,"IsMash",'Форма по МДС 81-35.2004'!H402:H421),0) -> 3 | E25: ='Форма по МДС 81-35.2004'!H403 -> 1 | F25: =ROUND(SUMIF('Форма по МДС 81-35.2004'!J402:J421,"IsMater",'Форма по МДС 81-35.2004'!H402:H421),0) -> 0 | G25: =ROUND('Форма по МДС 81-35.2004'!F402*'Текущие цены за единицу'!G25,0) -> 0 | H25: =ROUND('Форма по МДС 81-35.2004'!F402*'Текущие цены за единицу'!H25,0) -> 0 | I25: =ОКРУГЛВСЕ(SUMIF('Форма по МДС 81-35.2004'!J402:J421,"Г",'Форма по МДС 81-35.2004'!F402:F421),8) -> 0.0368 | J25: =ОКРУГЛВСЕ('Форма по МДС 81-35.2004'!F402*'Текущие цены за единицу'!J25,8) -> 0 | K25: =ОКРУГЛВСЕ(SUMIF('Форма по МДС 81-35.2004'!J402:J421,"Ж",'Форма по МДС 81-35.2004'!F402:F421),8) -> 0.0046 | L25: =ROUND('Форма по МДС 81-35.2004'!F402*'Текущие цены за единицу'!L25,0) -> 0 | M25: =ROUND('Форма по МДС 81-35.2004'!F402*'Текущие цены за единицу'!M25,0) -> 0 | N25: =ROUND(B25*'Форма по МДС 81-35.2004'!G416/100,0) -> 1 | O25: =ROUND((B25+N25)*'Форма по МДС 81-35.2004'!G419/100,0) -> 1 | P25: =ROUND('Форма по МДС 81-35.2004'!F402*'Текущие цены за единицу'!P25,0) -> 0 | Q25: =ROUND('Форма по МДС 81-35.2004'!F402*'Текущие цены за единицу'!Q25,0) -> 0 | R25: =ROUND('Форма по МДС 81-35.2004'!F402*'Текущие цены за единицу'!R25,0) -> 0 | S25: =ROUND('Форма по МДС 81-35.2004'!F402*'Текущие цены за единицу'!S25,0) -> 0 | T25: =ROUND('Форма по МДС 81-35.2004'!F402*'Текущие цены за единицу'!T25,0) -> 0 | U25: =ROUND('Форма по МДС 81-35.2004'!F402*'Текущие цены за единицу'!U25,0) -> 0 | V25: =ROUND('Форма по МДС 81-35.2004'!F402*'Текущие цены за единицу'!V25,0) -> 0 | X25: =ROUND('Форма по МДС 81-35.2004'!F402*'Текущие цены за единицу'!X25,0) -> 0 | Y25: =IF(Определители!I25="9",ROUND(B25*(Начисления!M25/100)*'Форма по МДС 81-35.2004'!G416/100,0),0) -> 0 | Z25: =IF(Определители!I25="9",ROUND(B25*(100-Начисления!M25/100)*'Форма по МДС 81-35.2004'!G416/100,0),0) -> 0 | AA25: =IF(Определители!I25="9",ROUND((C25+E25)*(Начисления!M25/100)*('Форма по МДС 81-35.2004'!G419/100),0),0) -> 0 | AB25: =IF(Определители!I25="9",ROUND((C25+E25)*(100-Начисления!M25/100)*('Форма по МДС 81-35.2004'!G419/100),0),0) -> 0 | AC25: =IF(Определители!I25="9",ROUND(B25*Начисления!M25/100,0),0) -> 0 | AD25: =IF(Определители!I25="9",ROUND(B25*(100-Начисления!M25)/100,0),0) -> 0 | AE25: =ROUND('Форма по МДС 81-35.2004'!F402*'Текущие цены за единицу'!AE25,0) -> 0
A26: ='Форма по МДС 81-35.2004'!A422 -> 21. | B26: ='Форма по МДС 81-35.2004'!H422 -> 2 | C26: =ROUND(SUMIF('Форма по МДС 81-35.2004'!J422:J441,"Г",'Форма по МДС 81-35.2004'!H422:H441),0) -> 1 | D26: =ROUND(SUMIF('Форма по МДС 81-35.2004'!J422:J441,"IsMash",'Форма по МДС 81-35.2004'!H422:H441),0) -> 1 | E26: ='Форма по МДС 81-35.2004'!H423 -> 0 | F26: =ROUND(SUMIF('Форма по МДС 81-35.2004'!J422:J441,"IsMater",'Форма по МДС 81-35.2004'!H422:H441),0) -> 0 | G26: =ROUND('Форма по МДС 81-35.2004'!F422*'Текущие цены за единицу'!G26,0) -> 0 | H26: =ROUND('Форма по МДС 81-35.2004'!F422*'Текущие цены за единицу'!H26,0) -> 0 | I26: =ОКРУГЛВСЕ(SUMIF('Форма по МДС 81-35.2004'!J422:J441,"Г",'Форма по МДС 81-35.2004'!F422:F441),8) -> 0.00896 | J26: =ОКРУГЛВСЕ('Форма по МДС 81-35.2004'!F422*'Текущие цены за единицу'!J26,8) -> 0 | K26: =ОКРУГЛВСЕ(SUMIF('Форма по МДС 81-35.2004'!J422:J441,"Ж",'Форма по МДС 81-35.2004'!F422:F441),8) -> 0.00112 | L26: =ROUND('Форма по МДС 81-35.2004'!F422*'Текущие цены за единицу'!L26,0) -> 0 | M26: =ROUND('Форма по МДС 81-35.2004'!F422*'Текущие цены за единицу'!M26,0) -> 0 | N26: =ROUND(B26*'Форма по МДС 81-35.2004'!G436/100,0) -> 0 | O26: =ROUND((B26+N26)*'Форма по МДС 81-35.2004'!G439/100,0) -> 0 | P26: =ROUND('Форма по МДС 81-35.2004'!F422*'Текущие цены за единицу'!P26,0) -> 0 | Q26: =ROUND('Форма по МДС 81-35.2004'!F422*'Текущие цены за единицу'!Q26,0) -> 0 | R26: =ROUND('Форма по МДС 81-35.2004'!F422*'Текущие цены за единицу'!R26,0) -> 0 | S26: =ROUND('Форма по МДС 81-35.2004'!F422*'Текущие цены за единицу'!S26,0) -> 0 | T26: =ROUND('Форма по МДС 81-35.2004'!F422*'Текущие цены за единицу'!T26,0) -> 0 | U26: =ROUND('Форма по МДС 81-35.2004'!F422*'Текущие цены за единицу'!U26,0) -> 0 | V26: =ROUND('Форма по МДС 81-35.2004'!F422*'Текущие цены за единицу'!V26,0) -> 0 | X26: =ROUND('Форма по МДС 81-35.2004'!F422*'Текущие цены за единицу'!X26,0) -> 0 | Y26: =IF(Определители!I26="9",ROUND(B26*(Начисления!M26/100)*'Форма по МДС 81-35.2004'!G436/100,0),0) -> 0 | Z26: =IF(Определители!I26="9",ROUND(B26*(100-Начисления!M26/100)*'Форма по МДС 81-35.2004'!G436/100,0),0) -> 0 | AA26: =IF(Определители!I26="9",ROUND((C26+E26)*(Начисления!M26/100)*('Форма по МДС 81-35.2004'!G439/100),0),0) -> 0 | AB26: =IF(Определители!I26="9",ROUND((C26+E26)*(100-Начисления!M26/100)*('Форма по МДС 81-35.2004'!G439/100),0),0) -> 0 | AC26: =IF(Определители!I26="9",ROUND(B26*Начисления!M26/100,0),0) -> 0 | AD26: =IF(Определители!I26="9",ROUND(B26*(100-Начисления!M26)/100,0),0) -> 0 | AE26: =ROUND('Форма по МДС 81-35.2004'!F422*'Текущие цены за единицу'!AE26,0) -> 0
A27: ='Форма по МДС 81-35.2004'!A442 -> 22. | B27: ='Форма по МДС 81-35.2004'!H442 -> 1960 | C27: =ROUND(SUMIF('Форма по МДС 81-35.2004'!J442:J470,"Г",'Форма по МДС 81-35.2004'!H442:H470),0) -> 208 | D27: =ROUND(SUMIF('Форма по МДС 81-35.2004'!J442:J470,"IsMash",'Форма по МДС 81-35.2004'!H442:H470),0) -> 273 | E27: ='Форма по МДС 81-35.2004'!H443 -> 74 | F27: =ROUND(SUMIF('Форма по МДС 81-35.2004'!J442:J470,"IsMater",'Форма по МДС 81-35.2004'!H442:H470),0) -> 1478 | G27: =ROUND('Форма по МДС 81-35.2004'!F442*'Текущие цены за единицу'!G27,0) -> 0 | H27: =ROUND('Форма по МДС 81-35.2004'!F442*'Текущие цены за единицу'!H27,0) -> 0 | I27: =ОКРУГЛВСЕ(SUMIF('Форма по МДС 81-35.2004'!J442:J470,"Г",'Форма по МДС 81-35.2004'!F442:F470),8) -> 1.978152 | J27: =ОКРУГЛВСЕ('Форма по МДС 81-35.2004'!F442*'Текущие цены за единицу'!J27,8) -> 0 | K27: =ОКРУГЛВСЕ(SUMIF('Форма по МДС 81-35.2004'!J442:J470,"Ж",'Форма по МДС 81-35.2004'!F442:F470),8) -> 0.494538 | L27: =ROUND('Форма по МДС 81-35.2004'!F442*'Текущие цены за единицу'!L27,0) -> 0 | M27: =ROUND('Форма по МДС 81-35.2004'!F442*'Текущие цены за единицу'!M27,0) -> 0 | N27: =ROUND(B27*'Форма по МДС 81-35.2004'!G465/100,0) -> 229 | O27: =ROUND((B27+N27)*'Форма по МДС 81-35.2004'!G468/100,0) -> 175 | P27: =ROUND('Форма по МДС 81-35.2004'!F442*'Текущие цены за единицу'!P27,0) -> 0 | Q27: =ROUND('Форма по МДС 81-35.2004'!F442*'Текущие цены за единицу'!Q27,0) -> 0 | R27: =ROUND('Форма по МДС 81-35.2004'!F442*'Текущие цены за единицу'!R27,0) -> 0 | S27: =ROUND('Форма по МДС 81-35.2004'!F442*'Текущие цены за единицу'!S27,0) -> 0 | T27: =ROUND('Форма по МДС 81-35.2004'!F442*'Текущие цены за единицу'!T27,0) -> 0 | U27: =ROUND('Форма по МДС 81-35.2004'!F442*'Текущие цены за единицу'!U27,0) -> 0 | V27: =ROUND('Форма по МДС 81-35.2004'!F442*'Текущие цены за единицу'!V27,0) -> 0 | X27: =ROUND('Форма по МДС 81-35.2004'!F442*'Текущие цены за единицу'!X27,0) -> 0 | Y27: =IF(Определители!I27="9",ROUND(B27*(Начисления!M27/100)*'Форма по МДС 81-35.2004'!G465/100,0),0) -> 0 | Z27: =IF(Определители!I27="9",ROUND(B27*(100-Начисления!M27/100)*'Форма по МДС 81-35.2004'!G465/100,0),0) -> 0 | AA27: =IF(Определители!I27="9",ROUND((C27+E27)*(Начисления!M27/100)*('Форма по МДС 81-35.2004'!G468/100),0),0) -> 0 | AB27: =IF(Определители!I27="9",ROUND((C27+E27)*(100-Начисления!M27/100)*('Форма по МДС 81-35.2004'!G468/100),0),0) -> 0 | AC27: =IF(Определители!I27="9",ROUND(B27*Начисления!M27/100,0),0) -> 0 | AD27: =IF(Определители!I27="9",ROUND(B27*(100-Начисления!M27)/100,0),0) -> 0 | AE27: =ROUND('Форма по МДС 81-35.2004'!F442*'Текущие цены за единицу'!AE27,0) -> 0
A28: ='Форма по МДС 81-35.2004'!A472 -> 23. | B28: ='Форма по МДС 81-35.2004'!H472 -> 133 | C28: =ROUND(SUMIF('Форма по МДС 81-35.2004'!J472:J498,"Г",'Форма по МДС 81-35.2004'!H472:H498),0) -> 51 | D28: =ROUND(SUMIF('Форма по МДС 81-35.2004'!J472:J498,"IsMash",'Форма по МДС 81-35.2004'!H472:H498),0) -> 76 | E28: ='Форма по МДС 81-35.2004'!H473 -> 19 | F28: =ROUND(SUMIF('Форма по МДС 81-35.2004'!J472:J498,"IsMater",'Форма по МДС 81-35.2004'!H472:H498),0) -> 6 | G28: =ROUND('Форма по МДС 81-35.2004'!F472*'Текущие цены за единицу'!G28,0) -> 0 | H28: =ROUND('Форма по МДС 81-35.2004'!F472*'Текущие цены за единицу'!H28,0) -> 0 | I28: =ОКРУГЛВСЕ(SUMIF('Форма по МДС 81-35.2004'!J472:J498,"Г",'Форма по МДС 81-35.2004'!F472:F498),8) -> 0.4535 | J28: =ОКРУГЛВСЕ('Форма по МДС 81-35.2004'!F472*'Текущие цены за единицу'!J28,8) -> 0 | K28: =ОКРУГЛВСЕ(SUMIF('Форма по МДС 81-35.2004'!J472:J498,"Ж",'Форма по МДС 81-35.2004'!F472:F498),8) -> 0.1296 | L28: =ROUND('Форма по МДС 81-35.2004'!F472*'Текущие цены за единицу'!L28,0) -> 0 | M28: =ROUND('Форма по МДС 81-35.2004'!F472*'Текущие цены за единицу'!M28,0) -> 0 | N28: =ROUND(B28*'Форма по МДС 81-35.2004'!G493/100,0) -> 16 | O28: =ROUND((B28+N28)*'Форма по МДС 81-35.2004'!G496/100,0) -> 12 | P28: =ROUND('Форма по МДС 81-35.2004'!F472*'Текущие цены за единицу'!P28,0) -> 0 | Q28: =ROUND('Форма по МДС 81-35.2004'!F472*'Текущие цены за единицу'!Q28,0) -> 0 | R28: =ROUND('Форма по МДС 81-35.2004'!F472*'Текущие цены за единицу'!R28,0) -> 0 | S28: =ROUND('Форма по МДС 81-35.2004'!F472*'Текущие цены за единицу'!S28,0) -> 0 | T28: =ROUND('Форма по МДС 81-35.2004'!F472*'Текущие цены за единицу'!T28,0) -> 0 | U28: =ROUND('Форма по МДС 81-35.2004'!F472*'Текущие цены за единицу'!U28,0) -> 0 | V28: =ROUND('Форма по МДС 81-35.2004'!F472*'Текущие цены за единицу'!V28,0) -> 0 | X28: =ROUND('Форма по МДС 81-35.2004'!F472*'Текущие цены за единицу'!X28,0) -> 0 | Y28: =IF(Определители!I28="9",ROUND(B28*(Начисления!M28/100)*'Форма по МДС 81-35.2004'!G493/100,0),0) -> 0 | Z28: =IF(Определители!I28="9",ROUND(B28*(100-Начисления!M28/100)*'Форма по МДС 81-35.2004'!G493/100,0),0) -> 0 | AA28: =IF(Определители!I28="9",ROUND((C28+E28)*(Начисления!M28/100)*('Форма по МДС 81-35.2004'!G496/100),0),0) -> 0 | AB28: =IF(Определители!I28="9",ROUND((C28+E28)*(100-Начисления!M28/100)*('Форма по МДС 81-35.2004'!G496/100),0),0) -> 0 | AC28: =IF(Определители!I28="9",ROUND(B28*Начисления!M28/100,0),0) -> 0 | AD28: =IF(Определители!I28="9",ROUND(B28*(100-Начисления!M28)/100,0),0) -> 0 | AE28: =ROUND('Форма по МДС 81-35.2004'!F472*'Текущие цены за единицу'!AE28,0) -> 0
A29: ='Форма по МДС 81-35.2004'!A499 -> 24. | B29: ='Форма по МДС 81-35.2004'!H499 -> 122 | C29: =ROUND(SUMIF('Форма по МДС 81-35.2004'!J499:J524,"Г",'Форма по МДС 81-35.2004'!H499:H524),0) -> 41 | D29: =ROUND(SUMIF('Форма по МДС 81-35.2004'!J499:J524,"IsMash",'Форма по МДС 81-35.2004'!H499:H524),0) -> 81 | E29: ='Форма по МДС 81-35.2004'!H500 -> 21 | F29: =ROUND(SUMIF('Форма по МДС 81-35.2004'!J499:J524,"IsMater",'Форма по МДС 81-35.2004'!H499:H524),0) -> 0 | G29: =ROUND('Форма по МДС 81-35.2004'!F499*'Текущие цены за единицу'!G29,0) -> 0 | H29: =ROUND('Форма по МДС 81-35.2004'!F499*'Текущие цены за единицу'!H29,0) -> 0 | I29: =ОКРУГЛВСЕ(SUMIF('Форма по МДС 81-35.2004'!J499:J524,"Г",'Форма по МДС 81-35.2004'!F499:F524),8) -> 0.3784 | J29: =ОКРУГЛВСЕ('Форма по МДС 81-35.2004'!F499*'Текущие цены за единицу'!J29,8) -> 0 | K29: =ОКРУГЛВСЕ(SUMIF('Форма по МДС 81-35.2004'!J499:J524,"Ж",'Форма по МДС 81-35.2004'!F499:F524),8) -> 0.1419 | L29: =ROUND('Форма по МДС 81-35.2004'!F499*'Текущие цены за единицу'!L29,0) -> 0 | M29: =ROUND('Форма по МДС 81-35.2004'!F499*'Текущие цены за единицу'!M29,0) -> 0 | N29: =ROUND(B29*'Форма по МДС 81-35.2004'!G519/100,0) -> 14 | O29: =ROUND((B29+N29)*'Форма по МДС 81-35.2004'!G522/100,0) -> 11 | P29: =ROUND('Форма по МДС 81-35.2004'!F499*'Текущие цены за единицу'!P29,0) -> 0 | Q29: =ROUND('Форма по МДС 81-35.2004'!F499*'Текущие цены за единицу'!Q29,0) -> 0 | R29: =ROUND('Форма по МДС 81-35.2004'!F499*'Текущие цены за единицу'!R29,0) -> 0 | S29: =ROUND('Форма по МДС 81-35.2004'!F499*'Текущие цены за единицу'!S29,0) -> 0 | T29: =ROUND('Форма по МДС 81-35.2004'!F499*'Текущие цены за единицу'!T29,0) -> 0 | U29: =ROUND('Форма по МДС 81-35.2004'!F499*'Текущие цены за единицу'!U29,0) -> 0 | V29: =ROUND('Форма по МДС 81-35.2004'!F499*'Текущие цены за единицу'!V29,0) -> 0 | X29: =ROUND('Форма по МДС 81-35.2004'!F499*'Текущие цены за единицу'!X29,0) -> 0 | Y29: =IF(Определители!I29="9",ROUND(B29*(Начисления!M29/100)*'Форма по МДС 81-35.2004'!G519/100,0),0) -> 0 | Z29: =IF(Определители!I29="9",ROUND(B29*(100-Начисления!M29/100)*'Форма по МДС 81-35.2004'!G519/100,0),0) -> 0 | AA29: =IF(Определители!I29="9",ROUND((C29+E29)*(Начисления!M29/100)*('Форма по МДС 81-35.2004'!G522/100),0),0) -> 0 | AB29: =IF(Определители!I29="9",ROUND((C29+E29)*(100-Начисления!M29/100)*('Форма по МДС 81-35.2004'!G522/100),0),0) -> 0 | AC29: =IF(Определители!I29="9",ROUND(B29*Начисления!M29/100,0),0) -> 0 | AD29: =IF(Определители!I29="9",ROUND(B29*(100-Начисления!M29)/100,0),0) -> 0 | AE29: =ROUND('Форма по МДС 81-35.2004'!F499*'Текущие цены за единицу'!AE29,0) -> 0
A30: ='Форма по МДС 81-35.2004'!A525 -> 25. | B30: ='Форма по МДС 81-35.2004'!H525 -> 498 | C30: =ROUND(SUMIF('Форма по МДС 81-35.2004'!J525:J543,"Г",'Форма по МДС 81-35.2004'!H525:H543),0) -> 0 | D30: =ROUND(SUMIF('Форма по МДС 81-35.2004'!J525:J543,"IsMash",'Форма по МДС 81-35.2004'!H525:H543),0) -> 0 | E30: ='Форма по МДС 81-35.2004'!H527 -> 0 | F30: =ROUND(SUMIF('Форма по МДС 81-35.2004'!J525:J543,"IsMater",'Форма по МДС 81-35.2004'!H525:H543),0) -> 498 | G30: =ROUND('Форма по МДС 81-35.2004'!F525*'Текущие цены за единицу'!G30,0) -> 0 | H30: =ROUND('Форма по МДС 81-35.2004'!F525*'Текущие цены за единицу'!H30,0) -> 0 | I30: =ОКРУГЛВСЕ(SUMIF('Форма по МДС 81-35.2004'!J525:J543,"Г",'Форма по МДС 81-35.2004'!F525:F543),8) -> 0 | J30: =ОКРУГЛВСЕ('Форма по МДС 81-35.2004'!F525*'Текущие цены за единицу'!J30,8) -> 0 | K30: =ОКРУГЛВСЕ(SUMIF('Форма по МДС 81-35.2004'!J525:J543,"Ж",'Форма по МДС 81-35.2004'!F525:F543),8) -> 0 | L30: =ROUND('Форма по МДС 81-35.2004'!F525*'Текущие цены за единицу'!L30,0) -> 0 | M30: =ROUND('Форма по МДС 81-35.2004'!F525*'Текущие цены за единицу'!M30,0) -> 0 | N30: =ROUND(B30*'Форма по МДС 81-35.2004'!G538/100,0) -> 58 | O30: =ROUND((B30+N30)*'Форма по МДС 81-35.2004'!G541/100,0) -> 44 | P30: =ROUND('Форма по МДС 81-35.2004'!F525*'Текущие цены за единицу'!P30,0) -> 0 | Q30: =ROUND('Форма по МДС 81-35.2004'!F525*'Текущие цены за единицу'!Q30,0) -> 0 | R30: =ROUND('Форма по МДС 81-35.2004'!F525*'Текущие цены за единицу'!R30,0) -> 0 | S30: =ROUND('Форма по МДС 81-35.2004'!F525*'Текущие цены за единицу'!S30,0) -> 0 | T30: =ROUND('Форма по МДС 81-35.2004'!F525*'Текущие цены за единицу'!T30,0) -> 0 | U30: =ROUND('Форма по МДС 81-35.2004'!F525*'Текущие цены за единицу'!U30,0) -> 0 | V30: =ROUND('Форма по МДС 81-35.2004'!F525*'Текущие цены за единицу'!V30,0) -> 0 | X30: =ROUND('Форма по МДС 81-35.2004'!F525*'Текущие цены за единицу'!X30,0) -> 0 | Y30: =IF(Определители!I30="9",ROUND(B30*(Начисления!M30/100)*'Форма по МДС 81-35.2004'!G538/100,0),0) -> 0 | Z30: =IF(Определители!I30="9",ROUND(B30*(100-Начисления!M30/100)*'Форма по МДС 81-35.2004'!G538/100,0),0) -> 0 | AA30: =IF(Определители!I30="9",ROUND((C30+E30)*(Начисления!M30/100)*('Форма по МДС 81-35.2004'!G541/100),0),0) -> 0 | AB30: =IF(Определители!I30="9",ROUND((C30+E30)*(100-Начисления!M30/100)*('Форма по МДС 81-35.2004'!G541/100),0),0) -> 0 | AC30: =IF(Определители!I30="9",ROUND(B30*Начисления!M30/100,0),0) -> 0 | AD30: =IF(Определители!I30="9",ROUND(B30*(100-Начисления!M30)/100,0),0) -> 0 | AE30: =ROUND('Форма по МДС 81-35.2004'!F525*'Текущие цены за единицу'!AE30,0) -> 0
A31: ='Форма по МДС 81-35.2004'!A545 -> 26. | B31: ='Форма по МДС 81-35.2004'!H545 -> 229 | C31: =ROUND(SUMIF('Форма по МДС 81-35.2004'!J545:J564,"Г",'Форма по МДС 81-35.2004'!H545:H564),0) -> 120 | D31: =ROUND(SUMIF('Форма по МДС 81-35.2004'!J545:J564,"IsMash",'Форма по МДС 81-35.2004'!H545:H564),0) -> 110 | E31: ='Форма по МДС 81-35.2004'!H546 -> 30 | F31: =ROUND(SUMIF('Форма по МДС 81-35.2004'!J545:J564,"IsMater",'Форма по МДС 81-35.2004'!H545:H564),0) -> 0 | G31: =ROUND('Форма по МДС 81-35.2004'!F545*'Текущие цены за единицу'!G31,0) -> 0 | H31: =ROUND('Форма по МДС 81-35.2004'!F545*'Текущие цены за единицу'!H31,0) -> 0 | I31: =ОКРУГЛВСЕ(SUMIF('Форма по МДС 81-35.2004'!J545:J564,"Г",'Форма по МДС 81-35.2004'!F545:F564),8) -> 1.19016 | J31: =ОКРУГЛВСЕ('Форма по МДС 81-35.2004'!F545*'Текущие цены за единицу'!J31,8) -> 0 | K31: =ОКРУГЛВСЕ(SUMIF('Форма по МДС 81-35.2004'!J545:J564,"Ж",'Форма по МДС 81-35.2004'!F545:F564),8) -> 0.19836 | L31: =ROUND('Форма по МДС 81-35.2004'!F545*'Текущие цены за единицу'!L31,0) -> 0 | M31: =ROUND('Форма по МДС 81-35.2004'!F545*'Текущие цены за единицу'!M31,0) -> 0 | N31: =ROUND(B31*'Форма по МДС 81-35.2004'!G559/100,0) -> 27 | O31: =ROUND((B31+N31)*'Форма по МДС 81-35.2004'!G562/100,0) -> 20 | P31: =ROUND('Форма по МДС 81-35.2004'!F545*'Текущие цены за единицу'!P31,0) -> 0 | Q31: =ROUND('Форма по МДС 81-35.2004'!F545*'Текущие цены за единицу'!Q31,0) -> 0 | R31: =ROUND('Форма по МДС 81-35.2004'!F545*'Текущие цены за единицу'!R31,0) -> 0 | S31: =ROUND('Форма по МДС 81-35.2004'!F545*'Текущие цены за единицу'!S31,0) -> 0 | T31: =ROUND('Форма по МДС 81-35.2004'!F545*'Текущие цены за единицу'!T31,0) -> 0 | U31: =ROUND('Форма по МДС 81-35.2004'!F545*'Текущие цены за единицу'!U31,0) -> 0 | V31: =ROUND('Форма по МДС 81-35.2004'!F545*'Текущие цены за единицу'!V31,0) -> 0 | X31: =ROUND('Форма по МДС 81-35.2004'!F545*'Текущие цены за единицу'!X31,0) -> 0 | Y31: =IF(Определители!I31="9",ROUND(B31*(Начисления!M31/100)*'Форма по МДС 81-35.2004'!G559/100,0),0) -> 0 | Z31: =IF(Определители!I31="9",ROUND(B31*(100-Начисления!M31/100)*'Форма по МДС 81-35.2004'!G559/100,0),0) -> 0 | AA31: =IF(Определители!I31="9",ROUND((C31+E31)*(Начисления!M31/100)*('Форма по МДС 81-35.2004'!G562/100),0),0) -> 0 | AB31: =IF(Определители!I31="9",ROUND((C31+E31)*(100-Начисления!M31/100)*('Форма по МДС 81-35.2004'!G562/100),0),0) -> 0 | AC31: =IF(Определители!I31="9",ROUND(B31*Начисления!M31/100,0),0) -> 0 | AD31: =IF(Определители!I31="9",ROUND(B31*(100-Начисления!M31)/100,0),0) -> 0 | AE31: =ROUND('Форма по МДС 81-35.2004'!F545*'Текущие цены за единицу'!AE31,0) -> 0
A32: ='Форма по МДС 81-35.2004'!A566 -> 27. | B32: ='Форма по МДС 81-35.2004'!H566 -> 213 | C32: =ROUND(SUMIF('Форма по МДС 81-35.2004'!J566:J584,"Г",'Форма по МДС 81-35.2004'!H566:H584),0) -> 0 | D32: =ROUND(SUMIF('Форма по МДС 81-35.2004'!J566:J584,"IsMash",'Форма по МДС 81-35.2004'!H566:H584),0) -> 213 | E32: ='Форма по МДС 81-35.2004'!H567 -> 79 | F32: =ROUND(SUMIF('Форма по МДС 81-35.2004'!J566:J584,"IsMater",'Форма по МДС 81-35.2004'!H566:H584),0) -> 0 | G32: =ROUND('Форма по МДС 81-35.2004'!F566*'Текущие цены за единицу'!G32,0) -> 0 | H32: =ROUND('Форма по МДС 81-35.2004'!F566*'Текущие цены за единицу'!H32,0) -> 0 | I32: =ОКРУГЛВСЕ(SUMIF('Форма по МДС 81-35.2004'!J566:J584,"Г",'Форма по МДС 81-35.2004'!F566:F584),8) -> 0 | J32: =ОКРУГЛВСЕ('Форма по МДС 81-35.2004'!F566*'Текущие цены за единицу'!J32,8) -> 0 | K32: =ОКРУГЛВСЕ(SUMIF('Форма по МДС 81-35.2004'!J566:J584,"Ж",'Форма по МДС 81-35.2004'!F566:F584),8) -> 0.5505 | L32: =ROUND('Форма по МДС 81-35.2004'!F566*'Текущие цены за единицу'!L32,0) -> 0 | M32: =ROUND('Форма по МДС 81-35.2004'!F566*'Текущие цены за единицу'!M32,0) -> 0 | N32: =ROUND(B32*'Форма по МДС 81-35.2004'!G579/100,0) -> 25 | O32: =ROUND((B32+N32)*'Форма по МДС 81-35.2004'!G582/100,0) -> 19 | P32: =ROUND('Форма по МДС 81-35.2004'!F566*'Текущие цены за единицу'!P32,0) -> 0 | Q32: =ROUND('Форма по МДС 81-35.2004'!F566*'Текущие цены за единицу'!Q32,0) -> 0 | R32: =ROUND('Форма по МДС 81-35.2004'!F566*'Текущие цены за единицу'!R32,0) -> 0 | S32: =ROUND('Форма по МДС 81-35.2004'!F566*'Текущие цены за единицу'!S32,0) -> 0 | T32: =ROUND('Форма по МДС 81-35.2004'!F566*'Текущие цены за единицу'!T32,0) -> 0 | U32: =ROUND('Форма по МДС 81-35.2004'!F566*'Текущие цены за единицу'!U32,0) -> 0 | V32: =ROUND('Форма по МДС 81-35.2004'!F566*'Текущие цены за единицу'!V32,0) -> 0 | X32: =ROUND('Форма по МДС 81-35.2004'!F566*'Текущие цены за единицу'!X32,0) -> 0 | Y32: =IF(Определители!I32="9",ROUND(B32*(Начисления!M32/100)*'Форма по МДС 81-35.2004'!G579/100,0),0) -> 0 | Z32: =IF(Определители!I32="9",ROUND(B32*(100-Начисления!M32/100)*'Форма по МДС 81-35.2004'!G579/100,0),0) -> 0 | AA32: =IF(Определители!I32="9",ROUND((C32+E32)*(Начисления!M32/100)*('Форма по МДС 81-35.2004'!G582/100),0),0) -> 0 | AB32: =IF(Определители!I32="9",ROUND((C32+E32)*(100-Начисления!M32/100)*('Форма по МДС 81-35.2004'!G582/100),0),0) -> 0 | AC32: =IF(Определители!I32="9",ROUND(B32*Начисления!M32/100,0),0) -> 0 | AD32: =IF(Определители!I32="9",ROUND(B32*(100-Начисления!M32)/100,0),0) -> 0 | AE32: =ROUND('Форма по МДС 81-35.2004'!F566*'Текущие цены за единицу'!AE32,0) -> 0

Sheet Начисления
B1: Н1 | C1: Н2 | D1: Н3 | E1: Н4 | F1: Н5 | G1: Н6 | H1: Н7 | I1: Н8 | J1: Н9 | K1: Н10 | L1: Н11 | M1: Н12 | N1: Н13 | O1: Н14 | P1: Н15 | Q1: Н16 | R1: Н17 | S1: Н18 | T1: Н19 | U1: Н20 | V1: Н21 | W1: Н22 | X1: Н23 | Y1: Н24 | Z1: Н25 | AA1: Н26 | AB1: Н27 | AC1: Н28 | AD1: Н29 | AE1: Н30 | AF1: Н31 | AG1: Н32 | AH1: Н33 | AI1: Н34 | AJ1: Н35 | AK1: Н36 | AL1: Н37 | AM1: Н38 | AN1: Н39 | AO1: Н40 | AP1: Н41 | AQ1: Н42 | AR1: Н43 | AS1: Н44 | AT1: Н45 | AU1: Н46 | AV1: Н47 | AW1: Н48 | AX1: Н49
B3: N = < ГЭСНс * 2015_s * 15_15_зр >
B4: Автомобильные дороги регионального или межмуниципального значения с автобусным движением с допустимым уровнем содержания - норматив "Авт" (ЗИМНИЕ РАБОТЫ)
A6: ='Форма по МДС 81-35.2004'!A16 -> 1. | B6: 1 | C6: 1 | D6: 1 | E6: 1 | F6: 1 | G6: 1 | H6: 1 | I6: 1 | J6: 1 | K6: 0 | L6: 0 | M6: 100 | N6: 0 | O6: 0 | P6: 1 | Q6: 1 | R6: 0 | S6: 0 | T6: 1 | U6: 0 | V6: 0 | W6: 0 | X6: 0 | Y6: 0 | Z6: 0 | AA6: 0 | AB6: 0 | AC6: 0 | AD6: 0 | AE6: 0 | AF6: 0 | AG6: 1.7 | AH6: 1.6 | AI6: 1.29 | AJ6: 0.092 | AK6: 0.18 | AL6: 1 | AM6: 1 | AN6: 0.2 | AO6: 1.5 | AP6: 1 | AQ6: 1 | AR6: 1 | AS6: 1 | AT6: 1 | AU6: 100 | AV6: 1 | AW6: 1 | AX6: 1
A7: ='Форма по МДС 81-35.2004'!A35 -> 2. | B7: 1 | C7: 1 | D7: 1 | E7: 1 | F7: 1 | G7: 1 | H7: 1 | I7: 1 | J7: 1 | K7: 0 | L7: 0 | M7: 100 | N7: 0 | O7: 0 | P7: 1 | Q7: 1 | R7: 0 | S7: 0 | T7: 1 | U7: 0 | V7: 0 | W7: 0 | X7: 0 | Y7: 0 | Z7: 0 | AA7: 0 | AB7: 0 | AC7: 0 | AD7: 0 | AE7: 0 | AF7: 0 | AG7: 1.7 | AH7: 1.6 | AI7: 1.29 | AJ7: 0.092 | AK7: 0.18 | AL7: 1 | AM7: 1 | AN7: 0.2 | AO7: 1.5 | AP7: 1 | AQ7: 1 | AR7: 1 | AS7: 1 | AT7: 1 | AU7: 100 | AV7: 1 | AW7: 1 | AX7: 1
A8: ='Форма по МДС 81-35.2004'!A54 -> 3. | B8: 1 | C8: 1 | D8: 1 | E8: 1 | F8: 1 | G8: 1 | H8: 1 | I8: 1 | J8: 1 | K8: 0 | L8: 0 | M8: 100 | N8: 0 | O8: 0 | P8: 1 | Q8: 1 | R8: 0 | S8: 0 | T8: 1 | U8: 0 | V8: 0 | W8: 0 | X8: 0 | Y8: 0 | Z8: 0 | AA8: 0 | AB8: 0 | AC8: 0 | AD8: 0 | AE8: 0 | AF8: 0 | AG8: 1.7 | AH8: 1.6 | AI8: 1.29 | AJ8: 0.092 | AK8: 0.18 | AL8: 1 | AM8: 1 | AN8: 0.2 | AO8: 1.5 | AP8: 1 | AQ8: 1 | AR8: 1 | AS8: 1 | AT8: 1 | AU8: 100 | AV8: 1 | AW8: 1 | AX8: 1
A9: ='Форма по МДС 81-35.2004'!A74 -> 4. | B9: 1 | C9: 1 | D9: 1 | E9: 1 | F9: 1 | G9: 1 | H9: 1 | I9: 1 | J9: 1 | K9: 0 | L9: 0 | M9: 100 | N9: 0 | O9: 0 | P9: 1 | Q9: 1 | R9: 0 | S9: 0 | T9: 1 | U9: 0 | V9: 0 | W9: 0 | X9: 0 | Y9: 0 | Z9: 0 | AA9: 0 | AB9: 0 | AC9: 0 | AD9: 0 | AE9: 0 | AF9: 0 | AG9: 1.7 | AH9: 1.6 | AI9: 1.29 | AJ9: 0.092 | AK9: 0.18 | AL9: 1 | AM9: 1 | AN9: 0.2 | AO9: 1.5 | AP9: 1 | AQ9: 1 | AR9: 1 | AS9: 1 | AT9: 1 | AU9: 100 | AV9: 1 | AW9: 1 | AX9: 1
A10: ='Форма по МДС 81-35.2004'!A94 -> 5. | B10: 1 | C10: 1 | D10: 1 | E10: 1 | F10: 1 | G10: 1 | H10: 1 | I10: 1 | J10: 1 | K10: 0 | L10: 0 | M10: 100 | N10: 0 | O10: 0 | P10: 1 | Q10: 1 | R10: 0 | S10: 0 | T10: 1 | U10: 0 | V10: 0 | W10: 0 | X10: 0 | Y10: 0 | Z10: 0 | AA10: 0 | AB10: 0 | AC10: 0 | AD10: 0 | AE10: 0 | AF10: 0 | AG10: 1.7 | AH10: 1.6 | AI10: 1.29 | AJ10: 0.092 | AK10: 0.18 | AL10: 1 | AM10: 1 | AN10: 0.2 | AO10: 1.5 | AP10: 1 | AQ10: 1 | AR10: 1 | AS10: 1 | AT10: 1 | AU10: 100 | AV10: 1 | AW10: 1 | AX10: 1
A11: ='Форма по МДС 81-35.2004'!A113 -> 6. | B11: 1 | C11: 1 | D11: 1 | E11: 1 | F11: 1 | G11: 1 | H11: 1 | I11: 1 | J11: 1 | K11: 0 | L11: 0 | M11: 100 | N11: 0 | O11: 0 | P11: 1 | Q11: 1 | R11: 0 | S11: 0 | T11: 1 | U11: 0 | V11: 0 | W11: 0 | X11: 0 | Y11: 0 | Z11: 0 | AA11: 0 | AB11: 0 | AC11: 0 | AD11: 0 | AE11: 0 | AF11: 0 | AG11: 1.7 | AH11: 1.6 | AI11: 1.29 | AJ11: 0.092 | AK11: 0.18 | AL11: 1 | AM11: 1 | AN11: 0.2 | AO11: 1.5 | AP11: 1 | AQ11: 1 | AR11: 1 | AS11: 1 | AT11: 1 | AU11: 100 | AV11: 1 | AW11: 1 | AX11: 1
A12: ='Форма по МДС 81-35.2004'!A135 -> 7. | B12: 1 | C12: 1 | D12: 1 | E12: 1 | F12: 1 | G12: 1 | H12: 1 | I12: 1 | J12: 1 | K12: 0 | L12: 0 | M12: 100 | N12: 0 | O12: 0 | P12: 1 | Q12: 1 | R12: 0 | S12: 0 | T12: 1 | U12: 0 | V12: 0 | W12: 0 | X12: 0 | Y12: 0 | Z12: 0 | AA12: 0 | AB12: 0 | AC12: 0 | AD12: 0 | AE12: 0 | AF12: 0 | AG12: 1.7 | AH12: 1.6 | AI12: 1.29 | AJ12: 0.092 | AK12: 0.18 | AL12: 1 | AM12: 1 | AN12: 0.2 | AO12: 1.5 | AP12: 1 | AQ12: 1 | AR12: 1 | AS12: 1 | AT12: 1 | AU12: 100 | AV12: 1 | AW12: 1 | AX12: 1
A13: ='Форма по МДС 81-35.2004'!A154 -> 8. | B13: 1 | C13: 1 | D13: 1 | E13: 1 | F13: 1 | G13: 1 | H13: 1 | I13: 1 | J13: 1 | K13: 0 | L13: 0 | M13: 100 | N13: 0 | O13: 0 | P13: 1 | Q13: 1 | R13: 0 | S13: 0 | T13: 1 | U13: 0 | V13: 0 | W13: 0 | X13: 0 | Y13: 0 | Z13: 0 | AA13: 0 | AB13: 0 | AC13: 0 | AD13: 0 | AE13: 0 | AF13: 0 | AG13: 1.7 | AH13: 1.6 | AI13: 1.29 | AJ13: 0.092 | AK13: 0.18 | AL13: 1 | AM13: 1 | AN13: 0.2 | AO13: 1.5 | AP13: 1 | AQ13: 1 | AR13: 1 | AS13: 1 | AT13: 1 | AU13: 100 | AV13: 1 | AW13: 1 | AX13: 1
A14: ='Форма по МДС 81-35.2004'!A175 -> 9. | B14: 1 | C14: 1 | D14: 1 | E14: 1 | F14: 1 | G14: 1 | H14: 1 | I14: 1 | J14: 1 | K14: 0 | L14: 0 | M14: 100 | N14: 0 | O14: 0 | P14: 1 | Q14: 1 | R14: 0 | S14: 0 | T14: 1 | U14: 0 | V14: 0 | W14: 0 | X14: 0 | Y14: 0 | Z14: 0 | AA14: 0 | AB14: 0 | AC14: 0 | AD14: 0 | AE14: 0 | AF14: 0 | AG14: 1.7 | AH14: 1.6 | AI14: 1.29 | AJ14: 0.092 | AK14: 0.18 | AL14: 1 | AM14: 1 | AN14: 0.2 | AO14: 1.5 | AP14: 1 | AQ14: 1 | AR14: 1 | AS14: 1 | AT14: 1 | AU14: 100 | AV14: 1 | AW14: 1 | AX14: 1
A15: ='Форма по МДС 81-35.2004'!A194 -> 10. | B15: 1 | C15: 1 | D15: 1 | E15: 1 | F15: 1 | G15: 1 | H15: 1 | I15: 1 | J15: 1 | K15: 0 | L15: 0 | M15: 100 | N15: 0 | O15: 0 | P15: 1 | Q15: 1 | R15: 0 | S15: 0 | T15: 1 | U15: 0 | V15: 0 | W15: 0 | X15: 0 | Y15: 0 | Z15: 0 | AA15: 0 | AB15: 0 | AC15: 0 | AD15: 0 | AE15: 0 | AF15: 0 | AG15: 1.7 | AH15: 1.6 | AI15: 1.29 | AJ15: 0.092 | AK15: 0.18 | AL15: 1 | AM15: 1 | AN15: 0.2 | AO15: 1.5 | AP15: 1 | AQ15: 1 | AR15: 1 | AS15: 1 | AT15: 1 | AU15: 100 | AV15: 1 | AW15: 1 | AX15: 1
A16: ='Форма по МДС 81-35.2004'!A213 -> 11. | B16: 1 | C16: 1 | D16: 1 | E16: 1 | F16: 1 | G16: 1 | H16: 1 | I16: 1 | J16: 1 | K16: 0 | L16: 0 | M16: 100 | N16: 0 | O16: 0 | P16: 1 | Q16: 1 | R16: 0 | S16: 0 | T16: 1 | U16: 0 | V16: 0 | W16: 0 | X16: 0 | Y16: 0 | Z16: 0 | AA16: 0 | AB16: 0 | AC16: 0 | AD16: 0 | AE16: 0 | AF16: 0 | AG16: 1.7 | AH16: 1.6 | AI16: 1.29 | AJ16: 0.092 | AK16: 0.18 | AL16: 1 | AM16: 1 | AN16: 0.2 | AO16: 1.5 | AP16: 1 | AQ16: 1 | AR16: 1 | AS16: 1 | AT16: 1 | AU16: 100 | AV16: 1 | AW16: 1 | AX16: 1
A17: ='Форма по МДС 81-35.2004'!A238 -> 12. | B17: 1 | C17: 1 | D17: 1 | E17: 1 | F17: 1 | G17: 1 | H17: 1 | I17: 1 | J17: 1 | K17: 0 | L17: 0 | M17: 100 | N17: 0 | O17: 0 | P17: 1 | Q17: 1 | R17: 0 | S17: 0 | T17: 1 | U17: 0 | V17: 0 | W17: 0 | X17: 0 | Y17: 0 | Z17: 0 | AA17: 0 | AB17: 0 | AC17: 0 | AD17: 0 | AE17: 0 | AF17: 0 | AG17: 1.7 | AH17: 1.6 | AI17: 1.29 | AJ17: 0.092 | AK17: 0.18 | AL17: 1 | AM17: 1 | AN17: 0.2 | AO17: 1.5 | AP17: 1 | AQ17: 1 | AR17: 1 | AS17: 1 | AT17: 1 | AU17: 100 | AV17: 1 | AW17: 1 | AX17: 1
A18: ='Форма по МДС 81-35.2004'!A258 -> 13. | B18: 1 | C18: 1 | D18: 1 | E18: 1 | F18: 1 | G18: 1 | H18: 1 | I18: 1 | J18: 1 | K18: 0 | L18: 0 | M18: 100 | N18: 0 | O18: 0 | P18: 1 | Q18: 1 | R18: 0 | S18: 0 | T18: 1 | U18: 0 | V18: 0 | W18: 0 | X18: 0 | Y18: 0 | Z18: 0 | AA18: 0 | AB18: 0 | AC18: 0 | AD18: 0 | AE18: 0 | AF18: 0 | AG18: 1.7 | AH18: 1.6 | AI18: 1.29 | AJ18: 0.092 | AK18: 0.18 | AL18: 1 | AM18: 1 | AN18: 0.2 | AO18: 1.5 | AP18: 1 | AQ18: 1 | AR18: 1 | AS18: 1 | AT18: 1 | AU18: 100 | AV18: 1 | AW18: 1 | AX18: 1
A19: ='Форма по МДС 81-35.2004'!A277 -> 14. | B19: 1 | C19: 1 | D19: 1 | E19: 1 | F19: 1 | G19: 1 | H19: 1 | I19: 1 | J19: 1 | K19: 0 | L19: 0 | M19: 100 | N19: 0 | O19: 0 | P19: 1 | Q19: 1 | R19: 0 | S19: 0 | T19: 1 | U19: 0 | V19: 0 | W19: 0 | X19: 0 | Y19: 0 | Z19: 0 | AA19: 0 | AB19: 0 | AC19: 0 | AD19: 0 | AE19: 0 | AF19: 0 | AG19: 1.7 | AH19: 1.6 | AI19: 1.29 | AJ19: 0.092 | AK19: 0.18 | AL19: 1 | AM19: 1 | AN19: 0.2 | AO19: 1.5 | AP19: 1 | AQ19: 1 | AR19: 1 | AS19: 1 | AT19: 1 | AU19: 100 | AV19: 1 | AW19: 1 | AX19: 1
A20: ='Форма по МДС 81-35.2004'!A299 -> 15. | B20: 1 | C20: 1 | D20: 1 | E20: 1 | F20: 1 | G20: 1 | H20: 1 | I20: 1 | J20: 1 | K20: 0 | L20: 0 | M20: 100 | N20: 0 | O20: 0 | P20: 1 | Q20: 1 | R20: 0 | S20: 0 | T20: 1 | U20: 0 | V20: 0 | W20: 0 | X20: 0 | Y20: 0 | Z20: 0 | AA20: 0 | AB20: 0 | AC20: 0 | AD20: 0 | AE20: 0 | AF20: 0 | AG20: 1.7 | AH20: 1.6 | AI20: 1.29 | AJ20: 0.092 | AK20: 0.18 | AL20: 1 | AM20: 1 | AN20: 0.2 | AO20: 1.5 | AP20: 1 | AQ20: 1 | AR20: 1 | AS20: 1 | AT20: 1 | AU20: 100 | AV20: 1 | AW20: 1 | AX20: 1
A21: ='Форма по МДС 81-35.2004'!A319 -> 16. | B21: 1 | C21: 1 | D21: 1 | E21: 1 | F21: 1 | G21: 1 | H21: 1 | I21: 1 | J21: 1 | K21: 0 | L21: 0 | M21: 100 | N21: 0 | O21: 0 | P21: 1 | Q21: 1 | R21: 0 | S21: 0 | T21: 1 | U21: 0 | V21: 0 | W21: 0 | X21: 0 | Y21: 0 | Z21: 0 | AA21: 0 | AB21: 0 | AC21: 0 | AD21: 0 | AE21: 0 | AF21: 0 | AG21: 1.7 | AH21: 1.6 | AI21: 1.29 | AJ21: 0.092 | AK21: 0.18 | AL21: 1 | AM21: 1 | AN21: 0.2 | AO21: 1.5 | AP21: 1 | AQ21: 1 | AR21: 1 | AS21: 1 | AT21: 1 | AU21: 100 | AV21: 1 | AW21: 1 | AX21: 1
A22: ='Форма по МДС 81-35.2004'!A340 -> 17. | B22: 1 | C22: 1 | D22: 1 | E22: 1 | F22: 1 | G22: 1 | H22: 1 | I22: 1 | J22: 1 | K22: 0 | L22: 0 | M22: 100 | N22: 0 | O22: 0 | P22: 1 | Q22: 1 | R22: 0 | S22: 0 | T22: 1 | U22: 0 | V22: 0 | W22: 0 | X22: 0 | Y22: 0 | Z22: 0 | AA22: 0 | AB22: 0 | AC22: 0 | AD22: 0 | AE22: 0 | AF22: 0 | AG22: 1.7 | AH22: 1.6 | AI22: 1.29 | AJ22: 0.092 | AK22: 0.18 | AL22: 1 | AM22: 1 | AN22: 0.2 | AO22: 1.5 | AP22: 1 | AQ22: 1 | AR22: 1 | AS22: 1 | AT22: 1 | AU22: 100 | AV22: 1 | AW22: 1 | AX22: 1
A23: ='Форма по МДС 81-35.2004'!A360 -> 18. | B23: 1 | C23: 1 | D23: 1 | E23: 1 | F23: 1 | G23: 1 | H23: 1 | I23: 1 | J23: 1 | K23: 0 | L23: 0 | M23: 100 | N23: 0 | O23: 0 | P23: 1 | Q23: 1 | R23: 0 | S23: 0 | T23: 1 | U23: 0 | V23: 0 | W23: 0 | X23: 0 | Y23: 0 | Z23: 0 | AA23: 0 | AB23: 0 | AC23: 0 | AD23: 0 | AE23: 0 | AF23: 0 | AG23: 1.7 | AH23: 1.6 | AI23: 1.29 | AJ23: 0.092 | AK23: 0.18 | AL23: 1 | AM23: 1 | AN23: 0.2 | AO23: 1.5 | AP23: 1 | AQ23: 1 | AR23: 1 | AS23: 1 | AT23: 1 | AU23: 100 | AV23: 1 | AW23: 1 | AX23: 1
A24: ='Форма по МДС 81-35.2004'!A380 -> 19. | B24: 1 | C24: 1 | D24: 1 | E24: 1 | F24: 1 | G24: 1 | H24: 1 | I24: 1 | J24: 1 | K24: 0 | L24: 0 | M24: 100 | N24: 0 | O24: 0 | P24: 1 | Q24: 1 | R24: 0 | S24: 0 | T24: 1 | U24: 0 | V24: 0 | W24: 0 | X24: 0 | Y24: 0 | Z24: 0 | AA24: 0 | AB24: 0 | AC24: 0 | AD24: 0 | AE24: 0 | AF24: 0 | AG24: 1.7 | AH24: 1.6 | AI24: 1.29 | AJ24: 0.092 | AK24: 0.18 | AL24: 1 | AM24: 1 | AN24: 0.2 | AO24: 1.5 | AP24: 1 | AQ24: 1 | AR24: 1 | AS24: 1 | AT24: 1 | AU24: 100 | AV24: 1 | AW24: 1 | AX24: 1
A25: ='Форма по МДС 81-35.2004'!A402 -> 20. | B25: 1 | C25: 1 | D25: 1 | E25: 1 | F25: 1 | G25: 1 | H25: 1 | I25: 1 | J25: 1 | K25: 0 | L25: 0 | M25: 100 | N25: 0 | O25: 0 | P25: 1 | Q25: 1 | R25: 0 | S25: 0 | T25: 1 | U25: 0 | V25: 0 | W25: 0 | X25: 0 | Y25: 0 | Z25: 0 | AA25: 0 | AB25: 0 | AC25: 0 | AD25: 0 | AE25: 0 | AF25: 0 | AG25: 1.7 | AH25: 1.6 | AI25: 1.29 | AJ25: 0.092 | AK25: 0.18 | AL25: 1 | AM25: 1 | AN25: 0.2 | AO25: 1.5 | AP25: 1 | AQ25: 1 | AR25: 1 | AS25: 1 | AT25: 1 | AU25: 100 | AV25: 1 | AW25: 1 | AX25: 1
A26: ='Форма по МДС 81-35.2004'!A422 -> 21. | B26: 1 | C26: 1 | D26: 1 | E26: 1 | F26: 1 | G26: 1 | H26: 1 | I26: 1 | J26: 1 | K26: 0 | L26: 0 | M26: 100 | N26: 0 | O26: 0 | P26: 1 | Q26: 1 | R26: 0 | S26: 0 | T26: 1 | U26: 0 | V26: 0 | W26: 0 | X26: 0 | Y26: 0 | Z26: 0 | AA26: 0 | AB26: 0 | AC26: 0 | AD26: 0 | AE26: 0 | AF26: 0 | AG26: 1.7 | AH26: 1.6 | AI26: 1.29 | AJ26: 0.092 | AK26: 0.18 | AL26: 1 | AM26: 1 | AN26: 0.2 | AO26: 1.5 | AP26: 1 | AQ26: 1 | AR26: 1 | AS26: 1 | AT26: 1 | AU26: 100 | AV26: 1 | AW26: 1 | AX26: 1
A27: ='Форма по МДС 81-35.2004'!A442 -> 22. | B27: 1 | C27: 1 | D27: 1 | E27: 1 | F27: 1 | G27: 1 | H27: 1 | I27: 1 | J27: 1 | K27: 0 | L27: 0 | M27: 100 | N27: 0 | O27: 0 | P27: 1 | Q27: 1 | R27: 0 | S27: 0 | T27: 1 | U27: 0 | V27: 0 | W27: 0 | X27: 0 | Y27: 0 | Z27: 0 | AA27: 0 | AB27: 0 | AC27: 0 | AD27: 0 | AE27: 0 | AF27: 0 | AG27: 1.7 | AH27: 1.6 | AI27: 1.29 | AJ27: 0.092 | AK27: 0.18 | AL27: 1 | AM27: 1 | AN27: 0.2 | AO27: 1.5 | AP27: 1 | AQ27: 1 | AR27: 1 | AS27: 1 | AT27: 1 | AU27: 100 | AV27: 1 | AW27: 1 | AX27: 1
A28: ='Форма по МДС 81-35.2004'!A472 -> 23. | B28: 1 | C28: 1 | D28: 1 | E28: 1 | F28: 1 | G28: 1 | H28: 1 | I28: 1 | J28: 1 | K28: 0 | L28: 0 | M28: 100 | N28: 0 | O28: 0 | P28: 1 | Q28: 1 | R28: 0 | S28: 0 | T28: 1 | U28: 0 | V28: 0 | W28: 0 | X28: 0 | Y28: 0 | Z28: 0 | AA28: 0 | AB28: 0 | AC28: 0 | AD28: 0 | AE28: 0 | AF28: 0 | AG28: 1.7 | AH28: 1.6 | AI28: 1.29 | AJ28: 0.092 | AK28: 0.18 | AL28: 1 | AM28: 1 | AN28: 0.2 | AO28: 1.5 | AP28: 1 | AQ28: 1 | AR28: 1 | AS28: 1 | AT28: 1 | AU28: 100 | AV28: 1 | AW28: 1 | AX28: 1
A29: ='Форма по МДС 81-35.2004'!A499 -> 24. | B29: 1 | C29: 1 | D29: 1 | E29: 1 | F29: 1 | G29: 1 | H29: 1 | I29: 1 | J29: 1 | K29: 0 | L29: 0 | M29: 100 | N29: 0 | O29: 0 | P29: 1 | Q29: 1 | R29: 0 | S29: 0 | T29: 1 | U29: 0 | V29: 0 | W29: 0 | X29: 0 | Y29: 0 | Z29: 0 | AA29: 0 | AB29: 0 | AC29: 0 | AD29: 0 | AE29: 0 | AF29: 0 | AG29: 1.7 | AH29: 1.6 | AI29: 1.29 | AJ29: 0.092 | AK29: 0.18 | AL29: 1 | AM29: 1 | AN29: 0.2 | AO29: 1.5 | AP29: 1 | AQ29: 1 | AR29: 1 | AS29: 1 | AT29: 1 | AU29: 100 | AV29: 1 | AW29: 1 | AX29: 1
A30: ='Форма по МДС 81-35.2004'!A525 -> 25. | B30: 1 | C30: 1 | D30: 1 | E30: 1 | F30: 1 | G30: 1 | H30: 1 | I30: 1 | J30: 1 | K30: 0 | L30: 0 | M30: 100 | N30: 0 | O30: 0 | P30: 1 | Q30: 1 | R30: 0 | S30: 0 | T30: 1 | U30: 0 | V30: 0 | W30: 0 | X30: 0 | Y30: 0 | Z30: 0 | AA30: 0 | AB30: 0 | AC30: 0 | AD30: 0 | AE30: 0 | AF30: 0 | AG30: 1.7 | AH30: 1.6 | AI30: 1.29 | AJ30: 0.092 | AK30: 0.18 | AL30: 1 | AM30: 1 | AN30: 0.2 | AO30: 1.5 | AP30: 1 | AQ30: 1 | AR30: 1 | AS30: 1 | AT30: 1 | AU30: 100 | AV30: 1 | AW30: 1 | AX30: 1
A31: ='Форма по МДС 81-35.2004'!A545 -> 26. | B31: 1 | C31: 1 | D31: 1 | E31: 1 | F31: 1 | G31: 1 | H31: 1 | I31: 1 | J31: 1 | K31: 0 | L31: 0 | M31: 100 | N31: 0 | O31: 0 | P31: 1 | Q31: 1 | R31: 0 | S31: 0 | T31: 1 | U31: 0 | V31: 0 | W31: 0 | X31: 0 | Y31: 0 | Z31: 0 | AA31: 0 | AB31: 0 | AC31: 0 | AD31: 0 | AE31: 0 | AF31: 0 | AG31: 1.7 | AH31: 1.6 | AI31: 1.29 | AJ31: 0.092 | AK31: 0.18 | AL31: 1 | AM31: 1 | AN31: 0.2 | AO31: 1.5 | AP31: 1 | AQ31: 1 | AR31: 1 | AS31: 1 | AT31: 1 | AU31: 100 | AV31: 1 | AW31: 1 | AX31: 1
A32: ='Форма по МДС 81-35.2004'!A566 -> 27. | B32: 1 | C32: 1 | D32: 1 | E32: 1 | F32: 1 | G32: 1 | H32: 1 | I32: 1 | J32: 1 | K32: 0 | L32: 0 | M32: 100 | N32: 0 | O32: 0 | P32: 1 | Q32: 1 | R32: 0 | S32: 0 | T32: 1 | U32: 0 | V32: 0 | W32: 0 | X32: 0 | Y32: 0 | Z32: 0 | AA32: 0 | AB32: 0 | AC32: 0 | AD32: 0 | AE32: 0 | AF32: 0 | AG32: 1.7 | AH32: 1.6 | AI32: 1.29 | AJ32: 0.092 | AK32: 0.18 | AL32: 1 | AM32: 1 | AN32: 0.2 | AO32: 1.5 | AP32: 1 | AQ32: 1 | AR32: 1 | AS32: 1 | AT32: 1 | AU32: 100 | AV32: 1 | AW32: 1 | AX32: 1

Sheet Определители
B1: О0 | C1: О1 | D1: О2 | E1: О3 | F1: О4 | G1: О5 | H1: О6 | I1: О7 | J1: О8
B3: N = < ГЭСНс * 2015_s * 15_15_зр >
B4: Автомобильные дороги регионального или межмуниципального значения с автобусным движением с допустимым уровнем содержания - норматив "Авт" (ЗИМНИЕ РАБОТЫ)
A6: ='Форма по МДС 81-35.2004'!A16 -> 1. | B6: 1 | C6: 1 | F6: 0 | I6: 2
A7: ='Форма по МДС 81-35.2004'!A35 -> 2. | B7: 1 | C7: 1 | F7: 0 | I7: 2
A8: ='Форма по МДС 81-35.2004'!A54 -> 3. | B8: 1 | C8: 1 | F8: 0 | I8: 2
A9: ='Форма по МДС 81-35.2004'!A74 -> 4. | B9: 1 | C9: 1 | F9: 0 | I9: 2
A10: ='Форма по МДС 81-35.2004'!A94 -> 5. | B10: 1 | C10: 1 | F10: 0 | I10: 2
A11: ='Форма по МДС 81-35.2004'!A113 -> 6. | B11: 1 | C11: 1 | F11: 0 | I11: 2
A12: ='Форма по МДС 81-35.2004'!A135 -> 7. | B12: 1 | C12: 1 | F12: 0 | I12: 2
A13: ='Форма по МДС 81-35.2004'!A154 -> 8. | B13: 1 | C13: 1 | F13: 0 | I13: 2
A14: ='Форма по МДС 81-35.2004'!A175 -> 9. | B14: 1 | C14: 1 | F14: 0 | I14: 2
A15: ='Форма по МДС 81-35.2004'!A194 -> 10. | B15: 1 | C15: 1 | F15: 0 | I15: 2
A16: ='Форма по МДС 81-35.2004'!A213 -> 11. | B16: 1 | C16: 1 | F16: 0 | I16: 2
A17: ='Форма по МДС 81-35.2004'!A238 -> 12. | B17: 1 | C17: 1 | F17: 0 | I17: 2
A18: ='Форма по МДС 81-35.2004'!A258 -> 13. | B18: 1 | C18: 1 | F18: 0 | I18: 2
A19: ='Форма по МДС 81-35.2004'!A277 -> 14. | B19: 1 | C19: 1 | F19: 0 | I19: 2
A20: ='Форма по МДС 81-35.2004'!A299 -> 15. | B20: 1 | C20: 1 | F20: 0 | I20: 2
A21: ='Форма по МДС 81-35.2004'!A319 -> 16. | B21: 1 | C21: 1 | F21: 0 | I21: 2
A22: ='Форма по МДС 81-35.2004'!A340 -> 17. | B22: 1 | C22: 1 | F22: 0 | I22: 2
A23: ='Форма по МДС 81-35.2004'!A360 -> 18. | B23: 1 | C23: 1 | F23: 0 | I23: 2
A24: ='Форма по МДС 81-35.2004'!A380 -> 19. | B24: 1 | C24: 1 | F24: 0 | I24: 2
A25: ='Форма по МДС 81-35.2004'!A402 -> 20. | B25: 1 | C25: 1 | F25: 0 | I25: 2
A26: ='Форма по МДС 81-35.2004'!A422 -> 21. | B26: 1 | C26: 1 | F26: 0 | I26: 2
A27: ='Форма по МДС 81-35.2004'!A442 -> 22. | B27: 1 | C27: 1 | F27: 0 | I27: 2
A28: ='Форма по МДС 81-35.2004'!A472 -> 23. | B28: 1 | C28: 1 | F28: 0 | I28: 2
A29: ='Форма по МДС 81-35.2004'!A499 -> 24. | B29: 1 | C29: 1 | F29: 0 | I29: 2
A30: ='Форма по МДС 81-35.2004'!A525 -> 25. | B30: 1 | C30: 1 | F30: 0 | I30: 2
A31: ='Форма по МДС 81-35.2004'!A545 -> 26. | B31: 1 | C31: 1 | F31: 0 | I31: 2
A32: ='Форма по МДС 81-35.2004'!A566 -> 27. | B32: 1 | C32: 1 | F32: 0 | I32: 2

Sheet Базовые концовки
B3: N = < ГЭСНс * 2015_s * 15_15_зр >
B4: Автомобильные дороги регионального или межмуниципального значения с автобусным движением с допустимым уровнем содержания - норматив "Авт" (ЗИМНИЕ РАБОТЫ)
B6: Наименование | C6: Вид | D6: Значение | E6: ЕИ | F6: Z1 | G6: Z2 | H6: Z3 | I6: Z4 | J6: Z5 | K6: Z6 | L6: Z7 | M6: Z8
A7: 1 | B7: . ИТОГО ПО СМЕТЕ | C7: А | D7: 0 | F7: =ROUND(SUM('Базовые цены с учетом расхода'!B6:B32),0) -> 6190 | G7: =ROUND(SUM('Базовые цены с учетом расхода'!C6:C32),0) -> 42 | H7: =ROUND(SUM('Базовые цены с учетом расхода'!D6:D32),0) -> 6090 | I7: =ROUND(SUM('Базовые цены с учетом расхода'!E6:E32),0) -> 463 | J7: =ROUND(SUM('Базовые цены с учетом расхода'!I6:I32),8) -> 5.349262 | K7: =ROUND(SUM('Базовые цены с учетом расхода'!K6:K32),8) -> 36.291782 | L7: =ROUND(SUM('Базовые цены с учетом расхода'!F6:F32),0) -> 60 | N7: 1
A8: 2 | B8: СТОИМОСТЬ ОБОРУДОВАНИЯ - | C8: Б | D8: 0 | F8: =ROUND(SUMIF(Определители!I6:I32,"= ",'Базовые цены с учетом расхода'!B6:B32),0) -> 0 | G8: =ROUND(SUMIF(Определители!I6:I32,"= ",'Базовые цены с учетом расхода'!C6:C32),0) -> 0 | H8: =ROUND(SUMIF(Определители!I6:I32,"= ",'Базовые цены с учетом расхода'!D6:D32),0) -> 0 | I8: =ROUND(SUMIF(Определители!I6:I32,"= ",'Базовые цены с учетом расхода'!E6:E32),0) -> 0 | J8: =ROUND(SUMIF(Определители!I6:I32,"= ",'Базовые цены с учетом расхода'!I6:I32),8) -> 0 | K8: =ROUND(SUMIF(Определители!I6:I32,"= ",'Базовые цены с учетом расхода'!K6:K32),8) -> 0 | L8: =ROUND(SUMIF(Определители!I6:I32,"= ",'Базовые цены с учетом расхода'!F6:F32),0) -> 0 | N8: 2
A9: 3 | B9: . ЗАПАСНЫЕ ЧАСТИ - | C9: Б | D9: 0 | F9: =ROUND(СУММПРОИЗВЕСЛИ(0.01,Определители!I6:I32," ",'Базовые цены с учетом расхода'!B6:B32,Начисления!X6:X32,0),0) -> 0 | N9: 3
A10: 4 | B10: . ТАРА И УПАКОВКА - | C10: Б | D10: 0 | F10: =ROUND(СУММПРОИЗВЕСЛИ(0.01,Определители!I6:I32," ",'Базовые цены с учетом расхода'!B6:B32,Начисления!Y6:Y32,0),0) -> 0 | N10: 4
A11: 5 | B11: . ТРАНСПОРТНЫЕ РАСХОДЫ - | C11: Б | D11: 0 | F11: =ROUND(ТРАНСПРАСХОД(Определители!B6:B32,Определители!H6:H32,Определители!I6:I32,'Базовые цены с учетом расхода'!B6:B32,Начисления!Z6:Z32,Начисления!AA6:AA32),0) -> 0 | N11: 5
A12: 6 | B12: . КОМПЛЕКТАЦИЯ - | C12: Б | D12: 0 | F12: =ROUND(СУММПРОИЗВЕСЛИ(0.01,Определители!I6:I32," ",'Базовые цены с учетом расхода'!B6:B32,Начисления!AC6:AC32,0),0) -> 0 | N12: 6
A13: 7 | B13: . НАЦЕНКА СНАБА - | C13: Б | D13: 0 | F13: =ROUND(СУММПРОИЗВЕСЛИ(0.01,Определители!I6:I32," ",'Базовые цены с учетом расхода'!B6:B32,Начисления!AF6:AF32,0),0) -> 0 | N13: 7
A14: 8 | B14: . ЗАГОТОВИТЕЛЬНО-СКЛАДСКИЕ РАСХОДЫ - | C14: Б | D14: 0 | F14: =ROUND(ЗАГОТСКЛАДРАСХОД(Определители!B6:B32,Определители!H6:H32,Определители!I6:I32,'Базовые цены с учетом расхода'!B6:B32,Начисления!X6:X32,Начисления!Y6:Y32,Начисления!Z6:Z32,Начисления!AA6:AA32,Начисления!AB6:AB32,Начисления!AC6:AC32,Начисления!AF6:AF32),0) -> 0 | N14: 8
A15: 9 | B15: . ШЕФМОНТАЖ ПО ОБОРУДОВАНИЮ - | C15: Б | D15: 0 | F15: =ROUND(СУММПРОИЗВЕСЛИ(1,Определители!I6:I32," ",'Базовые цены с учетом расхода'!M6:M32,Начисления!I6:I32,0),0) -> 0 | N15: 9
A16: 10 | B16: . ШЕФМОНТАЖ - | C16: ! | D16: 0 | F16: =ROUND((F15+F26+F46),0) -> 0 | N16: 10
A17: 11 | B17: ВСЕГО, СТОИМОСТЬ ОБОРУДОВАНИЯ - | C17: ! | D17: 0 | F17: =ROUND((F8+F9+F10+F11+F12+F13+F14+F16),0) -> 0 | N17: 11
A18: 12 | B18: СТОИМОСТЬ МОНТАЖНЫХ РАБОТ - | C18: Б | D18: 0 | F18: =ROUND(SUMIF(Определители!I6:I32,"=1",'Базовые цены с учетом расхода'!B6:B32),0) -> 0 | G18: =ROUND(SUMIF(Определители!I6:I32,"=1",'Базовые цены с учетом расхода'!C6:C32),0) -> 0 | H18: =ROUND(SUMIF(Определители!I6:I32,"=1",'Базовые цены с учетом расхода'!D6:D32),0) -> 0 | I18: =ROUND(SUMIF(Определители!I6:I32,"=1",'Базовые цены с учетом расхода'!E6:E32),0) -> 0 | J18: =ROUND(SUMIF(Определители!I6:I32,"=1",'Базовые цены с учетом расхода'!I6:I32),8) -> 0 | K18: =ROUND(SUMIF(Определители!I6:I32,"=1",'Базовые цены с учетом расхода'!K6:K32),8) -> 0 | L18: =ROUND(SUMIF(Определители!I6:I32,"=1",'Базовые цены с учетом расхода'!F6:F32),0) -> 0 | N18: 12
A19: 13 | B19: . В ТОМ ЧИСЛЕ: | C19: Б | D19: 0 | N19: 13
A20: 14 | B20: . ОТКЛОНЕНИЕ ПО ЗАРАБОТНОЙ ПЛАТЕ - | C20: Б | D20: 0 | G20: =ROUND(SUMIF(Определители!I6:I32,"=1",'Базовые цены с учетом расхода'!U6:U32),0) -> 0 | N20: 14
A21: 15 | B21: . КОСВЕННЫЕ РАСХОДЫ - | C21: Б | D21: 0 | F21: =ROUND(SUMIF(Определители!I6:I32,"=1",'Базовые цены с учетом расхода'!V6:V32),0) -> 0 | N21: 15
A22: 16 | B22: . МАТЕРИАЛЬНЫЕ РЕСУРСЫ НЕ УЧТЕННЫЕ В РАСЦЕНКАХ - | C22: Б | D22: 0 | F22: =ROUND(СУММЕСЛИ2(Определители!I6:I32,"1",Определители!G6:G32,"1",'Базовые цены с учетом расхода'!B6:B32),0) -> 0 | N22: 16
A23: 17 | B23: . СТОИМОСТЬ ВОЗВРАЩАЕМЫХ МАТЕРИАЛОВ - | C23: Б | D23: 0 | F23: =ROUND(SUMIF(Определители!I6:I32,"=1",'Базовые цены с учетом расхода'!H6:H32),0) -> 0 | N23: 17
A24: 18 | B24: . НАКЛАДНЫЕ РАСХОДЫ - | C24: Б | D24: 0 | F24: =ROUND(SUMIF(Определители!I6:I32,"=1",'Базовые цены с учетом расхода'!N6:N32),0) -> 0 | N24: 18
A25: 19 | B25: . СМЕТНАЯ ПРИБЫЛЬ - | C25: Б | D25: 0 | F25: =ROUND(SUMIF(Определители!I6:I32,"=1",'Базовые цены с учетом расхода'!O6:O32),0) -> 0 | N25: 19
A26: 20 | B26: . ШЕФМОНТАЖ - | C26: Б | D26: 0 | F26: =ROUND(СУММПРОИЗВЕСЛИ(1,Определители!I6:I32," ",'Базовые цены с учетом расхода'!M6:M32,Начисления!I6:I32,0),0) -> 0 | N26: 20
A27: 21 | B27: ВСЕГО, СТОИМОСТЬ МОНТАЖНЫХ РАБОТ - | C27: ! | D27: 0 | F27: =ROUND((F18+F24+F25),0) -> 0 | N27: 21
A28: 22 | B28: СТОИМОСТЬ ОБЩЕСТРОИТЕЛЬНЫХ РАБОТ - | C28: Б | D28: 0 | F28: =ROUND(SUMIF(Определители!I6:I32,"=2",'Базовые цены с учетом расхода'!B6:B32),0) -> 6190 | G28: =ROUND(SUMIF(Определители!I6:I32,"=2",'Базовые цены с учетом расхода'!C6:C32),0) -> 42 | H28: =ROUND(SUMIF(Определители!I6:I32,"=2",'Базовые цены с учетом расхода'!D6:D32),0) -> 6090 | I28: =ROUND(SUMIF(Определители!I6:I32,"=2",'Базовые цены с учетом расхода'!E6:E32),0) -> 463 | J28: =ROUND(SUMIF(Определители!I6:I32,"=2",'Базовые цены с учетом расхода'!I6:I32),8) -> 5.349262 | K28: =ROUND(SUMIF(Определители!I6:I32,"=2",'Базовые цены с учетом расхода'!K6:K32),8) -> 36.291782 | L28: =ROUND(SUMIF(Определители!I6:I32,"=2",'Базовые цены с учетом расхода'!F6:F32),0) -> 60 | N28: 22
A29: 23 | B29: . В ТОМ ЧИСЛЕ: | C29: Б | D29: 0 | N29: 23
A30: 24 | B30: . МАТЕРИАЛОВ - | C30: Б | D30: 0 | F30: =ROUND(СУММЕСЛИ2(Определители!I6:I32,"2",Определители!G6:G32,"1",'Базовые цены с учетом расхода'!B6:B32),0) -> 0 | N30: 24
A31: 25 | B31: . СТОИМОСТЬ ВОЗВРАЩАЕМЫХ МАТЕРИАЛОВ - | C31: Б | D31: 0 | F31: =ROUND(SUMIF(Определители!I6:I32,"=2",'Базовые цены с учетом расхода'!H6:H32),0) -> 0 | N31: 25
A32: 26 | B32: . НАКЛАДНЫЕ РАСХОДЫ - | C32: Б | D32: 0 | F32: =ROUND(SUMIF(Определители!I6:I32,"=2",'Базовые цены с учетом расхода'!N6:N32),0) -> 723 | N32: 26
A33: 27 | B33: . СМЕТНАЯ ПРИБЫЛЬ - | C33: Б | D33: 0 | F33: =ROUND(SUMIF(Определители!I6:I32,"=2",'Базовые цены с учетом расхода'!O6:O32),0) -> 552 | N33: 27
A34: 28 | B34: ВСЕГО, СТОИМОСТЬ ОБЩЕСТРОИТЕЛЬНЫХ РАБОТ - | C34: ! | D34: 0 | F34: =ROUND((F28+F32+F33),0) -> 7465 | N34: 28
A35: 29 | B35: СТОИМОСТЬ МЕТАЛЛОМОНТАЖНЫХ РАБОТ - | C35: Б | D35: 0 | F35: =ROUND(SUMIF(Определители!I6:I32,"=3",'Базовые цены с учетом расхода'!B6:B32),0) -> 0 | G35: =ROUND(SUMIF(Определители!I6:I32,"=3",'Базовые цены с учетом расхода'!C6:C32),0) -> 0 | H35: =ROUND(SUMIF(Определители!I6:I32,"=3",'Базовые цены с учетом расхода'!D6:D32),0) -> 0 | I35: =ROUND(SUMIF(Определители!I6:I32,"=3",'Базовые цены с учетом расхода'!E6:E32),0) -> 0 | J35: =ROUND(SUMIF(Определители!I6:I32,"=3",'Базовые цены с учетом расхода'!I6:I32),8) -> 0 | K35: =ROUND(SUMIF(Определители!I6:I32,"=3",'Базовые цены с учетом расхода'!K6:K32),8) -> 0 | L35: =ROUND(SUMIF(Определители!I6:I32,"=3",'Базовые цены с учетом расхода'!F6:F32),0) -> 0 | N35: 29
A36: 30 | B36: . СТОИМОСТЬ ВОЗВРАЩАЕМЫХ МАТЕРИАЛОВ - | C36: Б | D36: 0 | F36: =ROUND(SUMIF(Определители!I6:I32,"=3",'Базовые цены с учетом расхода'!H6:H32),0) -> 0 | N36: 30
A37: 31 | B37: . НАКЛАДНЫЕ РАСХОДЫ - | C37: Б | D37: 0 | F37: =ROUND(SUMIF(Определители!I6:I32,"=3",'Базовые цены с учетом расхода'!N6:N32),0) -> 0 | N37: 31
A38: 32 | B38: . СМЕТНАЯ ПРИБЫЛЬ - | C38: Б | D38: 0 | F38: =ROUND(SUMIF(Определители!I6:I32,"=3",'Базовые цены с учетом расхода'!O6:O32),0) -> 0 | N38: 32
A39: 33 | B39: ВСЕГО, СТОИМОСТЬ МЕТАЛЛОМОНТАЖНЫХ РАБОТ - | C39: ! | D39: 0 | F39: =ROUND((F35+F37+F38),0) -> 0 | N39: 33
A40: 34 | B40: СТОИМОСТЬ САНТЕХНИЧЕСКИХ РАБОТ - | C40: Б | D40: 0 | F40: =ROUND(SUMIF(Определители!I6:I32,"=4",'Базовые цены с учетом расхода'!B6:B32),0) -> 0 | G40: =ROUND(SUMIF(Определители!I6:I32,"=4",'Базовые цены с учетом расхода'!C6:C32),0) -> 0 | H40: =ROUND(SUMIF(Определители!I6:I32,"=4",'Базовые цены с учетом расхода'!D6:D32),0) -> 0 | I40: =ROUND(SUMIF(Определители!I6:I32,"=4",'Базовые цены с учетом расхода'!E6:E32),0) -> 0 | J40: =ROUND(SUMIF(Определители!I6:I32,"=4",'Базовые цены с учетом расхода'!I6:I32),8) -> 0 | K40: =ROUND(SUMIF(Определители!I6:I32,"=4",'Базовые цены с учетом расхода'!K6:K32),8) -> 0 | L40: =ROUND(SUMIF(Определители!I6:I32,"=4",'Базовые цены с учетом расхода'!F6:F32),0) -> 0 | N40: 34
A41: 35 | B41: . В ТОМ ЧИСЛЕ: | C41: Б | D41: 0 | N41: 35
A42: 36 | B42: . СДАЧА И ИСПЫТАНИЕ - | C42: Б | D42: 0 | N42: 36
A43: 37 | B43: . СТОИМОСТЬ ВОЗВРАЩАЕМЫХ МАТЕРИАЛОВ - | C43: Б | D43: 0 | F43: =ROUND(SUMIF(Определители!I6:I32,"=4",'Базовые цены с учетом расхода'!H6:H32),0) -> 0 | N43: 37
A44: 38 | B44: . НАКЛАДНЫЕ РАСХОДЫ - | C44: Б | D44: 0 | F44: =ROUND(SUMIF(Определители!I6:I32,"=4",'Базовые цены с учетом расхода'!N6:N32),0) -> 0 | N44: 38
A45: 39 | B45: . СМЕТНАЯ ПРИБЫЛЬ - | C45: Б | D45: 0 | F45: =ROUND(SUMIF(Определители!I6:I32,"=4",'Базовые цены с учетом расхода'!O6:O32),0) -> 0 | N45: 39
A46: 40 | B46: . ШЕФМОНТАЖ - | C46: Б | D46: 0 | F46: =ROUND(СУММПРОИЗВЕСЛИ(1,Определители!I6:I32," ",'Базовые цены с учетом расхода'!M6:M32,Начисления!I6:I32,0),0) -> 0 | N46: 40
A47: 41 | B47: ВСЕГО, СТОИМОСТЬ САНТЕХНИЧЕСКИХ РАБОТ - | C47: ! | D47: 0 | F47: =ROUND((F40+F44+F45),0) -> 0 | N47: 41
A48: 42 | B48: СТОИМОСТЬ БУРО-ВЗРЫВНЫХ РАБОТ - | C48: Б | D48: 0 | F48: =ROUND(SUMIF(Определители!I6:I32,"=5",'Базовые цены с учетом расхода'!B6:B32),0) -> 0 | G48: =ROUND(SUMIF(Определители!I6:I32,"=5",'Базовые цены с учетом расхода'!C6:C32),0) -> 0 | H48: =ROUND(SUMIF(Определители!I6:I32,"=5",'Базовые цены с учетом расхода'!D6:D32),0) -> 0 | I48: =ROUND(SUMIF(Определители!I6:I32,"=5",'Базовые цены с учетом расхода'!E6:E32),0) -> 0 | J48: =ROUND(SUMIF(Определители!I6:I32,"=5",'Базовые цены с учетом расхода'!I6:I32),8) -> 0 | K48: =ROUND(SUMIF(Определители!I6:I32,"=5",'Базовые цены с учетом расхода'!K6:K32),8) -> 0 | L48: =ROUND(SUMIF(Определители!I6:I32,"=5",'Базовые цены с учетом расхода'!F6:F32),0) -> 0 | N48: 42
A49: 43 | B49: . СТОИМОСТЬ ВОЗВРАЩАЕМЫХ МАТЕРИАЛОВ - | C49: Б | D49: 0 | F49: =ROUND(SUMIF(Определители!I6:I32,"=5",'Базовые цены с учетом расхода'!H6:H32),0) -> 0 | N49: 43
A50: 44 | B50: . НАКЛАДНЫЕ РАСХОДЫ - | C50: Б | D50: 0 | F50: =ROUND(SUMIF(Определители!I6:I32,"=5",'Базовые цены с учетом расхода'!N6:N32),0) -> 0 | N50: 44
A51: 45 | B51: . СМЕТНАЯ ПРИБЫЛЬ - | C51: Б | D51: 0 | F51: =ROUND(SUMIF(Определители!I6:I32,"=5",'Базовые цены с учетом расхода'!O6:O32),0) -> 0 | N51: 45
A52: 46 | B52: ВСЕГО, СТОИМОСТЬ БУРО-ВЗРЫВНЫХ РАБОТ - | C52: ! | D52: 0 | F52: =ROUND((F48+F50+F51),0) -> 0 | N52: 46
A53: 47 | B53: СТОИМОСТЬ ГОРНОПРОХОДЧЕСКИХ РАБОТ - | C53: Б | D53: 0 | F53: =ROUND(SUMIF(Определители!I6:I32,"=6",'Базовые цены с учетом расхода'!B6:B32),0) -> 0 | G53: =ROUND(SUMIF(Определители!I6:I32,"=6",'Базовые цены с учетом расхода'!C6:C32),0) -> 0 | H53: =ROUND(SUMIF(Определители!I6:I32,"=6",'Базовые цены с учетом расхода'!D6:D32),0) -> 0 | I53: =ROUND(SUMIF(Определители!I6:I32,"=6",'Базовые цены с учетом расхода'!E6:E32),0) -> 0 | J53: =ROUND(SUMIF(Определители!I6:I32,"=6",'Базовые цены с учетом расхода'!I6:I32),8) -> 0 | K53: =ROUND(SUMIF(Определители!I6:I32,"=6",'Базовые цены с учетом расхода'!K6:K32),8) -> 0 | L53: =ROUND(SUMIF(Определители!I6:I32,"=6",'Базовые цены с учетом расхода'!F6:F32),0) -> 0 | N53: 47
A54: 48 | B54: . СТОИМОСТЬ ВОЗВРАЩАЕМЫХ МАТЕРИАЛОВ - | C54: Б | D54: 0 | F54: =ROUND(SUMIF(Определители!I6:I32,"=6",'Базовые цены с учетом расхода'!H6:H32),0) -> 0 | N54: 48
A55: 49 | B55: . НАКЛАДНЫЕ РАСХОДЫ - | C55: Б | D55: 0 | F55: =ROUND(SUMIF(Определители!I6:I32,"=6",'Базовые цены с учетом расхода'!N6:N32),0) -> 0 | N55: 49
A56: 50 | B56: . СМЕТНАЯ ПРИБЫЛЬ - | C56: Б | D56: 0 | F56: =ROUND(SUMIF(Определители!I6:I32,"=6",'Базовые цены с учетом расхода'!O6:O32),0) -> 0 | N56: 50
A57: 51 | B57: ВСЕГО, СТОИМОСТЬ ГОРНОПРОХОДЧЕСКИХ РАБОТ - | C57: ! | D57: 0 | F57: =ROUND((F53+F55+F56),0) -> 0 | N57: 51
A58: 52 | B58: СТОИМОСТЬ РЕСТАВРАЦИОННЫХ РАБОТ - | C58: Б | D58: 0 | F58: =ROUND(SUMIF(Определители!I6:I32,"=7",'Базовые цены с учетом расхода'!B6:B32),0) -> 0 | G58: =ROUND(SUMIF(Определители!I6:I32,"=7",'Базовые цены с учетом расхода'!C6:C32),0) -> 0 | H58: =ROUND(SUMIF(Определители!I6:I32,"=7",'Базовые цены с учетом расхода'!D6:D32),0) -> 0 | I58: =ROUND(SUMIF(Определители!I6:I32,"=7",'Базовые цены с учетом расхода'!E6:E32),0) -> 0 | J58: =ROUND(SUMIF(Определители!I6:I32,"=7",'Базовые цены с учетом расхода'!I6:I32),8) -> 0 | K58: =ROUND(SUMIF(Определители!I6:I32,"=7",'Базовые цены с учетом расхода'!K6:K32),8) -> 0 | L58: =ROUND(SUMIF(Определители!I6:I32,"=7",'Базовые цены с учетом расхода'!F6:F32),0) -> 0 | N58: 52
A59: 53 | B59: . В ТОМ ЧИСЛЕ: | C59: Б | D59: 0 | N59: 53
A60: 54 | B60: . МАТЕРИАЛОВ - | C60: Б | D60: 0 | F60: =ROUND(СУММЕСЛИ2(Определители!I6:I32,"2",Определители!G6:G32,"1",'Базовые цены с учетом расхода'!B6:B32),0) -> 0 | N60: 54
A61: 55 | B61: . СТОИМОСТЬ ВОЗВРАЩАЕМЫХ МАТЕРИАЛОВ - | C61: Б | D61: 0 | F61: =ROUND(SUMIF(Определители!I6:I32,"=7",'Базовые цены с учетом расхода'!H6:H32),0) -> 0 | N61: 55
A62: 56 | B62: . НАКЛАДНЫЕ РАСХОДЫ - | C62: Б | D62: 0 | F62: =ROUND(SUMIF(Определители!I6:I32,"=7",'Базовые цены с учетом расхода'!N6:N32),0) -> 0 | N62: 56
A63: 57 | B63: . СМЕТНАЯ ПРИБЫЛЬ - | C63: Б | D63: 0 | F63: =ROUND(SUMIF(Определители!I6:I32,"=7",'Базовые цены с учетом расхода'!O6:O32),0) -> 0 | N63: 57
A64: 58 | B64: ВСЕГО, СТОИМОСТЬ РЕСТАВРАЦИОННЫХ РАБОТ - | C64: ! | D64: 0 | F64: =ROUND((F58+F62+F63),0) -> 0 | N64: 58
A65: 59 | B65: СТОИМОСТЬ ПЕРЕВОЗКИ ГРУЗОВ - | C65: Б | D65: 0 | F65: =ROUND(SUMIF(Определители!I6:I32,"=;",'Базовые цены с учетом расхода'!B6:B32),0) -> 0 | G65: =ROUND(SUMIF(Определители!I6:I32,"=;",'Базовые цены с учетом расхода'!C6:C32),0) -> 0 | H65: =ROUND(SUMIF(Определители!I6:I32,"=;",'Базовые цены с учетом расхода'!D6:D32),0) -> 0 | I65: =ROUND(SUMIF(Определители!I6:I32,"=;",'Базовые цены с учетом расхода'!E6:E32),0) -> 0 | J65: =ROUND(SUMIF(Определители!I6:I32,"=;",'Базовые цены с учетом расхода'!I6:I32),8) -> 0 | K65: =ROUND(SUMIF(Определители!I6:I32,"=;",'Базовые цены с учетом расхода'!K6:K32),8) -> 0 | L65: =ROUND(SUMIF(Определители!I6:I32,"=;",'Базовые цены с учетом расхода'!F6:F32),0) -> 0 | N65: 59
A66: 60 | B66: . В Т.Ч. НАКЛАДНЫЕ РАСХОДЫ - | C66: Б | D66: 0 | F66: =ROUND(SUMIF(Определители!I6:I32,"=;",'Базовые цены с учетом расхода'!AF6:AF32),0) -> 0 | N66: 60
A67: 61 | B67: . В Т.Ч. СМЕТНАЯ ПРИБЫЛЬ - | C67: Б | D67: 0 | F67: =ROUND(SUMIF(Определители!I6:I32,"=;",'Базовые цены с учетом расхода'!AG6:AG32),0) -> 0 | N67: 61
A68: 62 | B68: . НАКЛАДНЫЕ РАСХОДЫ - | C68: Б | D68: 0 | F68: =ROUND(SUMIF(Определители!I6:I32,"=;",'Базовые цены с учетом расхода'!N6:N32),0) -> 0 | N68: 62
A69: 63 | B69: . СМЕТНАЯ ПРИБЫЛЬ - | C69: Б | D69: 0 | F69: =ROUND(SUMIF(Определители!I6:I32,"=;",'Базовые цены с учетом расхода'!O6:O32),0) -> 0 | N69: 63
A70: 64 | B70: ВСЕГО, СТОИМОСТЬ ПЕРЕВОЗКИ ГРУЗОВ - | C70: ! | D70: 0 | F70: =ROUND((F65+F68+F69),0) -> 0 | N70: 64
A71: 65 | B71: СТОИМОСТЬ ПУСКОНАЛАДОЧНЫХ РАБОТ - | C71: Б | D71: 0 | F71: =ROUND(SUMIF(Определители!I6:I32,"=9",'Базовые цены с учетом расхода'!B6:B32),0) -> 0 | G71: =ROUND(SUMIF(Определители!I6:I32,"=9",'Базовые цены с учетом расхода'!C6:C32),0) -> 0 | H71: =ROUND(SUMIF(Определители!I6:I32,"=9",'Базовые цены с учетом расхода'!D6:D32),0) -> 0 | I71: =ROUND(SUMIF(Определители!I6:I32,"=9",'Базовые цены с учетом расхода'!E6:E32),0) -> 0 | J71: =ROUND(SUMIF(Определители!I6:I32,"=9",'Базовые цены с учетом расхода'!I6:I32),8) -> 0 | K71: =ROUND(SUMIF(Определители!I6:I32,"=9",'Базовые цены с учетом расхода'!K6:K32),8) -> 0 | L71: =ROUND(SUMIF(Определители!I6:I32,"=9",'Базовые цены с учетом расхода'!F6:F32),0) -> 0 | N71: 65
A72: 66 | B72: . НАКЛАДНЫЕ РАСХОДЫ - | C72: Б | D72: 0 | F72: =ROUND(SUMIF(Определители!I6:I32,"=9",'Базовые цены с учетом расхода'!N6:N32),0) -> 0 | N72: 66
A73: 67 | B73: . СМЕТНАЯ ПРИБЫЛЬ - | C73: Б | D73: 0 | F73: =ROUND(SUMIF(Определители!I6:I32,"=9",'Базовые цены с учетом расхода'!O6:O32),0) -> 0 | N73: 67
A74: 68 | B74: ВСЕГО, СТОИМОСТЬ ПУСКОНАЛАДОЧНЫХ РАБОТ - | C74: ! | D74: 0 | F74: =ROUND((F71+F72+F73),0) -> 0 | N74: 68
A75: 69 | B75: СТОИМОСТЬ ПРОЧИХ РАБОТ (с НР и СП) - | C75: Б | D75: 0 | F75: =ROUND(SUMIF(Определители!I6:I32,"=:",'Базовые цены с учетом расхода'!B6:B32),0) -> 0 | G75: =ROUND(SUMIF(Определители!I6:I32,"=:",'Базовые цены с учетом расхода'!C6:C32),0) -> 0 | H75: =ROUND(SUMIF(Определители!I6:I32,"=:",'Базовые цены с учетом расхода'!D6:D32),0) -> 0 | I75: =ROUND(SUMIF(Определители!I6:I32,"=:",'Базовые цены с учетом расхода'!E6:E32),0) -> 0 | J75: =ROUND(SUMIF(Определители!I6:I32,"=:",'Базовые цены с учетом расхода'!I6:I32),8) -> 0 | K75: =ROUND(SUMIF(Определители!I6:I32,"=:",'Базовые цены с учетом расхода'!K6:K32),8) -> 0 | L75: =ROUND(SUMIF(Определители!I6:I32,"=:",'Базовые цены с учетом расхода'!F6:F32),0) -> 0 | N75: 69
A76: 70 | B76: . СТОИМОСТЬ ВОЗВРАЩАЕМЫХ МАТЕРИАЛОВ - | C76: Б | D76: 0 | F76: =ROUND(SUMIF(Определители!I6:I32,"=:",'Базовые цены с учетом расхода'!H6:H32),0) -> 0 | N76: 70
A77: 71 | B77: . НАКЛАДНЫЕ РАСХОДЫ - | C77: Б | D77: 0 | F77: =ROUND(SUMIF(Определители!I6:I32,"=:",'Базовые цены с учетом расхода'!N6:N32),0) -> 0 | N77: 71
A78: 72 | B78: . СМЕТНАЯ ПРИБЫЛЬ - | C78: Б | D78: 0 | F78: =ROUND(SUMIF(Определители!I6:I32,"=:",'Базовые цены с учетом расхода'!O6:O32),0) -> 0 | N78: 72
A79: 73 | B79: ВСЕГО, СТОИМОСТЬ ПРОЧИХ РАБОТ (с НР и СП) - | C79: ! | D79: 0 | F79: =ROUND((F75+F77+F78),0) -> 0 | N79: 73
A80: 74 | B80: ВСЕГО, СТОИМОСТЬ ПРОЧИХ РАБОТ (без НР и СП) - | C80: Б | D80: 0 | F80: =ROUND(SUMIF(Определители!I6:I32,"=8",'Базовые цены с учетом расхода'!B6:B32),0) -> 0 | G80: =ROUND(SUMIF(Определители!I6:I32,"=8",'Базовые цены с учетом расхода'!C6:C32),0) -> 0 | H80: =ROUND(SUMIF(Определители!I6:I32,"=8",'Базовые цены с учетом расхода'!D6:D32),0) -> 0 | I80: =ROUND(SUMIF(Определители!I6:I32,"=8",'Базовые цены с учетом расхода'!E6:E32),0) -> 0 | J80: =ROUND(SUMIF(Определители!I6:I32,"=8",'Базовые цены с учетом расхода'!I6:I32),8) -> 0 | K80: =ROUND(SUMIF(Определители!I6:I32,"=8",'Базовые цены с учетом расхода'!K6:K32),8) -> 0 | L80: =ROUND(SUMIF(Определители!I6:I32,"=8",'Базовые цены с учетом расхода'!F6:F32),0) -> 0 | N80: 74
A81: 75 | B81: . СТОИМОСТЬ ВОЗВРАЩАЕМЫХ МАТЕРИАЛОВ - | C81: Б | D81: 0 | F81: =ROUND(SUMIF(Определители!I6:I32,"=8",'Базовые цены с учетом расхода'!H6:H32),0) -> 0 | N81: 75
A82: 76 | B82: . ВСЕГО ПО СМЕТЕ | C82: ! | D82: 0 | F82: =ROUND((F17+F27+F34+F39+F47+F52+F57+F64+F74+F79+F80+F70),0) -> 7465 | G82: =ROUND((G17+G27+G34+G39+G47+G52+G57+G64+G74+G79+G80+G70),0) -> 0 | H82: =ROUND((H17+H27+H34+H39+H47+H52+H57+H64+H74+H79+H80+H70),0) -> 0 | I82: =ROUND((I17+I27+I34+I39+I47+I52+I57+I64+I74+I79+I80+I70),0) -> 0 | J82: =ROUND((J17+J27+J34+J39+J47+J52+J57+J64+J74+J79+J80+J70),8) -> 0 | K82: =ROUND((K17+K27+K34+K39+K47+K52+K57+K64+K74+K79+K80+K70),8) -> 0 | L82: =ROUND((L17+L27+L34+L39+L47+L52+L57+L64+L74+L79+L80+L70),0) -> 0 | N82: 76
A83: 77 | B83: ВСЕГО СТОИМОСТЬ ВОЗВРАЩАЕМЫХ МАТЕРИАЛОВ - | C83: ! | D83: 0 | F83: =ROUND((F23+F31+F36+F43+F49+F54+F61+F76+F81),0) -> 0 | N83: 77
A84: 78 | B84: ВСЕГО НАКЛАДНЫЕ РАСХОДЫ | C84: ! | D84: 0 | F84: =ROUND((F24+F32+F37+F44+F50+F55+F62+F72+F77+F68),0) -> 723 | N84: 78
A85: 79 | B85: ВСЕГО СМЕТНАЯ ПРИБЫЛЬ | C85: ! | D85: 0 | F85: =ROUND((F25+F33+F38+F45+F51+F56+F63+F73+F78+F69),0) -> 552 | N85: 79
A86: 80 | B86: НАКЛАДНЫЕ РАСХОДЫ 11,7% от прямых затрат | C86: % | D86: 11.7 | F86: =ROUND((F7)*D86/100,0) -> 724 | N86: 80
A87: 81 | B87: в т.ч. Вспомогательные материалы от стоимости материалов | C87: h | D87: 0 | F87: =ROUND(SUM('Базовые цены с учетом расхода'!X6:X32),0) -> 0 | L87: =ROUND(SUM('Базовые цены с учетом расхода'!X6:X32),0) -> 0 | N87: 81
A88: 82 | B88: в т.ч. Вспомогательные материалы от ОЗП | C88: h | D88: 0 | F88: =ROUND(SUM(G88:N88),0) -> 0 | L88: =ROUND(SUM('Базовые цены с учетом расхода'!AE6:AE32),0) -> 0 | N88: 82
A89: 83 | B89: Оплата основных рабочих | C89: h | D89: 0 | F89: =ROUND(SUM('Базовые цены с учетом расхода'!C6:C32),0) -> 42 | N89: 83
A90: 84 | B90: Оплата механизаторов | C90: h | D90: 0 | F90: =ROUND(SUM('Базовые цены с учетом расхода'!E6:E32),0) -> 463 | N90: 84
A91: 85 | B91: Сметная заработная плата | C91: s | D91: 0 | F91: =ROUND((F89+F90),0) -> 505 | N91: 85
A92: 86 | B92: Трудозатраты осн. рабочих | C92: h | D92: 0 | J92: =ROUND(SUM('Базовые цены с учетом расхода'!I6:I32),8) -> 5.349262 | N92: 86
A93: 87 | B93: Трудозатраты механизаторов | C93: h | D93: 0 | J93: =ROUND(SUM('Базовые цены с учетом расхода'!K6:K32),8) -> 36.291782 | N93: 87
A94: 88 | B94: Нормативная трудоемкость | C94: s | D94: 0 | J94: =ROUND((J92+J93),8) -> 41.641044 | N94: 88
A95: 89 | B95: ИТОГО С НР | C95: s | D95: 0 | F95: =ROUND((F7+F86),0) -> 6914 | N95: 89
A96: 90 | B96: СМЕТНАЯ ПРИБЫЛЬ 8% от прямых затрат + НР | C96: % | D96: 8 | F96: =ROUND((F95)*D96/100,0) -> 553 | N96: 90
A97: 91 | B97: ИТОГО С НР И СП в уровне цен 3 квартала 2013 года | C97: s | D97: 0 | F97: =ROUND((F95+F96),0) -> 7467 | N97: 91
A98: 92 | B98: НДС 18% | C98: % | D98: 18 | F98: =ROUND((F97)*D98/100,0) -> 1344 | N98: 92
A99: 93 | B99: . ВСЕГО ПО СМЕТЕ в ценах 2013 года с НДС | C99: s | D99: 0 | F99: =ROUND((F97+F98),0) -> 8811 | N99: 93
A100: 94 | B100: Сметная заработная плата | C100: s | D100: 0 | F100: =ROUND((F89+F90),0) -> 505 | N100: 94
A101: 95 | B101: Сметная стоимость материалов | C101: h | D101: 0 | F101: =ROUND(SUM('Базовые цены с учетом расхода'!F6:F32),0) -> 60 | N101: 95
A102: 96 | B102: Сметная стоимость материалов с НДС 18% | C102: k | D102: 1.18 | F102: =ROUND((F101)*D102,0) -> 71 | N102: 96
A103: 97 | B103: Стоимость эксплуатации машин | C103: h | D103: 0 | F103: =ROUND(SUM('Базовые цены с учетом расхода'!D6:D32),0) -> 6090 | N103: 97
A104: 98 | B104: Стоимость эксплуатации машин без зарплаты механизаторов | C104: m | D104: 0 | F104: =ROUND((F103-F90),0) -> 5627 | N104: 98
A105: 99 | B105: Стоимость эксплуатации машин без зар-ты механизаторов с НДС | C105: k | D105: 1.18 | F105: =ROUND((F104)*D105,0) -> 6640 | N105: 99
A106: 100 | B106: ИТОГО ПО СМЕТЕ | C106: s | D106: 0 | F106: =ROUND((F100+F102+F105),0) -> 7216 | N106: 100
A107: 101 | B107: ВСЕГО НАКЛАДНЫЕ РАСХОДЫ с К=0,94 | C107: k | D107: 0.94 | F107: =ROUND((F86)*D107,0) -> 681 | N107: 101
A108: 102 | B108: ВСЕГО СМЕТНАЯ ПРИБЫЛЬ с К=0,9 | C108: k | D108: 0.9 | F108: =ROUND((F96)*D108,0) -> 498 | N108: 102
A109: 103 | B109: . ВСЕГО ПО СМЕТЕ в ценах 3 квартала 2013 года | C109: s | D109: 0 | F109: =ROUND((F106+F107+F108),0) -> 8395 | N109: 103

Sheet Текущие концовки
B3: N = < ГЭСНс * 2015_s * 15_15_зр >
B4: Автомобильные дороги регионального или межмуниципального значения с автобусным движением с допустимым уровнем содержания - норматив "Авт" (ЗИМНИЕ РАБОТЫ)
B6: Наименование | C6: Вид | D6: Значение | E6: ЕИ | F6: Z1 | G6: Z2 | H6: Z3 | I6: Z4 | J6: Z5 | K6: Z6 | L6: Z7 | M6: Z8
A7: 1 | B7: . ИТОГО ПО СМЕТЕ | C7: А | D7: 0 | F7: =ROUND(SUM('Текущие цены с учетом расхода'!B6:B32),0) -> 50178 | G7: =ROUND(SUM('Текущие цены с учетом расхода'!C6:C32),0) -> 564 | H7: =ROUND(SUM('Текущие цены с учетом расхода'!D6:D32),0) -> 37887 | I7: =ROUND(SUM('Текущие цены с учетом расхода'!E6:E32),0) -> 6194 | J7: =ROUND(SUM('Текущие цены с учетом расхода'!I6:I32),8) -> 5.349262 | K7: =ROUND(SUM('Текущие цены с учетом расхода'!K6:K32),8) -> 36.291782 | L7: =ROUND(SUM('Текущие цены с учетом расхода'!F6:F32),0) -> 11730 | N7: 1
